Workbook

Sheet DCF Model
B2: DCF Model
B3: Copyright © 2022 by Andrew W. Lo and Shomesh E. Chaudhuri – All Rights Reserved
B5: PLEASE NOTE: This workbook requires the ability to run VBA macros.
B6: You must enable macros before the model will calculate properly.
B8: Formatting Legend | E8: Input | F8: Output | G8: Calculation | H8: Eq Change
B10: Program Overview | S10: Program Expenses
B12: PoA (%) | F12: =$J$48 -> 0.063342 | G12: Probability of approval | S12: Total R&D = Clinical trial costs
B13: App Date | F13: =$G$48 -> 2030 Q1 | G13: Quarter of first product approval in any geography
B14: NPV ($MM) | F14: =$G$361 -> 748.5161151 | G14: Net present value of the program's unadjusted cash flows | S14: Phase | V14: Total Cost | W14: Quarters | X14: Qtrly Cost | Y14: Start Time | Z14: Total R&D costs required to conduct each phase of development.
B15: rNPV ($MM) | F15: =$G$379 -> 5.024041333 | G15: Net present value of the program's risk-adjusted (i.e., probability-weighted) cash flows | S15: Discovery | V15: 2.5 | W15: =IFERROR(4*$I40, "N/A") -> 4 | X15: =IFERROR(V15/W15,0) -> 0.625 | Y15: =IF(G40<=$G$175, G40, _xlfn.XLOOKUP(S15, $G$177:$DV$177, $G$175:$DV$175, "N/A", 0)) -> 2020 Q1 | Z15: Costs are spread equally across the periods during which the phase is conducted.
B16: IRR (%) | F16: =$G$362 -> 0.3937718332 | G16: Internal rate of return of the program's unadjusted cash flows | S16: Hit-to-Lead | V16: 3 | W16: 4 | X16: 0.75 | Y16: 2021 Q1
B17: rIRR (%) | F17: =$G$380 -> 0.1889755794 | G17: Internal rate of return of the program's risk-adjusted (i.e., probability-weighted) cash flows | S17: Lead Opt | V17: 8 | W17: 4 | X17: 2 | Y17: 2022 Q1
S18: IND Enabling | V18: 15 | W18: 4 | X18: 3.75 | Y18: 2023 Q1
B19: Cumulative: | F19: Duration (Yrs) | G19: Costs ($MM) | S19: Phase 1 | V19: 25 | W19: 4 | X19: 6.25 | Y19: 2024 Q1
B20: Phase 1 | F20: =IFERROR(DATE2NUM(INDEX(G$175:DV$175, 1, MATCH("Phase 2", G$177:DV$177,0)))-DATE2NUM($G$175),0) -> 4 | G20: =IF(F20>0,SUM(OFFSET($G$310,0,0,1,4*F20)),0) -> 75 | H20: Cumulative duration and cost through the end of phase 1 | S20: Phase 2 | V20: 50 | W20: 8 | X20: 6.25 | Y20: 2025 Q1
B21: Phase 2 | F21: =IFERROR(DATE2NUM(INDEX(G$175:DV$175, 1, MATCH("Phase 3", G$177:DV$177,0)))-DATE2NUM($G$175),0) -> 6 | G21: =IF(F21>0,SUM(OFFSET($G$310,0,0,1,4*F21)),0) -> 173 | H21: Cumulative duration and cost through the end of phase 2 | S21: Phase 3 | V21: 100 | W21: 8 | X21: 12.5 | Y21: 2027 Q1
B22: Phase 3 | F22: =IFERROR(DATE2NUM(INDEX(G$175:DV$175, 1, MATCH("Registration", G$177:DV$177,0)))-DATE2NUM($G$175),0) -> 8 | G22: =IF(F22>0,SUM(OFFSET($G$310,0,0,1,4*F22)),0) -> 338.5 | H22: Cumulative duration and cost through the end of phase 3 | S22: Registration | V22: 40 | W22: 4 | X22: 10 | Y22: 2029 Q1
B23: Registration | F23: =IFERROR(DATE2NUM(INDEX(G$175:DV$175, 1, MATCH("Approved", G$177:DV$177,0)))-DATE2NUM($G$175),0) -> 9 | G23: =IF(F23>0,SUM(OFFSET($G$310,0,0,1,4*F23)),0) -> 393 | H23: Cumulative duration and cost through the end of registration (i.e., approval) | S23: Approved | V23: 20 | W23: 4 | X23: 5 | Y23: 2030 Q1
S24: LT R&D Margin | V24: 0.05 | Y24: =IFERROR(NUM2DATE(DATE2NUM(Y23)+W23/4),"N/A") -> 2031 Q1 | Z24: Long-Term R&D as a percentage of net sales.
B25: Peak Revenues ($MM) | F25: =MAX(G96:AK96) -> 3352.797504 | G25: Peak annual revenues
B26: Peak Cash Flow ($MM) | F26: =MAX(G112:AK112) -> 1789.297355 | G26: Peak annual cash flow | S26: Quarterly G&A = Team and consultant costs
B28: Discounted Cash Flow | S28: Phase | V28: Qtrly Cost | W28: Quarters | X28: Qtrly Cost | Y28: Start Time | Z28: Quarterly G&A costs required to conduct each phase of development.
S29: Discovery | V29: 0.1 | W29: =IFERROR(4*$I40, "N/A") -> 4 | X29: =IFERROR(V29,0) -> 0.1 | Y29: =IF(G40<=$G$175, G40, _xlfn.XLOOKUP(S29, $G$177:$DV$177, $G$175:$DV$175, "N/A", 0)) -> 2020 Q1 | Z29: Costs incurred for the periods during which the phase is conducted.
B30: Annualized Discount Rate | F30: 0.18 | G30: The company’s cost of capital (i.e., the discount rate used to discount cash flows). | S30: Hit-to-Lead | V30: 0.2 | W30: 4 | X30: 0.2 | Y30: 2021 Q1
B31: Effective Tax Rate | F31: 0.3 | G31: The taxable income in any given period is multiplied by the effective tax rate to calculate the tax expense for that period. | S31: Lead Opt | V31: 0.8 | W31: 4 | X31: 0.8 | Y31: 2022 Q1
S32: IND Enabling | V32: 2 | W32: 4 | X32: 2 | Y32: 2023 Q1
B33: Timeline and PoS | S33: Phase 1 | V33: 3 | W33: 4 | X33: 3 | Y33: 2024 Q1
S34: Phase 2 | V34: 6 | W34: 8 | X34: 6 | Y34: 2025 Q1
B35: Current Quarter | F35: 2021 Q1 | G35: Specifies the first quarter of the model. This timeline flows through to every timeline in the worksheet. | S35: Phase 3 | V35: 8 | W35: 8 | X35: 8 | Y35: 2027 Q1
B36: Current Phase | F36: =$G$177 -> Hit-to-Lead | G36: The phase of development of the program in the first quarter of the model. | S36: Registration | V36: 2 | W36: 4 | X36: 2 | Y36: 2029 Q1
S37: LT G&A Margin | V37: 0.01 | Y37: =$G48 -> 2030 Q1 | Z37: Long-Term G&A as a percentage of net sales.
H38: Active
B39: Phase | F39: PoS | G39: Start Date | H39: End Date | I39: Time (Yrs) | J39: Total Prob | K39: PoTS: The probability of transition success for each phase of development for the program. | S39: Total S&M
B40: Discovery | F40: 1 | G40: 2020 Q1 | H40: =IFERROR(IF(G40<G41,NUM2DATE(DATE2NUM(G41)-0.25),"N/A"),"N/A") -> 2020 Q4 | I40: =IFERROR(DATE2NUM(H40)-DATE2NUM(G40)+0.25,"N/A") -> 1 | J40: =1 -> 1 | K40: Start Date: The start date of each phase of development for the program.
B41: Hit-to-Lead | F41: 0.75 | G41: 2021 Q1 | H41: =IFERROR(IF(G41<G42,NUM2DATE(DATE2NUM(G42)-0.25),"N/A"),"N/A") -> 2021 Q4 | I41: =IFERROR(DATE2NUM(H41)-DATE2NUM(G41)+0.25,"N/A") -> 1 | J41: =IF(IFERROR(MATCH($F$36, $B41:$B$48, 0), 0), 1, J40*F40) -> 1 | K41: End Date: The end date of each phase of development for the program. | V41: Total Cost
B42: Lead Opt | F42: 0.85 | G42: 2022 Q1 | H42: =IFERROR(IF(G42<G43,NUM2DATE(DATE2NUM(G43)-0.25),"N/A"),"N/A") -> 2022 Q4 | I42: =IFERROR(DATE2NUM(H42)-DATE2NUM(G42)+0.25,"N/A") -> 1 | J42: =IF(IFERROR(MATCH($F$36, $B42:$B$48, 0), 0), 1, J41*F41) -> 0.75 | K42: Total Prob: The probability that the program reaches that phase of development | S42: Launch Costs | U42: Quarters | V42: US | W42: EU | X42: JP | Y42: Pre-approval and approval product launch costs.
B43: IND Enabling | F43: 0.69 | G43: 2023 Q1 | H43: =IFERROR(IF(G43<G44,NUM2DATE(DATE2NUM(G44)-0.25),"N/A"),"N/A") -> 2023 Q4 | I43: =IFERROR(DATE2NUM(H43)-DATE2NUM(G43)+0.25,"N/A") -> 1 | J43: =IF(IFERROR(MATCH($F$36, $B43:$B$48, 0), 0), 1, J42*F42) -> 0.6375 | S43: Initial Pre-Launch | U43: 4 | V43: 0 | W43: 0 | X43: 0 | Y43: Pre-approval costs are specified as a percentage of the product launch cost.
B44: Phase 1 | F44: 0.8 | G44: 2024 Q1 | H44: =IFERROR(IF(G44<G45,NUM2DATE(DATE2NUM(G45)-0.25),"N/A"),"N/A") -> 2024 Q4 | I44: =IFERROR(DATE2NUM(H44)-DATE2NUM(G44)+0.25,"N/A") -> 1 | J44: =IF(IFERROR(MATCH($F$36, $B44:$B$48, 0), 0), 1, J43*F43) -> 0.439875 | S44: Mid Pre-Launch | U44: 4 | V44: 0.15 | W44: 0.15 | X44: 0.15 | Y44: The number of quarters before launch during which these costs are incurred must also be specified.
B45: Phase 2 | F45: 0.4 | G45: 2025 Q1 | H45: =IFERROR(IF(G45<G46,NUM2DATE(DATE2NUM(G46)-0.25),"N/A"),"N/A") -> 2026 Q4 | I45: =IFERROR(DATE2NUM(H45)-DATE2NUM(G45)+0.25,"N/A") -> 2 | J45: =IF(IFERROR(MATCH($F$36, $B45:$B$48, 0), 0), 1, J44*F44) -> 0.3519 | S45: Late Pre-Launch | U45: 4 | V45: 0.5 | W45: 0.5 | X45: 0.5 | Y45: Costs are spread equally across these pre-approval periods.
B46: Phase 3 | F46: 0.5 | G46: 2027 Q1 | H46: =IFERROR(IF(G46<G47,NUM2DATE(DATE2NUM(G47)-0.25),"N/A"),"N/A") -> 2028 Q4 | I46: =IFERROR(DATE2NUM(H46)-DATE2NUM(G46)+0.25,"N/A") -> 2 | J46: =IF(IFERROR(MATCH($F$36, $B46:$B$48, 0), 0), 1, J45*F45) -> 0.14076 | S46: Annual Launch Cost | V46: 10 | W46: 10 | X46: 10 | Y46: Annual launch cost upon product approval
B47: Registration | F47: 0.9 | G47: 2029 Q1 | H47: =IFERROR(IF(G47<G48,NUM2DATE(DATE2NUM(G48)-0.25),"N/A"),"N/A") -> 2029 Q4 | I47: =IFERROR(DATE2NUM(H47)-DATE2NUM(G47)+0.25,"N/A") -> 1 | J47: =IF(IFERROR(MATCH($F$36, $B47:$B$48, 0), 0), 1, J46*F46) -> 0.07038 | S47: Annual Growth | V47: 0.15 | W47: 0.15 | X47: 0.15 | Y47: Growth rate of annual launch cost post-product approval. Does not apply if less than LT S&M margin cost.
B48: Approved | G48: 2030 Q1 | J48: =IF(IFERROR(MATCH($F$36, $B48:$B$48, 0), 0), 1, J47*F47) -> 0.063342
V49: Qtrly Cost | Y49: Start Time
B50: Program Revenues | S50: Launch Costs | V50: US | W50: EU | X50: JP | Y50: US | Z50: EU | AA50: JP
S51: Initial Pre-Launch | V51: =IFERROR(V43*V54,0) -> 0 | W51: =IFERROR(W43*W54,0) -> 0 | X51: =IFERROR(X43*X54,0) -> 0 | Y51: =NUM2DATE(DATE2NUM(Y52)-U43/4) -> 2027 Q1 | Z51: =NUM2DATE(DATE2NUM(Z52)-U43/4) -> 2028 Q1 | AA51: =NUM2DATE(DATE2NUM(AA52)-U43/4) -> 2029 Q1
B52: Epidemiology | S52: Mid Pre-Launch | V52: =IFERROR(V44*V54,0) -> 0.375 | W52: =IFERROR(W44*W54,0) -> 0.375 | X52: =IFERROR(X44*X54,0) -> 0.375 | Y52: =NUM2DATE(DATE2NUM(Y53)-U44/4) -> 2028 Q1 | Z52: =NUM2DATE(DATE2NUM(Z53)-U44/4) -> 2029 Q1 | AA52: =NUM2DATE(DATE2NUM(AA53)-U44/4) -> 2030 Q1
S53: Late Pre-Launch | V53: =IFERROR(V45*V54,0) -> 1.25 | W53: =IFERROR(W45*W54,0) -> 1.25 | X53: =IFERROR(X45*X54,0) -> 1.25 | Y53: =NUM2DATE(DATE2NUM(Y54)-U45/4) -> 2029 Q1 | Z53: =NUM2DATE(DATE2NUM(Z54)-U45/4) -> 2030 Q1 | AA53: =NUM2DATE(DATE2NUM(AA54)-U45/4) -> 2031 Q1
F54: US | G54: EU | H54: JP | S54: Annual Launch Cost | V54: =IFERROR(V46/4,0) -> 2.5 | W54: =IFERROR(W46/4,0) -> 2.5 | X54: =IFERROR(X46/4,0) -> 2.5 | Y54: =F71 -> 2030 Q1 | Z54: =G71 -> 2031 Q1 | AA54: =H71 -> 2032 Q1
B55: Annual Incidence Rate (Pts) | F55: 50000 | G55: 80000 | H55: 25000 | I55: Estimated number of new cases per year in the given geographic region at the start of the model.
B56: Growth (% per Year) | F56: 0 | G56: 0 | H56: 0 | I56: Annual growth rate in the incidence rate | S56: LT S&M Margin | V56: Margin
B57: Maximum (Pts) | F57: N/A | G57: N/A | H57: N/A | I57: Maximum incidence rate allowed | S57: US Sales | T57: EU Sales | U57: JP Sales | V57: US | W57: EU | X57: JP | Y57: Long-term S&M as a percentage of total revenues is applied if greater than annual launch cost plus growth.
B58: Diagnosed Uptake Start | F58: 2028 Q1 | G58: 2029 Q1 | H58: 2030 Q1 | I58: Quarter in which the diagnosis rate starts to increase (for example, a product launch could lead to better diagnostics) | S58: 125 | T58: 125 | U58: 125 | V58: 0.3 | W58: 0.3 | X58: 0.3 | Y58: The margin varies over the depending on the size of the market (e.g., the margin decreases with economies of scale).
B59: Start % Diagnosed | F59: 0.8 | G59: 0.8 | H59: 0.8 | I59: Fraction of the incident population diagnosed with the disease at the start of the model. | S59: 250 | T59: 250 | U59: 250 | V59: 0.25 | W59: 0.25 | X59: 0.25
B60: Peak % Diagnosed | F60: 0.9 | G60: 0.9 | H60: 0.9 | I60: Fraction of the incident population diagnosed with the disease some time after the diagnosis rate starts to increase. | S60: 500 | T60: 500 | U60: 500 | V60: 0.2 | W60: 0.2 | X60: 0.2
B61: Time to Peak Diagnosed (Qtrs) | F61: 12 | G61: 12 | H61: 12 | I61: Number of quarters required from product approval to reach peak diagnosis. | S61: 750 | T61: 750 | U61: 750 | V61: 0.15 | W61: 0.15 | X61: 0.15
B62: % Treatable | F62: 0.35 | G62: 0.35 | H62: 0.35 | I62: Fraction of the diagnosed incident population that can be treated with the product. | S62: =">"&TEXT(S61,"$0") -> >$750 | T62: =">"&TEXT(T61,"$0") -> >$750 | U62: =">"&TEXT(U61,"$0") -> >$750 | V62: 0.12 | W62: 0.12 | X62: 0.12
S63: Post-LOE | V63: 0.12 | W63: 0.12 | X63: 0.12 | Y63: Post-LOE (loss of exclusivity) long-term S&M margin.
B64: Market Share Uptake | F64: Moderate | G64: Specifies the type of sales curve projected upon product approval depending on market competition and medical need.
S65: COGS
F66: US | G66: EU | H66: JP
B67: Peak Share (%) | F67: 0.5 | G67: 0.5 | H67: 0.5 | I67: Peak proportion of the diagnosed and treatable incident population treated with the product. | V67: Margin
B68: Time to Peak (Qtrs) | F68: 24 | G68: 24 | H68: 24 | I68: Time (in quarters) required from product launch to reach peak market share. | V68: US | W68: EU | X68: JP
B69: First Approval | F69: =$G$48 -> 2030 Q1 | G69: =$G$48 -> 2030 Q1 | H69: =$G$48 -> 2030 Q1 | I69: Quarter in which the product is approved in any geography. | S69: COGS Margin | V69: 0.05 | W69: 0.05 | X69: 0.05 | Y69: Cost of goods sold (COGS) as a percentage of net sales.
B70: Time from 1st App to Launch (Qtrs) | F70: 0 | G70: 4 | H70: 8 | I70: Number of quarters between the time of first approval in any geography to the product being launched in the given geography.
B71: Product Launch | F71: =NUM2DATE(DATE2NUM(F69)+F70/4) -> 2030 Q1 | G71: =NUM2DATE(DATE2NUM(G69)+G70/4) -> 2031 Q1 | H71: =NUM2DATE(DATE2NUM(H69)+H70/4) -> 2032 Q1 | I71: Quarter in which the product is launched in that geography.
B72: Loss of Exclusivity | F72: 2040 Q4 | G72: 2040 Q4 | H72: 2040 Q4 | I72: Quarter in which the patent expires in a given geography.
B73: Post-LOE Decay (% per Year) | F73: 0.5 | G73: 0.5 | H73: 0.5 | I73: Rate at which market share decays upon patent expiration.
B74: Net Monthly Revenue per Pt ($k) | F74: 15 | G74: 10 | H74: 10 | I74: List price of a month of treatment in each geography.
B75: Treatment Duration at Launch (mo) | F75: 6 | G75: 6 | H75: 6 | I75: Average duration of a course treatment upon product launch.
B76: Treatment Duration Peak (mo) | F76: 12 | G76: 12 | H76: 12 | I76: Average duration of a course treatment at treatment duration peak.
B77: Time to Treatment Dur Peak (Qtrs) | F77: 24 | G77: 24 | H77: 24 | I77: Number of quarters required from product launch to reach treatment duration peak.
B78: Annual Price Increase | F78: 0.02 | G78: 0 | H78: 0 | I78: Annual growth in price for each geography.
B79: Gross-to-Net Ratio | F79: 0.9 | G79: 0.9 | H79: 0.9 | I79: Distribution discounts and rebates that reduce the gross selling price realization.
B80: Compliance | F80: 1 | G80: 1 | H80: 1 | I80: The degree to which patients adhere to taking medication.
B81: % Net Sales Ownership | F81: 1 | G81: 1 | H81: 1 | I81: Percentage of net sales that will be paid to the company.
B83: Annualized Financials
B85: Pipeline
G87: =LEFT($G$175,4) -> 2021 | H87: =G87+1 -> 2022 | I87: =H87+1 -> 2023 | J87: 2024 | K87: 2025 | L87: 2026 | M87: 2027 | N87: 2028 | O87: 2029 | P87: 2030 | Q87: 2031 | R87: 2032 | S87: 2033 | T87: 2034 | U87: 2035 | V87: 2036 | W87: 2037 | X87: 2038 | Y87: 2039 | Z87: 2040 | AA87: 2041 | AB87: 2042 | AC87: 2043 | AD87: 2044 | AE87: 2045 | AF87: 2046 | AG87: 2047 | AH87: 2048 | AI87: 2049 | AJ87: 2050 | AK87: 2051
B89: EOY Phase | G89: =_xlfn.XLOOKUP(G$87&" Q4",$G$175:$DV$175,$G$177:$DV$177,"N/A",0) -> Hit-to-Lead | H89: Lead Opt | I89: IND Enabling | J89: Phase 1 | K89: Phase 2 | L89: Phase 2 | M89: Phase 3 | N89: Phase 3 | O89: Registration | P89: Approved | Q89: Approved | R89: Approved | S89: Approved | T89: Approved | U89: Approved | V89: Approved | W89: Approved | X89: Approved | Y89: Approved | Z89: Approved | AA89: Approved | AB89: Approved | AC89: Approved | AD89: Approved | AE89: Approved | AF89: Approved | AG89: Approved | AH89: Approved | AI89: Approved | AJ89: Approved | AK89: N/A
B90: EOY Probability | G90: =_xlfn.XLOOKUP(G$87&" Q4",$G$175:$DV$175,$G$178:$DV$178,"N/A",0) -> 1 | H90: 0.75 | I90: 0.6375 | J90: 0.439875 | K90: 0.3519 | L90: 0.3519 | M90: 0.14076 | N90: 0.14076 | O90: 0.07038 | P90: 0.063342 | Q90: 0.063342 | R90: 0.063342 | S90: 0.063342 | T90: 0.063342 | U90: 0.063342 | V90: 0.063342 | W90: 0.063342 | X90: 0.063342 | Y90: 0.063342 | Z90: 0.063342 | AA90: 0.063342 | AB90: 0.063342 | AC90: 0.063342 | AD90: 0.063342 | AE90: 0.063342 | AF90: 0.063342 | AG90: 0.063342 | AH90: 0.063342 | AI90: 0.063342 | AJ90: 0.063342 | AK90: N/A
B92: Non-Adjusted
E94: Checksum | G94: =LEFT($G$175,4) -> 2021 | H94: =G94+1 -> 2022 | I94: =H94+1 -> 2023 | J94: 2024 | K94: 2025 | L94: 2026 | M94: 2027 | N94: 2028 | O94: 2029 | P94: 2030 | Q94: 2031 | R94: 2032 | S94: 2033 | T94: 2034 | U94: 2035 | V94: 2036 | W94: 2037 | X94: 2038 | Y94: 2039 | Z94: 2040 | AA94: 2041 | AB94: 2042 | AC94: 2043 | AD94: 2044 | AE94: 2045 | AF94: 2046 | AG94: 2047 | AH94: 2048 | AI94: 2049 | AJ94: 2050 | AK94: 2051
B96: Revenues | E96: =IF(AND(ABS(SUM($G96:$AK96)-SUM($G$251:$DV$251))<0.00001, SUM(SUM($G$97:$AK$99))-SUM($G$96:$AK$96)<0.00001),1,0) -> 1 | G96: =SUMIF($G$175:$DV$175, G$94&"*", $G251:$DV251) -> 0 | H96: 0 | I96: 0 | J96: 0 | K96: 0 | L96: 0 | M96: 0 | N96: 0 | O96: 0 | P96: 71.39599148 | Q96: 295.2756336 | R96: 661.6065231 | S96: 1133.876932 | T96: 1703.2286 | U96: 2372.692171 | V96: 2942.082906 | W96: 3215.550307 | X96: 3291.958789 | Y96: 3322.076965 | Z96: 3352.797504 | AA96: 2234.610377 | AB96: 1127.851723 | AC96: 569.3045939 | AD96: 287.3954505 | AE96: 145.0967336 | AF96: 73.26186103 | AG96: 36.99481258 | AH96: 18.68298614 | AI96: 9.436138796 | AJ96: 4.766338718 | AK96: 0
B97: US | E97: =IF(ABS(SUM($G97:$AK97)-SUM($G$248:$DV$248))<0.00001,1,0) -> 1 | G97: =SUMIF($G$175:$DV$175, G$94&"*", $G248:$DV248) -> 0 | H97: 0 | I97: 0 | J97: 0 | K97: 0 | L97: 0 | M97: 0 | N97: 0 | O97: 0 | P97: 71.39599148 | Q97: 219.8889148 | R97: 410.0669235 | S97: 645.651541 | T97: 929.1407094 | U97: 1263.129281 | V97: 1447.432516 | W97: 1476.381166 | X97: 1505.908789 | Y97: 1536.026965 | Z97: 1566.747504 | AA97: 1054.653429 | AB97: 537.8732487 | AC97: 274.3153569 | AD97: 139.900832 | AE97: 71.34942432 | AF97: 36.3882064 | AG97: 18.55798527 | AH97: 9.464572485 | AI97: 4.826931967 | AJ97: 2.461735303 | AK97: 0
B98: EU | E98: =IF(ABS(SUM($G98:$AK98)-SUM($G$249:$DV$249))<0.00001,1,0) -> 1 | G98: =SUMIF($G$175:$DV$175, G$94&"*", $G249:$DV249) -> 0 | H98: 0 | I98: 0 | J98: 0 | K98: 0 | L98: 0 | M98: 0 | N98: 0 | O98: 0 | P98: 0 | Q98: 75.38671875 | R98: 227.98125 | S98: 416.98125 | T98: 643.78125 | U98: 908.38125 | V98: 1210.78125 | W98: 1360.8 | X98: 1360.8 | Y98: 1360.8 | Z98: 1360.8 | AA98: 899.0148177 | AB98: 449.5074088 | AC98: 224.7537044 | AD98: 112.3768522 | AE98: 56.18842611 | AF98: 28.09421305 | AG98: 14.04710653 | AH98: 7.023553263 | AI98: 3.511776632 | AJ98: 1.755888316 | AK98: 0
B99: JP | E99: =IF(ABS(SUM($G99:$AK99)-SUM($G$250:$DV$250))<0.00001,1,0) -> 1 | G99: =SUMIF($G$175:$DV$175, G$94&"*", $G250:$DV250) -> 0 | H99: 0 | I99: 0 | J99: 0 | K99: 0 | L99: 0 | M99: 0 | N99: 0 | O99: 0 | P99: 0 | Q99: 0 | R99: 23.55834961 | S99: 71.24414062 | T99: 130.3066406 | U99: 201.1816406 | V99: 283.8691406 | W99: 378.3691406 | X99: 425.25 | Y99: 425.25 | Z99: 425.25 | AA99: 280.9421305 | AB99: 140.4710653 | AC99: 70.23553263 | AD99: 35.11776632 | AE99: 17.55888316 | AF99: 8.779441579 | AG99: 4.38972079 | AH99: 2.194860395 | AI99: 1.097430197 | AJ99: 0.5487150987 | AK99: 0
B101: Costs | E101: =IF(AND(ABS(SUM($G101:$AK101)-SUM($G$310:$DV$310))<0.00001, SUM(SUM($G$102:$AK$105))-SUM($G$101:$AK$101)<0.00001),1,0) -> 1 | G101: =SUMIF($G$175:$DV$175, G$94&"*", $G310:$DV310) -> 3.8 | H101: 11.2 | I101: 23 | J101: 37 | K101: 49 | L101: 49 | M101: 82 | N101: 83.5 | O101: 54.5 | P101: 52.20255693 | Q101: 109.9345794 | R101: 216.6149354 | S101: 326.3436858 | T101: 430.8474901 | U101: 571.8728127 | V101: 699.3885997 | W101: 769.8461018 | X101: 791.1705215 | Y101: 798.097702 | Z101: 796.658426 | AA101: 513.9603867 | AB101: 259.4058963 | AC101: 130.9400566 | AD101: 66.10095362 | AE101: 33.37224872 | AF101: 16.85022804 | AG101: 8.508806894 | AH101: 4.297086813 | AI101: 2.170311923 | AJ101: 1.096257905 | AK101: 0
B102: COGS | E102: =IF(ABS(SUM($G102:$AK102)-SUM($G$265:$DV$265))<0.00001,1,0) -> 1 | G102: =SUMIF($G$175:$DV$175, G$94&"*", $G265:$DV265) -> 0 | H102: 0 | I102: 0 | J102: 0 | K102: 0 | L102: 0 | M102: 0 | N102: 0 | O102: 0 | P102: 3.569799574 | Q102: 14.76378168 | R102: 33.08032615 | S102: 56.69384658 | T102: 85.16143 | U102: 118.6346086 | V102: 147.1041453 | W102: 160.7775153 | X102: 164.5979395 | Y102: 166.1038483 | Z102: 167.6398752 | AA102: 111.7305189 | AB102: 56.39258614 | AC102: 28.4652297 | AD102: 14.36977253 | AE102: 7.254836679 | AF102: 3.663093052 | AG102: 1.849740629 | AH102: 0.9341493072 | AI102: 0.4718069398 | AJ102: 0.2383169359 | AK102: 0
B103: R&D | E103: =IF(ABS(SUM($G103:$AK103)-SUM($G$270:$DV$270))<0.00001,1,0) -> 1 | G103: =SUMIF($G$175:$DV$175, G$94&"*", $G270:$DV270) -> 3 | H103: 8 | I103: 15 | J103: 25 | K103: 25 | L103: 25 | M103: 50 | N103: 50 | O103: 40 | P103: 20 | Q103: 14.76378168 | R103: 33.08032615 | S103: 56.69384658 | T103: 85.16143 | U103: 118.6346086 | V103: 147.1041453 | W103: 160.7775153 | X103: 164.5979395 | Y103: 166.1038483 | Z103: 167.6398752 | AA103: 111.7305189 | AB103: 56.39258614 | AC103: 28.4652297 | AD103: 14.36977253 | AE103: 7.254836679 | AF103: 3.663093052 | AG103: 1.849740629 | AH103: 0.9341493072 | AI103: 0.4718069398 | AJ103: 0.2383169359 | AK103: 0
B104: G&A | E104: =IF(ABS(SUM($G104:$AK104)-SUM($G$282:$DV$282))<0.00001,1,0) -> 1 | G104: =SUMIF($G$175:$DV$175, G$94&"*", $G282:$DV282) -> 0.8 | H104: 3.2 | I104: 8 | J104: 12 | K104: 24 | L104: 24 | M104: 32 | N104: 32 | O104: 8 | P104: 0.7139599148 | Q104: 2.952756336 | R104: 6.616065231 | S104: 11.33876932 | T104: 17.032286 | U104: 23.72692171 | V104: 29.42082906 | W104: 32.15550307 | X104: 32.91958789 | Y104: 33.22076965 | Z104: 33.52797504 | AA104: 22.34610377 | AB104: 11.27851723 | AC104: 5.693045939 | AD104: 2.873954505 | AE104: 1.450967336 | AF104: 0.7326186103 | AG104: 0.3699481258 | AH104: 0.1868298614 | AI104: 0.09436138796 | AJ104: 0.04766338718 | AK104: 0
B105: S&M | E105: =IF(ABS(SUM($G105:$AK105)-SUM($G$293:$DV$293))<0.00001,1,0) -> 1 | G105: =SUMIF($G$175:$DV$175, G$94&"*", $G293:$DV293) -> 0 | H105: 0 | I105: 0 | J105: 0 | K105: 0 | L105: 0 | M105: 0 | N105: 1.5 | O105: 6.5 | P105: 27.91879744 | Q105: 77.45425969 | R105: 143.8382179 | S105: 201.6172233 | T105: 243.4923441 | U105: 310.8766738 | V105: 375.75948 | W105: 416.135568 | X105: 429.0550547 | Y105: 432.6692358 | Z105: 427.8507005 | AA105: 268.1532453 | AB105: 135.3422067 | AC105: 68.31655127 | AD105: 34.48745406 | AE105: 17.41160803 | AF105: 8.791423324 | AG105: 4.43937751 | AH105: 2.241958337 | AI105: 1.132336656 | AJ105: 0.5719606461 | AK105: 0
B107: EBITDA | E107: =IF(AND(ABS(SUM($G107:$AK107)-SUM($G$339:$DV$339))<0.00001,SUM($G$96:$AK$96)-SUM($G$101:$AK$101)-SUM($G107:$AK107)<0.00001),1,0) -> 1 | G107: =SUMIF($G$175:$DV$175, G$94&"*", $G339:$DV339) -> -3.8 | H107: -11.2 | I107: -23 | J107: -37 | K107: -49 | L107: -49 | M107: -82 | N107: -83.5 | O107: -54.5 | P107: 19.19343455 | Q107: 185.3410542 | R107: 444.9915876 | S107: 807.5332458 | T107: 1272.38111 | U107: 1800.819359 | V107: 2242.694307 | W107: 2445.704205 | X107: 2500.788268 | Y107: 2523.979263 | Z107: 2556.139078 | AA107: 1720.64999 | AB107: 868.4458266 | AC107: 438.3645373 | AD107: 221.2944969 | AE107: 111.7244849 | AF107: 56.411633 | AG107: 28.48600569 | AH107: 14.38589933 | AI107: 7.265826873 | AJ107: 3.670080813 | AK107: 0
B108: % Margin | G108: =IFERROR(G107/G96, "N/A") -> N/A | H108: N/A | I108: N/A | J108: N/A | K108: N/A | L108: N/A | M108: N/A | N108: N/A | O108: N/A | P108: 0.2688307025 | Q108: 0.6276882787 | R108: 0.6725925034 | S108: 0.7121877369 | T108: 0.7470407143 | U108: 0.7589772413 | V108: 0.7622811382 | W108: 0.760586516 | X108: 0.7596657273 | Y108: 0.7597594185 | Z108: 0.7623899371 | AA108: 0.77 | AB108: 0.77 | AC108: 0.77 | AD108: 0.77 | AE108: 0.77 | AF108: 0.77 | AG108: 0.77 | AH108: 0.77 | AI108: 0.77 | AJ108: 0.77 | AK108: N/A
B110: Taxes | E110: =IF(ABS(SUM($G110:$AK110)-SUM($G$348:$DV$348))<0.00001,1,0) -> 1 | G110: =SUMIF($G$175:$DV$175, G$94&"*", $G348:$DV348) -> 0 | H110: 0 | I110: 0 | J110: 0 | K110: 0 | L110: 0 | M110: 0 | N110: 0 | O110: 0 | P110: 6.517030364 | Q110: 55.60231625 | R110: 133.4974763 | S110: 242.2599737 | T110: 381.714333 | U110: 540.2458076 | V110: 672.808292 | W110: 733.7112614 | X110: 750.2364803 | Y110: 757.1937789 | Z110: 766.8417235 | AA110: 516.1949971 | AB110: 260.533748 | AC110: 131.5093612 | AD110: 66.38834907 | AE110: 33.51734546 | AF110: 16.9234899 | AG110: 8.545801706 | AH110: 4.315769799 | AI110: 2.179748062 | AJ110: 1.101024244 | AK110: 0
B112: Cash Flow | E112: =IF(AND(ABS(SUM($G112:$AK112)-SUM($G$357:$DV$357))<0.00001, SUM($G$107:$AK$107)-SUM($G$110:$AK$110)-SUM($G112:$AK112)<0.00001),1,0) -> 1 | G112: =SUMIF($G$175:$DV$175, G$94&"*", $G357:$DV357) -> -3.8 | H112: -11.2 | I112: -23 | J112: -37 | K112: -49 | L112: -49 | M112: -82 | N112: -83.5 | O112: -54.5 | P112: 12.67640418 | Q112: 129.7387379 | R112: 311.4941113 | S112: 565.2732721 | T112: 890.6667769 | U112: 1260.573551 | V112: 1569.886015 | W112: 1711.992943 | X112: 1750.551787 | Y112: 1766.785484 | Z112: 1789.297355 | AA112: 1204.454993 | AB112: 607.9120786 | AC112: 306.8551761 | AD112: 154.9061478 | AE112: 78.2071394 | AF112: 39.4881431 | AG112: 19.94020398 | AH112: 10.07012953 | AI112: 5.086078811 | AJ112: 2.569056569 | AK112: 0
B114: Risk-Adjusted
E116: Checksum | G116: =LEFT($G$175,4) -> 2021 | H116: =G116+1 -> 2022 | I116: =H116+1 -> 2023 | J116: 2024 | K116: 2025 | L116: 2026 | M116: 2027 | N116: 2028 | O116: 2029 | P116: 2030 | Q116: 2031 | R116: 2032 | S116: 2033 | T116: 2034 | U116: 2035 | V116: 2036 | W116: 2037 | X116: 2038 | Y116: 2039 | Z116: 2040 | AA116: 2041 | AB116: 2042 | AC116: 2043 | AD116: 2044 | AE116: 2045 | AF116: 2046 | AG116: 2047 | AH116: 2048 | AI116: 2049 | AJ116: 2050 | AK116: 2051
B118: Revenues | E118: =IF(AND(ABS(SUM($G118:$AK118)-SUM($G$257:$DV$257))<0.00001, SUM(SUM($G$119:$AK$121))-SUM($G$118:$AK$118)<0.00001),1,0) -> 1 | G118: =SUMIF($G$175:$DV$175, G$94&"*", $G257:$DV257) -> 0 | H118: 0 | I118: 0 | J118: 0 | K118: 0 | L118: 0 | M118: 0 | N118: 0 | O118: 0 | P118: 4.522364892 | Q118: 18.70334918 | R118: 41.90748038 | S118: 71.8220326 | T118: 107.885906 | U118: 150.2910675 | V118: 186.3574154 | W118: 203.6793875 | X118: 208.5192536 | Y118: 210.4269991 | Z118: 212.3728995 | AA118: 141.5446905 | AB118: 71.44038383 | AC118: 36.06089159 | AD118: 18.20420263 | AE118: 9.190717299 | AF118: 4.640552802 | AG118: 2.343325419 | AH118: 1.183417708 | AI118: 0.5977039036 | AJ118: 0.3019094271 | AK118: 0
B119: US | E119: =IF(ABS(SUM($G119:$AK119)-SUM($G$254:$DV$254))<0.00001,1,0) -> 1 | G119: =SUMIF($G$175:$DV$175, G$94&"*", $G254:$DV254) -> 0 | H119: 0 | I119: 0 | J119: 0 | K119: 0 | L119: 0 | M119: 0 | N119: 0 | O119: 0 | P119: 4.522364892 | Q119: 13.92820364 | R119: 25.97445907 | S119: 40.89685991 | T119: 58.85363081 | U119: 80.0091349 | V119: 91.6832704 | W119: 93.51693581 | X119: 95.38727453 | Y119: 97.29502002 | Z119: 99.24092042 | AA119: 66.80385749 | AB119: 34.06996732 | AC119: 17.37568333 | AD119: 8.8615985 | AE119: 4.519415235 | AF119: 2.30490177 | AG119: 1.175499903 | AH119: 0.5995049504 | AI119: 0.3057475247 | AJ119: 0.1559312376 | AK119: 0
B120: EU | E120: =IF(ABS(SUM($G120:$AK120)-SUM($G$255:$DV$255))<0.00001,1,0) -> 1 | G120: =SUMIF($G$175:$DV$175, G$94&"*", $G255:$DV255) -> 0 | H120: 0 | I120: 0 | J120: 0 | K120: 0 | L120: 0 | M120: 0 | N120: 0 | O120: 0 | P120: 0 | Q120: 4.775145539 | R120: 14.44078834 | S120: 26.41242634 | T120: 40.77839194 | U120: 57.53868514 | V120: 76.69330594 | W120: 86.1957936 | X120: 86.1957936 | Y120: 86.1957936 | Z120: 86.1957936 | AA120: 56.94539658 | AB120: 28.47269829 | AC120: 14.23634915 | AD120: 7.118174573 | AE120: 3.559087286 | AF120: 1.779543643 | AG120: 0.8897718216 | AH120: 0.4448859108 | AI120: 0.2224429554 | AJ120: 0.1112214777 | AK120: 0
B121: JP | E121: =IF(ABS(SUM($G121:$AK121)-SUM($G$256:$DV$256))<0.00001,1,0) -> 1 | G121: =SUMIF($G$175:$DV$175, G$94&"*", $G256:$DV256) -> 0 | H121: 0 | I121: 0 | J121: 0 | K121: 0 | L121: 0 | M121: 0 | N121: 0 | O121: 0 | P121: 0 | Q121: 0 | R121: 1.492232981 | S121: 4.512746355 | T121: 8.25388323 | U121: 12.74324748 | V121: 17.98083911 | W121: 23.96665811 | X121: 26.9361855 | Y121: 26.9361855 | Z121: 26.9361855 | AA121: 17.79543643 | AB121: 8.897718216 | AC121: 4.448859108 | AD121: 2.224429554 | AE121: 1.112214777 | AF121: 0.5561073885 | AG121: 0.2780536942 | AH121: 0.1390268471 | AI121: 0.06951342356 | AJ121: 0.03475671178 | AK121: 0
B123: Costs | E123: =IF(AND(ABS(SUM($G123:$AK123)-SUM($G$320:$DV$320))<0.00001, SUM(SUM($G$124:$AK$127))-SUM($G$123:$AK$123)<0.00001),1,0) -> 1 | G123: =SUMIF($G$175:$DV$175, G$94&"*", $G320:$DV320) -> 3.8 | H123: 8.4 | I123: 14.6625 | J123: 16.275375 | K123: 17.2431 | L123: 17.2431 | M123: 11.54232 | N123: 11.75346 | O123: 3.83571 | P123: 3.306614361 | Q123: 6.963476127 | R123: 13.72082324 | S123: 20.67126175 | T123: 27.29074172 | U123: 36.2235677 | V123: 44.30067268 | W123: 48.76359178 | X123: 50.11432317 | Y123: 50.55310464 | Z123: 50.46193802 | AA123: 32.55527882 | AB123: 16.43128828 | AC123: 8.294005065 | AD123: 4.186966604 | AE123: 2.113864979 | AF123: 1.067327144 | AG123: 0.5389648463 | AH123: 0.2721860729 | AI123: 0.1374718978 | AJ123: 0.06943916823 | AK123: 0
B124: COGS | E124: =IF(ABS(SUM($G124:$AK124)-SUM($G316:$DV316))<0.00001,1,0) -> 1 | G124: =SUMIF($G$175:$DV$175, G$94&"*", $G316:$DV316) -> 0 | H124: 0 | I124: 0 | J124: 0 | K124: 0 | L124: 0 | M124: 0 | N124: 0 | O124: 0 | P124: 0.2261182446 | Q124: 0.935167459 | R124: 2.095374019 | S124: 3.59110163 | T124: 5.394295299 | U124: 7.514553376 | V124: 9.317870772 | W124: 10.18396938 | X124: 10.42596268 | Y124: 10.52134996 | Z124: 10.61864498 | AA124: 7.077234525 | AB124: 3.572019191 | AC124: 1.803044579 | AD124: 0.9102101314 | AE124: 0.4595358649 | AF124: 0.2320276401 | AG124: 0.1171662709 | AH124: 0.05917088541 | AI124: 0.02988519518 | AJ124: 0.01509547135 | AK124: 0
B125: R&D | E125: =IF(ABS(SUM($G125:$AK125)-SUM($G317:$DV317))<0.00001,1,0) -> 1 | G125: =SUMIF($G$175:$DV$175, G$94&"*", $G317:$DV317) -> 3 | H125: 6 | I125: 9.5625 | J125: 10.996875 | K125: 8.7975 | L125: 8.7975 | M125: 7.038 | N125: 7.038 | O125: 2.8152 | P125: 1.26684 | Q125: 0.935167459 | R125: 2.095374019 | S125: 3.59110163 | T125: 5.394295299 | U125: 7.514553376 | V125: 9.317870772 | W125: 10.18396938 | X125: 10.42596268 | Y125: 10.52134996 | Z125: 10.61864498 | AA125: 7.077234525 | AB125: 3.572019191 | AC125: 1.803044579 | AD125: 0.9102101314 | AE125: 0.4595358649 | AF125: 0.2320276401 | AG125: 0.1171662709 | AH125: 0.05917088541 | AI125: 0.02988519518 | AJ125: 0.01509547135 | AK125: 0
B126: G&A | E126: =IF(ABS(SUM($G126:$AK126)-SUM($G318:$DV318))<0.00001,1,0) -> 1 | G126: =SUMIF($G$175:$DV$175, G$94&"*", $G318:$DV318) -> 0.8 | H126: 2.4 | I126: 5.1 | J126: 5.2785 | K126: 8.4456 | L126: 8.4456 | M126: 4.50432 | N126: 4.50432 | O126: 0.56304 | P126: 0.04522364892 | Q126: 0.1870334918 | R126: 0.4190748038 | S126: 0.718220326 | T126: 1.07885906 | U126: 1.502910675 | V126: 1.863574154 | W126: 2.036793875 | X126: 2.085192536 | Y126: 2.104269991 | Z126: 2.123728995 | AA126: 1.415446905 | AB126: 0.7144038383 | AC126: 0.3606089159 | AD126: 0.1820420263 | AE126: 0.09190717299 | AF126: 0.04640552802 | AG126: 0.02343325419 | AH126: 0.01183417708 | AI126: 0.005977039036 | AJ126: 0.003019094271 | AK126: 0
B127: S&M | E127: =IF(ABS(SUM($G127:$AK127)-SUM($G319:$DV319))<0.00001,1,0) -> 1 | G127: =SUMIF($G$175:$DV$175, G$94&"*", $G319:$DV319) -> 0 | H127: 0 | I127: 0 | J127: 0 | K127: 0 | L127: 0 | M127: 0 | N127: 0.21114 | O127: 0.45747 | P127: 1.768432468 | Q127: 4.906107718 | R127: 9.111000399 | S127: 12.77083816 | T127: 15.42329206 | U127: 19.69155027 | V127: 23.80135698 | W127: 26.35885915 | X127: 27.17720528 | Y127: 27.40613473 | Z127: 27.10091907 | AA127: 16.98536286 | AB127: 8.572846059 | AC127: 4.32730699 | AD127: 2.184504315 | AE127: 1.102886076 | AF127: 0.5568663362 | AG127: 0.2811990502 | AH127: 0.142010125 | AI127: 0.07172446844 | AJ127: 0.03622913125 | AK127: 0
B129: EBITDA | E129: =IF(AND(ABS(SUM($G129:$AK129)-SUM($G$370:$DV$370))<0.00001,SUM($G$118:$AK$118)-SUM($G$123:$AK$123)-SUM($G129:$AK129)<0.00001),1,0) -> 1 | G129: =SUMIF($G$175:$DV$175, G$94&"*", $G370:$DV370) -> -3.8 | H129: -8.4 | I129: -14.6625 | J129: -16.275375 | K129: -17.2431 | L129: -17.2431 | M129: -11.54232 | N129: -11.75346 | O129: -3.83571 | P129: 1.215750531 | Q129: 11.73987305 | R129: 28.18665714 | S129: 51.15077085 | T129: 80.59516426 | U129: 114.0674998 | V129: 142.0567428 | W129: 154.9157957 | X129: 158.4049305 | Y129: 159.8738945 | Z129: 161.9109615 | AA129: 108.9894117 | AB129: 55.00909555 | AC129: 27.76688652 | AD129: 14.01723602 | AE129: 7.07685232 | AF129: 3.573225657 | AG129: 1.804360572 | AH129: 0.9112316354 | AI129: 0.4602320058 | AJ129: 0.2324702588 | AK129: 0
B130: % Margin | G130: =IFERROR(G129/G118, "N/A") -> N/A | H130: N/A | I130: N/A | J130: N/A | K130: N/A | L130: N/A | M130: N/A | N130: N/A | O130: N/A | P130: 0.2688307025 | Q130: 0.6276882787 | R130: 0.6725925034 | S130: 0.7121877369 | T130: 0.7470407143 | U130: 0.7589772413 | V130: 0.7622811382 | W130: 0.760586516 | X130: 0.7596657273 | Y130: 0.7597594185 | Z130: 0.7623899371 | AA130: 0.77 | AB130: 0.77 | AC130: 0.77 | AD130: 0.77 | AE130: 0.77 | AF130: 0.77 | AG130: 0.77 | AH130: 0.77 | AI130: 0.77 | AJ130: 0.77 | AK130: N/A
B132: Taxes | E132: =IF(ABS(SUM($G132:$AK132)-SUM($G$373:$DV$373))<0.00001,1,0) -> 1 | G132: =SUMIF($G$175:$DV$175, G$94&"*", $G373:$DV373) -> 0 | H132: 0 | I132: 0 | J132: 0 | K132: 0 | L132: 0 | M132: 0 | N132: 0 | O132: 0 | P132: 0.4128017373 | Q132: 3.521961916 | R132: 8.455997143 | S132: 15.34523126 | T132: 24.17854928 | U132: 34.22024995 | V132: 42.61702283 | W132: 46.47473872 | X132: 47.52147914 | Y132: 47.96216834 | Z132: 48.57328845 | AA132: 32.69682351 | AB132: 16.50272866 | AC132: 8.330065957 | AD132: 4.205170807 | AE132: 2.123055696 | AF132: 1.071967697 | AG132: 0.5413081717 | AH132: 0.2733694906 | AI132: 0.1380696017 | AJ132: 0.06974107765 | AK132: 0
B134: Cash Flow | E134: =IF(AND(ABS(SUM($G134:$AK134)-SUM($G$376:$DV$376))<0.00001, SUM($G$129:$AK$129)-SUM($G$132:$AK$132)-SUM($G134:$AK134)<0.00001),1,0) -> 1 | G134: =SUMIF($G$175:$DV$175, G$94&"*", $G376:$DV376) -> -3.8 | H134: -8.4 | I134: -14.6625 | J134: -16.275375 | K134: -17.2431 | L134: -17.2431 | M134: -11.54232 | N134: -11.75346 | O134: -3.83571 | P134: 0.8029487937 | Q134: 8.217911137 | R134: 19.73066 | S134: 35.8055396 | T134: 56.41661498 | U134: 79.84724987 | V134: 99.43971994 | W134: 108.441057 | X134: 110.8834513 | Y134: 111.9117261 | Z134: 113.3376731 | AA134: 76.29258818 | AB134: 38.50636688 | AC134: 19.43682057 | AD134: 9.812065216 | AE134: 4.953796624 | AF134: 2.50125796 | AG134: 1.263052401 | AH134: 0.6378621448 | AI134: 0.3221624041 | AJ134: 0.1627291812 | AK134: 0
B136: Program Overview
B173: Timeline and PoS
G175: =$F$35 -> 2021 Q1 | H175: =NUM2DATE(DATE2NUM(G175)+0.25) -> 2021 Q2 | I175: =NUM2DATE(DATE2NUM(H175)+0.25) -> 2021 Q3 | J175: =NUM2DATE(DATE2NUM(I175)+0.25) -> 2021 Q4 | K175: =NUM2DATE(DATE2NUM(J175)+0.25) -> 2022 Q1 | L175: =NUM2DATE(DATE2NUM(K175)+0.25) -> 2022 Q2 | M175: =NUM2DATE(DATE2NUM(L175)+0.25) -> 2022 Q3 | N175: =NUM2DATE(DATE2NUM(M175)+0.25) -> 2022 Q4 | O175: =NUM2DATE(DATE2NUM(N175)+0.25) -> 2023 Q1 | P175: =NUM2DATE(DATE2NUM(O175)+0.25) -> 2023 Q2 | Q175: =NUM2DATE(DATE2NUM(P175)+0.25) -> 2023 Q3 | R175: =NUM2DATE(DATE2NUM(Q175)+0.25) -> 2023 Q4 | S175: =NUM2DATE(DATE2NUM(R175)+0.25) -> 2024 Q1 | T175: =NUM2DATE(DATE2NUM(S175)+0.25) -> 2024 Q2 | U175: =NUM2DATE(DATE2NUM(T175)+0.25) -> 2024 Q3 | V175: =NUM2DATE(DATE2NUM(U175)+0.25) -> 2024 Q4 | W175: =NUM2DATE(DATE2NUM(V175)+0.25) -> 2025 Q1 | X175: =NUM2DATE(DATE2NUM(W175)+0.25) -> 2025 Q2 | Y175: =NUM2DATE(DATE2NUM(X175)+0.25) -> 2025 Q3 | Z175: =NUM2DATE(DATE2NUM(Y175)+0.25) -> 2025 Q4 | AA175: =NUM2DATE(DATE2NUM(Z175)+0.25) -> 2026 Q1 | AB175: =NUM2DATE(DATE2NUM(AA175)+0.25) -> 2026 Q2 | AC175: =NUM2DATE(DATE2NUM(AB175)+0.25) -> 2026 Q3 | AD175: =NUM2DATE(DATE2NUM(AC175)+0.25) -> 2026 Q4 | AE175: =NUM2DATE(DATE2NUM(AD175)+0.25) -> 2027 Q1 | AF175: =NUM2DATE(DATE2NUM(AE175)+0.25) -> 2027 Q2 | AG175: =NUM2DATE(DATE2NUM(AF175)+0.25) -> 2027 Q3 | AH175: =NUM2DATE(DATE2NUM(AG175)+0.25) -> 2027 Q4 | AI175: =NUM2DATE(DATE2NUM(AH175)+0.25) -> 2028 Q1 | AJ175: =NUM2DATE(DATE2NUM(AI175)+0.25) -> 2028 Q2 | AK175: =NUM2DATE(DATE2NUM(AJ175)+0.25) -> 2028 Q3 | AL175: =NUM2DATE(DATE2NUM(AK175)+0.25) -> 2028 Q4 | AM175: =NUM2DATE(DATE2NUM(AL175)+0.25) -> 2029 Q1 | AN175: =NUM2DATE(DATE2NUM(AM175)+0.25) -> 2029 Q2 | AO175: =NUM2DATE(DATE2NUM(AN175)+0.25) -> 2029 Q3 | AP175: =NUM2DATE(DATE2NUM(AO175)+0.25) -> 2029 Q4 | AQ175: =NUM2DATE(DATE2NUM(AP175)+0.25) -> 2030 Q1 | AR175: =NUM2DATE(DATE2NUM(AQ175)+0.25) -> 2030 Q2 | AS175: =NUM2DATE(DATE2NUM(AR175)+0.25) -> 2030 Q3 | AT175: =NUM2DATE(DATE2NUM(AS175)+0.25) -> 2030 Q4 | AU175: =NUM2DATE(DATE2NUM(AT175)+0.25) -> 2031 Q1 | AV175: =NUM2DATE(DATE2NUM(AU175)+0.25) -> 2031 Q2 | AW175: =NUM2DATE(DATE2NUM(AV175)+0.25) -> 2031 Q3 | AX175: =NUM2DATE(DATE2NUM(AW175)+0.25) -> 2031 Q4 | AY175: =NUM2DATE(DATE2NUM(AX175)+0.25) -> 2032 Q1 | AZ175: =NUM2DATE(DATE2NUM(AY175)+0.25) -> 2032 Q2 | BA175: =NUM2DATE(DATE2NUM(AZ175)+0.25) -> 2032 Q3 | BB175: =NUM2DATE(DATE2NUM(BA175)+0.25) -> 2032 Q4 | BC175: =NUM2DATE(DATE2NUM(BB175)+0.25) -> 2033 Q1 | BD175: =NUM2DATE(DATE2NUM(BC175)+0.25) -> 2033 Q2 | BE175: =NUM2DATE(DATE2NUM(BD175)+0.25) -> 2033 Q3 | BF175: =NUM2DATE(DATE2NUM(BE175)+0.25) -> 2033 Q4 | BG175: =NUM2DATE(DATE2NUM(BF175)+0.25) -> 2034 Q1 | BH175: =NUM2DATE(DATE2NUM(BG175)+0.25) -> 2034 Q2 | BI175: =NUM2DATE(DATE2NUM(BH175)+0.25) -> 2034 Q3 | BJ175: =NUM2DATE(DATE2NUM(BI175)+0.25) -> 2034 Q4 | BK175: =NUM2DATE(DATE2NUM(BJ175)+0.25) -> 2035 Q1 | BL175: =NUM2DATE(DATE2NUM(BK175)+0.25) -> 2035 Q2 | BM175: =NUM2DATE(DATE2NUM(BL175)+0.25) -> 2035 Q3 | BN175: =NUM2DATE(DATE2NUM(BM175)+0.25) -> 2035 Q4 | BO175: =NUM2DATE(DATE2NUM(BN175)+0.25) -> 2036 Q1 | BP175: =NUM2DATE(DATE2NUM(BO175)+0.25) -> 2036 Q2 | BQ175: =NUM2DATE(DATE2NUM(BP175)+0.25) -> 2036 Q3 | BR175: =NUM2DATE(DATE2NUM(BQ175)+0.25) -> 2036 Q4 | BS175: =NUM2DATE(DATE2NUM(BR175)+0.25) -> 2037 Q1 | BT175: =NUM2DATE(DATE2NUM(BS175)+0.25) -> 2037 Q2 | BU175: =NUM2DATE(DATE2NUM(BT175)+0.25) -> 2037 Q3 | BV175: =NUM2DATE(DATE2NUM(BU175)+0.25) -> 2037 Q4 | BW175: =NUM2DATE(DATE2NUM(BV175)+0.25) -> 2038 Q1 | BX175: =NUM2DATE(DATE2NUM(BW175)+0.25) -> 2038 Q2 | BY175: =NUM2DATE(DATE2NUM(BX175)+0.25) -> 2038 Q3 | BZ175: =NUM2DATE(DATE2NUM(BY175)+0.25) -> 2038 Q4 | CA175: =NUM2DATE(DATE2NUM(BZ175)+0.25) -> 2039 Q1 | CB175: =NUM2DATE(DATE2NUM(CA175)+0.25) -> 2039 Q2 | CC175: =NUM2DATE(DATE2NUM(CB175)+0.25) -> 2039 Q3 | CD175: =NUM2DATE(DATE2NUM(CC175)+0.25) -> 2039 Q4 | CE175: =NUM2DATE(DATE2NUM(CD175)+0.25) -> 2040 Q1 | CF175: =NUM2DATE(DATE2NUM(CE175)+0.25) -> 2040 Q2 | CG175: =NUM2DATE(DATE2NUM(CF175)+0.25) -> 2040 Q3 | CH175: =NUM2DATE(DATE2NUM(CG175)+0.25) -> 2040 Q4 | CI175: =NUM2DATE(DATE2NUM(CH175)+0.25) -> 2041 Q1 | CJ175: =NUM2DATE(DATE2NUM(CI175)+0.25) -> 2041 Q2 | CK175: =NUM2DATE(DATE2NUM(CJ175)+0.25) -> 2041 Q3 | CL175: =NUM2DATE(DATE2NUM(CK175)+0.25) -> 2041 Q4 | CM175: =NUM2DATE(DATE2NUM(CL175)+0.25) -> 2042 Q1 | CN175: =NUM2DATE(DATE2NUM(CM175)+0.25) -> 2042 Q2 | CO175: =NUM2DATE(DATE2NUM(CN175)+0.25) -> 2042 Q3 | CP175: =NUM2DATE(DATE2NUM(CO175)+0.25) -> 2042 Q4 | CQ175: =NUM2DATE(DATE2NUM(CP175)+0.25) -> 2043 Q1 | CR175: =NUM2DATE(DATE2NUM(CQ175)+0.25) -> 2043 Q2 | CS175: =NUM2DATE(DATE2NUM(CR175)+0.25) -> 2043 Q3 | CT175: =NUM2DATE(DATE2NUM(CS175)+0.25) -> 2043 Q4 | CU175: =NUM2DATE(DATE2NUM(CT175)+0.25) -> 2044 Q1 | CV175: =NUM2DATE(DATE2NUM(CU175)+0.25) -> 2044 Q2 | CW175: =NUM2DATE(DATE2NUM(CV175)+0.25) -> 2044 Q3 | CX175: =NUM2DATE(DATE2NUM(CW175)+0.25) -> 2044 Q4 | CY175: =NUM2DATE(DATE2NUM(CX175)+0.25) -> 2045 Q1 | CZ175: =NUM2DATE(DATE2NUM(CY175)+0.25) -> 2045 Q2 | DA175: =NUM2DATE(DATE2NUM(CZ175)+0.25) -> 2045 Q3 | DB175: =NUM2DATE(DATE2NUM(DA175)+0.25) -> 2045 Q4 | DC175: =NUM2DATE(DATE2NUM(DB175)+0.25) -> 2046 Q1 | DD175: =NUM2DATE(DATE2NUM(DC175)+0.25) -> 2046 Q2 | DE175: =NUM2DATE(DATE2NUM(DD175)+0.25) -> 2046 Q3 | DF175: =NUM2DATE(DATE2NUM(DE175)+0.25) -> 2046 Q4 | DG175: =NUM2DATE(DATE2NUM(DF175)+0.25) -> 2047 Q1 | DH175: =NUM2DATE(DATE2NUM(DG175)+0.25) -> 2047 Q2 | DI175: =NUM2DATE(DATE2NUM(DH175)+0.25) -> 2047 Q3 | DJ175: =NUM2DATE(DATE2NUM(DI175)+0.25) -> 2047 Q4 | DK175: =NUM2DATE(DATE2NUM(DJ175)+0.25) -> 2048 Q1 | DL175: =NUM2DATE(DATE2NUM(DK175)+0.25) -> 2048 Q2 | DM175: =NUM2DATE(DATE2NUM(DL175)+0.25) -> 2048 Q3 | DN175: =NUM2DATE(DATE2NUM(DM175)+0.25) -> 2048 Q4 | DO175: =NUM2DATE(DATE2NUM(DN175)+0.25) -> 2049 Q1 | DP175: =NUM2DATE(DATE2NUM(DO175)+0.25) -> 2049 Q2 | DQ175: =NUM2DATE(DATE2NUM(DP175)+0.25) -> 2049 Q3 | DR175: =NUM2DATE(DATE2NUM(DQ175)+0.25) -> 2049 Q4 | DS175: =NUM2DATE(DATE2NUM(DR175)+0.25) -> 2050 Q1 | DT175: =NUM2DATE(DATE2NUM(DS175)+0.25) -> 2050 Q2 | DU175: =NUM2DATE(DATE2NUM(DT175)+0.25) -> 2050 Q3 | DV175: =NUM2DATE(DATE2NUM(DU175)+0.25) -> 2050 Q4
B177: Phase | G177: =_xlfn.XLOOKUP(G$175, $G$40:$G$48, $B$40:$B$48, "N/A", -1,-1) -> Hit-to-Lead | H177: Hit-to-Lead | I177: Hit-to-Lead | J177: Hit-to-Lead | K177: Lead Opt | L177: Lead Opt | M177: Lead Opt | N177: Lead Opt | O177: IND Enabling | P177: IND Enabling | Q177: IND Enabling | R177: IND Enabling | S177: Phase 1 | T177: Phase 1 | U177: Phase 1 | V177: Phase 1 | W177: Phase 2 | X177: Phase 2 | Y177: Phase 2 | Z177: Phase 2 | AA177: Phase 2 | AB177: Phase 2 | AC177: Phase 2 | AD177: Phase 2 | AE177: Phase 3 | AF177: Phase 3 | AG177: Phase 3 | AH177: Phase 3 | AI177: Phase 3 | AJ177: Phase 3 | AK177: Phase 3 | AL177: Phase 3 | AM177: =_xlfn.XLOOKUP(AM$175, $G$40:$G$48, $B$40:$B$48, "N/A", -1,-1) -> Registration | AN177: Registration | AO177: Registration | AP177: Registration | AQ177: Approved | AR177: Approved | AS177: Approved | AT177: Approved | AU177: Approved | AV177: Approved | AW177: Approved | AX177: Approved | AY177: Approved | AZ177: Approved | BA177: Approved | BB177: Approved | BC177: Approved | BD177: Approved | BE177: Approved | BF177: Approved | BG177: Approved | BH177: Approved | BI177: Approved | BJ177: Approved | BK177: Approved | BL177: Approved | BM177: Approved | BN177: Approved | BO177: Approved | BP177: Approved | BQ177: Approved | BR177: Approved | BS177: =_xlfn.XLOOKUP(BS$175, $G$40:$G$48, $B$40:$B$48, "N/A", -1,-1) -> Approved | BT177: Approved | BU177: Approved | BV177: Approved | BW177: Approved | BX177: Approved | BY177: Approved | BZ177: Approved | CA177: Approved | CB177: Approved | CC177: Approved | CD177: Approved | CE177: Approved | CF177: Approved | CG177: Approved | CH177: Approved | CI177: Approved | CJ177: Approved | CK177: Approved | CL177: Approved | CM177: Approved | CN177: Approved | CO177: Approved | CP177: Approved | CQ177: Approved | CR177: Approved | CS177: Approved | CT177: Approved | CU177: Approved | CV177: Approved | CW177: Approved | CX177: Approved | CY177: =_xlfn.XLOOKUP(CY$175, $G$40:$G$48, $B$40:$B$48, "N/A", -1,-1) -> Approved | CZ177: Approved | DA177: Approved | DB177: Approved | DC177: Approved | DD177: Approved | DE177: Approved | DF177: Approved | DG177: Approved | DH177: Approved | DI177: Approved | DJ177: Approved | DK177: Approved | DL177: Approved | DM177: Approved | DN177: Approved | DO177: Approved | DP177: Approved | DQ177: Approved | DR177: Approved | DS177: Approved | DT177: Approved | DU177: Approved | DV177: Approved
B178: Probability | G178: =IF(G$177="N/A", 1, _xlfn.XLOOKUP(G$177, $B$40:$B$48, $J$40:$J$48, 1, 0)) -> 1 | H178: 1 | I178: 1 | J178: 1 | K178: 0.75 | L178: 0.75 | M178: 0.75 | N178: 0.75 | O178: 0.6375 | P178: 0.6375 | Q178: 0.6375 | R178: 0.6375 | S178: 0.439875 | T178: 0.439875 | U178: 0.439875 | V178: 0.439875 | W178: 0.3519 | X178: 0.3519 | Y178: 0.3519 | Z178: 0.3519 | AA178: 0.3519 | AB178: 0.3519 | AC178: 0.3519 | AD178: 0.3519 | AE178: 0.14076 | AF178: 0.14076 | AG178: 0.14076 | AH178: 0.14076 | AI178: 0.14076 | AJ178: 0.14076 | AK178: 0.14076 | AL178: 0.14076 | AM178: =IF(AM$177="N/A", 1, _xlfn.XLOOKUP(AM$177, $B$40:$B$48, $J$40:$J$48, 1, 0)) -> 0.07038 | AN178: 0.07038 | AO178: 0.07038 | AP178: 0.07038 | AQ178: 0.063342 | AR178: 0.063342 | AS178: 0.063342 | AT178: 0.063342 | AU178: 0.063342 | AV178: 0.063342 | AW178: 0.063342 | AX178: 0.063342 | AY178: 0.063342 | AZ178: 0.063342 | BA178: 0.063342 | BB178: 0.063342 | BC178: 0.063342 | BD178: 0.063342 | BE178: 0.063342 | BF178: 0.063342 | BG178: 0.063342 | BH178: 0.063342 | BI178: 0.063342 | BJ178: 0.063342 | BK178: 0.063342 | BL178: 0.063342 | BM178: 0.063342 | BN178: 0.063342 | BO178: 0.063342 | BP178: 0.063342 | BQ178: 0.063342 | BR178: 0.063342 | BS178: =IF(BS$177="N/A", 1, _xlfn.XLOOKUP(BS$177, $B$40:$B$48, $J$40:$J$48, 1, 0)) -> 0.063342 | BT178: 0.063342 | BU178: 0.063342 | BV178: 0.063342 | BW178: 0.063342 | BX178: 0.063342 | BY178: 0.063342 | BZ178: 0.063342 | CA178: 0.063342 | CB178: 0.063342 | CC178: 0.063342 | CD178: 0.063342 | CE178: 0.063342 | CF178: 0.063342 | CG178: 0.063342 | CH178: 0.063342 | CI178: 0.063342 | CJ178: 0.063342 | CK178: 0.063342 | CL178: 0.063342 | CM178: 0.063342 | CN178: 0.063342 | CO178: 0.063342 | CP178: 0.063342 | CQ178: 0.063342 | CR178: 0.063342 | CS178: 0.063342 | CT178: 0.063342 | CU178: 0.063342 | CV178: 0.063342 | CW178: 0.063342 | CX178: 0.063342 | CY178: =IF(CY$177="N/A", 1, _xlfn.XLOOKUP(CY$177, $B$40:$B$48, $J$40:$J$48, 1, 0)) -> 0.063342 | CZ178: 0.063342 | DA178: 0.063342 | DB178: 0.063342 | DC178: 0.063342 | DD178: 0.063342 | DE178: 0.063342 | DF178: 0.063342 | DG178: 0.063342 | DH178: 0.063342 | DI178: 0.063342 | DJ178: 0.063342 | DK178: 0.063342 | DL178: 0.063342 | DM178: 0.063342 | DN178: 0.063342 | DO178: 0.063342 | DP178: 0.063342 | DQ178: 0.063342 | DR178: 0.063342 | DS178: 0.063342 | DT178: 0.063342 | DU178: 0.063342 | DV178: 0.063342
B180: Program Revenues
B182: Market Share Uptake
B184: US | G184: 0 | H184: 1 | I184: 2 | J184: 3 | K184: 4 | L184: 5 | M184: 6 | N184: 7 | O184: 8 | P184: 9 | Q184: 10 | R184: 11 | S184: 12 | T184: 13 | U184: 14 | V184: 15 | W184: 16 | X184: 17 | Y184: 18 | Z184: 19 | AA184: 20 | AB184: 21 | AC184: 22 | AD184: 23 | AE184: 24 | AF184: 25 | AG184: 26 | AH184: 27 | AI184: 28 | AJ184: 29 | AK184: 30 | AL184: 31 | AM184: 32 | AN184: 33 | AO184: 34 | AP184: 35 | AQ184: 36 | AR184: 37 | AS184: 38 | AT184: 39 | AU184: 40 | AV184: 41 | AW184: 42 | AX184: 43 | AY184: 44 | AZ184: 45 | BA184: 46 | BB184: 47 | BC184: 48 | BD184: 49 | BE184: 50 | BF184: 51 | BG184: 52 | BH184: 53 | BI184: 54 | BJ184: 55 | BK184: 56 | BL184: 57 | BM184: 58 | BN184: 59 | BO184: 60 | BP184: 61 | BQ184: 62 | BR184: 63 | BS184: 64 | BT184: 65 | BU184: 66 | BV184: 67 | BW184: 68 | BX184: 69 | BY184: 70 | BZ184: 71 | CA184: 72 | CB184: 73 | CC184: 74 | CD184: 75 | CE184: 76 | CF184: 77 | CG184: 78 | CH184: 79 | CI184: 80 | CJ184: 81 | CK184: 82 | CL184: 83 | CM184: 84 | CN184: 85 | CO184: 86 | CP184: 87 | CQ184: 88 | CR184: 89 | CS184: 90 | CT184: 91 | CU184: 92 | CV184: 93 | CW184: 94 | CX184: 95 | CY184: 96 | CZ184: 97 | DA184: 98 | DB184: 99 | DC184: 100 | DD184: 101 | DE184: 102 | DF184: 103 | DG184: 104 | DH184: 105 | DI184: 106 | DJ184: 107 | DK184: 108 | DL184: 109 | DM184: 110 | DN184: 111 | DO184: 112 | DP184: 113 | DQ184: 114 | DR184: 115 | DS184: 116 | DT184: 117 | DU184: 118 | DV184: 119
B185: Fast | G185: =IFERROR(MIN(SQRT(G184+1)/SQRT($F$68),1),1) -> 0.2041241452 | H185: 0.2886751346 | I185: 0.3535533906 | J185: 0.4082482905 | K185: 0.4564354646 | L185: 0.5 | M185: 0.5400617249 | N185: 0.5773502692 | O185: 0.6123724357 | P185: 0.6454972244 | Q185: 0.6770032004 | R185: 0.7071067812 | S185: 0.7359800722 | T185: 0.7637626158 | U185: 0.790569415 | V185: 0.8164965809 | W185: 0.8416254115 | X185: 0.8660254038 | Y185: 0.889756521 | Z185: 0.9128709292 | AA185: 0.9354143467 | AB185: 0.9574271078 | AC185: 0.9789450104 | AD185: 1 | AE185: 1 | AF185: 1 | AG185: 1 | AH185: 1 | AI185: 1 | AJ185: 1 | AK185: 1 | AL185: 1 | AM185: =IFERROR(MIN(SQRT(AM184+1)/SQRT($F$68),1),1) -> 1 | AN185: 1 | AO185: 1 | AP185: 1 | AQ185: 1 | AR185: 1 | AS185: 1 | AT185: 1 | AU185: 1 | AV185: 1 | AW185: 1 | AX185: 1 | AY185: 1 | AZ185: 1 | BA185: 1 | BB185: 1 | BC185: 1 | BD185: 1 | BE185: 1 | BF185: 1 | BG185: 1 | BH185: 1 | BI185: 1 | BJ185: 1 | BK185: 1 | BL185: 1 | BM185: 1 | BN185: 1 | BO185: 1 | BP185: 1 | BQ185: 1 | BR185: 1 | BS185: =IFERROR(MIN(SQRT(BS184+1)/SQRT($F$68),1),1) -> 1 | BT185: 1 | BU185: 1 | BV185: 1 | BW185: 1 | BX185: 1 | BY185: 1 | BZ185: 1 | CA185: 1 | CB185: 1 | CC185: 1 | CD185: 1 | CE185: 1 | CF185: 1 | CG185: 1 | CH185: 1 | CI185: 1 | CJ185: 1 | CK185: 1 | CL185: 1 | CM185: 1 | CN185: 1 | CO185: 1 | CP185: 1 | CQ185: 1 | CR185: 1 | CS185: 1 | CT185: 1 | CU185: 1 | CV185: 1 | CW185: 1 | CX185: 1 | CY185: =IFERROR(MIN(SQRT(CY184+1)/SQRT($F$68),1),1) -> 1 | CZ185: 1 | DA185: 1 | DB185: 1 | DC185: 1 | DD185: 1 | DE185: 1 | DF185: 1 | DG185: 1 | DH185: 1 | DI185: 1 | DJ185: 1 | DK185: 1 | DL185: 1 | DM185: 1 | DN185: 1 | DO185: 1 | DP185: 1 | DQ185: 1 | DR185: 1 | DS185: 1 | DT185: 1 | DU185: 1 | DV185: 1
B186: Moderate | G186: =IFERROR(MIN((G184+1)/$F$68,1),1) -> 0.04166666667 | H186: 0.08333333333 | I186: 0.125 | J186: 0.1666666667 | K186: 0.2083333333 | L186: 0.25 | M186: 0.2916666667 | N186: 0.3333333333 | O186: 0.375 | P186: 0.4166666667 | Q186: 0.4583333333 | R186: 0.5 | S186: 0.5416666667 | T186: 0.5833333333 | U186: 0.625 | V186: 0.6666666667 | W186: 0.7083333333 | X186: 0.75 | Y186: 0.7916666667 | Z186: 0.8333333333 | AA186: 0.875 | AB186: 0.9166666667 | AC186: 0.9583333333 | AD186: 1 | AE186: 1 | AF186: 1 | AG186: 1 | AH186: 1 | AI186: 1 | AJ186: 1 | AK186: 1 | AL186: 1 | AM186: =IFERROR(MIN((AM184+1)/$F$68,1),1) -> 1 | AN186: 1 | AO186: 1 | AP186: 1 | AQ186: 1 | AR186: 1 | AS186: 1 | AT186: 1 | AU186: 1 | AV186: 1 | AW186: 1 | AX186: 1 | AY186: 1 | AZ186: 1 | BA186: 1 | BB186: 1 | BC186: 1 | BD186: 1 | BE186: 1 | BF186: 1 | BG186: 1 | BH186: 1 | BI186: 1 | BJ186: 1 | BK186: 1 | BL186: 1 | BM186: 1 | BN186: 1 | BO186: 1 | BP186: 1 | BQ186: 1 | BR186: 1 | BS186: =IFERROR(MIN((BS184+1)/$F$68,1),1) -> 1 | BT186: 1 | BU186: 1 | BV186: 1 | BW186: 1 | BX186: 1 | BY186: 1 | BZ186: 1 | CA186: 1 | CB186: 1 | CC186: 1 | CD186: 1 | CE186: 1 | CF186: 1 | CG186: 1 | CH186: 1 | CI186: 1 | CJ186: 1 | CK186: 1 | CL186: 1 | CM186: 1 | CN186: 1 | CO186: 1 | CP186: 1 | CQ186: 1 | CR186: 1 | CS186: 1 | CT186: 1 | CU186: 1 | CV186: 1 | CW186: 1 | CX186: 1 | CY186: =IFERROR(MIN((CY184+1)/$F$68,1),1) -> 1 | CZ186: 1 | DA186: 1 | DB186: 1 | DC186: 1 | DD186: 1 | DE186: 1 | DF186: 1 | DG186: 1 | DH186: 1 | DI186: 1 | DJ186: 1 | DK186: 1 | DL186: 1 | DM186: 1 | DN186: 1 | DO186: 1 | DP186: 1 | DQ186: 1 | DR186: 1 | DS186: 1 | DT186: 1 | DU186: 1 | DV186: 1
B187: Slow | G187: =IFERROR((1/(1+EXP(-0.5*(20/$F$68)*(G184+1-$F$68/2)))),1) -> 0.01011736297 | H187: 0.01526715388 | I187: 0.02297736991 | J187: 0.03444519567 | K187: 0.05133579312 | L187: 0.07585818002 | M187: 0.110727318 | N187: 0.1588691049 | O187: 0.2227001388 | P187: 0.302940716 | Q187: 0.397314662 | R187: 0.5 | S187: 0.602685338 | T187: 0.697059284 | U187: 0.7772998612 | V187: 0.8411308951 | W187: 0.889272682 | X187: 0.92414182 | Y187: 0.9486642069 | Z187: 0.9655548043 | AA187: 0.9770226301 | AB187: 0.9847328461 | AC187: 0.989882637 | AD187: 0.9933071491 | AE187: 0.995577715 | AF187: 0.9970802502 | AG187: 0.9980732653 | AH187: 0.9987289837 | AI187: 0.9991617314 | AJ187: 0.9994472214 | AK187: 0.9996355172 | AL187: 0.9997596883 | AM187: =IFERROR((1/(1+EXP(-0.5*(20/$F$68)*(AM184+1-$F$68/2)))),1) -> 0.9998415638 | AN187: 0.9998955468 | AO187: 0.9999311377 | AP187: 0.9999546021 | AQ187: 0.9999700714 | AR187: 0.9999802697 | AS187: 0.9999869929 | AT187: 0.9999914251 | AU187: 0.9999943471 | AV187: 0.9999962734 | AW187: 0.9999975432 | AX187: 0.9999983804 | AY187: 0.9999989323 | AZ187: 0.9999992961 | BA187: 0.999999536 | BB187: 0.9999996941 | BC187: 0.9999997983 | BD187: 0.9999998671 | BE187: 0.9999999124 | BF187: 0.9999999422 | BG187: 0.9999999619 | BH187: 0.9999999749 | BI187: 0.9999999834 | BJ187: 0.9999999891 | BK187: 0.9999999928 | BL187: 0.9999999953 | BM187: 0.9999999969 | BN187: 0.9999999979 | BO187: 0.9999999986 | BP187: 0.9999999991 | BQ187: 0.9999999994 | BR187: 0.9999999996 | BS187: =IFERROR((1/(1+EXP(-0.5*(20/$F$68)*(BS184+1-$F$68/2)))),1) -> 0.9999999997 | BT187: 0.9999999998 | BU187: 0.9999999999 | BV187: 0.9999999999 | BW187: 1 | BX187: 1 | BY187: 1 | BZ187: 1 | CA187: 1 | CB187: 1 | CC187: 1 | CD187: 1 | CE187: 1 | CF187: 1 | CG187: 1 | CH187: 1 | CI187: 1 | CJ187: 1 | CK187: 1 | CL187: 1 | CM187: 1 | CN187: 1 | CO187: 1 | CP187: 1 | CQ187: 1 | CR187: 1 | CS187: 1 | CT187: 1 | CU187: 1 | CV187: 1 | CW187: 1 | CX187: 1 | CY187: =IFERROR((1/(1+EXP(-0.5*(20/$F$68)*(CY184+1-$F$68/2)))),1) -> 1 | CZ187: 1 | DA187: 1 | DB187: 1 | DC187: 1 | DD187: 1 | DE187: 1 | DF187: 1 | DG187: 1 | DH187: 1 | DI187: 1 | DJ187: 1 | DK187: 1 | DL187: 1 | DM187: 1 | DN187: 1 | DO187: 1 | DP187: 1 | DQ187: 1 | DR187: 1 | DS187: 1 | DT187: 1 | DU187: 1 | DV187: 1
B189: EU | G189: 0 | H189: 1 | I189: 2 | J189: 3 | K189: 4 | L189: 5 | M189: 6 | N189: 7 | O189: 8 | P189: 9 | Q189: 10 | R189: 11 | S189: 12 | T189: 13 | U189: 14 | V189: 15 | W189: 16 | X189: 17 | Y189: 18 | Z189: 19 | AA189: 20 | AB189: 21 | AC189: 22 | AD189: 23 | AE189: 24 | AF189: 25 | AG189: 26 | AH189: 27 | AI189: 28 | AJ189: 29 | AK189: 30 | AL189: 31 | AM189: 32 | AN189: 33 | AO189: 34 | AP189: 35 | AQ189: 36 | AR189: 37 | AS189: 38 | AT189: 39 | AU189: 40 | AV189: 41 | AW189: 42 | AX189: 43 | AY189: 44 | AZ189: 45 | BA189: 46 | BB189: 47 | BC189: 48 | BD189: 49 | BE189: 50 | BF189: 51 | BG189: 52 | BH189: 53 | BI189: 54 | BJ189: 55 | BK189: 56 | BL189: 57 | BM189: 58 | BN189: 59 | BO189: 60 | BP189: 61 | BQ189: 62 | BR189: 63 | BS189: 64 | BT189: 65 | BU189: 66 | BV189: 67 | BW189: 68 | BX189: 69 | BY189: 70 | BZ189: 71 | CA189: 72 | CB189: 73 | CC189: 74 | CD189: 75 | CE189: 76 | CF189: 77 | CG189: 78 | CH189: 79 | CI189: 80 | CJ189: 81 | CK189: 82 | CL189: 83 | CM189: 84 | CN189: 85 | CO189: 86 | CP189: 87 | CQ189: 88 | CR189: 89 | CS189: 90 | CT189: 91 | CU189: 92 | CV189: 93 | CW189: 94 | CX189: 95 | CY189: 96 | CZ189: 97 | DA189: 98 | DB189: 99 | DC189: 100 | DD189: 101 | DE189: 102 | DF189: 103 | DG189: 104 | DH189: 105 | DI189: 106 | DJ189: 107 | DK189: 108 | DL189: 109 | DM189: 110 | DN189: 111 | DO189: 112 | DP189: 113 | DQ189: 114 | DR189: 115 | DS189: 116 | DT189: 117 | DU189: 118 | DV189: 119
B190: Fast | G190: =IFERROR(MIN(SQRT(G189+1)/SQRT($G$68),1),1) -> 0.2041241452 | H190: 0.2886751346 | I190: 0.3535533906 | J190: 0.4082482905 | K190: 0.4564354646 | L190: 0.5 | M190: 0.5400617249 | N190: 0.5773502692 | O190: 0.6123724357 | P190: 0.6454972244 | Q190: 0.6770032004 | R190: 0.7071067812 | S190: 0.7359800722 | T190: 0.7637626158 | U190: 0.790569415 | V190: 0.8164965809 | W190: 0.8416254115 | X190: 0.8660254038 | Y190: 0.889756521 | Z190: 0.9128709292 | AA190: 0.9354143467 | AB190: 0.9574271078 | AC190: 0.9789450104 | AD190: 1 | AE190: 1 | AF190: 1 | AG190: 1 | AH190: 1 | AI190: 1 | AJ190: 1 | AK190: 1 | AL190: 1 | AM190: =IFERROR(MIN(SQRT(AM189+1)/SQRT($G$68),1),1) -> 1 | AN190: 1 | AO190: 1 | AP190: 1 | AQ190: 1 | AR190: 1 | AS190: 1 | AT190: 1 | AU190: 1 | AV190: 1 | AW190: 1 | AX190: 1 | AY190: 1 | AZ190: 1 | BA190: 1 | BB190: 1 | BC190: 1 | BD190: 1 | BE190: 1 | BF190: 1 | BG190: 1 | BH190: 1 | BI190: 1 | BJ190: 1 | BK190: 1 | BL190: 1 | BM190: 1 | BN190: 1 | BO190: 1 | BP190: 1 | BQ190: 1 | BR190: 1 | BS190: =IFERROR(MIN(SQRT(BS189+1)/SQRT($G$68),1),1) -> 1 | BT190: 1 | BU190: 1 | BV190: 1 | BW190: 1 | BX190: 1 | BY190: 1 | BZ190: 1 | CA190: 1 | CB190: 1 | CC190: 1 | CD190: 1 | CE190: 1 | CF190: 1 | CG190: 1 | CH190: 1 | CI190: 1 | CJ190: 1 | CK190: 1 | CL190: 1 | CM190: 1 | CN190: 1 | CO190: 1 | CP190: 1 | CQ190: 1 | CR190: 1 | CS190: 1 | CT190: 1 | CU190: 1 | CV190: 1 | CW190: 1 | CX190: 1 | CY190: =IFERROR(MIN(SQRT(CY189+1)/SQRT($G$68),1),1) -> 1 | CZ190: 1 | DA190: 1 | DB190: 1 | DC190: 1 | DD190: 1 | DE190: 1 | DF190: 1 | DG190: 1 | DH190: 1 | DI190: 1 | DJ190: 1 | DK190: 1 | DL190: 1 | DM190: 1 | DN190: 1 | DO190: 1 | DP190: 1 | DQ190: 1 | DR190: 1 | DS190: 1 | DT190: 1 | DU190: 1 | DV190: 1
B191: Moderate | G191: =IFERROR(MIN((G189+1)/$G$68,1),1) -> 0.04166666667 | H191: 0.08333333333 | I191: 0.125 | J191: 0.1666666667 | K191: 0.2083333333 | L191: 0.25 | M191: 0.2916666667 | N191: 0.3333333333 | O191: 0.375 | P191: 0.4166666667 | Q191: 0.4583333333 | R191: 0.5 | S191: 0.5416666667 | T191: 0.5833333333 | U191: 0.625 | V191: 0.6666666667 | W191: 0.7083333333 | X191: 0.75 | Y191: 0.7916666667 | Z191: 0.8333333333 | AA191: 0.875 | AB191: 0.9166666667 | AC191: 0.9583333333 | AD191: 1 | AE191: 1 | AF191: 1 | AG191: 1 | AH191: 1 | AI191: 1 | AJ191: 1 | AK191: 1 | AL191: 1 | AM191: =IFERROR(MIN((AM189+1)/$G$68,1),1) -> 1 | AN191: 1 | AO191: 1 | AP191: 1 | AQ191: 1 | AR191: 1 | AS191: 1 | AT191: 1 | AU191: 1 | AV191: 1 | AW191: 1 | AX191: 1 | AY191: 1 | AZ191: 1 | BA191: 1 | BB191: 1 | BC191: 1 | BD191: 1 | BE191: 1 | BF191: 1 | BG191: 1 | BH191: 1 | BI191: 1 | BJ191: 1 | BK191: 1 | BL191: 1 | BM191: 1 | BN191: 1 | BO191: 1 | BP191: 1 | BQ191: 1 | BR191: 1 | BS191: =IFERROR(MIN((BS189+1)/$G$68,1),1) -> 1 | BT191: 1 | BU191: 1 | BV191: 1 | BW191: 1 | BX191: 1 | BY191: 1 | BZ191: 1 | CA191: 1 | CB191: 1 | CC191: 1 | CD191: 1 | CE191: 1 | CF191: 1 | CG191: 1 | CH191: 1 | CI191: 1 | CJ191: 1 | CK191: 1 | CL191: 1 | CM191: 1 | CN191: 1 | CO191: 1 | CP191: 1 | CQ191: 1 | CR191: 1 | CS191: 1 | CT191: 1 | CU191: 1 | CV191: 1 | CW191: 1 | CX191: 1 | CY191: =IFERROR(MIN((CY189+1)/$G$68,1),1) -> 1 | CZ191: 1 | DA191: 1 | DB191: 1 | DC191: 1 | DD191: 1 | DE191: 1 | DF191: 1 | DG191: 1 | DH191: 1 | DI191: 1 | DJ191: 1 | DK191: 1 | DL191: 1 | DM191: 1 | DN191: 1 | DO191: 1 | DP191: 1 | DQ191: 1 | DR191: 1 | DS191: 1 | DT191: 1 | DU191: 1 | DV191: 1
B192: Slow | G192: =IFERROR((1/(1+EXP(-0.5*(20/$G$68)*(G189+1-$G$68/2)))),1) -> 0.01011736297 | H192: 0.01526715388 | I192: 0.02297736991 | J192: 0.03444519567 | K192: 0.05133579312 | L192: 0.07585818002 | M192: 0.110727318 | N192: 0.1588691049 | O192: 0.2227001388 | P192: 0.302940716 | Q192: 0.397314662 | R192: 0.5 | S192: 0.602685338 | T192: 0.697059284 | U192: 0.7772998612 | V192: 0.8411308951 | W192: 0.889272682 | X192: 0.92414182 | Y192: 0.9486642069 | Z192: 0.9655548043 | AA192: 0.9770226301 | AB192: 0.9847328461 | AC192: 0.989882637 | AD192: 0.9933071491 | AE192: 0.995577715 | AF192: 0.9970802502 | AG192: 0.9980732653 | AH192: 0.9987289837 | AI192: 0.9991617314 | AJ192: 0.9994472214 | AK192: 0.9996355172 | AL192: 0.9997596883 | AM192: =IFERROR((1/(1+EXP(-0.5*(20/$G$68)*(AM189+1-$G$68/2)))),1) -> 0.9998415638 | AN192: 0.9998955468 | AO192: 0.9999311377 | AP192: 0.9999546021 | AQ192: 0.9999700714 | AR192: 0.9999802697 | AS192: 0.9999869929 | AT192: 0.9999914251 | AU192: 0.9999943471 | AV192: 0.9999962734 | AW192: 0.9999975432 | AX192: 0.9999983804 | AY192: 0.9999989323 | AZ192: 0.9999992961 | BA192: 0.999999536 | BB192: 0.9999996941 | BC192: 0.9999997983 | BD192: 0.9999998671 | BE192: 0.9999999124 | BF192: 0.9999999422 | BG192: 0.9999999619 | BH192: 0.9999999749 | BI192: 0.9999999834 | BJ192: 0.9999999891 | BK192: 0.9999999928 | BL192: 0.9999999953 | BM192: 0.9999999969 | BN192: 0.9999999979 | BO192: 0.9999999986 | BP192: 0.9999999991 | BQ192: 0.9999999994 | BR192: 0.9999999996 | BS192: =IFERROR((1/(1+EXP(-0.5*(20/$G$68)*(BS189+1-$G$68/2)))),1) -> 0.9999999997 | BT192: 0.9999999998 | BU192: 0.9999999999 | BV192: 0.9999999999 | BW192: 1 | BX192: 1 | BY192: 1 | BZ192: 1 | CA192: 1 | CB192: 1 | CC192: 1 | CD192: 1 | CE192: 1 | CF192: 1 | CG192: 1 | CH192: 1 | CI192: 1 | CJ192: 1 | CK192: 1 | CL192: 1 | CM192: 1 | CN192: 1 | CO192: 1 | CP192: 1 | CQ192: 1 | CR192: 1 | CS192: 1 | CT192: 1 | CU192: 1 | CV192: 1 | CW192: 1 | CX192: 1 | CY192: =IFERROR((1/(1+EXP(-0.5*(20/$G$68)*(CY189+1-$G$68/2)))),1) -> 1 | CZ192: 1 | DA192: 1 | DB192: 1 | DC192: 1 | DD192: 1 | DE192: 1 | DF192: 1 | DG192: 1 | DH192: 1 | DI192: 1 | DJ192: 1 | DK192: 1 | DL192: 1 | DM192: 1 | DN192: 1 | DO192: 1 | DP192: 1 | DQ192: 1 | DR192: 1 | DS192: 1 | DT192: 1 | DU192: 1 | DV192: 1
B194: JP | G194: 0 | H194: 1 | I194: 2 | J194: 3 | K194: 4 | L194: 5 | M194: 6 | N194: 7 | O194: 8 | P194: 9 | Q194: 10 | R194: 11 | S194: 12 | T194: 13 | U194: 14 | V194: 15 | W194: 16 | X194: 17 | Y194: 18 | Z194: 19 | AA194: 20 | AB194: 21 | AC194: 22 | AD194: 23 | AE194: 24 | AF194: 25 | AG194: 26 | AH194: 27 | AI194: 28 | AJ194: 29 | AK194: 30 | AL194: 31 | AM194: 32 | AN194: 33 | AO194: 34 | AP194: 35 | AQ194: 36 | AR194: 37 | AS194: 38 | AT194: 39 | AU194: 40 | AV194: 41 | AW194: 42 | AX194: 43 | AY194: 44 | AZ194: 45 | BA194: 46 | BB194: 47 | BC194: 48 | BD194: 49 | BE194: 50 | BF194: 51 | BG194: 52 | BH194: 53 | BI194: 54 | BJ194: 55 | BK194: 56 | BL194: 57 | BM194: 58 | BN194: 59 | BO194: 60 | BP194: 61 | BQ194: 62 | BR194: 63 | BS194: 64 | BT194: 65 | BU194: 66 | BV194: 67 | BW194: 68 | BX194: 69 | BY194: 70 | BZ194: 71 | CA194: 72 | CB194: 73 | CC194: 74 | CD194: 75 | CE194: 76 | CF194: 77 | CG194: 78 | CH194: 79 | CI194: 80 | CJ194: 81 | CK194: 82 | CL194: 83 | CM194: 84 | CN194: 85 | CO194: 86 | CP194: 87 | CQ194: 88 | CR194: 89 | CS194: 90 | CT194: 91 | CU194: 92 | CV194: 93 | CW194: 94 | CX194: 95 | CY194: 96 | CZ194: 97 | DA194: 98 | DB194: 99 | DC194: 100 | DD194: 101 | DE194: 102 | DF194: 103 | DG194: 104 | DH194: 105 | DI194: 106 | DJ194: 107 | DK194: 108 | DL194: 109 | DM194: 110 | DN194: 111 | DO194: 112 | DP194: 113 | DQ194: 114 | DR194: 115 | DS194: 116 | DT194: 117 | DU194: 118 | DV194: 119
B195: Fast | G195: =IFERROR(MIN(SQRT(G194+1)/SQRT($H$68),1),1) -> 0.2041241452 | H195: 0.2886751346 | I195: 0.3535533906 | J195: 0.4082482905 | K195: 0.4564354646 | L195: 0.5 | M195: 0.5400617249 | N195: 0.5773502692 | O195: 0.6123724357 | P195: 0.6454972244 | Q195: 0.6770032004 | R195: 0.7071067812 | S195: 0.7359800722 | T195: 0.7637626158 | U195: 0.790569415 | V195: 0.8164965809 | W195: 0.8416254115 | X195: 0.8660254038 | Y195: 0.889756521 | Z195: 0.9128709292 | AA195: 0.9354143467 | AB195: 0.9574271078 | AC195: 0.9789450104 | AD195: 1 | AE195: 1 | AF195: 1 | AG195: 1 | AH195: 1 | AI195: 1 | AJ195: 1 | AK195: 1 | AL195: 1 | AM195: =IFERROR(MIN(SQRT(AM194+1)/SQRT($H$68),1),1) -> 1 | AN195: 1 | AO195: 1 | AP195: 1 | AQ195: 1 | AR195: 1 | AS195: 1 | AT195: 1 | AU195: 1 | AV195: 1 | AW195: 1 | AX195: 1 | AY195: 1 | AZ195: 1 | BA195: 1 | BB195: 1 | BC195: 1 | BD195: 1 | BE195: 1 | BF195: 1 | BG195: 1 | BH195: 1 | BI195: 1 | BJ195: 1 | BK195: 1 | BL195: 1 | BM195: 1 | BN195: 1 | BO195: 1 | BP195: 1 | BQ195: 1 | BR195: 1 | BS195: =IFERROR(MIN(SQRT(BS194+1)/SQRT($H$68),1),1) -> 1 | BT195: 1 | BU195: 1 | BV195: 1 | BW195: 1 | BX195: 1 | BY195: 1 | BZ195: 1 | CA195: 1 | CB195: 1 | CC195: 1 | CD195: 1 | CE195: 1 | CF195: 1 | CG195: 1 | CH195: 1 | CI195: 1 | CJ195: 1 | CK195: 1 | CL195: 1 | CM195: 1 | CN195: 1 | CO195: 1 | CP195: 1 | CQ195: 1 | CR195: 1 | CS195: 1 | CT195: 1 | CU195: 1 | CV195: 1 | CW195: 1 | CX195: 1 | CY195: =IFERROR(MIN(SQRT(CY194+1)/SQRT($H$68),1),1) -> 1 | CZ195: 1 | DA195: 1 | DB195: 1 | DC195: 1 | DD195: 1 | DE195: 1 | DF195: 1 | DG195: 1 | DH195: 1 | DI195: 1 | DJ195: 1 | DK195: 1 | DL195: 1 | DM195: 1 | DN195: 1 | DO195: 1 | DP195: 1 | DQ195: 1 | DR195: 1 | DS195: 1 | DT195: 1 | DU195: 1 | DV195: 1
B196: Moderate | G196: =IFERROR(MIN((G194+1)/$H$68,1),1) -> 0.04166666667 | H196: 0.08333333333 | I196: 0.125 | J196: 0.1666666667 | K196: 0.2083333333 | L196: 0.25 | M196: 0.2916666667 | N196: 0.3333333333 | O196: 0.375 | P196: 0.4166666667 | Q196: 0.4583333333 | R196: 0.5 | S196: 0.5416666667 | T196: 0.5833333333 | U196: 0.625 | V196: 0.6666666667 | W196: 0.7083333333 | X196: 0.75 | Y196: 0.7916666667 | Z196: 0.8333333333 | AA196: 0.875 | AB196: 0.9166666667 | AC196: 0.9583333333 | AD196: 1 | AE196: 1 | AF196: 1 | AG196: 1 | AH196: 1 | AI196: 1 | AJ196: 1 | AK196: 1 | AL196: 1 | AM196: =IFERROR(MIN((AM194+1)/$H$68,1),1) -> 1 | AN196: 1 | AO196: 1 | AP196: 1 | AQ196: 1 | AR196: 1 | AS196: 1 | AT196: 1 | AU196: 1 | AV196: 1 | AW196: 1 | AX196: 1 | AY196: 1 | AZ196: 1 | BA196: 1 | BB196: 1 | BC196: 1 | BD196: 1 | BE196: 1 | BF196: 1 | BG196: 1 | BH196: 1 | BI196: 1 | BJ196: 1 | BK196: 1 | BL196: 1 | BM196: 1 | BN196: 1 | BO196: 1 | BP196: 1 | BQ196: 1 | BR196: 1 | BS196: =IFERROR(MIN((BS194+1)/$H$68,1),1) -> 1 | BT196: 1 | BU196: 1 | BV196: 1 | BW196: 1 | BX196: 1 | BY196: 1 | BZ196: 1 | CA196: 1 | CB196: 1 | CC196: 1 | CD196: 1 | CE196: 1 | CF196: 1 | CG196: 1 | CH196: 1 | CI196: 1 | CJ196: 1 | CK196: 1 | CL196: 1 | CM196: 1 | CN196: 1 | CO196: 1 | CP196: 1 | CQ196: 1 | CR196: 1 | CS196: 1 | CT196: 1 | CU196: 1 | CV196: 1 | CW196: 1 | CX196: 1 | CY196: =IFERROR(MIN((CY194+1)/$H$68,1),1) -> 1 | CZ196: 1 | DA196: 1 | DB196: 1 | DC196: 1 | DD196: 1 | DE196: 1 | DF196: 1 | DG196: 1 | DH196: 1 | DI196: 1 | DJ196: 1 | DK196: 1 | DL196: 1 | DM196: 1 | DN196: 1 | DO196: 1 | DP196: 1 | DQ196: 1 | DR196: 1 | DS196: 1 | DT196: 1 | DU196: 1 | DV196: 1
B197: Slow | G197: =IFERROR((1/(1+EXP(-0.5*(20/$H$68)*(G194+1-$H$68/2)))),1) -> 0.01011736297 | H197: 0.01526715388 | I197: 0.02297736991 | J197: 0.03444519567 | K197: 0.05133579312 | L197: 0.07585818002 | M197: 0.110727318 | N197: 0.1588691049 | O197: 0.2227001388 | P197: 0.302940716 | Q197: 0.397314662 | R197: 0.5 | S197: 0.602685338 | T197: 0.697059284 | U197: 0.7772998612 | V197: 0.8411308951 | W197: 0.889272682 | X197: 0.92414182 | Y197: 0.9486642069 | Z197: 0.9655548043 | AA197: 0.9770226301 | AB197: 0.9847328461 | AC197: 0.989882637 | AD197: 0.9933071491 | AE197: 0.995577715 | AF197: 0.9970802502 | AG197: 0.9980732653 | AH197: 0.9987289837 | AI197: 0.9991617314 | AJ197: 0.9994472214 | AK197: 0.9996355172 | AL197: 0.9997596883 | AM197: =IFERROR((1/(1+EXP(-0.5*(20/$H$68)*(AM194+1-$H$68/2)))),1) -> 0.9998415638 | AN197: 0.9998955468 | AO197: 0.9999311377 | AP197: 0.9999546021 | AQ197: 0.9999700714 | AR197: 0.9999802697 | AS197: 0.9999869929 | AT197: 0.9999914251 | AU197: 0.9999943471 | AV197: 0.9999962734 | AW197: 0.9999975432 | AX197: 0.9999983804 | AY197: 0.9999989323 | AZ197: 0.9999992961 | BA197: 0.999999536 | BB197: 0.9999996941 | BC197: 0.9999997983 | BD197: 0.9999998671 | BE197: 0.9999999124 | BF197: 0.9999999422 | BG197: 0.9999999619 | BH197: 0.9999999749 | BI197: 0.9999999834 | BJ197: 0.9999999891 | BK197: 0.9999999928 | BL197: 0.9999999953 | BM197: 0.9999999969 | BN197: 0.9999999979 | BO197: 0.9999999986 | BP197: 0.9999999991 | BQ197: 0.9999999994 | BR197: 0.9999999996 | BS197: =IFERROR((1/(1+EXP(-0.5*(20/$H$68)*(BS194+1-$H$68/2)))),1) -> 0.9999999997 | BT197: 0.9999999998 | BU197: 0.9999999999 | BV197: 0.9999999999 | BW197: 1 | BX197: 1 | BY197: 1 | BZ197: 1 | CA197: 1 | CB197: 1 | CC197: 1 | CD197: 1 | CE197: 1 | CF197: 1 | CG197: 1 | CH197: 1 | CI197: 1 | CJ197: 1 | CK197: 1 | CL197: 1 | CM197: 1 | CN197: 1 | CO197: 1 | CP197: 1 | CQ197: 1 | CR197: 1 | CS197: 1 | CT197: 1 | CU197: 1 | CV197: 1 | CW197: 1 | CX197: 1 | CY197: =IFERROR((1/(1+EXP(-0.5*(20/$H$68)*(CY194+1-$H$68/2)))),1) -> 1 | CZ197: 1 | DA197: 1 | DB197: 1 | DC197: 1 | DD197: 1 | DE197: 1 | DF197: 1 | DG197: 1 | DH197: 1 | DI197: 1 | DJ197: 1 | DK197: 1 | DL197: 1 | DM197: 1 | DN197: 1 | DO197: 1 | DP197: 1 | DQ197: 1 | DR197: 1 | DS197: 1 | DT197: 1 | DU197: 1 | DV197: 1
B199: Revenue Model
G201: =G$175 -> 2021 Q1 | H201: =H$175 -> 2021 Q2 | I201: 2021 Q3 | J201: 2021 Q4 | K201: 2022 Q1 | L201: 2022 Q2 | M201: 2022 Q3 | N201: 2022 Q4 | O201: 2023 Q1 | P201: 2023 Q2 | Q201: 2023 Q3 | R201: 2023 Q4 | S201: 2024 Q1 | T201: 2024 Q2 | U201: 2024 Q3 | V201: 2024 Q4 | W201: 2025 Q1 | X201: 2025 Q2 | Y201: 2025 Q3 | Z201: 2025 Q4 | AA201: 2026 Q1 | AB201: 2026 Q2 | AC201: 2026 Q3 | AD201: 2026 Q4 | AE201: 2027 Q1 | AF201: 2027 Q2 | AG201: 2027 Q3 | AH201: 2027 Q4 | AI201: 2028 Q1 | AJ201: 2028 Q2 | AK201: 2028 Q3 | AL201: 2028 Q4 | AM201: 2029 Q1 | AN201: 2029 Q2 | AO201: 2029 Q3 | AP201: 2029 Q4 | AQ201: 2030 Q1 | AR201: 2030 Q2 | AS201: 2030 Q3 | AT201: 2030 Q4 | AU201: 2031 Q1 | AV201: 2031 Q2 | AW201: 2031 Q3 | AX201: 2031 Q4 | AY201: 2032 Q1 | AZ201: 2032 Q2 | BA201: 2032 Q3 | BB201: 2032 Q4 | BC201: 2033 Q1 | BD201: 2033 Q2 | BE201: 2033 Q3 | BF201: 2033 Q4 | BG201: 2034 Q1 | BH201: 2034 Q2 | BI201: 2034 Q3 | BJ201: 2034 Q4 | BK201: 2035 Q1 | BL201: 2035 Q2 | BM201: 2035 Q3 | BN201: 2035 Q4 | BO201: 2036 Q1 | BP201: 2036 Q2 | BQ201: 2036 Q3 | BR201: 2036 Q4 | BS201: 2037 Q1 | BT201: =BT$175 -> 2037 Q2 | BU201: 2037 Q3 | BV201: 2037 Q4 | BW201: 2038 Q1 | BX201: 2038 Q2 | BY201: 2038 Q3 | BZ201: 2038 Q4 | CA201: 2039 Q1 | CB201: 2039 Q2 | CC201: 2039 Q3 | CD201: 2039 Q4 | CE201: 2040 Q1 | CF201: 2040 Q2 | CG201: 2040 Q3 | CH201: 2040 Q4 | CI201: 2041 Q1 | CJ201: 2041 Q2 | CK201: 2041 Q3 | CL201: 2041 Q4 | CM201: 2042 Q1 | CN201: 2042 Q2 | CO201: 2042 Q3 | CP201: 2042 Q4 | CQ201: 2043 Q1 | CR201: 2043 Q2 | CS201: 2043 Q3 | CT201: 2043 Q4 | CU201: 2044 Q1 | CV201: 2044 Q2 | CW201: 2044 Q3 | CX201: 2044 Q4 | CY201: 2045 Q1 | CZ201: 2045 Q2 | DA201: 2045 Q3 | DB201: 2045 Q4 | DC201: 2046 Q1 | DD201: 2046 Q2 | DE201: 2046 Q3 | DF201: 2046 Q4 | DG201: 2047 Q1 | DH201: 2047 Q2 | DI201: 2047 Q3 | DJ201: 2047 Q4 | DK201: 2048 Q1 | DL201: 2048 Q2 | DM201: 2048 Q3 | DN201: 2048 Q4 | DO201: 2049 Q1 | DP201: 2049 Q2 | DQ201: 2049 Q3 | DR201: 2049 Q4 | DS201: 2050 Q1 | DT201: 2050 Q2 | DU201: 2050 Q3 | DV201: 2050 Q4
B202: US
B203: Patients | G203: =$F$55/4 -> 12500 | H203: =IFERROR(MIN($F$57, G203*(1+$F$56)^(1/4)), G203*(1+$F$56)^(1/4)) -> 12500 | I203: 12500 | J203: 12500 | K203: 12500 | L203: 12500 | M203: 12500 | N203: 12500 | O203: 12500 | P203: 12500 | Q203: 12500 | R203: 12500 | S203: 12500 | T203: 12500 | U203: 12500 | V203: 12500 | W203: 12500 | X203: 12500 | Y203: 12500 | Z203: 12500 | AA203: 12500 | AB203: 12500 | AC203: 12500 | AD203: 12500 | AE203: 12500 | AF203: 12500 | AG203: 12500 | AH203: 12500 | AI203: 12500 | AJ203: 12500 | AK203: 12500 | AL203: 12500 | AM203: 12500 | AN203: =IFERROR(MIN($F$57, AM203*(1+$F$56)^(1/4)), AM203*(1+$F$56)^(1/4)) -> 12500 | AO203: 12500 | AP203: 12500 | AQ203: 12500 | AR203: 12500 | AS203: 12500 | AT203: 12500 | AU203: 12500 | AV203: 12500 | AW203: 12500 | AX203: 12500 | AY203: 12500 | AZ203: 12500 | BA203: 12500 | BB203: 12500 | BC203: 12500 | BD203: 12500 | BE203: 12500 | BF203: 12500 | BG203: 12500 | BH203: 12500 | BI203: 12500 | BJ203: 12500 | BK203: 12500 | BL203: 12500 | BM203: 12500 | BN203: 12500 | BO203: 12500 | BP203: 12500 | BQ203: 12500 | BR203: 12500 | BS203: 12500 | BT203: =IFERROR(MIN($F$57, BS203*(1+$F$56)^(1/4)), BS203*(1+$F$56)^(1/4)) -> 12500 | BU203: 12500 | BV203: 12500 | BW203: 12500 | BX203: 12500 | BY203: 12500 | BZ203: 12500 | CA203: 12500 | CB203: 12500 | CC203: 12500 | CD203: 12500 | CE203: 12500 | CF203: 12500 | CG203: 12500 | CH203: 12500 | CI203: 12500 | CJ203: 12500 | CK203: 12500 | CL203: 12500 | CM203: 12500 | CN203: 12500 | CO203: 12500 | CP203: 12500 | CQ203: 12500 | CR203: 12500 | CS203: 12500 | CT203: 12500 | CU203: 12500 | CV203: 12500 | CW203: 12500 | CX203: 12500 | CY203: 12500 | CZ203: =IFERROR(MIN($F$57, CY203*(1+$F$56)^(1/4)), CY203*(1+$F$56)^(1/4)) -> 12500 | DA203: 12500 | DB203: 12500 | DC203: 12500 | DD203: 12500 | DE203: 12500 | DF203: 12500 | DG203: 12500 | DH203: 12500 | DI203: 12500 | DJ203: 12500 | DK203: 12500 | DL203: 12500 | DM203: 12500 | DN203: 12500 | DO203: 12500 | DP203: 12500 | DQ203: 12500 | DR203: 12500 | DS203: 12500 | DT203: 12500 | DU203: 12500 | DV203: 12500
B204: % Diagnosed | G204: =IF(G$201<=$F$58, $F$59, MIN($F$60, IFERROR($F$59+4*(DATE2NUM(G$201)-DATE2NUM($F$58))*($F$60-$F$59)/$F$61,$F$60))) -> 0.8 | H204: =IF(H$201<=$F$58, $F$59, MIN($F$60, IFERROR($F$59+4*(DATE2NUM(H$201)-DATE2NUM($F$58))*($F$60-$F$59)/$F$61,$F$60))) -> 0.8 | I204: =IF(I$201<=$F$58, $F$59, MIN($F$60, IFERROR($F$59+4*(DATE2NUM(I$201)-DATE2NUM($F$58))*($F$60-$F$59)/$F$61,$F$60))) -> 0.8 | J204: =IF(J$201<=$F$58, $F$59, MIN($F$60, IFERROR($F$59+4*(DATE2NUM(J$201)-DATE2NUM($F$58))*($F$60-$F$59)/$F$61,$F$60))) -> 0.8 | K204: =IF(K$201<=$F$58, $F$59, MIN($F$60, IFERROR($F$59+4*(DATE2NUM(K$201)-DATE2NUM($F$58))*($F$60-$F$59)/$F$61,$F$60))) -> 0.8 | L204: =IF(L$201<=$F$58, $F$59, MIN($F$60, IFERROR($F$59+4*(DATE2NUM(L$201)-DATE2NUM($F$58))*($F$60-$F$59)/$F$61,$F$60))) -> 0.8 | M204: =IF(M$201<=$F$58, $F$59, MIN($F$60, IFERROR($F$59+4*(DATE2NUM(M$201)-DATE2NUM($F$58))*($F$60-$F$59)/$F$61,$F$60))) -> 0.8 | N204: =IF(N$201<=$F$58, $F$59, MIN($F$60, IFERROR($F$59+4*(DATE2NUM(N$201)-DATE2NUM($F$58))*($F$60-$F$59)/$F$61,$F$60))) -> 0.8 | O204: =IF(O$201<=$F$58, $F$59, MIN($F$60, IFERROR($F$59+4*(DATE2NUM(O$201)-DATE2NUM($F$58))*($F$60-$F$59)/$F$61,$F$60))) -> 0.8 | P204: =IF(P$201<=$F$58, $F$59, MIN($F$60, IFERROR($F$59+4*(DATE2NUM(P$201)-DATE2NUM($F$58))*($F$60-$F$59)/$F$61,$F$60))) -> 0.8 | Q204: =IF(Q$201<=$F$58, $F$59, MIN($F$60, IFERROR($F$59+4*(DATE2NUM(Q$201)-DATE2NUM($F$58))*($F$60-$F$59)/$F$61,$F$60))) -> 0.8 | R204: =IF(R$201<=$F$58, $F$59, MIN($F$60, IFERROR($F$59+4*(DATE2NUM(R$201)-DATE2NUM($F$58))*($F$60-$F$59)/$F$61,$F$60))) -> 0.8 | S204: =IF(S$201<=$F$58, $F$59, MIN($F$60, IFERROR($F$59+4*(DATE2NUM(S$201)-DATE2NUM($F$58))*($F$60-$F$59)/$F$61,$F$60))) -> 0.8 | T204: =IF(T$201<=$F$58, $F$59, MIN($F$60, IFERROR($F$59+4*(DATE2NUM(T$201)-DATE2NUM($F$58))*($F$60-$F$59)/$F$61,$F$60))) -> 0.8 | U204: =IF(U$201<=$F$58, $F$59, MIN($F$60, IFERROR($F$59+4*(DATE2NUM(U$201)-DATE2NUM($F$58))*($F$60-$F$59)/$F$61,$F$60))) -> 0.8 | V204: =IF(V$201<=$F$58, $F$59, MIN($F$60, IFERROR($F$59+4*(DATE2NUM(V$201)-DATE2NUM($F$58))*($F$60-$F$59)/$F$61,$F$60))) -> 0.8 | W204: =IF(W$201<=$F$58, $F$59, MIN($F$60, IFERROR($F$59+4*(DATE2NUM(W$201)-DATE2NUM($F$58))*($F$60-$F$59)/$F$61,$F$60))) -> 0.8 | X204: =IF(X$201<=$F$58, $F$59, MIN($F$60, IFERROR($F$59+4*(DATE2NUM(X$201)-DATE2NUM($F$58))*($F$60-$F$59)/$F$61,$F$60))) -> 0.8 | Y204: =IF(Y$201<=$F$58, $F$59, MIN($F$60, IFERROR($F$59+4*(DATE2NUM(Y$201)-DATE2NUM($F$58))*($F$60-$F$59)/$F$61,$F$60))) -> 0.8 | Z204: =IF(Z$201<=$F$58, $F$59, MIN($F$60, IFERROR($F$59+4*(DATE2NUM(Z$201)-DATE2NUM($F$58))*($F$60-$F$59)/$F$61,$F$60))) -> 0.8 | AA204: =IF(AA$201<=$F$58, $F$59, MIN($F$60, IFERROR($F$59+4*(DATE2NUM(AA$201)-DATE2NUM($F$58))*($F$60-$F$59)/$F$61,$F$60))) -> 0.8 | AB204: =IF(AB$201<=$F$58, $F$59, MIN($F$60, IFERROR($F$59+4*(DATE2NUM(AB$201)-DATE2NUM($F$58))*($F$60-$F$59)/$F$61,$F$60))) -> 0.8 | AC204: =IF(AC$201<=$F$58, $F$59, MIN($F$60, IFERROR($F$59+4*(DATE2NUM(AC$201)-DATE2NUM($F$58))*($F$60-$F$59)/$F$61,$F$60))) -> 0.8 | AD204: =IF(AD$201<=$F$58, $F$59, MIN($F$60, IFERROR($F$59+4*(DATE2NUM(AD$201)-DATE2NUM($F$58))*($F$60-$F$59)/$F$61,$F$60))) -> 0.8 | AE204: =IF(AE$201<=$F$58, $F$59, MIN($F$60, IFERROR($F$59+4*(DATE2NUM(AE$201)-DATE2NUM($F$58))*($F$60-$F$59)/$F$61,$F$60))) -> 0.8 | AF204: =IF(AF$201<=$F$58, $F$59, MIN($F$60, IFERROR($F$59+4*(DATE2NUM(AF$201)-DATE2NUM($F$58))*($F$60-$F$59)/$F$61,$F$60))) -> 0.8 | AG204: =IF(AG$201<=$F$58, $F$59, MIN($F$60, IFERROR($F$59+4*(DATE2NUM(AG$201)-DATE2NUM($F$58))*($F$60-$F$59)/$F$61,$F$60))) -> 0.8 | AH204: =IF(AH$201<=$F$58, $F$59, MIN($F$60, IFERROR($F$59+4*(DATE2NUM(AH$201)-DATE2NUM($F$58))*($F$60-$F$59)/$F$61,$F$60))) -> 0.8 | AI204: =IF(AI$201<=$F$58, $F$59, MIN($F$60, IFERROR($F$59+4*(DATE2NUM(AI$201)-DATE2NUM($F$58))*($F$60-$F$59)/$F$61,$F$60))) -> 0.8 | AJ204: =IF(AJ$201<=$F$58, $F$59, MIN($F$60, IFERROR($F$59+4*(DATE2NUM(AJ$201)-DATE2NUM($F$58))*($F$60-$F$59)/$F$61,$F$60))) -> 0.8083333333 | AK204: =IF(AK$201<=$F$58, $F$59, MIN($F$60, IFERROR($F$59+4*(DATE2NUM(AK$201)-DATE2NUM($F$58))*($F$60-$F$59)/$F$61,$F$60))) -> 0.8166666667 | AL204: =IF(AL$201<=$F$58, $F$59, MIN($F$60, IFERROR($F$59+4*(DATE2NUM(AL$201)-DATE2NUM($F$58))*($F$60-$F$59)/$F$61,$F$60))) -> 0.825 | AM204: =IF(AM$201<=$F$58, $F$59, MIN($F$60, IFERROR($F$59+4*(DATE2NUM(AM$201)-DATE2NUM($F$58))*($F$60-$F$59)/$F$61,$F$60))) -> 0.8333333333 | AN204: =IF(AN$201<=$F$58, $F$59, MIN($F$60, IFERROR($F$59+4*(DATE2NUM(AN$201)-DATE2NUM($F$58))*($F$60-$F$59)/$F$61,$F$60))) -> 0.8416666667 | AO204: =IF(AO$201<=$F$58, $F$59, MIN($F$60, IFERROR($F$59+4*(DATE2NUM(AO$201)-DATE2NUM($F$58))*($F$60-$F$59)/$F$61,$F$60))) -> 0.85 | AP204: =IF(AP$201<=$F$58, $F$59, MIN($F$60, IFERROR($F$59+4*(DATE2NUM(AP$201)-DATE2NUM($F$58))*($F$60-$F$59)/$F$61,$F$60))) -> 0.8583333333 | AQ204: =IF(AQ$201<=$F$58, $F$59, MIN($F$60, IFERROR($F$59+4*(DATE2NUM(AQ$201)-DATE2NUM($F$58))*($F$60-$F$59)/$F$61,$F$60))) -> 0.8666666667 | AR204: =IF(AR$201<=$F$58, $F$59, MIN($F$60, IFERROR($F$59+4*(DATE2NUM(AR$201)-DATE2NUM($F$58))*($F$60-$F$59)/$F$61,$F$60))) -> 0.875 | AS204: =IF(AS$201<=$F$58, $F$59, MIN($F$60, IFERROR($F$59+4*(DATE2NUM(AS$201)-DATE2NUM($F$58))*($F$60-$F$59)/$F$61,$F$60))) -> 0.8833333333 | AT204: =IF(AT$201<=$F$58, $F$59, MIN($F$60, IFERROR($F$59+4*(DATE2NUM(AT$201)-DATE2NUM($F$58))*($F$60-$F$59)/$F$61,$F$60))) -> 0.8916666667 | AU204: =IF(AU$201<=$F$58, $F$59, MIN($F$60, IFERROR($F$59+4*(DATE2NUM(AU$201)-DATE2NUM($F$58))*($F$60-$F$59)/$F$61,$F$60))) -> 0.9 | AV204: =IF(AV$201<=$F$58, $F$59, MIN($F$60, IFERROR($F$59+4*(DATE2NUM(AV$201)-DATE2NUM($F$58))*($F$60-$F$59)/$F$61,$F$60))) -> 0.9 | AW204: =IF(AW$201<=$F$58, $F$59, MIN($F$60, IFERROR($F$59+4*(DATE2NUM(AW$201)-DATE2NUM($F$58))*($F$60-$F$59)/$F$61,$F$60))) -> 0.9 | AX204: =IF(AX$201<=$F$58, $F$59, MIN($F$60, IFERROR($F$59+4*(DATE2NUM(AX$201)-DATE2NUM($F$58))*($F$60-$F$59)/$F$61,$F$60))) -> 0.9 | AY204: =IF(AY$201<=$F$58, $F$59, MIN($F$60, IFERROR($F$59+4*(DATE2NUM(AY$201)-DATE2NUM($F$58))*($F$60-$F$59)/$F$61,$F$60))) -> 0.9 | AZ204: =IF(AZ$201<=$F$58, $F$59, MIN($F$60, IFERROR($F$59+4*(DATE2NUM(AZ$201)-DATE2NUM($F$58))*($F$60-$F$59)/$F$61,$F$60))) -> 0.9 | BA204: =IF(BA$201<=$F$58, $F$59, MIN($F$60, IFERROR($F$59+4*(DATE2NUM(BA$201)-DATE2NUM($F$58))*($F$60-$F$59)/$F$61,$F$60))) -> 0.9 | BB204: =IF(BB$201<=$F$58, $F$59, MIN($F$60, IFERROR($F$59+4*(DATE2NUM(BB$201)-DATE2NUM($F$58))*($F$60-$F$59)/$F$61,$F$60))) -> 0.9 | BC204: =IF(BC$201<=$F$58, $F$59, MIN($F$60, IFERROR($F$59+4*(DATE2NUM(BC$201)-DATE2NUM($F$58))*($F$60-$F$59)/$F$61,$F$60))) -> 0.9 | BD204: =IF(BD$201<=$F$58, $F$59, MIN($F$60, IFERROR($F$59+4*(DATE2NUM(BD$201)-DATE2NUM($F$58))*($F$60-$F$59)/$F$61,$F$60))) -> 0.9 | BE204: =IF(BE$201<=$F$58, $F$59, MIN($F$60, IFERROR($F$59+4*(DATE2NUM(BE$201)-DATE2NUM($F$58))*($F$60-$F$59)/$F$61,$F$60))) -> 0.9 | BF204: =IF(BF$201<=$F$58, $F$59, MIN($F$60, IFERROR($F$59+4*(DATE2NUM(BF$201)-DATE2NUM($F$58))*($F$60-$F$59)/$F$61,$F$60))) -> 0.9 | BG204: =IF(BG$201<=$F$58, $F$59, MIN($F$60, IFERROR($F$59+4*(DATE2NUM(BG$201)-DATE2NUM($F$58))*($F$60-$F$59)/$F$61,$F$60))) -> 0.9 | BH204: =IF(BH$201<=$F$58, $F$59, MIN($F$60, IFERROR($F$59+4*(DATE2NUM(BH$201)-DATE2NUM($F$58))*($F$60-$F$59)/$F$61,$F$60))) -> 0.9 | BI204: =IF(BI$201<=$F$58, $F$59, MIN($F$60, IFERROR($F$59+4*(DATE2NUM(BI$201)-DATE2NUM($F$58))*($F$60-$F$59)/$F$61,$F$60))) -> 0.9 | BJ204: =IF(BJ$201<=$F$58, $F$59, MIN($F$60, IFERROR($F$59+4*(DATE2NUM(BJ$201)-DATE2NUM($F$58))*($F$60-$F$59)/$F$61,$F$60))) -> 0.9 | BK204: =IF(BK$201<=$F$58, $F$59, MIN($F$60, IFERROR($F$59+4*(DATE2NUM(BK$201)-DATE2NUM($F$58))*($F$60-$F$59)/$F$61,$F$60))) -> 0.9 | BL204: =IF(BL$201<=$F$58, $F$59, MIN($F$60, IFERROR($F$59+4*(DATE2NUM(BL$201)-DATE2NUM($F$58))*($F$60-$F$59)/$F$61,$F$60))) -> 0.9 | BM204: =IF(BM$201<=$F$58, $F$59, MIN($F$60, IFERROR($F$59+4*(DATE2NUM(BM$201)-DATE2NUM($F$58))*($F$60-$F$59)/$F$61,$F$60))) -> 0.9 | BN204: =IF(BN$201<=$F$58, $F$59, MIN($F$60, IFERROR($F$59+4*(DATE2NUM(BN$201)-DATE2NUM($F$58))*($F$60-$F$59)/$F$61,$F$60))) -> 0.9 | BO204: =IF(BO$201<=$F$58, $F$59, MIN($F$60, IFERROR($F$59+4*(DATE2NUM(BO$201)-DATE2NUM($F$58))*($F$60-$F$59)/$F$61,$F$60))) -> 0.9 | BP204: =IF(BP$201<=$F$58, $F$59, MIN($F$60, IFERROR($F$59+4*(DATE2NUM(BP$201)-DATE2NUM($F$58))*($F$60-$F$59)/$F$61,$F$60))) -> 0.9 | BQ204: =IF(BQ$201<=$F$58, $F$59, MIN($F$60, IFERROR($F$59+4*(DATE2NUM(BQ$201)-DATE2NUM($F$58))*($F$60-$F$59)/$F$61,$F$60))) -> 0.9 | BR204: =IF(BR$201<=$F$58, $F$59, MIN($F$60, IFERROR($F$59+4*(DATE2NUM(BR$201)-DATE2NUM($F$58))*($F$60-$F$59)/$F$61,$F$60))) -> 0.9 | BS204: =IF(BS$201<=$F$58, $F$59, MIN($F$60, IFERROR($F$59+4*(DATE2NUM(BS$201)-DATE2NUM($F$58))*($F$60-$F$59)/$F$61,$F$60))) -> 0.9 | BT204: =IF(BT$201<=$F$58, $F$59, MIN($F$60, IFERROR($F$59+4*(DATE2NUM(BT$201)-DATE2NUM($F$58))*($F$60-$F$59)/$F$61,$F$60))) -> 0.9 | BU204: =IF(BU$201<=$F$58, $F$59, MIN($F$60, IFERROR($F$59+4*(DATE2NUM(BU$201)-DATE2NUM($F$58))*($F$60-$F$59)/$F$61,$F$60))) -> 0.9 | BV204: =IF(BV$201<=$F$58, $F$59, MIN($F$60, IFERROR($F$59+4*(DATE2NUM(BV$201)-DATE2NUM($F$58))*($F$60-$F$59)/$F$61,$F$60))) -> 0.9 | BW204: =IF(BW$201<=$F$58, $F$59, MIN($F$60, IFERROR($F$59+4*(DATE2NUM(BW$201)-DATE2NUM($F$58))*($F$60-$F$59)/$F$61,$F$60))) -> 0.9 | BX204: =IF(BX$201<=$F$58, $F$59, MIN($F$60, IFERROR($F$59+4*(DATE2NUM(BX$201)-DATE2NUM($F$58))*($F$60-$F$59)/$F$61,$F$60))) -> 0.9 | BY204: =IF(BY$201<=$F$58, $F$59, MIN($F$60, IFERROR($F$59+4*(DATE2NUM(BY$201)-DATE2NUM($F$58))*($F$60-$F$59)/$F$61,$F$60))) -> 0.9 | BZ204: =IF(BZ$201<=$F$58, $F$59, MIN($F$60, IFERROR($F$59+4*(DATE2NUM(BZ$201)-DATE2NUM($F$58))*($F$60-$F$59)/$F$61,$F$60))) -> 0.9 | CA204: =IF(CA$201<=$F$58, $F$59, MIN($F$60, IFERROR($F$59+4*(DATE2NUM(CA$201)-DATE2NUM($F$58))*($F$60-$F$59)/$F$61,$F$60))) -> 0.9 | CB204: =IF(CB$201<=$F$58, $F$59, MIN($F$60, IFERROR($F$59+4*(DATE2NUM(CB$201)-DATE2NUM($F$58))*($F$60-$F$59)/$F$61,$F$60))) -> 0.9 | CC204: =IF(CC$201<=$F$58, $F$59, MIN($F$60, IFERROR($F$59+4*(DATE2NUM(CC$201)-DATE2NUM($F$58))*($F$60-$F$59)/$F$61,$F$60))) -> 0.9 | CD204: =IF(CD$201<=$F$58, $F$59, MIN($F$60, IFERROR($F$59+4*(DATE2NUM(CD$201)-DATE2NUM($F$58))*($F$60-$F$59)/$F$61,$F$60))) -> 0.9 | CE204: =IF(CE$201<=$F$58, $F$59, MIN($F$60, IFERROR($F$59+4*(DATE2NUM(CE$201)-DATE2NUM($F$58))*($F$60-$F$59)/$F$61,$F$60))) -> 0.9 | CF204: =IF(CF$201<=$F$58, $F$59, MIN($F$60, IFERROR($F$59+4*(DATE2NUM(CF$201)-DATE2NUM($F$58))*($F$60-$F$59)/$F$61,$F$60))) -> 0.9 | CG204: =IF(CG$201<=$F$58, $F$59, MIN($F$60, IFERROR($F$59+4*(DATE2NUM(CG$201)-DATE2NUM($F$58))*($F$60-$F$59)/$F$61,$F$60))) -> 0.9 | CH204: =IF(CH$201<=$F$58, $F$59, MIN($F$60, IFERROR($F$59+4*(DATE2NUM(CH$201)-DATE2NUM($F$58))*($F$60-$F$59)/$F$61,$F$60))) -> 0.9 | CI204: =IF(CI$201<=$F$58, $F$59, MIN($F$60, IFERROR($F$59+4*(DATE2NUM(CI$201)-DATE2NUM($F$58))*($F$60-$F$59)/$F$61,$F$60))) -> 0.9 | CJ204: =IF(CJ$201<=$F$58, $F$59, MIN($F$60, IFERROR($F$59+4*(DATE2NUM(CJ$201)-DATE2NUM($F$58))*($F$60-$F$59)/$F$61,$F$60))) -> 0.9 | CK204: =IF(CK$201<=$F$58, $F$59, MIN($F$60, IFERROR($F$59+4*(DATE2NUM(CK$201)-DATE2NUM($F$58))*($F$60-$F$59)/$F$61,$F$60))) -> 0.9 | CL204: =IF(CL$201<=$F$58, $F$59, MIN($F$60, IFERROR($F$59+4*(DATE2NUM(CL$201)-DATE2NUM($F$58))*($F$60-$F$59)/$F$61,$F$60))) -> 0.9 | CM204: =IF(CM$201<=$F$58, $F$59, MIN($F$60, IFERROR($F$59+4*(DATE2NUM(CM$201)-DATE2NUM($F$58))*($F$60-$F$59)/$F$61,$F$60))) -> 0.9 | CN204: =IF(CN$201<=$F$58, $F$59, MIN($F$60, IFERROR($F$59+4*(DATE2NUM(CN$201)-DATE2NUM($F$58))*($F$60-$F$59)/$F$61,$F$60))) -> 0.9 | CO204: =IF(CO$201<=$F$58, $F$59, MIN($F$60, IFERROR($F$59+4*(DATE2NUM(CO$201)-DATE2NUM($F$58))*($F$60-$F$59)/$F$61,$F$60))) -> 0.9 | CP204: =IF(CP$201<=$F$58, $F$59, MIN($F$60, IFERROR($F$59+4*(DATE2NUM(CP$201)-DATE2NUM($F$58))*($F$60-$F$59)/$F$61,$F$60))) -> 0.9 | CQ204: =IF(CQ$201<=$F$58, $F$59, MIN($F$60, IFERROR($F$59+4*(DATE2NUM(CQ$201)-DATE2NUM($F$58))*($F$60-$F$59)/$F$61,$F$60))) -> 0.9 | CR204: =IF(CR$201<=$F$58, $F$59, MIN($F$60, IFERROR($F$59+4*(DATE2NUM(CR$201)-DATE2NUM($F$58))*($F$60-$F$59)/$F$61,$F$60))) -> 0.9 | CS204: =IF(CS$201<=$F$58, $F$59, MIN($F$60, IFERROR($F$59+4*(DATE2NUM(CS$201)-DATE2NUM($F$58))*($F$60-$F$59)/$F$61,$F$60))) -> 0.9 | CT204: =IF(CT$201<=$F$58, $F$59, MIN($F$60, IFERROR($F$59+4*(DATE2NUM(CT$201)-DATE2NUM($F$58))*($F$60-$F$59)/$F$61,$F$60))) -> 0.9 | CU204: =IF(CU$201<=$F$58, $F$59, MIN($F$60, IFERROR($F$59+4*(DATE2NUM(CU$201)-DATE2NUM($F$58))*($F$60-$F$59)/$F$61,$F$60))) -> 0.9 | CV204: =IF(CV$201<=$F$58, $F$59, MIN($F$60, IFERROR($F$59+4*(DATE2NUM(CV$201)-DATE2NUM($F$58))*($F$60-$F$59)/$F$61,$F$60))) -> 0.9 | CW204: =IF(CW$201<=$F$58, $F$59, MIN($F$60, IFERROR($F$59+4*(DATE2NUM(CW$201)-DATE2NUM($F$58))*($F$60-$F$59)/$F$61,$F$60))) -> 0.9 | CX204: =IF(CX$201<=$F$58, $F$59, MIN($F$60, IFERROR($F$59+4*(DATE2NUM(CX$201)-DATE2NUM($F$58))*($F$60-$F$59)/$F$61,$F$60))) -> 0.9 | CY204: =IF(CY$201<=$F$58, $F$59, MIN($F$60, IFERROR($F$59+4*(DATE2NUM(CY$201)-DATE2NUM($F$58))*($F$60-$F$59)/$F$61,$F$60))) -> 0.9 | CZ204: =IF(CZ$201<=$F$58, $F$59, MIN($F$60, IFERROR($F$59+4*(DATE2NUM(CZ$201)-DATE2NUM($F$58))*($F$60-$F$59)/$F$61,$F$60))) -> 0.9 | DA204: =IF(DA$201<=$F$58, $F$59, MIN($F$60, IFERROR($F$59+4*(DATE2NUM(DA$201)-DATE2NUM($F$58))*($F$60-$F$59)/$F$61,$F$60))) -> 0.9 | DB204: =IF(DB$201<=$F$58, $F$59, MIN($F$60, IFERROR($F$59+4*(DATE2NUM(DB$201)-DATE2NUM($F$58))*($F$60-$F$59)/$F$61,$F$60))) -> 0.9 | DC204: =IF(DC$201<=$F$58, $F$59, MIN($F$60, IFERROR($F$59+4*(DATE2NUM(DC$201)-DATE2NUM($F$58))*($F$60-$F$59)/$F$61,$F$60))) -> 0.9 | DD204: =IF(DD$201<=$F$58, $F$59, MIN($F$60, IFERROR($F$59+4*(DATE2NUM(DD$201)-DATE2NUM($F$58))*($F$60-$F$59)/$F$61,$F$60))) -> 0.9 | DE204: =IF(DE$201<=$F$58, $F$59, MIN($F$60, IFERROR($F$59+4*(DATE2NUM(DE$201)-DATE2NUM($F$58))*($F$60-$F$59)/$F$61,$F$60))) -> 0.9 | DF204: =IF(DF$201<=$F$58, $F$59, MIN($F$60, IFERROR($F$59+4*(DATE2NUM(DF$201)-DATE2NUM($F$58))*($F$60-$F$59)/$F$61,$F$60))) -> 0.9 | DG204: =IF(DG$201<=$F$58, $F$59, MIN($F$60, IFERROR($F$59+4*(DATE2NUM(DG$201)-DATE2NUM($F$58))*($F$60-$F$59)/$F$61,$F$60))) -> 0.9 | DH204: =IF(DH$201<=$F$58, $F$59, MIN($F$60, IFERROR($F$59+4*(DATE2NUM(DH$201)-DATE2NUM($F$58))*($F$60-$F$59)/$F$61,$F$60))) -> 0.9 | DI204: =IF(DI$201<=$F$58, $F$59, MIN($F$60, IFERROR($F$59+4*(DATE2NUM(DI$201)-DATE2NUM($F$58))*($F$60-$F$59)/$F$61,$F$60))) -> 0.9 | DJ204: =IF(DJ$201<=$F$58, $F$59, MIN($F$60, IFERROR($F$59+4*(DATE2NUM(DJ$201)-DATE2NUM($F$58))*($F$60-$F$59)/$F$61,$F$60))) -> 0.9 | DK204: =IF(DK$201<=$F$58, $F$59, MIN($F$60, IFERROR($F$59+4*(DATE2NUM(DK$201)-DATE2NUM($F$58))*($F$60-$F$59)/$F$61,$F$60))) -> 0.9 | DL204: =IF(DL$201<=$F$58, $F$59, MIN($F$60, IFERROR($F$59+4*(DATE2NUM(DL$201)-DATE2NUM($F$58))*($F$60-$F$59)/$F$61,$F$60))) -> 0.9 | DM204: =IF(DM$201<=$F$58, $F$59, MIN($F$60, IFERROR($F$59+4*(DATE2NUM(DM$201)-DATE2NUM($F$58))*($F$60-$F$59)/$F$61,$F$60))) -> 0.9 | DN204: =IF(DN$201<=$F$58, $F$59, MIN($F$60, IFERROR($F$59+4*(DATE2NUM(DN$201)-DATE2NUM($F$58))*($F$60-$F$59)/$F$61,$F$60))) -> 0.9 | DO204: =IF(DO$201<=$F$58, $F$59, MIN($F$60, IFERROR($F$59+4*(DATE2NUM(DO$201)-DATE2NUM($F$58))*($F$60-$F$59)/$F$61,$F$60))) -> 0.9 | DP204: =IF(DP$201<=$F$58, $F$59, MIN($F$60, IFERROR($F$59+4*(DATE2NUM(DP$201)-DATE2NUM($F$58))*($F$60-$F$59)/$F$61,$F$60))) -> 0.9 | DQ204: =IF(DQ$201<=$F$58, $F$59, MIN($F$60, IFERROR($F$59+4*(DATE2NUM(DQ$201)-DATE2NUM($F$58))*($F$60-$F$59)/$F$61,$F$60))) -> 0.9 | DR204: =IF(DR$201<=$F$58, $F$59, MIN($F$60, IFERROR($F$59+4*(DATE2NUM(DR$201)-DATE2NUM($F$58))*($F$60-$F$59)/$F$61,$F$60))) -> 0.9 | DS204: =IF(DS$201<=$F$58, $F$59, MIN($F$60, IFERROR($F$59+4*(DATE2NUM(DS$201)-DATE2NUM($F$58))*($F$60-$F$59)/$F$61,$F$60))) -> 0.9 | DT204: =IF(DT$201<=$F$58, $F$59, MIN($F$60, IFERROR($F$59+4*(DATE2NUM(DT$201)-DATE2NUM($F$58))*($F$60-$F$59)/$F$61,$F$60))) -> 0.9 | DU204: =IF(DU$201<=$F$58, $F$59, MIN($F$60, IFERROR($F$59+4*(DATE2NUM(DU$201)-DATE2NUM($F$58))*($F$60-$F$59)/$F$61,$F$60))) -> 0.9 | DV204: =IF(DV$201<=$F$58, $F$59, MIN($F$60, IFERROR($F$59+4*(DATE2NUM(DV$201)-DATE2NUM($F$58))*($F$60-$F$59)/$F$61,$F$60))) -> 0.9
B205: % Treatable | G205: =$F$62 -> 0.35 | H205: 0.35 | I205: 0.35 | J205: 0.35 | K205: 0.35 | L205: 0.35 | M205: 0.35 | N205: 0.35 | O205: 0.35 | P205: 0.35 | Q205: 0.35 | R205: 0.35 | S205: 0.35 | T205: 0.35 | U205: 0.35 | V205: 0.35 | W205: 0.35 | X205: 0.35 | Y205: 0.35 | Z205: 0.35 | AA205: 0.35 | AB205: 0.35 | AC205: 0.35 | AD205: 0.35 | AE205: 0.35 | AF205: 0.35 | AG205: 0.35 | AH205: 0.35 | AI205: 0.35 | AJ205: 0.35 | AK205: 0.35 | AL205: 0.35 | AM205: =$F$62 -> 0.35 | AN205: 0.35 | AO205: 0.35 | AP205: 0.35 | AQ205: 0.35 | AR205: 0.35 | AS205: 0.35 | AT205: 0.35 | AU205: 0.35 | AV205: 0.35 | AW205: 0.35 | AX205: 0.35 | AY205: 0.35 | AZ205: 0.35 | BA205: 0.35 | BB205: 0.35 | BC205: 0.35 | BD205: 0.35 | BE205: 0.35 | BF205: 0.35 | BG205: 0.35 | BH205: 0.35 | BI205: 0.35 | BJ205: 0.35 | BK205: 0.35 | BL205: 0.35 | BM205: 0.35 | BN205: 0.35 | BO205: 0.35 | BP205: 0.35 | BQ205: 0.35 | BR205: 0.35 | BS205: =$F$62 -> 0.35 | BT205: 0.35 | BU205: 0.35 | BV205: 0.35 | BW205: 0.35 | BX205: 0.35 | BY205: 0.35 | BZ205: 0.35 | CA205: 0.35 | CB205: 0.35 | CC205: 0.35 | CD205: 0.35 | CE205: 0.35 | CF205: 0.35 | CG205: 0.35 | CH205: 0.35 | CI205: 0.35 | CJ205: 0.35 | CK205: 0.35 | CL205: 0.35 | CM205: 0.35 | CN205: 0.35 | CO205: 0.35 | CP205: 0.35 | CQ205: 0.35 | CR205: 0.35 | CS205: 0.35 | CT205: 0.35 | CU205: 0.35 | CV205: 0.35 | CW205: 0.35 | CX205: 0.35 | CY205: =$F$62 -> 0.35 | CZ205: 0.35 | DA205: 0.35 | DB205: 0.35 | DC205: 0.35 | DD205: 0.35 | DE205: 0.35 | DF205: 0.35 | DG205: 0.35 | DH205: 0.35 | DI205: 0.35 | DJ205: 0.35 | DK205: 0.35 | DL205: 0.35 | DM205: 0.35 | DN205: 0.35 | DO205: 0.35 | DP205: 0.35 | DQ205: 0.35 | DR205: 0.35 | DS205: 0.35 | DT205: 0.35 | DU205: 0.35 | DV205: 0.35
B206: Market Share | G206: =IF(G$201<$F$71, 0, IF(G$201>$F$72, F206*(1-$F$73)^(1/4), $F$67*INDEX($G$185:$DV$187,MATCH($F$64,$B$185:$B$187,0),MATCH(4*(DATE2NUM(G$201)-DATE2NUM($F$71)),$G$184:$DV$184, 0)))) -> 0 | H206: =IF(H$201<$F$71, 0, IF(H$201>$F$72, G206*(1-$F$73)^(1/4), $F$67*INDEX($G$185:$DV$187,MATCH($F$64,$B$185:$B$187,0),MATCH(4*(DATE2NUM(H$201)-DATE2NUM($F$71)),$G$184:$DV$184, 0)))) -> 0 | I206: =IF(I$201<$F$71, 0, IF(I$201>$F$72, H206*(1-$F$73)^(1/4), $F$67*INDEX($G$185:$DV$187,MATCH($F$64,$B$185:$B$187,0),MATCH(4*(DATE2NUM(I$201)-DATE2NUM($F$71)),$G$184:$DV$184, 0)))) -> 0 | J206: =IF(J$201<$F$71, 0, IF(J$201>$F$72, I206*(1-$F$73)^(1/4), $F$67*INDEX($G$185:$DV$187,MATCH($F$64,$B$185:$B$187,0),MATCH(4*(DATE2NUM(J$201)-DATE2NUM($F$71)),$G$184:$DV$184, 0)))) -> 0 | K206: =IF(K$201<$F$71, 0, IF(K$201>$F$72, J206*(1-$F$73)^(1/4), $F$67*INDEX($G$185:$DV$187,MATCH($F$64,$B$185:$B$187,0),MATCH(4*(DATE2NUM(K$201)-DATE2NUM($F$71)),$G$184:$DV$184, 0)))) -> 0 | L206: =IF(L$201<$F$71, 0, IF(L$201>$F$72, K206*(1-$F$73)^(1/4), $F$67*INDEX($G$185:$DV$187,MATCH($F$64,$B$185:$B$187,0),MATCH(4*(DATE2NUM(L$201)-DATE2NUM($F$71)),$G$184:$DV$184, 0)))) -> 0 | M206: =IF(M$201<$F$71, 0, IF(M$201>$F$72, L206*(1-$F$73)^(1/4), $F$67*INDEX($G$185:$DV$187,MATCH($F$64,$B$185:$B$187,0),MATCH(4*(DATE2NUM(M$201)-DATE2NUM($F$71)),$G$184:$DV$184, 0)))) -> 0 | N206: =IF(N$201<$F$71, 0, IF(N$201>$F$72, M206*(1-$F$73)^(1/4), $F$67*INDEX($G$185:$DV$187,MATCH($F$64,$B$185:$B$187,0),MATCH(4*(DATE2NUM(N$201)-DATE2NUM($F$71)),$G$184:$DV$184, 0)))) -> 0 | O206: =IF(O$201<$F$71, 0, IF(O$201>$F$72, N206*(1-$F$73)^(1/4), $F$67*INDEX($G$185:$DV$187,MATCH($F$64,$B$185:$B$187,0),MATCH(4*(DATE2NUM(O$201)-DATE2NUM($F$71)),$G$184:$DV$184, 0)))) -> 0 | P206: =IF(P$201<$F$71, 0, IF(P$201>$F$72, O206*(1-$F$73)^(1/4), $F$67*INDEX($G$185:$DV$187,MATCH($F$64,$B$185:$B$187,0),MATCH(4*(DATE2NUM(P$201)-DATE2NUM($F$71)),$G$184:$DV$184, 0)))) -> 0 | Q206: =IF(Q$201<$F$71, 0, IF(Q$201>$F$72, P206*(1-$F$73)^(1/4), $F$67*INDEX($G$185:$DV$187,MATCH($F$64,$B$185:$B$187,0),MATCH(4*(DATE2NUM(Q$201)-DATE2NUM($F$71)),$G$184:$DV$184, 0)))) -> 0 | R206: =IF(R$201<$F$71, 0, IF(R$201>$F$72, Q206*(1-$F$73)^(1/4), $F$67*INDEX($G$185:$DV$187,MATCH($F$64,$B$185:$B$187,0),MATCH(4*(DATE2NUM(R$201)-DATE2NUM($F$71)),$G$184:$DV$184, 0)))) -> 0 | S206: =IF(S$201<$F$71, 0, IF(S$201>$F$72, R206*(1-$F$73)^(1/4), $F$67*INDEX($G$185:$DV$187,MATCH($F$64,$B$185:$B$187,0),MATCH(4*(DATE2NUM(S$201)-DATE2NUM($F$71)),$G$184:$DV$184, 0)))) -> 0 | T206: =IF(T$201<$F$71, 0, IF(T$201>$F$72, S206*(1-$F$73)^(1/4), $F$67*INDEX($G$185:$DV$187,MATCH($F$64,$B$185:$B$187,0),MATCH(4*(DATE2NUM(T$201)-DATE2NUM($F$71)),$G$184:$DV$184, 0)))) -> 0 | U206: =IF(U$201<$F$71, 0, IF(U$201>$F$72, T206*(1-$F$73)^(1/4), $F$67*INDEX($G$185:$DV$187,MATCH($F$64,$B$185:$B$187,0),MATCH(4*(DATE2NUM(U$201)-DATE2NUM($F$71)),$G$184:$DV$184, 0)))) -> 0 | V206: =IF(V$201<$F$71, 0, IF(V$201>$F$72, U206*(1-$F$73)^(1/4), $F$67*INDEX($G$185:$DV$187,MATCH($F$64,$B$185:$B$187,0),MATCH(4*(DATE2NUM(V$201)-DATE2NUM($F$71)),$G$184:$DV$184, 0)))) -> 0 | W206: =IF(W$201<$F$71, 0, IF(W$201>$F$72, V206*(1-$F$73)^(1/4), $F$67*INDEX($G$185:$DV$187,MATCH($F$64,$B$185:$B$187,0),MATCH(4*(DATE2NUM(W$201)-DATE2NUM($F$71)),$G$184:$DV$184, 0)))) -> 0 | X206: =IF(X$201<$F$71, 0, IF(X$201>$F$72, W206*(1-$F$73)^(1/4), $F$67*INDEX($G$185:$DV$187,MATCH($F$64,$B$185:$B$187,0),MATCH(4*(DATE2NUM(X$201)-DATE2NUM($F$71)),$G$184:$DV$184, 0)))) -> 0 | Y206: =IF(Y$201<$F$71, 0, IF(Y$201>$F$72, X206*(1-$F$73)^(1/4), $F$67*INDEX($G$185:$DV$187,MATCH($F$64,$B$185:$B$187,0),MATCH(4*(DATE2NUM(Y$201)-DATE2NUM($F$71)),$G$184:$DV$184, 0)))) -> 0 | Z206: =IF(Z$201<$F$71, 0, IF(Z$201>$F$72, Y206*(1-$F$73)^(1/4), $F$67*INDEX($G$185:$DV$187,MATCH($F$64,$B$185:$B$187,0),MATCH(4*(DATE2NUM(Z$201)-DATE2NUM($F$71)),$G$184:$DV$184, 0)))) -> 0 | AA206: =IF(AA$201<$F$71, 0, IF(AA$201>$F$72, Z206*(1-$F$73)^(1/4), $F$67*INDEX($G$185:$DV$187,MATCH($F$64,$B$185:$B$187,0),MATCH(4*(DATE2NUM(AA$201)-DATE2NUM($F$71)),$G$184:$DV$184, 0)))) -> 0 | AB206: =IF(AB$201<$F$71, 0, IF(AB$201>$F$72, AA206*(1-$F$73)^(1/4), $F$67*INDEX($G$185:$DV$187,MATCH($F$64,$B$185:$B$187,0),MATCH(4*(DATE2NUM(AB$201)-DATE2NUM($F$71)),$G$184:$DV$184, 0)))) -> 0 | AC206: =IF(AC$201<$F$71, 0, IF(AC$201>$F$72, AB206*(1-$F$73)^(1/4), $F$67*INDEX($G$185:$DV$187,MATCH($F$64,$B$185:$B$187,0),MATCH(4*(DATE2NUM(AC$201)-DATE2NUM($F$71)),$G$184:$DV$184, 0)))) -> 0 | AD206: =IF(AD$201<$F$71, 0, IF(AD$201>$F$72, AC206*(1-$F$73)^(1/4), $F$67*INDEX($G$185:$DV$187,MATCH($F$64,$B$185:$B$187,0),MATCH(4*(DATE2NUM(AD$201)-DATE2NUM($F$71)),$G$184:$DV$184, 0)))) -> 0 | AE206: =IF(AE$201<$F$71, 0, IF(AE$201>$F$72, AD206*(1-$F$73)^(1/4), $F$67*INDEX($G$185:$DV$187,MATCH($F$64,$B$185:$B$187,0),MATCH(4*(DATE2NUM(AE$201)-DATE2NUM($F$71)),$G$184:$DV$184, 0)))) -> 0 | AF206: =IF(AF$201<$F$71, 0, IF(AF$201>$F$72, AE206*(1-$F$73)^(1/4), $F$67*INDEX($G$185:$DV$187,MATCH($F$64,$B$185:$B$187,0),MATCH(4*(DATE2NUM(AF$201)-DATE2NUM($F$71)),$G$184:$DV$184, 0)))) -> 0 | AG206: =IF(AG$201<$F$71, 0, IF(AG$201>$F$72, AF206*(1-$F$73)^(1/4), $F$67*INDEX($G$185:$DV$187,MATCH($F$64,$B$185:$B$187,0),MATCH(4*(DATE2NUM(AG$201)-DATE2NUM($F$71)),$G$184:$DV$184, 0)))) -> 0 | AH206: =IF(AH$201<$F$71, 0, IF(AH$201>$F$72, AG206*(1-$F$73)^(1/4), $F$67*INDEX($G$185:$DV$187,MATCH($F$64,$B$185:$B$187,0),MATCH(4*(DATE2NUM(AH$201)-DATE2NUM($F$71)),$G$184:$DV$184, 0)))) -> 0 | AI206: =IF(AI$201<$F$71, 0, IF(AI$201>$F$72, AH206*(1-$F$73)^(1/4), $F$67*INDEX($G$185:$DV$187,MATCH($F$64,$B$185:$B$187,0),MATCH(4*(DATE2NUM(AI$201)-DATE2NUM($F$71)),$G$184:$DV$184, 0)))) -> 0 | AJ206: =IF(AJ$201<$F$71, 0, IF(AJ$201>$F$72, AI206*(1-$F$73)^(1/4), $F$67*INDEX($G$185:$DV$187,MATCH($F$64,$B$185:$B$187,0),MATCH(4*(DATE2NUM(AJ$201)-DATE2NUM($F$71)),$G$184:$DV$184, 0)))) -> 0 | AK206: =IF(AK$201<$F$71, 0, IF(AK$201>$F$72, AJ206*(1-$F$73)^(1/4), $F$67*INDEX($G$185:$DV$187,MATCH($F$64,$B$185:$B$187,0),MATCH(4*(DATE2NUM(AK$201)-DATE2NUM($F$71)),$G$184:$DV$184, 0)))) -> 0 | AL206: =IF(AL$201<$F$71, 0, IF(AL$201>$F$72, AK206*(1-$F$73)^(1/4), $F$67*INDEX($G$185:$DV$187,MATCH($F$64,$B$185:$B$187,0),MATCH(4*(DATE2NUM(AL$201)-DATE2NUM($F$71)),$G$184:$DV$184, 0)))) -> 0 | AM206: =IF(AM$201<$F$71, 0, IF(AM$201>$F$72, AL206*(1-$F$73)^(1/4), $F$67*INDEX($G$185:$DV$187,MATCH($F$64,$B$185:$B$187,0),MATCH(4*(DATE2NUM(AM$201)-DATE2NUM($F$71)),$G$184:$DV$184, 0)))) -> 0 | AN206: =IF(AN$201<$F$71, 0, IF(AN$201>$F$72, AM206*(1-$F$73)^(1/4), $F$67*INDEX($G$185:$DV$187,MATCH($F$64,$B$185:$B$187,0),MATCH(4*(DATE2NUM(AN$201)-DATE2NUM($F$71)),$G$184:$DV$184, 0)))) -> 0 | AO206: =IF(AO$201<$F$71, 0, IF(AO$201>$F$72, AN206*(1-$F$73)^(1/4), $F$67*INDEX($G$185:$DV$187,MATCH($F$64,$B$185:$B$187,0),MATCH(4*(DATE2NUM(AO$201)-DATE2NUM($F$71)),$G$184:$DV$184, 0)))) -> 0 | AP206: =IF(AP$201<$F$71, 0, IF(AP$201>$F$72, AO206*(1-$F$73)^(1/4), $F$67*INDEX($G$185:$DV$187,MATCH($F$64,$B$185:$B$187,0),MATCH(4*(DATE2NUM(AP$201)-DATE2NUM($F$71)),$G$184:$DV$184, 0)))) -> 0 | AQ206: =IF(AQ$201<$F$71, 0, IF(AQ$201>$F$72, AP206*(1-$F$73)^(1/4), $F$67*INDEX($G$185:$DV$187,MATCH($F$64,$B$185:$B$187,0),MATCH(4*(DATE2NUM(AQ$201)-DATE2NUM($F$71)),$G$184:$DV$184, 0)))) -> 0.02083333333 | AR206: =IF(AR$201<$F$71, 0, IF(AR$201>$F$72, AQ206*(1-$F$73)^(1/4), $F$67*INDEX($G$185:$DV$187,MATCH($F$64,$B$185:$B$187,0),MATCH(4*(DATE2NUM(AR$201)-DATE2NUM($F$71)),$G$184:$DV$184, 0)))) -> 0.04166666667 | AS206: =IF(AS$201<$F$71, 0, IF(AS$201>$F$72, AR206*(1-$F$73)^(1/4), $F$67*INDEX($G$185:$DV$187,MATCH($F$64,$B$185:$B$187,0),MATCH(4*(DATE2NUM(AS$201)-DATE2NUM($F$71)),$G$184:$DV$184, 0)))) -> 0.0625 | AT206: =IF(AT$201<$F$71, 0, IF(AT$201>$F$72, AS206*(1-$F$73)^(1/4), $F$67*INDEX($G$185:$DV$187,MATCH($F$64,$B$185:$B$187,0),MATCH(4*(DATE2NUM(AT$201)-DATE2NUM($F$71)),$G$184:$DV$184, 0)))) -> 0.08333333333 | AU206: =IF(AU$201<$F$71, 0, IF(AU$201>$F$72, AT206*(1-$F$73)^(1/4), $F$67*INDEX($G$185:$DV$187,MATCH($F$64,$B$185:$B$187,0),MATCH(4*(DATE2NUM(AU$201)-DATE2NUM($F$71)),$G$184:$DV$184, 0)))) -> 0.1041666667 | AV206: =IF(AV$201<$F$71, 0, IF(AV$201>$F$72, AU206*(1-$F$73)^(1/4), $F$67*INDEX($G$185:$DV$187,MATCH($F$64,$B$185:$B$187,0),MATCH(4*(DATE2NUM(AV$201)-DATE2NUM($F$71)),$G$184:$DV$184, 0)))) -> 0.125 | AW206: =IF(AW$201<$F$71, 0, IF(AW$201>$F$72, AV206*(1-$F$73)^(1/4), $F$67*INDEX($G$185:$DV$187,MATCH($F$64,$B$185:$B$187,0),MATCH(4*(DATE2NUM(AW$201)-DATE2NUM($F$71)),$G$184:$DV$184, 0)))) -> 0.1458333333 | AX206: =IF(AX$201<$F$71, 0, IF(AX$201>$F$72, AW206*(1-$F$73)^(1/4), $F$67*INDEX($G$185:$DV$187,MATCH($F$64,$B$185:$B$187,0),MATCH(4*(DATE2NUM(AX$201)-DATE2NUM($F$71)),$G$184:$DV$184, 0)))) -> 0.1666666667 | AY206: =IF(AY$201<$F$71, 0, IF(AY$201>$F$72, AX206*(1-$F$73)^(1/4), $F$67*INDEX($G$185:$DV$187,MATCH($F$64,$B$185:$B$187,0),MATCH(4*(DATE2NUM(AY$201)-DATE2NUM($F$71)),$G$184:$DV$184, 0)))) -> 0.1875 | AZ206: =IF(AZ$201<$F$71, 0, IF(AZ$201>$F$72, AY206*(1-$F$73)^(1/4), $F$67*INDEX($G$185:$DV$187,MATCH($F$64,$B$185:$B$187,0),MATCH(4*(DATE2NUM(AZ$201)-DATE2NUM($F$71)),$G$184:$DV$184, 0)))) -> 0.2083333333 | BA206: =IF(BA$201<$F$71, 0, IF(BA$201>$F$72, AZ206*(1-$F$73)^(1/4), $F$67*INDEX($G$185:$DV$187,MATCH($F$64,$B$185:$B$187,0),MATCH(4*(DATE2NUM(BA$201)-DATE2NUM($F$71)),$G$184:$DV$184, 0)))) -> 0.2291666667 | BB206: =IF(BB$201<$F$71, 0, IF(BB$201>$F$72, BA206*(1-$F$73)^(1/4), $F$67*INDEX($G$185:$DV$187,MATCH($F$64,$B$185:$B$187,0),MATCH(4*(DATE2NUM(BB$201)-DATE2NUM($F$71)),$G$184:$DV$184, 0)))) -> 0.25 | BC206: =IF(BC$201<$F$71, 0, IF(BC$201>$F$72, BB206*(1-$F$73)^(1/4), $F$67*INDEX($G$185:$DV$187,MATCH($F$64,$B$185:$B$187,0),MATCH(4*(DATE2NUM(BC$201)-DATE2NUM($F$71)),$G$184:$DV$184, 0)))) -> 0.2708333333 | BD206: =IF(BD$201<$F$71, 0, IF(BD$201>$F$72, BC206*(1-$F$73)^(1/4), $F$67*INDEX($G$185:$DV$187,MATCH($F$64,$B$185:$B$187,0),MATCH(4*(DATE2NUM(BD$201)-DATE2NUM($F$71)),$G$184:$DV$184, 0)))) -> 0.2916666667 | BE206: =IF(BE$201<$F$71, 0, IF(BE$201>$F$72, BD206*(1-$F$73)^(1/4), $F$67*INDEX($G$185:$DV$187,MATCH($F$64,$B$185:$B$187,0),MATCH(4*(DATE2NUM(BE$201)-DATE2NUM($F$71)),$G$184:$DV$184, 0)))) -> 0.3125 | BF206: =IF(BF$201<$F$71, 0, IF(BF$201>$F$72, BE206*(1-$F$73)^(1/4), $F$67*INDEX($G$185:$DV$187,MATCH($F$64,$B$185:$B$187,0),MATCH(4*(DATE2NUM(BF$201)-DATE2NUM($F$71)),$G$184:$DV$184, 0)))) -> 0.3333333333 | BG206: =IF(BG$201<$F$71, 0, IF(BG$201>$F$72, BF206*(1-$F$73)^(1/4), $F$67*INDEX($G$185:$DV$187,MATCH($F$64,$B$185:$B$187,0),MATCH(4*(DATE2NUM(BG$201)-DATE2NUM($F$71)),$G$184:$DV$184, 0)))) -> 0.3541666667 | BH206: =IF(BH$201<$F$71, 0, IF(BH$201>$F$72, BG206*(1-$F$73)^(1/4), $F$67*INDEX($G$185:$DV$187,MATCH($F$64,$B$185:$B$187,0),MATCH(4*(DATE2NUM(BH$201)-DATE2NUM($F$71)),$G$184:$DV$184, 0)))) -> 0.375 | BI206: =IF(BI$201<$F$71, 0, IF(BI$201>$F$72, BH206*(1-$F$73)^(1/4), $F$67*INDEX($G$185:$DV$187,MATCH($F$64,$B$185:$B$187,0),MATCH(4*(DATE2NUM(BI$201)-DATE2NUM($F$71)),$G$184:$DV$184, 0)))) -> 0.3958333333 | BJ206: =IF(BJ$201<$F$71, 0, IF(BJ$201>$F$72, BI206*(1-$F$73)^(1/4), $F$67*INDEX($G$185:$DV$187,MATCH($F$64,$B$185:$B$187,0),MATCH(4*(DATE2NUM(BJ$201)-DATE2NUM($F$71)),$G$184:$DV$184, 0)))) -> 0.4166666667 | BK206: =IF(BK$201<$F$71, 0, IF(BK$201>$F$72, BJ206*(1-$F$73)^(1/4), $F$67*INDEX($G$185:$DV$187,MATCH($F$64,$B$185:$B$187,0),MATCH(4*(DATE2NUM(BK$201)-DATE2NUM($F$71)),$G$184:$DV$184, 0)))) -> 0.4375 | BL206: =IF(BL$201<$F$71, 0, IF(BL$201>$F$72, BK206*(1-$F$73)^(1/4), $F$67*INDEX($G$185:$DV$187,MATCH($F$64,$B$185:$B$187,0),MATCH(4*(DATE2NUM(BL$201)-DATE2NUM($F$71)),$G$184:$DV$184, 0)))) -> 0.4583333333 | BM206: =IF(BM$201<$F$71, 0, IF(BM$201>$F$72, BL206*(1-$F$73)^(1/4), $F$67*INDEX($G$185:$DV$187,MATCH($F$64,$B$185:$B$187,0),MATCH(4*(DATE2NUM(BM$201)-DATE2NUM($F$71)),$G$184:$DV$184, 0)))) -> 0.4791666667 | BN206: =IF(BN$201<$F$71, 0, IF(BN$201>$F$72, BM206*(1-$F$73)^(1/4), $F$67*INDEX($G$185:$DV$187,MATCH($F$64,$B$185:$B$187,0),MATCH(4*(DATE2NUM(BN$201)-DATE2NUM($F$71)),$G$184:$DV$184, 0)))) -> 0.5 | BO206: =IF(BO$201<$F$71, 0, IF(BO$201>$F$72, BN206*(1-$F$73)^(1/4), $F$67*INDEX($G$185:$DV$187,MATCH($F$64,$B$185:$B$187,0),MATCH(4*(DATE2NUM(BO$201)-DATE2NUM($F$71)),$G$184:$DV$184, 0)))) -> 0.5 | BP206: =IF(BP$201<$F$71, 0, IF(BP$201>$F$72, BO206*(1-$F$73)^(1/4), $F$67*INDEX($G$185:$DV$187,MATCH($F$64,$B$185:$B$187,0),MATCH(4*(DATE2NUM(BP$201)-DATE2NUM($F$71)),$G$184:$DV$184, 0)))) -> 0.5 | BQ206: =IF(BQ$201<$F$71, 0, IF(BQ$201>$F$72, BP206*(1-$F$73)^(1/4), $F$67*INDEX($G$185:$DV$187,MATCH($F$64,$B$185:$B$187,0),MATCH(4*(DATE2NUM(BQ$201)-DATE2NUM($F$71)),$G$184:$DV$184, 0)))) -> 0.5 | BR206: =IF(BR$201<$F$71, 0, IF(BR$201>$F$72, BQ206*(1-$F$73)^(1/4), $F$67*INDEX($G$185:$DV$187,MATCH($F$64,$B$185:$B$187,0),MATCH(4*(DATE2NUM(BR$201)-DATE2NUM($F$71)),$G$184:$DV$184, 0)))) -> 0.5 | BS206: =IF(BS$201<$F$71, 0, IF(BS$201>$F$72, BR206*(1-$F$73)^(1/4), $F$67*INDEX($G$185:$DV$187,MATCH($F$64,$B$185:$B$187,0),MATCH(4*(DATE2NUM(BS$201)-DATE2NUM($F$71)),$G$184:$DV$184, 0)))) -> 0.5 | BT206: =IF(BT$201<$F$71, 0, IF(BT$201>$F$72, BS206*(1-$F$73)^(1/4), $F$67*INDEX($G$185:$DV$187,MATCH($F$64,$B$185:$B$187,0),MATCH(4*(DATE2NUM(BT$201)-DATE2NUM($F$71)),$G$184:$DV$184, 0)))) -> 0.5 | BU206: =IF(BU$201<$F$71, 0, IF(BU$201>$F$72, BT206*(1-$F$73)^(1/4), $F$67*INDEX($G$185:$DV$187,MATCH($F$64,$B$185:$B$187,0),MATCH(4*(DATE2NUM(BU$201)-DATE2NUM($F$71)),$G$184:$DV$184, 0)))) -> 0.5 | BV206: =IF(BV$201<$F$71, 0, IF(BV$201>$F$72, BU206*(1-$F$73)^(1/4), $F$67*INDEX($G$185:$DV$187,MATCH($F$64,$B$185:$B$187,0),MATCH(4*(DATE2NUM(BV$201)-DATE2NUM($F$71)),$G$184:$DV$184, 0)))) -> 0.5 | BW206: =IF(BW$201<$F$71, 0, IF(BW$201>$F$72, BV206*(1-$F$73)^(1/4), $F$67*INDEX($G$185:$DV$187,MATCH($F$64,$B$185:$B$187,0),MATCH(4*(DATE2NUM(BW$201)-DATE2NUM($F$71)),$G$184:$DV$184, 0)))) -> 0.5 | BX206: =IF(BX$201<$F$71, 0, IF(BX$201>$F$72, BW206*(1-$F$73)^(1/4), $F$67*INDEX($G$185:$DV$187,MATCH($F$64,$B$185:$B$187,0),MATCH(4*(DATE2NUM(BX$201)-DATE2NUM($F$71)),$G$184:$DV$184, 0)))) -> 0.5 | BY206: =IF(BY$201<$F$71, 0, IF(BY$201>$F$72, BX206*(1-$F$73)^(1/4), $F$67*INDEX($G$185:$DV$187,MATCH($F$64,$B$185:$B$187,0),MATCH(4*(DATE2NUM(BY$201)-DATE2NUM($F$71)),$G$184:$DV$184, 0)))) -> 0.5 | BZ206: =IF(BZ$201<$F$71, 0, IF(BZ$201>$F$72, BY206*(1-$F$73)^(1/4), $F$67*INDEX($G$185:$DV$187,MATCH($F$64,$B$185:$B$187,0),MATCH(4*(DATE2NUM(BZ$201)-DATE2NUM($F$71)),$G$184:$DV$184, 0)))) -> 0.5 | CA206: =IF(CA$201<$F$71, 0, IF(CA$201>$F$72, BZ206*(1-$F$73)^(1/4), $F$67*INDEX($G$185:$DV$187,MATCH($F$64,$B$185:$B$187,0),MATCH(4*(DATE2NUM(CA$201)-DATE2NUM($F$71)),$G$184:$DV$184, 0)))) -> 0.5 | CB206: =IF(CB$201<$F$71, 0, IF(CB$201>$F$72, CA206*(1-$F$73)^(1/4), $F$67*INDEX($G$185:$DV$187,MATCH($F$64,$B$185:$B$187,0),MATCH(4*(DATE2NUM(CB$201)-DATE2NUM($F$71)),$G$184:$DV$184, 0)))) -> 0.5 | CC206: =IF(CC$201<$F$71, 0, IF(CC$201>$F$72, CB206*(1-$F$73)^(1/4), $F$67*INDEX($G$185:$DV$187,MATCH($F$64,$B$185:$B$187,0),MATCH(4*(DATE2NUM(CC$201)-DATE2NUM($F$71)),$G$184:$DV$184, 0)))) -> 0.5 | CD206: =IF(CD$201<$F$71, 0, IF(CD$201>$F$72, CC206*(1-$F$73)^(1/4), $F$67*INDEX($G$185:$DV$187,MATCH($F$64,$B$185:$B$187,0),MATCH(4*(DATE2NUM(CD$201)-DATE2NUM($F$71)),$G$184:$DV$184, 0)))) -> 0.5 | CE206: =IF(CE$201<$F$71, 0, IF(CE$201>$F$72, CD206*(1-$F$73)^(1/4), $F$67*INDEX($G$185:$DV$187,MATCH($F$64,$B$185:$B$187,0),MATCH(4*(DATE2NUM(CE$201)-DATE2NUM($F$71)),$G$184:$DV$184, 0)))) -> 0.5 | CF206: =IF(CF$201<$F$71, 0, IF(CF$201>$F$72, CE206*(1-$F$73)^(1/4), $F$67*INDEX($G$185:$DV$187,MATCH($F$64,$B$185:$B$187,0),MATCH(4*(DATE2NUM(CF$201)-DATE2NUM($F$71)),$G$184:$DV$184, 0)))) -> 0.5 | CG206: =IF(CG$201<$F$71, 0, IF(CG$201>$F$72, CF206*(1-$F$73)^(1/4), $F$67*INDEX($G$185:$DV$187,MATCH($F$64,$B$185:$B$187,0),MATCH(4*(DATE2NUM(CG$201)-DATE2NUM($F$71)),$G$184:$DV$184, 0)))) -> 0.5 | CH206: =IF(CH$201<$F$71, 0, IF(CH$201>$F$72, CG206*(1-$F$73)^(1/4), $F$67*INDEX($G$185:$DV$187,MATCH($F$64,$B$185:$B$187,0),MATCH(4*(DATE2NUM(CH$201)-DATE2NUM($F$71)),$G$184:$DV$184, 0)))) -> 0.5 | CI206: =IF(CI$201<$F$71, 0, IF(CI$201>$F$72, CH206*(1-$F$73)^(1/4), $F$67*INDEX($G$185:$DV$187,MATCH($F$64,$B$185:$B$187,0),MATCH(4*(DATE2NUM(CI$201)-DATE2NUM($F$71)),$G$184:$DV$184, 0)))) -> 0.4204482076 | CJ206: =IF(CJ$201<$F$71, 0, IF(CJ$201>$F$72, CI206*(1-$F$73)^(1/4), $F$67*INDEX($G$185:$DV$187,MATCH($F$64,$B$185:$B$187,0),MATCH(4*(DATE2NUM(CJ$201)-DATE2NUM($F$71)),$G$184:$DV$184, 0)))) -> 0.3535533906 | CK206: =IF(CK$201<$F$71, 0, IF(CK$201>$F$72, CJ206*(1-$F$73)^(1/4), $F$67*INDEX($G$185:$DV$187,MATCH($F$64,$B$185:$B$187,0),MATCH(4*(DATE2NUM(CK$201)-DATE2NUM($F$71)),$G$184:$DV$184, 0)))) -> 0.2973017788 | CL206: =IF(CL$201<$F$71, 0, IF(CL$201>$F$72, CK206*(1-$F$73)^(1/4), $F$67*INDEX($G$185:$DV$187,MATCH($F$64,$B$185:$B$187,0),MATCH(4*(DATE2NUM(CL$201)-DATE2NUM($F$71)),$G$184:$DV$184, 0)))) -> 0.25 | CM206: =IF(CM$201<$F$71, 0, IF(CM$201>$F$72, CL206*(1-$F$73)^(1/4), $F$67*INDEX($G$185:$DV$187,MATCH($F$64,$B$185:$B$187,0),MATCH(4*(DATE2NUM(CM$201)-DATE2NUM($F$71)),$G$184:$DV$184, 0)))) -> 0.2102241038 | CN206: =IF(CN$201<$F$71, 0, IF(CN$201>$F$72, CM206*(1-$F$73)^(1/4), $F$67*INDEX($G$185:$DV$187,MATCH($F$64,$B$185:$B$187,0),MATCH(4*(DATE2NUM(CN$201)-DATE2NUM($F$71)),$G$184:$DV$184, 0)))) -> 0.1767766953 | CO206: =IF(CO$201<$F$71, 0, IF(CO$201>$F$72, CN206*(1-$F$73)^(1/4), $F$67*INDEX($G$185:$DV$187,MATCH($F$64,$B$185:$B$187,0),MATCH(4*(DATE2NUM(CO$201)-DATE2NUM($F$71)),$G$184:$DV$184, 0)))) -> 0.1486508894 | CP206: =IF(CP$201<$F$71, 0, IF(CP$201>$F$72, CO206*(1-$F$73)^(1/4), $F$67*INDEX($G$185:$DV$187,MATCH($F$64,$B$185:$B$187,0),MATCH(4*(DATE2NUM(CP$201)-DATE2NUM($F$71)),$G$184:$DV$184, 0)))) -> 0.125 | CQ206: =IF(CQ$201<$F$71, 0, IF(CQ$201>$F$72, CP206*(1-$F$73)^(1/4), $F$67*INDEX($G$185:$DV$187,MATCH($F$64,$B$185:$B$187,0),MATCH(4*(DATE2NUM(CQ$201)-DATE2NUM($F$71)),$G$184:$DV$184, 0)))) -> 0.1051120519 | CR206: =IF(CR$201<$F$71, 0, IF(CR$201>$F$72, CQ206*(1-$F$73)^(1/4), $F$67*INDEX($G$185:$DV$187,MATCH($F$64,$B$185:$B$187,0),MATCH(4*(DATE2NUM(CR$201)-DATE2NUM($F$71)),$G$184:$DV$184, 0)))) -> 0.08838834765 | CS206: =IF(CS$201<$F$71, 0, IF(CS$201>$F$72, CR206*(1-$F$73)^(1/4), $F$67*INDEX($G$185:$DV$187,MATCH($F$64,$B$185:$B$187,0),MATCH(4*(DATE2NUM(CS$201)-DATE2NUM($F$71)),$G$184:$DV$184, 0)))) -> 0.07432544469 | CT206: =IF(CT$201<$F$71, 0, IF(CT$201>$F$72, CS206*(1-$F$73)^(1/4), $F$67*INDEX($G$185:$DV$187,MATCH($F$64,$B$185:$B$187,0),MATCH(4*(DATE2NUM(CT$201)-DATE2NUM($F$71)),$G$184:$DV$184, 0)))) -> 0.0625 | CU206: =IF(CU$201<$F$71, 0, IF(CU$201>$F$72, CT206*(1-$F$73)^(1/4), $F$67*INDEX($G$185:$DV$187,MATCH($F$64,$B$185:$B$187,0),MATCH(4*(DATE2NUM(CU$201)-DATE2NUM($F$71)),$G$184:$DV$184, 0)))) -> 0.05255602595 | CV206: =IF(CV$201<$F$71, 0, IF(CV$201>$F$72, CU206*(1-$F$73)^(1/4), $F$67*INDEX($G$185:$DV$187,MATCH($F$64,$B$185:$B$187,0),MATCH(4*(DATE2NUM(CV$201)-DATE2NUM($F$71)),$G$184:$DV$184, 0)))) -> 0.04419417382 | CW206: =IF(CW$201<$F$71, 0, IF(CW$201>$F$72, CV206*(1-$F$73)^(1/4), $F$67*INDEX($G$185:$DV$187,MATCH($F$64,$B$185:$B$187,0),MATCH(4*(DATE2NUM(CW$201)-DATE2NUM($F$71)),$G$184:$DV$184, 0)))) -> 0.03716272234 | CX206: =IF(CX$201<$F$71, 0, IF(CX$201>$F$72, CW206*(1-$F$73)^(1/4), $F$67*INDEX($G$185:$DV$187,MATCH($F$64,$B$185:$B$187,0),MATCH(4*(DATE2NUM(CX$201)-DATE2NUM($F$71)),$G$184:$DV$184, 0)))) -> 0.03125 | CY206: =IF(CY$201<$F$71, 0, IF(CY$201>$F$72, CX206*(1-$F$73)^(1/4), $F$67*INDEX($G$185:$DV$187,MATCH($F$64,$B$185:$B$187,0),MATCH(4*(DATE2NUM(CY$201)-DATE2NUM($F$71)),$G$184:$DV$184, 0)))) -> 0.02627801298 | CZ206: =IF(CZ$201<$F$71, 0, IF(CZ$201>$F$72, CY206*(1-$F$73)^(1/4), $F$67*INDEX($G$185:$DV$187,MATCH($F$64,$B$185:$B$187,0),MATCH(4*(DATE2NUM(CZ$201)-DATE2NUM($F$71)),$G$184:$DV$184, 0)))) -> 0.02209708691 | DA206: =IF(DA$201<$F$71, 0, IF(DA$201>$F$72, CZ206*(1-$F$73)^(1/4), $F$67*INDEX($G$185:$DV$187,MATCH($F$64,$B$185:$B$187,0),MATCH(4*(DATE2NUM(DA$201)-DATE2NUM($F$71)),$G$184:$DV$184, 0)))) -> 0.01858136117 | DB206: =IF(DB$201<$F$71, 0, IF(DB$201>$F$72, DA206*(1-$F$73)^(1/4), $F$67*INDEX($G$185:$DV$187,MATCH($F$64,$B$185:$B$187,0),MATCH(4*(DATE2NUM(DB$201)-DATE2NUM($F$71)),$G$184:$DV$184, 0)))) -> 0.015625 | DC206: =IF(DC$201<$F$71, 0, IF(DC$201>$F$72, DB206*(1-$F$73)^(1/4), $F$67*INDEX($G$185:$DV$187,MATCH($F$64,$B$185:$B$187,0),MATCH(4*(DATE2NUM(DC$201)-DATE2NUM($F$71)),$G$184:$DV$184, 0)))) -> 0.01313900649 | DD206: =IF(DD$201<$F$71, 0, IF(DD$201>$F$72, DC206*(1-$F$73)^(1/4), $F$67*INDEX($G$185:$DV$187,MATCH($F$64,$B$185:$B$187,0),MATCH(4*(DATE2NUM(DD$201)-DATE2NUM($F$71)),$G$184:$DV$184, 0)))) -> 0.01104854346 | DE206: =IF(DE$201<$F$71, 0, IF(DE$201>$F$72, DD206*(1-$F$73)^(1/4), $F$67*INDEX($G$185:$DV$187,MATCH($F$64,$B$185:$B$187,0),MATCH(4*(DATE2NUM(DE$201)-DATE2NUM($F$71)),$G$184:$DV$184, 0)))) -> 0.009290680586 | DF206: =IF(DF$201<$F$71, 0, IF(DF$201>$F$72, DE206*(1-$F$73)^(1/4), $F$67*INDEX($G$185:$DV$187,MATCH($F$64,$B$185:$B$187,0),MATCH(4*(DATE2NUM(DF$201)-DATE2NUM($F$71)),$G$184:$DV$184, 0)))) -> 0.0078125 | DG206: =IF(DG$201<$F$71, 0, IF(DG$201>$F$72, DF206*(1-$F$73)^(1/4), $F$67*INDEX($G$185:$DV$187,MATCH($F$64,$B$185:$B$187,0),MATCH(4*(DATE2NUM(DG$201)-DATE2NUM($F$71)),$G$184:$DV$184, 0)))) -> 0.006569503244 | DH206: =IF(DH$201<$F$71, 0, IF(DH$201>$F$72, DG206*(1-$F$73)^(1/4), $F$67*INDEX($G$185:$DV$187,MATCH($F$64,$B$185:$B$187,0),MATCH(4*(DATE2NUM(DH$201)-DATE2NUM($F$71)),$G$184:$DV$184, 0)))) -> 0.005524271728 | DI206: =IF(DI$201<$F$71, 0, IF(DI$201>$F$72, DH206*(1-$F$73)^(1/4), $F$67*INDEX($G$185:$DV$187,MATCH($F$64,$B$185:$B$187,0),MATCH(4*(DATE2NUM(DI$201)-DATE2NUM($F$71)),$G$184:$DV$184, 0)))) -> 0.004645340293 | DJ206: =IF(DJ$201<$F$71, 0, IF(DJ$201>$F$72, DI206*(1-$F$73)^(1/4), $F$67*INDEX($G$185:$DV$187,MATCH($F$64,$B$185:$B$187,0),MATCH(4*(DATE2NUM(DJ$201)-DATE2NUM($F$71)),$G$184:$DV$184, 0)))) -> 0.00390625 | DK206: =IF(DK$201<$F$71, 0, IF(DK$201>$F$72, DJ206*(1-$F$73)^(1/4), $F$67*INDEX($G$185:$DV$187,MATCH($F$64,$B$185:$B$187,0),MATCH(4*(DATE2NUM(DK$201)-DATE2NUM($F$71)),$G$184:$DV$184, 0)))) -> 0.003284751622 | DL206: =IF(DL$201<$F$71, 0, IF(DL$201>$F$72, DK206*(1-$F$73)^(1/4), $F$67*INDEX($G$185:$DV$187,MATCH($F$64,$B$185:$B$187,0),MATCH(4*(DATE2NUM(DL$201)-DATE2NUM($F$71)),$G$184:$DV$184, 0)))) -> 0.002762135864 | DM206: =IF(DM$201<$F$71, 0, IF(DM$201>$F$72, DL206*(1-$F$73)^(1/4), $F$67*INDEX($G$185:$DV$187,MATCH($F$64,$B$185:$B$187,0),MATCH(4*(DATE2NUM(DM$201)-DATE2NUM($F$71)),$G$184:$DV$184, 0)))) -> 0.002322670146 | DN206: =IF(DN$201<$F$71, 0, IF(DN$201>$F$72, DM206*(1-$F$73)^(1/4), $F$67*INDEX($G$185:$DV$187,MATCH($F$64,$B$185:$B$187,0),MATCH(4*(DATE2NUM(DN$201)-DATE2NUM($F$71)),$G$184:$DV$184, 0)))) -> 0.001953125 | DO206: =IF(DO$201<$F$71, 0, IF(DO$201>$F$72, DN206*(1-$F$73)^(1/4), $F$67*INDEX($G$185:$DV$187,MATCH($F$64,$B$185:$B$187,0),MATCH(4*(DATE2NUM(DO$201)-DATE2NUM($F$71)),$G$184:$DV$184, 0)))) -> 0.001642375811 | DP206: =IF(DP$201<$F$71, 0, IF(DP$201>$F$72, DO206*(1-$F$73)^(1/4), $F$67*INDEX($G$185:$DV$187,MATCH($F$64,$B$185:$B$187,0),MATCH(4*(DATE2NUM(DP$201)-DATE2NUM($F$71)),$G$184:$DV$184, 0)))) -> 0.001381067932 | DQ206: =IF(DQ$201<$F$71, 0, IF(DQ$201>$F$72, DP206*(1-$F$73)^(1/4), $F$67*INDEX($G$185:$DV$187,MATCH($F$64,$B$185:$B$187,0),MATCH(4*(DATE2NUM(DQ$201)-DATE2NUM($F$71)),$G$184:$DV$184, 0)))) -> 0.001161335073 | DR206: =IF(DR$201<$F$71, 0, IF(DR$201>$F$72, DQ206*(1-$F$73)^(1/4), $F$67*INDEX($G$185:$DV$187,MATCH($F$64,$B$185:$B$187,0),MATCH(4*(DATE2NUM(DR$201)-DATE2NUM($F$71)),$G$184:$DV$184, 0)))) -> 0.0009765625 | DS206: =IF(DS$201<$F$71, 0, IF(DS$201>$F$72, DR206*(1-$F$73)^(1/4), $F$67*INDEX($G$185:$DV$187,MATCH($F$64,$B$185:$B$187,0),MATCH(4*(DATE2NUM(DS$201)-DATE2NUM($F$71)),$G$184:$DV$184, 0)))) -> 0.0008211879055 | DT206: =IF(DT$201<$F$71, 0, IF(DT$201>$F$72, DS206*(1-$F$73)^(1/4), $F$67*INDEX($G$185:$DV$187,MATCH($F$64,$B$185:$B$187,0),MATCH(4*(DATE2NUM(DT$201)-DATE2NUM($F$71)),$G$184:$DV$184, 0)))) -> 0.000690533966 | DU206: =IF(DU$201<$F$71, 0, IF(DU$201>$F$72, DT206*(1-$F$73)^(1/4), $F$67*INDEX($G$185:$DV$187,MATCH($F$64,$B$185:$B$187,0),MATCH(4*(DATE2NUM(DU$201)-DATE2NUM($F$71)),$G$184:$DV$184, 0)))) -> 0.0005806675366 | DV206: =IF(DV$201<$F$71, 0, IF(DV$201>$F$72, DU206*(1-$F$73)^(1/4), $F$67*INDEX($G$185:$DV$187,MATCH($F$64,$B$185:$B$187,0),MATCH(4*(DATE2NUM(DV$201)-DATE2NUM($F$71)),$G$184:$DV$184, 0)))) -> 0.00048828125
B207: Treated Patients | G207: =G203*G204*G205*G206 -> 0 | H207: =H203*H204*H205*H206 -> 0 | I207: 0 | J207: 0 | K207: 0 | L207: 0 | M207: 0 | N207: 0 | O207: 0 | P207: 0 | Q207: 0 | R207: 0 | S207: 0 | T207: 0 | U207: 0 | V207: 0 | W207: 0 | X207: 0 | Y207: 0 | Z207: 0 | AA207: 0 | AB207: 0 | AC207: 0 | AD207: 0 | AE207: 0 | AF207: 0 | AG207: 0 | AH207: 0 | AI207: 0 | AJ207: 0 | AK207: 0 | AL207: 0 | AM207: 0 | AN207: 0 | AO207: 0 | AP207: 0 | AQ207: 78.99305556 | AR207: 159.5052083 | AS207: 241.5364583 | AT207: 325.0868056 | AU207: 410.15625 | AV207: 492.1875 | AW207: 574.21875 | AX207: 656.25 | AY207: 738.28125 | AZ207: 820.3125 | BA207: 902.34375 | BB207: 984.375 | BC207: 1066.40625 | BD207: 1148.4375 | BE207: 1230.46875 | BF207: 1312.5 | BG207: 1394.53125 | BH207: 1476.5625 | BI207: 1558.59375 | BJ207: 1640.625 | BK207: 1722.65625 | BL207: 1804.6875 | BM207: 1886.71875 | BN207: 1968.75 | BO207: 1968.75 | BP207: 1968.75 | BQ207: 1968.75 | BR207: 1968.75 | BS207: 1968.75 | BT207: =BT203*BT204*BT205*BT206 -> 1968.75 | BU207: 1968.75 | BV207: 1968.75 | BW207: 1968.75 | BX207: 1968.75 | BY207: 1968.75 | BZ207: 1968.75 | CA207: 1968.75 | CB207: 1968.75 | CC207: 1968.75 | CD207: 1968.75 | CE207: 1968.75 | CF207: 1968.75 | CG207: 1968.75 | CH207: 1968.75 | CI207: 1655.514818 | CJ207: 1392.116475 | CK207: 1170.625754 | CL207: 984.375 | CM207: 827.7574088 | CN207: 696.0582377 | CO207: 585.3128769 | CP207: 492.1875 | CQ207: 413.8787044 | CR207: 348.0291189 | CS207: 292.6564385 | CT207: 246.09375 | CU207: 206.9393522 | CV207: 174.0145594 | CW207: 146.3282192 | CX207: 123.046875 | CY207: 103.4696761 | CZ207: 87.00727972 | DA207: 73.16410961 | DB207: 61.5234375 | DC207: 51.73483805 | DD207: 43.50363986 | DE207: 36.58205481 | DF207: 30.76171875 | DG207: 25.86741902 | DH207: 21.75181993 | DI207: 18.2910274 | DJ207: 15.38085937 | DK207: 12.93370951 | DL207: 10.87590996 | DM207: 9.145513702 | DN207: 7.690429687 | DO207: 6.466854756 | DP207: 5.437954982 | DQ207: 4.572756851 | DR207: 3.845214844 | DS207: 3.233427378 | DT207: 2.718977491 | DU207: 2.286378425 | DV207: 1.922607422
B208: Treatment Duration (Months) | G208: =IF(G$201<$F$71, 0, MIN($F$76, IFERROR($F$75+4*(DATE2NUM(G$201)-DATE2NUM($F$71))*($F$76-$F$75)/$F$77,$F$76))) -> 0 | H208: =IF(H$201<$F$71, 0, MIN($F$76, IFERROR($F$75+4*(DATE2NUM(H$201)-DATE2NUM($F$71))*($F$76-$F$75)/$F$77,$F$76))) -> 0 | I208: =IF(I$201<$F$71, 0, MIN($F$76, IFERROR($F$75+4*(DATE2NUM(I$201)-DATE2NUM($F$71))*($F$76-$F$75)/$F$77,$F$76))) -> 0 | J208: =IF(J$201<$F$71, 0, MIN($F$76, IFERROR($F$75+4*(DATE2NUM(J$201)-DATE2NUM($F$71))*($F$76-$F$75)/$F$77,$F$76))) -> 0 | K208: =IF(K$201<$F$71, 0, MIN($F$76, IFERROR($F$75+4*(DATE2NUM(K$201)-DATE2NUM($F$71))*($F$76-$F$75)/$F$77,$F$76))) -> 0 | L208: =IF(L$201<$F$71, 0, MIN($F$76, IFERROR($F$75+4*(DATE2NUM(L$201)-DATE2NUM($F$71))*($F$76-$F$75)/$F$77,$F$76))) -> 0 | M208: =IF(M$201<$F$71, 0, MIN($F$76, IFERROR($F$75+4*(DATE2NUM(M$201)-DATE2NUM($F$71))*($F$76-$F$75)/$F$77,$F$76))) -> 0 | N208: =IF(N$201<$F$71, 0, MIN($F$76, IFERROR($F$75+4*(DATE2NUM(N$201)-DATE2NUM($F$71))*($F$76-$F$75)/$F$77,$F$76))) -> 0 | O208: =IF(O$201<$F$71, 0, MIN($F$76, IFERROR($F$75+4*(DATE2NUM(O$201)-DATE2NUM($F$71))*($F$76-$F$75)/$F$77,$F$76))) -> 0 | P208: =IF(P$201<$F$71, 0, MIN($F$76, IFERROR($F$75+4*(DATE2NUM(P$201)-DATE2NUM($F$71))*($F$76-$F$75)/$F$77,$F$76))) -> 0 | Q208: =IF(Q$201<$F$71, 0, MIN($F$76, IFERROR($F$75+4*(DATE2NUM(Q$201)-DATE2NUM($F$71))*($F$76-$F$75)/$F$77,$F$76))) -> 0 | R208: =IF(R$201<$F$71, 0, MIN($F$76, IFERROR($F$75+4*(DATE2NUM(R$201)-DATE2NUM($F$71))*($F$76-$F$75)/$F$77,$F$76))) -> 0 | S208: =IF(S$201<$F$71, 0, MIN($F$76, IFERROR($F$75+4*(DATE2NUM(S$201)-DATE2NUM($F$71))*($F$76-$F$75)/$F$77,$F$76))) -> 0 | T208: =IF(T$201<$F$71, 0, MIN($F$76, IFERROR($F$75+4*(DATE2NUM(T$201)-DATE2NUM($F$71))*($F$76-$F$75)/$F$77,$F$76))) -> 0 | U208: =IF(U$201<$F$71, 0, MIN($F$76, IFERROR($F$75+4*(DATE2NUM(U$201)-DATE2NUM($F$71))*($F$76-$F$75)/$F$77,$F$76))) -> 0 | V208: =IF(V$201<$F$71, 0, MIN($F$76, IFERROR($F$75+4*(DATE2NUM(V$201)-DATE2NUM($F$71))*($F$76-$F$75)/$F$77,$F$76))) -> 0 | W208: =IF(W$201<$F$71, 0, MIN($F$76, IFERROR($F$75+4*(DATE2NUM(W$201)-DATE2NUM($F$71))*($F$76-$F$75)/$F$77,$F$76))) -> 0 | X208: =IF(X$201<$F$71, 0, MIN($F$76, IFERROR($F$75+4*(DATE2NUM(X$201)-DATE2NUM($F$71))*($F$76-$F$75)/$F$77,$F$76))) -> 0 | Y208: =IF(Y$201<$F$71, 0, MIN($F$76, IFERROR($F$75+4*(DATE2NUM(Y$201)-DATE2NUM($F$71))*($F$76-$F$75)/$F$77,$F$76))) -> 0 | Z208: =IF(Z$201<$F$71, 0, MIN($F$76, IFERROR($F$75+4*(DATE2NUM(Z$201)-DATE2NUM($F$71))*($F$76-$F$75)/$F$77,$F$76))) -> 0 | AA208: =IF(AA$201<$F$71, 0, MIN($F$76, IFERROR($F$75+4*(DATE2NUM(AA$201)-DATE2NUM($F$71))*($F$76-$F$75)/$F$77,$F$76))) -> 0 | AB208: =IF(AB$201<$F$71, 0, MIN($F$76, IFERROR($F$75+4*(DATE2NUM(AB$201)-DATE2NUM($F$71))*($F$76-$F$75)/$F$77,$F$76))) -> 0 | AC208: =IF(AC$201<$F$71, 0, MIN($F$76, IFERROR($F$75+4*(DATE2NUM(AC$201)-DATE2NUM($F$71))*($F$76-$F$75)/$F$77,$F$76))) -> 0 | AD208: =IF(AD$201<$F$71, 0, MIN($F$76, IFERROR($F$75+4*(DATE2NUM(AD$201)-DATE2NUM($F$71))*($F$76-$F$75)/$F$77,$F$76))) -> 0 | AE208: =IF(AE$201<$F$71, 0, MIN($F$76, IFERROR($F$75+4*(DATE2NUM(AE$201)-DATE2NUM($F$71))*($F$76-$F$75)/$F$77,$F$76))) -> 0 | AF208: =IF(AF$201<$F$71, 0, MIN($F$76, IFERROR($F$75+4*(DATE2NUM(AF$201)-DATE2NUM($F$71))*($F$76-$F$75)/$F$77,$F$76))) -> 0 | AG208: =IF(AG$201<$F$71, 0, MIN($F$76, IFERROR($F$75+4*(DATE2NUM(AG$201)-DATE2NUM($F$71))*($F$76-$F$75)/$F$77,$F$76))) -> 0 | AH208: =IF(AH$201<$F$71, 0, MIN($F$76, IFERROR($F$75+4*(DATE2NUM(AH$201)-DATE2NUM($F$71))*($F$76-$F$75)/$F$77,$F$76))) -> 0 | AI208: =IF(AI$201<$F$71, 0, MIN($F$76, IFERROR($F$75+4*(DATE2NUM(AI$201)-DATE2NUM($F$71))*($F$76-$F$75)/$F$77,$F$76))) -> 0 | AJ208: =IF(AJ$201<$F$71, 0, MIN($F$76, IFERROR($F$75+4*(DATE2NUM(AJ$201)-DATE2NUM($F$71))*($F$76-$F$75)/$F$77,$F$76))) -> 0 | AK208: =IF(AK$201<$F$71, 0, MIN($F$76, IFERROR($F$75+4*(DATE2NUM(AK$201)-DATE2NUM($F$71))*($F$76-$F$75)/$F$77,$F$76))) -> 0 | AL208: =IF(AL$201<$F$71, 0, MIN($F$76, IFERROR($F$75+4*(DATE2NUM(AL$201)-DATE2NUM($F$71))*($F$76-$F$75)/$F$77,$F$76))) -> 0 | AM208: =IF(AM$201<$F$71, 0, MIN($F$76, IFERROR($F$75+4*(DATE2NUM(AM$201)-DATE2NUM($F$71))*($F$76-$F$75)/$F$77,$F$76))) -> 0 | AN208: =IF(AN$201<$F$71, 0, MIN($F$76, IFERROR($F$75+4*(DATE2NUM(AN$201)-DATE2NUM($F$71))*($F$76-$F$75)/$F$77,$F$76))) -> 0 | AO208: =IF(AO$201<$F$71, 0, MIN($F$76, IFERROR($F$75+4*(DATE2NUM(AO$201)-DATE2NUM($F$71))*($F$76-$F$75)/$F$77,$F$76))) -> 0 | AP208: =IF(AP$201<$F$71, 0, MIN($F$76, IFERROR($F$75+4*(DATE2NUM(AP$201)-DATE2NUM($F$71))*($F$76-$F$75)/$F$77,$F$76))) -> 0 | AQ208: =IF(AQ$201<$F$71, 0, MIN($F$76, IFERROR($F$75+4*(DATE2NUM(AQ$201)-DATE2NUM($F$71))*($F$76-$F$75)/$F$77,$F$76))) -> 6 | AR208: =IF(AR$201<$F$71, 0, MIN($F$76, IFERROR($F$75+4*(DATE2NUM(AR$201)-DATE2NUM($F$71))*($F$76-$F$75)/$F$77,$F$76))) -> 6.25 | AS208: =IF(AS$201<$F$71, 0, MIN($F$76, IFERROR($F$75+4*(DATE2NUM(AS$201)-DATE2NUM($F$71))*($F$76-$F$75)/$F$77,$F$76))) -> 6.5 | AT208: =IF(AT$201<$F$71, 0, MIN($F$76, IFERROR($F$75+4*(DATE2NUM(AT$201)-DATE2NUM($F$71))*($F$76-$F$75)/$F$77,$F$76))) -> 6.75 | AU208: =IF(AU$201<$F$71, 0, MIN($F$76, IFERROR($F$75+4*(DATE2NUM(AU$201)-DATE2NUM($F$71))*($F$76-$F$75)/$F$77,$F$76))) -> 7 | AV208: =IF(AV$201<$F$71, 0, MIN($F$76, IFERROR($F$75+4*(DATE2NUM(AV$201)-DATE2NUM($F$71))*($F$76-$F$75)/$F$77,$F$76))) -> 7.25 | AW208: =IF(AW$201<$F$71, 0, MIN($F$76, IFERROR($F$75+4*(DATE2NUM(AW$201)-DATE2NUM($F$71))*($F$76-$F$75)/$F$77,$F$76))) -> 7.5 | AX208: =IF(AX$201<$F$71, 0, MIN($F$76, IFERROR($F$75+4*(DATE2NUM(AX$201)-DATE2NUM($F$71))*($F$76-$F$75)/$F$77,$F$76))) -> 7.75 | AY208: =IF(AY$201<$F$71, 0, MIN($F$76, IFERROR($F$75+4*(DATE2NUM(AY$201)-DATE2NUM($F$71))*($F$76-$F$75)/$F$77,$F$76))) -> 8 | AZ208: =IF(AZ$201<$F$71, 0, MIN($F$76, IFERROR($F$75+4*(DATE2NUM(AZ$201)-DATE2NUM($F$71))*($F$76-$F$75)/$F$77,$F$76))) -> 8.25 | BA208: =IF(BA$201<$F$71, 0, MIN($F$76, IFERROR($F$75+4*(DATE2NUM(BA$201)-DATE2NUM($F$71))*($F$76-$F$75)/$F$77,$F$76))) -> 8.5 | BB208: =IF(BB$201<$F$71, 0, MIN($F$76, IFERROR($F$75+4*(DATE2NUM(BB$201)-DATE2NUM($F$71))*($F$76-$F$75)/$F$77,$F$76))) -> 8.75 | BC208: =IF(BC$201<$F$71, 0, MIN($F$76, IFERROR($F$75+4*(DATE2NUM(BC$201)-DATE2NUM($F$71))*($F$76-$F$75)/$F$77,$F$76))) -> 9 | BD208: =IF(BD$201<$F$71, 0, MIN($F$76, IFERROR($F$75+4*(DATE2NUM(BD$201)-DATE2NUM($F$71))*($F$76-$F$75)/$F$77,$F$76))) -> 9.25 | BE208: =IF(BE$201<$F$71, 0, MIN($F$76, IFERROR($F$75+4*(DATE2NUM(BE$201)-DATE2NUM($F$71))*($F$76-$F$75)/$F$77,$F$76))) -> 9.5 | BF208: =IF(BF$201<$F$71, 0, MIN($F$76, IFERROR($F$75+4*(DATE2NUM(BF$201)-DATE2NUM($F$71))*($F$76-$F$75)/$F$77,$F$76))) -> 9.75 | BG208: =IF(BG$201<$F$71, 0, MIN($F$76, IFERROR($F$75+4*(DATE2NUM(BG$201)-DATE2NUM($F$71))*($F$76-$F$75)/$F$77,$F$76))) -> 10 | BH208: =IF(BH$201<$F$71, 0, MIN($F$76, IFERROR($F$75+4*(DATE2NUM(BH$201)-DATE2NUM($F$71))*($F$76-$F$75)/$F$77,$F$76))) -> 10.25 | BI208: =IF(BI$201<$F$71, 0, MIN($F$76, IFERROR($F$75+4*(DATE2NUM(BI$201)-DATE2NUM($F$71))*($F$76-$F$75)/$F$77,$F$76))) -> 10.5 | BJ208: =IF(BJ$201<$F$71, 0, MIN($F$76, IFERROR($F$75+4*(DATE2NUM(BJ$201)-DATE2NUM($F$71))*($F$76-$F$75)/$F$77,$F$76))) -> 10.75 | BK208: =IF(BK$201<$F$71, 0, MIN($F$76, IFERROR($F$75+4*(DATE2NUM(BK$201)-DATE2NUM($F$71))*($F$76-$F$75)/$F$77,$F$76))) -> 11 | BL208: =IF(BL$201<$F$71, 0, MIN($F$76, IFERROR($F$75+4*(DATE2NUM(BL$201)-DATE2NUM($F$71))*($F$76-$F$75)/$F$77,$F$76))) -> 11.25 | BM208: =IF(BM$201<$F$71, 0, MIN($F$76, IFERROR($F$75+4*(DATE2NUM(BM$201)-DATE2NUM($F$71))*($F$76-$F$75)/$F$77,$F$76))) -> 11.5 | BN208: =IF(BN$201<$F$71, 0, MIN($F$76, IFERROR($F$75+4*(DATE2NUM(BN$201)-DATE2NUM($F$71))*($F$76-$F$75)/$F$77,$F$76))) -> 11.75 | BO208: =IF(BO$201<$F$71, 0, MIN($F$76, IFERROR($F$75+4*(DATE2NUM(BO$201)-DATE2NUM($F$71))*($F$76-$F$75)/$F$77,$F$76))) -> 12 | BP208: =IF(BP$201<$F$71, 0, MIN($F$76, IFERROR($F$75+4*(DATE2NUM(BP$201)-DATE2NUM($F$71))*($F$76-$F$75)/$F$77,$F$76))) -> 12 | BQ208: =IF(BQ$201<$F$71, 0, MIN($F$76, IFERROR($F$75+4*(DATE2NUM(BQ$201)-DATE2NUM($F$71))*($F$76-$F$75)/$F$77,$F$76))) -> 12 | BR208: =IF(BR$201<$F$71, 0, MIN($F$76, IFERROR($F$75+4*(DATE2NUM(BR$201)-DATE2NUM($F$71))*($F$76-$F$75)/$F$77,$F$76))) -> 12 | BS208: =IF(BS$201<$F$71, 0, MIN($F$76, IFERROR($F$75+4*(DATE2NUM(BS$201)-DATE2NUM($F$71))*($F$76-$F$75)/$F$77,$F$76))) -> 12 | BT208: =IF(BT$201<$F$71, 0, MIN($F$76, IFERROR($F$75+4*(DATE2NUM(BT$201)-DATE2NUM($F$71))*($F$76-$F$75)/$F$77,$F$76))) -> 12 | BU208: =IF(BU$201<$F$71, 0, MIN($F$76, IFERROR($F$75+4*(DATE2NUM(BU$201)-DATE2NUM($F$71))*($F$76-$F$75)/$F$77,$F$76))) -> 12 | BV208: =IF(BV$201<$F$71, 0, MIN($F$76, IFERROR($F$75+4*(DATE2NUM(BV$201)-DATE2NUM($F$71))*($F$76-$F$75)/$F$77,$F$76))) -> 12 | BW208: =IF(BW$201<$F$71, 0, MIN($F$76, IFERROR($F$75+4*(DATE2NUM(BW$201)-DATE2NUM($F$71))*($F$76-$F$75)/$F$77,$F$76))) -> 12 | BX208: =IF(BX$201<$F$71, 0, MIN($F$76, IFERROR($F$75+4*(DATE2NUM(BX$201)-DATE2NUM($F$71))*($F$76-$F$75)/$F$77,$F$76))) -> 12 | BY208: =IF(BY$201<$F$71, 0, MIN($F$76, IFERROR($F$75+4*(DATE2NUM(BY$201)-DATE2NUM($F$71))*($F$76-$F$75)/$F$77,$F$76))) -> 12 | BZ208: =IF(BZ$201<$F$71, 0, MIN($F$76, IFERROR($F$75+4*(DATE2NUM(BZ$201)-DATE2NUM($F$71))*($F$76-$F$75)/$F$77,$F$76))) -> 12 | CA208: =IF(CA$201<$F$71, 0, MIN($F$76, IFERROR($F$75+4*(DATE2NUM(CA$201)-DATE2NUM($F$71))*($F$76-$F$75)/$F$77,$F$76))) -> 12 | CB208: =IF(CB$201<$F$71, 0, MIN($F$76, IFERROR($F$75+4*(DATE2NUM(CB$201)-DATE2NUM($F$71))*($F$76-$F$75)/$F$77,$F$76))) -> 12 | CC208: =IF(CC$201<$F$71, 0, MIN($F$76, IFERROR($F$75+4*(DATE2NUM(CC$201)-DATE2NUM($F$71))*($F$76-$F$75)/$F$77,$F$76))) -> 12 | CD208: =IF(CD$201<$F$71, 0, MIN($F$76, IFERROR($F$75+4*(DATE2NUM(CD$201)-DATE2NUM($F$71))*($F$76-$F$75)/$F$77,$F$76))) -> 12 | CE208: =IF(CE$201<$F$71, 0, MIN($F$76, IFERROR($F$75+4*(DATE2NUM(CE$201)-DATE2NUM($F$71))*($F$76-$F$75)/$F$77,$F$76))) -> 12 | CF208: =IF(CF$201<$F$71, 0, MIN($F$76, IFERROR($F$75+4*(DATE2NUM(CF$201)-DATE2NUM($F$71))*($F$76-$F$75)/$F$77,$F$76))) -> 12 | CG208: =IF(CG$201<$F$71, 0, MIN($F$76, IFERROR($F$75+4*(DATE2NUM(CG$201)-DATE2NUM($F$71))*($F$76-$F$75)/$F$77,$F$76))) -> 12 | CH208: =IF(CH$201<$F$71, 0, MIN($F$76, IFERROR($F$75+4*(DATE2NUM(CH$201)-DATE2NUM($F$71))*($F$76-$F$75)/$F$77,$F$76))) -> 12 | CI208: =IF(CI$201<$F$71, 0, MIN($F$76, IFERROR($F$75+4*(DATE2NUM(CI$201)-DATE2NUM($F$71))*($F$76-$F$75)/$F$77,$F$76))) -> 12 | CJ208: =IF(CJ$201<$F$71, 0, MIN($F$76, IFERROR($F$75+4*(DATE2NUM(CJ$201)-DATE2NUM($F$71))*($F$76-$F$75)/$F$77,$F$76))) -> 12 | CK208: =IF(CK$201<$F$71, 0, MIN($F$76, IFERROR($F$75+4*(DATE2NUM(CK$201)-DATE2NUM($F$71))*($F$76-$F$75)/$F$77,$F$76))) -> 12 | CL208: =IF(CL$201<$F$71, 0, MIN($F$76, IFERROR($F$75+4*(DATE2NUM(CL$201)-DATE2NUM($F$71))*($F$76-$F$75)/$F$77,$F$76))) -> 12 | CM208: =IF(CM$201<$F$71, 0, MIN($F$76, IFERROR($F$75+4*(DATE2NUM(CM$201)-DATE2NUM($F$71))*($F$76-$F$75)/$F$77,$F$76))) -> 12 | CN208: =IF(CN$201<$F$71, 0, MIN($F$76, IFERROR($F$75+4*(DATE2NUM(CN$201)-DATE2NUM($F$71))*($F$76-$F$75)/$F$77,$F$76))) -> 12 | CO208: =IF(CO$201<$F$71, 0, MIN($F$76, IFERROR($F$75+4*(DATE2NUM(CO$201)-DATE2NUM($F$71))*($F$76-$F$75)/$F$77,$F$76))) -> 12 | CP208: =IF(CP$201<$F$71, 0, MIN($F$76, IFERROR($F$75+4*(DATE2NUM(CP$201)-DATE2NUM($F$71))*($F$76-$F$75)/$F$77,$F$76))) -> 12 | CQ208: =IF(CQ$201<$F$71, 0, MIN($F$76, IFERROR($F$75+4*(DATE2NUM(CQ$201)-DATE2NUM($F$71))*($F$76-$F$75)/$F$77,$F$76))) -> 12 | CR208: =IF(CR$201<$F$71, 0, MIN($F$76, IFERROR($F$75+4*(DATE2NUM(CR$201)-DATE2NUM($F$71))*($F$76-$F$75)/$F$77,$F$76))) -> 12 | CS208: =IF(CS$201<$F$71, 0, MIN($F$76, IFERROR($F$75+4*(DATE2NUM(CS$201)-DATE2NUM($F$71))*($F$76-$F$75)/$F$77,$F$76))) -> 12 | CT208: =IF(CT$201<$F$71, 0, MIN($F$76, IFERROR($F$75+4*(DATE2NUM(CT$201)-DATE2NUM($F$71))*($F$76-$F$75)/$F$77,$F$76))) -> 12 | CU208: =IF(CU$201<$F$71, 0, MIN($F$76, IFERROR($F$75+4*(DATE2NUM(CU$201)-DATE2NUM($F$71))*($F$76-$F$75)/$F$77,$F$76))) -> 12 | CV208: =IF(CV$201<$F$71, 0, MIN($F$76, IFERROR($F$75+4*(DATE2NUM(CV$201)-DATE2NUM($F$71))*($F$76-$F$75)/$F$77,$F$76))) -> 12 | CW208: =IF(CW$201<$F$71, 0, MIN($F$76, IFERROR($F$75+4*(DATE2NUM(CW$201)-DATE2NUM($F$71))*($F$76-$F$75)/$F$77,$F$76))) -> 12 | CX208: =IF(CX$201<$F$71, 0, MIN($F$76, IFERROR($F$75+4*(DATE2NUM(CX$201)-DATE2NUM($F$71))*($F$76-$F$75)/$F$77,$F$76))) -> 12 | CY208: =IF(CY$201<$F$71, 0, MIN($F$76, IFERROR($F$75+4*(DATE2NUM(CY$201)-DATE2NUM($F$71))*($F$76-$F$75)/$F$77,$F$76))) -> 12 | CZ208: =IF(CZ$201<$F$71, 0, MIN($F$76, IFERROR($F$75+4*(DATE2NUM(CZ$201)-DATE2NUM($F$71))*($F$76-$F$75)/$F$77,$F$76))) -> 12 | DA208: =IF(DA$201<$F$71, 0, MIN($F$76, IFERROR($F$75+4*(DATE2NUM(DA$201)-DATE2NUM($F$71))*($F$76-$F$75)/$F$77,$F$76))) -> 12 | DB208: =IF(DB$201<$F$71, 0, MIN($F$76, IFERROR($F$75+4*(DATE2NUM(DB$201)-DATE2NUM($F$71))*($F$76-$F$75)/$F$77,$F$76))) -> 12 | DC208: =IF(DC$201<$F$71, 0, MIN($F$76, IFERROR($F$75+4*(DATE2NUM(DC$201)-DATE2NUM($F$71))*($F$76-$F$75)/$F$77,$F$76))) -> 12 | DD208: =IF(DD$201<$F$71, 0, MIN($F$76, IFERROR($F$75+4*(DATE2NUM(DD$201)-DATE2NUM($F$71))*($F$76-$F$75)/$F$77,$F$76))) -> 12 | DE208: =IF(DE$201<$F$71, 0, MIN($F$76, IFERROR($F$75+4*(DATE2NUM(DE$201)-DATE2NUM($F$71))*($F$76-$F$75)/$F$77,$F$76))) -> 12 | DF208: =IF(DF$201<$F$71, 0, MIN($F$76, IFERROR($F$75+4*(DATE2NUM(DF$201)-DATE2NUM($F$71))*($F$76-$F$75)/$F$77,$F$76))) -> 12 | DG208: =IF(DG$201<$F$71, 0, MIN($F$76, IFERROR($F$75+4*(DATE2NUM(DG$201)-DATE2NUM($F$71))*($F$76-$F$75)/$F$77,$F$76))) -> 12 | DH208: =IF(DH$201<$F$71, 0, MIN($F$76, IFERROR($F$75+4*(DATE2NUM(DH$201)-DATE2NUM($F$71))*($F$76-$F$75)/$F$77,$F$76))) -> 12 | DI208: =IF(DI$201<$F$71, 0, MIN($F$76, IFERROR($F$75+4*(DATE2NUM(DI$201)-DATE2NUM($F$71))*($F$76-$F$75)/$F$77,$F$76))) -> 12 | DJ208: =IF(DJ$201<$F$71, 0, MIN($F$76, IFERROR($F$75+4*(DATE2NUM(DJ$201)-DATE2NUM($F$71))*($F$76-$F$75)/$F$77,$F$76))) -> 12 | DK208: =IF(DK$201<$F$71, 0, MIN($F$76, IFERROR($F$75+4*(DATE2NUM(DK$201)-DATE2NUM($F$71))*($F$76-$F$75)/$F$77,$F$76))) -> 12 | DL208: =IF(DL$201<$F$71, 0, MIN($F$76, IFERROR($F$75+4*(DATE2NUM(DL$201)-DATE2NUM($F$71))*($F$76-$F$75)/$F$77,$F$76))) -> 12 | DM208: =IF(DM$201<$F$71, 0, MIN($F$76, IFERROR($F$75+4*(DATE2NUM(DM$201)-DATE2NUM($F$71))*($F$76-$F$75)/$F$77,$F$76))) -> 12 | DN208: =IF(DN$201<$F$71, 0, MIN($F$76, IFERROR($F$75+4*(DATE2NUM(DN$201)-DATE2NUM($F$71))*($F$76-$F$75)/$F$77,$F$76))) -> 12 | DO208: =IF(DO$201<$F$71, 0, MIN($F$76, IFERROR($F$75+4*(DATE2NUM(DO$201)-DATE2NUM($F$71))*($F$76-$F$75)/$F$77,$F$76))) -> 12 | DP208: =IF(DP$201<$F$71, 0, MIN($F$76, IFERROR($F$75+4*(DATE2NUM(DP$201)-DATE2NUM($F$71))*($F$76-$F$75)/$F$77,$F$76))) -> 12 | DQ208: =IF(DQ$201<$F$71, 0, MIN($F$76, IFERROR($F$75+4*(DATE2NUM(DQ$201)-DATE2NUM($F$71))*($F$76-$F$75)/$F$77,$F$76))) -> 12 | DR208: =IF(DR$201<$F$71, 0, MIN($F$76, IFERROR($F$75+4*(DATE2NUM(DR$201)-DATE2NUM($F$71))*($F$76-$F$75)/$F$77,$F$76))) -> 12 | DS208: =IF(DS$201<$F$71, 0, MIN($F$76, IFERROR($F$75+4*(DATE2NUM(DS$201)-DATE2NUM($F$71))*($F$76-$F$75)/$F$77,$F$76))) -> 12 | DT208: =IF(DT$201<$F$71, 0, MIN($F$76, IFERROR($F$75+4*(DATE2NUM(DT$201)-DATE2NUM($F$71))*($F$76-$F$75)/$F$77,$F$76))) -> 12 | DU208: =IF(DU$201<$F$71, 0, MIN($F$76, IFERROR($F$75+4*(DATE2NUM(DU$201)-DATE2NUM($F$71))*($F$76-$F$75)/$F$77,$F$76))) -> 12 | DV208: =IF(DV$201<$F$71, 0, MIN($F$76, IFERROR($F$75+4*(DATE2NUM(DV$201)-DATE2NUM($F$71))*($F$76-$F$75)/$F$77,$F$76))) -> 12
B209: Net Revenue Rate per Pt ($ thousands) | G209: =IF(G$201<$F$71, 0, $F$74*$F$79*$F$80*(1+$F$78)^(DATE2NUM(G$201)-DATE2NUM($F$71))) -> 0 | H209: =IF(H$201<$F$71, 0, $F$74*$F$79*$F$80*(1+$F$78)^(DATE2NUM(H$201)-DATE2NUM($F$71))) -> 0 | I209: =IF(I$201<$F$71, 0, $F$74*$F$79*$F$80*(1+$F$78)^(DATE2NUM(I$201)-DATE2NUM($F$71))) -> 0 | J209: =IF(J$201<$F$71, 0, $F$74*$F$79*$F$80*(1+$F$78)^(DATE2NUM(J$201)-DATE2NUM($F$71))) -> 0 | K209: =IF(K$201<$F$71, 0, $F$74*$F$79*$F$80*(1+$F$78)^(DATE2NUM(K$201)-DATE2NUM($F$71))) -> 0 | L209: =IF(L$201<$F$71, 0, $F$74*$F$79*$F$80*(1+$F$78)^(DATE2NUM(L$201)-DATE2NUM($F$71))) -> 0 | M209: =IF(M$201<$F$71, 0, $F$74*$F$79*$F$80*(1+$F$78)^(DATE2NUM(M$201)-DATE2NUM($F$71))) -> 0 | N209: =IF(N$201<$F$71, 0, $F$74*$F$79*$F$80*(1+$F$78)^(DATE2NUM(N$201)-DATE2NUM($F$71))) -> 0 | O209: =IF(O$201<$F$71, 0, $F$74*$F$79*$F$80*(1+$F$78)^(DATE2NUM(O$201)-DATE2NUM($F$71))) -> 0 | P209: =IF(P$201<$F$71, 0, $F$74*$F$79*$F$80*(1+$F$78)^(DATE2NUM(P$201)-DATE2NUM($F$71))) -> 0 | Q209: =IF(Q$201<$F$71, 0, $F$74*$F$79*$F$80*(1+$F$78)^(DATE2NUM(Q$201)-DATE2NUM($F$71))) -> 0 | R209: =IF(R$201<$F$71, 0, $F$74*$F$79*$F$80*(1+$F$78)^(DATE2NUM(R$201)-DATE2NUM($F$71))) -> 0 | S209: =IF(S$201<$F$71, 0, $F$74*$F$79*$F$80*(1+$F$78)^(DATE2NUM(S$201)-DATE2NUM($F$71))) -> 0 | T209: =IF(T$201<$F$71, 0, $F$74*$F$79*$F$80*(1+$F$78)^(DATE2NUM(T$201)-DATE2NUM($F$71))) -> 0 | U209: =IF(U$201<$F$71, 0, $F$74*$F$79*$F$80*(1+$F$78)^(DATE2NUM(U$201)-DATE2NUM($F$71))) -> 0 | V209: =IF(V$201<$F$71, 0, $F$74*$F$79*$F$80*(1+$F$78)^(DATE2NUM(V$201)-DATE2NUM($F$71))) -> 0 | W209: =IF(W$201<$F$71, 0, $F$74*$F$79*$F$80*(1+$F$78)^(DATE2NUM(W$201)-DATE2NUM($F$71))) -> 0 | X209: =IF(X$201<$F$71, 0, $F$74*$F$79*$F$80*(1+$F$78)^(DATE2NUM(X$201)-DATE2NUM($F$71))) -> 0 | Y209: =IF(Y$201<$F$71, 0, $F$74*$F$79*$F$80*(1+$F$78)^(DATE2NUM(Y$201)-DATE2NUM($F$71))) -> 0 | Z209: =IF(Z$201<$F$71, 0, $F$74*$F$79*$F$80*(1+$F$78)^(DATE2NUM(Z$201)-DATE2NUM($F$71))) -> 0 | AA209: =IF(AA$201<$F$71, 0, $F$74*$F$79*$F$80*(1+$F$78)^(DATE2NUM(AA$201)-DATE2NUM($F$71))) -> 0 | AB209: =IF(AB$201<$F$71, 0, $F$74*$F$79*$F$80*(1+$F$78)^(DATE2NUM(AB$201)-DATE2NUM($F$71))) -> 0 | AC209: =IF(AC$201<$F$71, 0, $F$74*$F$79*$F$80*(1+$F$78)^(DATE2NUM(AC$201)-DATE2NUM($F$71))) -> 0 | AD209: =IF(AD$201<$F$71, 0, $F$74*$F$79*$F$80*(1+$F$78)^(DATE2NUM(AD$201)-DATE2NUM($F$71))) -> 0 | AE209: =IF(AE$201<$F$71, 0, $F$74*$F$79*$F$80*(1+$F$78)^(DATE2NUM(AE$201)-DATE2NUM($F$71))) -> 0 | AF209: =IF(AF$201<$F$71, 0, $F$74*$F$79*$F$80*(1+$F$78)^(DATE2NUM(AF$201)-DATE2NUM($F$71))) -> 0 | AG209: =IF(AG$201<$F$71, 0, $F$74*$F$79*$F$80*(1+$F$78)^(DATE2NUM(AG$201)-DATE2NUM($F$71))) -> 0 | AH209: =IF(AH$201<$F$71, 0, $F$74*$F$79*$F$80*(1+$F$78)^(DATE2NUM(AH$201)-DATE2NUM($F$71))) -> 0 | AI209: =IF(AI$201<$F$71, 0, $F$74*$F$79*$F$80*(1+$F$78)^(DATE2NUM(AI$201)-DATE2NUM($F$71))) -> 0 | AJ209: =IF(AJ$201<$F$71, 0, $F$74*$F$79*$F$80*(1+$F$78)^(DATE2NUM(AJ$201)-DATE2NUM($F$71))) -> 0 | AK209: =IF(AK$201<$F$71, 0, $F$74*$F$79*$F$80*(1+$F$78)^(DATE2NUM(AK$201)-DATE2NUM($F$71))) -> 0 | AL209: =IF(AL$201<$F$71, 0, $F$74*$F$79*$F$80*(1+$F$78)^(DATE2NUM(AL$201)-DATE2NUM($F$71))) -> 0 | AM209: =IF(AM$201<$F$71, 0, $F$74*$F$79*$F$80*(1+$F$78)^(DATE2NUM(AM$201)-DATE2NUM($F$71))) -> 0 | AN209: =IF(AN$201<$F$71, 0, $F$74*$F$79*$F$80*(1+$F$78)^(DATE2NUM(AN$201)-DATE2NUM($F$71))) -> 0 | AO209: =IF(AO$201<$F$71, 0, $F$74*$F$79*$F$80*(1+$F$78)^(DATE2NUM(AO$201)-DATE2NUM($F$71))) -> 0 | AP209: =IF(AP$201<$F$71, 0, $F$74*$F$79*$F$80*(1+$F$78)^(DATE2NUM(AP$201)-DATE2NUM($F$71))) -> 0 | AQ209: =IF(AQ$201<$F$71, 0, $F$74*$F$79*$F$80*(1+$F$78)^(DATE2NUM(AQ$201)-DATE2NUM($F$71))) -> 13.5 | AR209: =IF(AR$201<$F$71, 0, $F$74*$F$79*$F$80*(1+$F$78)^(DATE2NUM(AR$201)-DATE2NUM($F$71))) -> 13.56699958 | AS209: =IF(AS$201<$F$71, 0, $F$74*$F$79*$F$80*(1+$F$78)^(DATE2NUM(AS$201)-DATE2NUM($F$71))) -> 13.63433167 | AT209: =IF(AT$201<$F$71, 0, $F$74*$F$79*$F$80*(1+$F$78)^(DATE2NUM(AT$201)-DATE2NUM($F$71))) -> 13.70199792 | AU209: =IF(AU$201<$F$71, 0, $F$74*$F$79*$F$80*(1+$F$78)^(DATE2NUM(AU$201)-DATE2NUM($F$71))) -> 13.77 | AV209: =IF(AV$201<$F$71, 0, $F$74*$F$79*$F$80*(1+$F$78)^(DATE2NUM(AV$201)-DATE2NUM($F$71))) -> 13.83833957 | AW209: =IF(AW$201<$F$71, 0, $F$74*$F$79*$F$80*(1+$F$78)^(DATE2NUM(AW$201)-DATE2NUM($F$71))) -> 13.9070183 | AX209: =IF(AX$201<$F$71, 0, $F$74*$F$79*$F$80*(1+$F$78)^(DATE2NUM(AX$201)-DATE2NUM($F$71))) -> 13.97603788 | AY209: =IF(AY$201<$F$71, 0, $F$74*$F$79*$F$80*(1+$F$78)^(DATE2NUM(AY$201)-DATE2NUM($F$71))) -> 14.0454 | AZ209: =IF(AZ$201<$F$71, 0, $F$74*$F$79*$F$80*(1+$F$78)^(DATE2NUM(AZ$201)-DATE2NUM($F$71))) -> 14.11510636 | BA209: =IF(BA$201<$F$71, 0, $F$74*$F$79*$F$80*(1+$F$78)^(DATE2NUM(BA$201)-DATE2NUM($F$71))) -> 14.18515867 | BB209: =IF(BB$201<$F$71, 0, $F$74*$F$79*$F$80*(1+$F$78)^(DATE2NUM(BB$201)-DATE2NUM($F$71))) -> 14.25555864 | BC209: =IF(BC$201<$F$71, 0, $F$74*$F$79*$F$80*(1+$F$78)^(DATE2NUM(BC$201)-DATE2NUM($F$71))) -> 14.326308 | BD209: =IF(BD$201<$F$71, 0, $F$74*$F$79*$F$80*(1+$F$78)^(DATE2NUM(BD$201)-DATE2NUM($F$71))) -> 14.39740849 | BE209: =IF(BE$201<$F$71, 0, $F$74*$F$79*$F$80*(1+$F$78)^(DATE2NUM(BE$201)-DATE2NUM($F$71))) -> 14.46886184 | BF209: =IF(BF$201<$F$71, 0, $F$74*$F$79*$F$80*(1+$F$78)^(DATE2NUM(BF$201)-DATE2NUM($F$71))) -> 14.54066981 | BG209: =IF(BG$201<$F$71, 0, $F$74*$F$79*$F$80*(1+$F$78)^(DATE2NUM(BG$201)-DATE2NUM($F$71))) -> 14.61283416 | BH209: =IF(BH$201<$F$71, 0, $F$74*$F$79*$F$80*(1+$F$78)^(DATE2NUM(BH$201)-DATE2NUM($F$71))) -> 14.68535666 | BI209: =IF(BI$201<$F$71, 0, $F$74*$F$79*$F$80*(1+$F$78)^(DATE2NUM(BI$201)-DATE2NUM($F$71))) -> 14.75823908 | BJ209: =IF(BJ$201<$F$71, 0, $F$74*$F$79*$F$80*(1+$F$78)^(DATE2NUM(BJ$201)-DATE2NUM($F$71))) -> 14.83148321 | BK209: =IF(BK$201<$F$71, 0, $F$74*$F$79*$F$80*(1+$F$78)^(DATE2NUM(BK$201)-DATE2NUM($F$71))) -> 14.90509084 | BL209: =IF(BL$201<$F$71, 0, $F$74*$F$79*$F$80*(1+$F$78)^(DATE2NUM(BL$201)-DATE2NUM($F$71))) -> 14.97906379 | BM209: =IF(BM$201<$F$71, 0, $F$74*$F$79*$F$80*(1+$F$78)^(DATE2NUM(BM$201)-DATE2NUM($F$71))) -> 15.05340386 | BN209: =IF(BN$201<$F$71, 0, $F$74*$F$79*$F$80*(1+$F$78)^(DATE2NUM(BN$201)-DATE2NUM($F$71))) -> 15.12811287 | BO209: =IF(BO$201<$F$71, 0, $F$74*$F$79*$F$80*(1+$F$78)^(DATE2NUM(BO$201)-DATE2NUM($F$71))) -> 15.20319266 | BP209: =IF(BP$201<$F$71, 0, $F$74*$F$79*$F$80*(1+$F$78)^(DATE2NUM(BP$201)-DATE2NUM($F$71))) -> 15.27864506 | BQ209: =IF(BQ$201<$F$71, 0, $F$74*$F$79*$F$80*(1+$F$78)^(DATE2NUM(BQ$201)-DATE2NUM($F$71))) -> 15.35447193 | BR209: =IF(BR$201<$F$71, 0, $F$74*$F$79*$F$80*(1+$F$78)^(DATE2NUM(BR$201)-DATE2NUM($F$71))) -> 15.43067513 | BS209: =IF(BS$201<$F$71, 0, $F$74*$F$79*$F$80*(1+$F$78)^(DATE2NUM(BS$201)-DATE2NUM($F$71))) -> 15.50725651 | BT209: =IF(BT$201<$F$71, 0, $F$74*$F$79*$F$80*(1+$F$78)^(DATE2NUM(BT$201)-DATE2NUM($F$71))) -> 15.58421797 | BU209: =IF(BU$201<$F$71, 0, $F$74*$F$79*$F$80*(1+$F$78)^(DATE2NUM(BU$201)-DATE2NUM($F$71))) -> 15.66156137 | BV209: =IF(BV$201<$F$71, 0, $F$74*$F$79*$F$80*(1+$F$78)^(DATE2NUM(BV$201)-DATE2NUM($F$71))) -> 15.73928863 | BW209: =IF(BW$201<$F$71, 0, $F$74*$F$79*$F$80*(1+$F$78)^(DATE2NUM(BW$201)-DATE2NUM($F$71))) -> 15.81740164 | BX209: =IF(BX$201<$F$71, 0, $F$74*$F$79*$F$80*(1+$F$78)^(DATE2NUM(BX$201)-DATE2NUM($F$71))) -> 15.89590233 | BY209: =IF(BY$201<$F$71, 0, $F$74*$F$79*$F$80*(1+$F$78)^(DATE2NUM(BY$201)-DATE2NUM($F$71))) -> 15.9747926 | BZ209: =IF(BZ$201<$F$71, 0, $F$74*$F$79*$F$80*(1+$F$78)^(DATE2NUM(BZ$201)-DATE2NUM($F$71))) -> 16.0540744 | CA209: =IF(CA$201<$F$71, 0, $F$74*$F$79*$F$80*(1+$F$78)^(DATE2NUM(CA$201)-DATE2NUM($F$71))) -> 16.13374968 | CB209: =IF(CB$201<$F$71, 0, $F$74*$F$79*$F$80*(1+$F$78)^(DATE2NUM(CB$201)-DATE2NUM($F$71))) -> 16.21382037 | CC209: =IF(CC$201<$F$71, 0, $F$74*$F$79*$F$80*(1+$F$78)^(DATE2NUM(CC$201)-DATE2NUM($F$71))) -> 16.29428845 | CD209: =IF(CD$201<$F$71, 0, $F$74*$F$79*$F$80*(1+$F$78)^(DATE2NUM(CD$201)-DATE2NUM($F$71))) -> 16.37515589 | CE209: =IF(CE$201<$F$71, 0, $F$74*$F$79*$F$80*(1+$F$78)^(DATE2NUM(CE$201)-DATE2NUM($F$71))) -> 16.45642467 | CF209: =IF(CF$201<$F$71, 0, $F$74*$F$79*$F$80*(1+$F$78)^(DATE2NUM(CF$201)-DATE2NUM($F$71))) -> 16.53809678 | CG209: =IF(CG$201<$F$71, 0, $F$74*$F$79*$F$80*(1+$F$78)^(DATE2NUM(CG$201)-DATE2NUM($F$71))) -> 16.62017422 | CH209: =IF(CH$201<$F$71, 0, $F$74*$F$79*$F$80*(1+$F$78)^(DATE2NUM(CH$201)-DATE2NUM($F$71))) -> 16.70265901 | CI209: =IF(CI$201<$F$71, 0, $F$74*$F$79*$F$80*(1+$F$78)^(DATE2NUM(CI$201)-DATE2NUM($F$71))) -> 16.78555316 | CJ209: =IF(CJ$201<$F$71, 0, $F$74*$F$79*$F$80*(1+$F$78)^(DATE2NUM(CJ$201)-DATE2NUM($F$71))) -> 16.86885872 | CK209: =IF(CK$201<$F$71, 0, $F$74*$F$79*$F$80*(1+$F$78)^(DATE2NUM(CK$201)-DATE2NUM($F$71))) -> 16.95257771 | CL209: =IF(CL$201<$F$71, 0, $F$74*$F$79*$F$80*(1+$F$78)^(DATE2NUM(CL$201)-DATE2NUM($F$71))) -> 17.03671219 | CM209: =IF(CM$201<$F$71, 0, $F$74*$F$79*$F$80*(1+$F$78)^(DATE2NUM(CM$201)-DATE2NUM($F$71))) -> 17.12126423 | CN209: =IF(CN$201<$F$71, 0, $F$74*$F$79*$F$80*(1+$F$78)^(DATE2NUM(CN$201)-DATE2NUM($F$71))) -> 17.20623589 | CO209: =IF(CO$201<$F$71, 0, $F$74*$F$79*$F$80*(1+$F$78)^(DATE2NUM(CO$201)-DATE2NUM($F$71))) -> 17.29162926 | CP209: =IF(CP$201<$F$71, 0, $F$74*$F$79*$F$80*(1+$F$78)^(DATE2NUM(CP$201)-DATE2NUM($F$71))) -> 17.37744643 | CQ209: =IF(CQ$201<$F$71, 0, $F$74*$F$79*$F$80*(1+$F$78)^(DATE2NUM(CQ$201)-DATE2NUM($F$71))) -> 17.46368951 | CR209: =IF(CR$201<$F$71, 0, $F$74*$F$79*$F$80*(1+$F$78)^(DATE2NUM(CR$201)-DATE2NUM($F$71))) -> 17.55036061 | CS209: =IF(CS$201<$F$71, 0, $F$74*$F$79*$F$80*(1+$F$78)^(DATE2NUM(CS$201)-DATE2NUM($F$71))) -> 17.63746185 | CT209: =IF(CT$201<$F$71, 0, $F$74*$F$79*$F$80*(1+$F$78)^(DATE2NUM(CT$201)-DATE2NUM($F$71))) -> 17.72499536 | CU209: =IF(CU$201<$F$71, 0, $F$74*$F$79*$F$80*(1+$F$78)^(DATE2NUM(CU$201)-DATE2NUM($F$71))) -> 17.8129633 | CV209: =IF(CV$201<$F$71, 0, $F$74*$F$79*$F$80*(1+$F$78)^(DATE2NUM(CV$201)-DATE2NUM($F$71))) -> 17.90136782 | CW209: =IF(CW$201<$F$71, 0, $F$74*$F$79*$F$80*(1+$F$78)^(DATE2NUM(CW$201)-DATE2NUM($F$71))) -> 17.99021108 | CX209: =IF(CX$201<$F$71, 0, $F$74*$F$79*$F$80*(1+$F$78)^(DATE2NUM(CX$201)-DATE2NUM($F$71))) -> 18.07949527 | CY209: =IF(CY$201<$F$71, 0, $F$74*$F$79*$F$80*(1+$F$78)^(DATE2NUM(CY$201)-DATE2NUM($F$71))) -> 18.16922257 | CZ209: =IF(CZ$201<$F$71, 0, $F$74*$F$79*$F$80*(1+$F$78)^(DATE2NUM(CZ$201)-DATE2NUM($F$71))) -> 18.25939518 | DA209: =IF(DA$201<$F$71, 0, $F$74*$F$79*$F$80*(1+$F$78)^(DATE2NUM(DA$201)-DATE2NUM($F$71))) -> 18.3500153 | DB209: =IF(DB$201<$F$71, 0, $F$74*$F$79*$F$80*(1+$F$78)^(DATE2NUM(DB$201)-DATE2NUM($F$71))) -> 18.44108517 | DC209: =IF(DC$201<$F$71, 0, $F$74*$F$79*$F$80*(1+$F$78)^(DATE2NUM(DC$201)-DATE2NUM($F$71))) -> 18.53260702 | DD209: =IF(DD$201<$F$71, 0, $F$74*$F$79*$F$80*(1+$F$78)^(DATE2NUM(DD$201)-DATE2NUM($F$71))) -> 18.62458308 | DE209: =IF(DE$201<$F$71, 0, $F$74*$F$79*$F$80*(1+$F$78)^(DATE2NUM(DE$201)-DATE2NUM($F$71))) -> 18.71701561 | DF209: =IF(DF$201<$F$71, 0, $F$74*$F$79*$F$80*(1+$F$78)^(DATE2NUM(DF$201)-DATE2NUM($F$71))) -> 18.80990688 | DG209: =IF(DG$201<$F$71, 0, $F$74*$F$79*$F$80*(1+$F$78)^(DATE2NUM(DG$201)-DATE2NUM($F$71))) -> 18.90325916 | DH209: =IF(DH$201<$F$71, 0, $F$74*$F$79*$F$80*(1+$F$78)^(DATE2NUM(DH$201)-DATE2NUM($F$71))) -> 18.99707474 | DI209: =IF(DI$201<$F$71, 0, $F$74*$F$79*$F$80*(1+$F$78)^(DATE2NUM(DI$201)-DATE2NUM($F$71))) -> 19.09135592 | DJ209: =IF(DJ$201<$F$71, 0, $F$74*$F$79*$F$80*(1+$F$78)^(DATE2NUM(DJ$201)-DATE2NUM($F$71))) -> 19.18610502 | DK209: =IF(DK$201<$F$71, 0, $F$74*$F$79*$F$80*(1+$F$78)^(DATE2NUM(DK$201)-DATE2NUM($F$71))) -> 19.28132434 | DL209: =IF(DL$201<$F$71, 0, $F$74*$F$79*$F$80*(1+$F$78)^(DATE2NUM(DL$201)-DATE2NUM($F$71))) -> 19.37701624 | DM209: =IF(DM$201<$F$71, 0, $F$74*$F$79*$F$80*(1+$F$78)^(DATE2NUM(DM$201)-DATE2NUM($F$71))) -> 19.47318304 | DN209: =IF(DN$201<$F$71, 0, $F$74*$F$79*$F$80*(1+$F$78)^(DATE2NUM(DN$201)-DATE2NUM($F$71))) -> 19.56982712 | DO209: =IF(DO$201<$F$71, 0, $F$74*$F$79*$F$80*(1+$F$78)^(DATE2NUM(DO$201)-DATE2NUM($F$71))) -> 19.66695083 | DP209: =IF(DP$201<$F$71, 0, $F$74*$F$79*$F$80*(1+$F$78)^(DATE2NUM(DP$201)-DATE2NUM($F$71))) -> 19.76455656 | DQ209: =IF(DQ$201<$F$71, 0, $F$74*$F$79*$F$80*(1+$F$78)^(DATE2NUM(DQ$201)-DATE2NUM($F$71))) -> 19.8626467 | DR209: =IF(DR$201<$F$71, 0, $F$74*$F$79*$F$80*(1+$F$78)^(DATE2NUM(DR$201)-DATE2NUM($F$71))) -> 19.96122366 | DS209: =IF(DS$201<$F$71, 0, $F$74*$F$79*$F$80*(1+$F$78)^(DATE2NUM(DS$201)-DATE2NUM($F$71))) -> 20.06028985 | DT209: =IF(DT$201<$F$71, 0, $F$74*$F$79*$F$80*(1+$F$78)^(DATE2NUM(DT$201)-DATE2NUM($F$71))) -> 20.15984769 | DU209: =IF(DU$201<$F$71, 0, $F$74*$F$79*$F$80*(1+$F$78)^(DATE2NUM(DU$201)-DATE2NUM($F$71))) -> 20.25989964 | DV209: =IF(DV$201<$F$71, 0, $F$74*$F$79*$F$80*(1+$F$78)^(DATE2NUM(DV$201)-DATE2NUM($F$71))) -> 20.36044813
B210: Net Sales | G210: =G208*G207*G209/1000 -> 0 | H210: =H208*H207*H209/1000 -> 0 | I210: 0 | J210: 0 | K210: 0 | L210: 0 | M210: 0 | N210: 0 | O210: 0 | P210: 0 | Q210: 0 | R210: 0 | S210: 0 | T210: 0 | U210: 0 | V210: 0 | W210: 0 | X210: 0 | Y210: 0 | Z210: 0 | AA210: 0 | AB210: 0 | AC210: 0 | AD210: 0 | AE210: 0 | AF210: 0 | AG210: 0 | AH210: 0 | AI210: 0 | AJ210: 0 | AK210: 0 | AL210: 0 | AM210: 0 | AN210: 0 | AO210: 0 | AP210: 0 | AQ210: 6.3984375 | AR210: 13.52504434 | AS210: 21.40572319 | AT210: 30.06678646 | AU210: 39.53496094 | AV210: 49.38016873 | AW210: 59.89252998 | AX210: 71.08125516 | AY210: 82.95564375 | AZ210: 95.52508503 | BA210: 108.7990588 | BB210: 122.7871359 | BC210: 137.4989795 | BD210: 152.9443452 | BE210: 169.1330822 | BF210: 186.075134 | BG210: 203.7805389 | BH210: 222.2594311 | BI210: 241.5220414 | BJ210: 261.578698 | BK210: 282.4398269 | BL210: 304.1159533 | BM210: 326.6177021 | BN210: 349.9557985 | BO210: 359.1754266 | BP210: 360.9579897 | BQ210: 362.7493995 | BR210: 364.5496999 | BS210: 366.3589351 | BT210: =BT208*BT207*BT209/1000 -> 368.1771495 | BU210: 370.0043875 | BV210: 371.8406939 | BW210: 373.6861138 | BX210: 375.5406924 | BY210: 377.4044752 | BZ210: 379.2775078 | CA210: 381.1598361 | CB210: 383.0515063 | CC210: 384.9525647 | CD210: 386.8630579 | CE210: 388.7830328 | CF210: 390.7125364 | CG210: 392.651616 | CH210: 394.6003191 | CI210: 333.4647838 | CJ210: 281.8009937 | CK210: 238.1414887 | CL210: 201.2461627 | CM210: 170.0670397 | CN210: 143.7185068 | CO210: 121.4521592 | CP210: 102.635543 | CQ210: 86.73419026 | CR210: 73.29643845 | CS210: 61.94060121 | CT210: 52.34412693 | CU210: 44.23443703 | CV210: 37.38118361 | CW210: 31.58970662 | CX210: 26.69550473 | CY210: 22.55956289 | CZ210: 19.06440364 | DA210: 16.11075037 | DB210: 13.61470741 | DC210: 11.50537707 | DD210: 9.722845857 | DE210: 8.216482691 | DF210: 6.943500781 | DG210: 5.867742307 | DH210: 4.958651387 | DI210: 4.190406172 | DJ210: 3.541185398 | DK210: 2.992548577 | DL210: 2.528912208 | DM210: 2.137107148 | DN210: 1.806004553 | DO210: 1.526199774 | DP210: 1.289745226 | DQ210: 1.089924645 | DR210: 0.9210623221 | DS210: 0.7783618848 | DT210: 0.6577700652 | DU210: 0.5558615692 | DV210: 0.4697417843
B212: % Net Sales Ownership | G212: =$F$81 -> 1 | H212: 1 | I212: 1 | J212: 1 | K212: 1 | L212: 1 | M212: 1 | N212: 1 | O212: 1 | P212: 1 | Q212: 1 | R212: 1 | S212: 1 | T212: 1 | U212: 1 | V212: 1 | W212: 1 | X212: 1 | Y212: 1 | Z212: 1 | AA212: 1 | AB212: 1 | AC212: 1 | AD212: 1 | AE212: 1 | AF212: 1 | AG212: 1 | AH212: 1 | AI212: 1 | AJ212: 1 | AK212: 1 | AL212: 1 | AM212: =$F$81 -> 1 | AN212: 1 | AO212: 1 | AP212: 1 | AQ212: 1 | AR212: 1 | AS212: 1 | AT212: 1 | AU212: 1 | AV212: 1 | AW212: 1 | AX212: 1 | AY212: 1 | AZ212: 1 | BA212: 1 | BB212: 1 | BC212: 1 | BD212: 1 | BE212: 1 | BF212: 1 | BG212: 1 | BH212: 1 | BI212: 1 | BJ212: 1 | BK212: 1 | BL212: 1 | BM212: 1 | BN212: 1 | BO212: 1 | BP212: 1 | BQ212: 1 | BR212: 1 | BS212: =$F$81 -> 1 | BT212: 1 | BU212: 1 | BV212: 1 | BW212: 1 | BX212: 1 | BY212: 1 | BZ212: 1 | CA212: 1 | CB212: 1 | CC212: 1 | CD212: 1 | CE212: 1 | CF212: 1 | CG212: 1 | CH212: 1 | CI212: 1 | CJ212: 1 | CK212: 1 | CL212: 1 | CM212: 1 | CN212: 1 | CO212: 1 | CP212: 1 | CQ212: 1 | CR212: 1 | CS212: 1 | CT212: 1 | CU212: 1 | CV212: 1 | CW212: 1 | CX212: 1 | CY212: =$F$81 -> 1 | CZ212: 1 | DA212: 1 | DB212: 1 | DC212: 1 | DD212: 1 | DE212: 1 | DF212: 1 | DG212: 1 | DH212: 1 | DI212: 1 | DJ212: 1 | DK212: 1 | DL212: 1 | DM212: 1 | DN212: 1 | DO212: 1 | DP212: 1 | DQ212: 1 | DR212: 1 | DS212: 1 | DT212: 1 | DU212: 1 | DV212: 1
B213: Net Revenues | G213: =G210*G212 -> 0 | H213: =H210*H212 -> 0 | I213: 0 | J213: 0 | K213: 0 | L213: 0 | M213: 0 | N213: 0 | O213: 0 | P213: 0 | Q213: 0 | R213: 0 | S213: 0 | T213: 0 | U213: 0 | V213: 0 | W213: 0 | X213: 0 | Y213: 0 | Z213: 0 | AA213: 0 | AB213: 0 | AC213: 0 | AD213: 0 | AE213: 0 | AF213: 0 | AG213: 0 | AH213: 0 | AI213: 0 | AJ213: 0 | AK213: 0 | AL213: 0 | AM213: 0 | AN213: 0 | AO213: 0 | AP213: 0 | AQ213: 6.3984375 | AR213: 13.52504434 | AS213: 21.40572319 | AT213: 30.06678646 | AU213: 39.53496094 | AV213: 49.38016873 | AW213: 59.89252998 | AX213: 71.08125516 | AY213: 82.95564375 | AZ213: 95.52508503 | BA213: 108.7990588 | BB213: 122.7871359 | BC213: 137.4989795 | BD213: 152.9443452 | BE213: 169.1330822 | BF213: 186.075134 | BG213: 203.7805389 | BH213: 222.2594311 | BI213: 241.5220414 | BJ213: 261.578698 | BK213: 282.4398269 | BL213: 304.1159533 | BM213: 326.6177021 | BN213: 349.9557985 | BO213: 359.1754266 | BP213: 360.9579897 | BQ213: 362.7493995 | BR213: 364.5496999 | BS213: 366.3589351 | BT213: =BT210*BT212 -> 368.1771495 | BU213: 370.0043875 | BV213: 371.8406939 | BW213: 373.6861138 | BX213: 375.5406924 | BY213: 377.4044752 | BZ213: 379.2775078 | CA213: 381.1598361 | CB213: 383.0515063 | CC213: 384.9525647 | CD213: 386.8630579 | CE213: 388.7830328 | CF213: 390.7125364 | CG213: 392.651616 | CH213: 394.6003191 | CI213: 333.4647838 | CJ213: 281.8009937 | CK213: 238.1414887 | CL213: 201.2461627 | CM213: 170.0670397 | CN213: 143.7185068 | CO213: 121.4521592 | CP213: 102.635543 | CQ213: 86.73419026 | CR213: 73.29643845 | CS213: 61.94060121 | CT213: 52.34412693 | CU213: 44.23443703 | CV213: 37.38118361 | CW213: 31.58970662 | CX213: 26.69550473 | CY213: 22.55956289 | CZ213: 19.06440364 | DA213: 16.11075037 | DB213: 13.61470741 | DC213: 11.50537707 | DD213: 9.722845857 | DE213: 8.216482691 | DF213: 6.943500781 | DG213: 5.867742307 | DH213: 4.958651387 | DI213: 4.190406172 | DJ213: 3.541185398 | DK213: 2.992548577 | DL213: 2.528912208 | DM213: 2.137107148 | DN213: 1.806004553 | DO213: 1.526199774 | DP213: 1.289745226 | DQ213: 1.089924645 | DR213: 0.9210623221 | DS213: 0.7783618848 | DT213: 0.6577700652 | DU213: 0.5558615692 | DV213: 0.4697417843
B215: EU
B216: Patients | G216: =$G$55/4 -> 20000 | H216: =IFERROR(MIN($G$57, G216*(1+$G$56)^(1/4)), G216*(1+$G$56)^(1/4)) -> 20000 | I216: 20000 | J216: 20000 | K216: 20000 | L216: 20000 | M216: 20000 | N216: 20000 | O216: 20000 | P216: 20000 | Q216: 20000 | R216: 20000 | S216: 20000 | T216: 20000 | U216: 20000 | V216: 20000 | W216: 20000 | X216: 20000 | Y216: 20000 | Z216: 20000 | AA216: 20000 | AB216: 20000 | AC216: 20000 | AD216: 20000 | AE216: 20000 | AF216: 20000 | AG216: 20000 | AH216: 20000 | AI216: 20000 | AJ216: 20000 | AK216: 20000 | AL216: 20000 | AM216: 20000 | AN216: =IFERROR(MIN($G$57, AM216*(1+$G$56)^(1/4)), AM216*(1+$G$56)^(1/4)) -> 20000 | AO216: 20000 | AP216: 20000 | AQ216: 20000 | AR216: 20000 | AS216: 20000 | AT216: 20000 | AU216: 20000 | AV216: 20000 | AW216: 20000 | AX216: 20000 | AY216: 20000 | AZ216: 20000 | BA216: 20000 | BB216: 20000 | BC216: 20000 | BD216: 20000 | BE216: 20000 | BF216: 20000 | BG216: 20000 | BH216: 20000 | BI216: 20000 | BJ216: 20000 | BK216: 20000 | BL216: 20000 | BM216: 20000 | BN216: 20000 | BO216: 20000 | BP216: 20000 | BQ216: 20000 | BR216: 20000 | BS216: 20000 | BT216: =IFERROR(MIN($G$57, BS216*(1+$G$56)^(1/4)), BS216*(1+$G$56)^(1/4)) -> 20000 | BU216: 20000 | BV216: 20000 | BW216: 20000 | BX216: 20000 | BY216: 20000 | BZ216: 20000 | CA216: 20000 | CB216: 20000 | CC216: 20000 | CD216: 20000 | CE216: 20000 | CF216: 20000 | CG216: 20000 | CH216: 20000 | CI216: 20000 | CJ216: 20000 | CK216: 20000 | CL216: 20000 | CM216: 20000 | CN216: 20000 | CO216: 20000 | CP216: 20000 | CQ216: 20000 | CR216: 20000 | CS216: 20000 | CT216: 20000 | CU216: 20000 | CV216: 20000 | CW216: 20000 | CX216: 20000 | CY216: 20000 | CZ216: =IFERROR(MIN($G$57, CY216*(1+$G$56)^(1/4)), CY216*(1+$G$56)^(1/4)) -> 20000 | DA216: 20000 | DB216: 20000 | DC216: 20000 | DD216: 20000 | DE216: 20000 | DF216: 20000 | DG216: 20000 | DH216: 20000 | DI216: 20000 | DJ216: 20000 | DK216: 20000 | DL216: 20000 | DM216: 20000 | DN216: 20000 | DO216: 20000 | DP216: 20000 | DQ216: 20000 | DR216: 20000 | DS216: 20000 | DT216: 20000 | DU216: 20000 | DV216: 20000
B217: % Diagnosed | G217: =IF(G$201<=$G$58, $G$59, MIN($G$60, IFERROR($G$59+4*(DATE2NUM(G$201)-DATE2NUM($G$58))*($G$60-$G$59)/$G$61,$G$60))) -> 0.8 | H217: =IF(H$201<=$G$58, $G$59, MIN($G$60, IFERROR($G$59+4*(DATE2NUM(H$201)-DATE2NUM($G$58))*($G$60-$G$59)/$G$61,$G$60))) -> 0.8 | I217: =IF(I$201<=$G$58, $G$59, MIN($G$60, IFERROR($G$59+4*(DATE2NUM(I$201)-DATE2NUM($G$58))*($G$60-$G$59)/$G$61,$G$60))) -> 0.8 | J217: =IF(J$201<=$G$58, $G$59, MIN($G$60, IFERROR($G$59+4*(DATE2NUM(J$201)-DATE2NUM($G$58))*($G$60-$G$59)/$G$61,$G$60))) -> 0.8 | K217: =IF(K$201<=$G$58, $G$59, MIN($G$60, IFERROR($G$59+4*(DATE2NUM(K$201)-DATE2NUM($G$58))*($G$60-$G$59)/$G$61,$G$60))) -> 0.8 | L217: =IF(L$201<=$G$58, $G$59, MIN($G$60, IFERROR($G$59+4*(DATE2NUM(L$201)-DATE2NUM($G$58))*($G$60-$G$59)/$G$61,$G$60))) -> 0.8 | M217: =IF(M$201<=$G$58, $G$59, MIN($G$60, IFERROR($G$59+4*(DATE2NUM(M$201)-DATE2NUM($G$58))*($G$60-$G$59)/$G$61,$G$60))) -> 0.8 | N217: =IF(N$201<=$G$58, $G$59, MIN($G$60, IFERROR($G$59+4*(DATE2NUM(N$201)-DATE2NUM($G$58))*($G$60-$G$59)/$G$61,$G$60))) -> 0.8 | O217: =IF(O$201<=$G$58, $G$59, MIN($G$60, IFERROR($G$59+4*(DATE2NUM(O$201)-DATE2NUM($G$58))*($G$60-$G$59)/$G$61,$G$60))) -> 0.8 | P217: =IF(P$201<=$G$58, $G$59, MIN($G$60, IFERROR($G$59+4*(DATE2NUM(P$201)-DATE2NUM($G$58))*($G$60-$G$59)/$G$61,$G$60))) -> 0.8 | Q217: =IF(Q$201<=$G$58, $G$59, MIN($G$60, IFERROR($G$59+4*(DATE2NUM(Q$201)-DATE2NUM($G$58))*($G$60-$G$59)/$G$61,$G$60))) -> 0.8 | R217: =IF(R$201<=$G$58, $G$59, MIN($G$60, IFERROR($G$59+4*(DATE2NUM(R$201)-DATE2NUM($G$58))*($G$60-$G$59)/$G$61,$G$60))) -> 0.8 | S217: =IF(S$201<=$G$58, $G$59, MIN($G$60, IFERROR($G$59+4*(DATE2NUM(S$201)-DATE2NUM($G$58))*($G$60-$G$59)/$G$61,$G$60))) -> 0.8 | T217: =IF(T$201<=$G$58, $G$59, MIN($G$60, IFERROR($G$59+4*(DATE2NUM(T$201)-DATE2NUM($G$58))*($G$60-$G$59)/$G$61,$G$60))) -> 0.8 | U217: =IF(U$201<=$G$58, $G$59, MIN($G$60, IFERROR($G$59+4*(DATE2NUM(U$201)-DATE2NUM($G$58))*($G$60-$G$59)/$G$61,$G$60))) -> 0.8 | V217: =IF(V$201<=$G$58, $G$59, MIN($G$60, IFERROR($G$59+4*(DATE2NUM(V$201)-DATE2NUM($G$58))*($G$60-$G$59)/$G$61,$G$60))) -> 0.8 | W217: =IF(W$201<=$G$58, $G$59, MIN($G$60, IFERROR($G$59+4*(DATE2NUM(W$201)-DATE2NUM($G$58))*($G$60-$G$59)/$G$61,$G$60))) -> 0.8 | X217: =IF(X$201<=$G$58, $G$59, MIN($G$60, IFERROR($G$59+4*(DATE2NUM(X$201)-DATE2NUM($G$58))*($G$60-$G$59)/$G$61,$G$60))) -> 0.8 | Y217: =IF(Y$201<=$G$58, $G$59, MIN($G$60, IFERROR($G$59+4*(DATE2NUM(Y$201)-DATE2NUM($G$58))*($G$60-$G$59)/$G$61,$G$60))) -> 0.8 | Z217: =IF(Z$201<=$G$58, $G$59, MIN($G$60, IFERROR($G$59+4*(DATE2NUM(Z$201)-DATE2NUM($G$58))*($G$60-$G$59)/$G$61,$G$60))) -> 0.8 | AA217: =IF(AA$201<=$G$58, $G$59, MIN($G$60, IFERROR($G$59+4*(DATE2NUM(AA$201)-DATE2NUM($G$58))*($G$60-$G$59)/$G$61,$G$60))) -> 0.8 | AB217: =IF(AB$201<=$G$58, $G$59, MIN($G$60, IFERROR($G$59+4*(DATE2NUM(AB$201)-DATE2NUM($G$58))*($G$60-$G$59)/$G$61,$G$60))) -> 0.8 | AC217: =IF(AC$201<=$G$58, $G$59, MIN($G$60, IFERROR($G$59+4*(DATE2NUM(AC$201)-DATE2NUM($G$58))*($G$60-$G$59)/$G$61,$G$60))) -> 0.8 | AD217: =IF(AD$201<=$G$58, $G$59, MIN($G$60, IFERROR($G$59+4*(DATE2NUM(AD$201)-DATE2NUM($G$58))*($G$60-$G$59)/$G$61,$G$60))) -> 0.8 | AE217: =IF(AE$201<=$G$58, $G$59, MIN($G$60, IFERROR($G$59+4*(DATE2NUM(AE$201)-DATE2NUM($G$58))*($G$60-$G$59)/$G$61,$G$60))) -> 0.8 | AF217: =IF(AF$201<=$G$58, $G$59, MIN($G$60, IFERROR($G$59+4*(DATE2NUM(AF$201)-DATE2NUM($G$58))*($G$60-$G$59)/$G$61,$G$60))) -> 0.8 | AG217: =IF(AG$201<=$G$58, $G$59, MIN($G$60, IFERROR($G$59+4*(DATE2NUM(AG$201)-DATE2NUM($G$58))*($G$60-$G$59)/$G$61,$G$60))) -> 0.8 | AH217: =IF(AH$201<=$G$58, $G$59, MIN($G$60, IFERROR($G$59+4*(DATE2NUM(AH$201)-DATE2NUM($G$58))*($G$60-$G$59)/$G$61,$G$60))) -> 0.8 | AI217: =IF(AI$201<=$G$58, $G$59, MIN($G$60, IFERROR($G$59+4*(DATE2NUM(AI$201)-DATE2NUM($G$58))*($G$60-$G$59)/$G$61,$G$60))) -> 0.8 | AJ217: =IF(AJ$201<=$G$58, $G$59, MIN($G$60, IFERROR($G$59+4*(DATE2NUM(AJ$201)-DATE2NUM($G$58))*($G$60-$G$59)/$G$61,$G$60))) -> 0.8 | AK217: =IF(AK$201<=$G$58, $G$59, MIN($G$60, IFERROR($G$59+4*(DATE2NUM(AK$201)-DATE2NUM($G$58))*($G$60-$G$59)/$G$61,$G$60))) -> 0.8 | AL217: =IF(AL$201<=$G$58, $G$59, MIN($G$60, IFERROR($G$59+4*(DATE2NUM(AL$201)-DATE2NUM($G$58))*($G$60-$G$59)/$G$61,$G$60))) -> 0.8 | AM217: =IF(AM$201<=$G$58, $G$59, MIN($G$60, IFERROR($G$59+4*(DATE2NUM(AM$201)-DATE2NUM($G$58))*($G$60-$G$59)/$G$61,$G$60))) -> 0.8 | AN217: =IF(AN$201<=$G$58, $G$59, MIN($G$60, IFERROR($G$59+4*(DATE2NUM(AN$201)-DATE2NUM($G$58))*($G$60-$G$59)/$G$61,$G$60))) -> 0.8083333333 | AO217: =IF(AO$201<=$G$58, $G$59, MIN($G$60, IFERROR($G$59+4*(DATE2NUM(AO$201)-DATE2NUM($G$58))*($G$60-$G$59)/$G$61,$G$60))) -> 0.8166666667 | AP217: =IF(AP$201<=$G$58, $G$59, MIN($G$60, IFERROR($G$59+4*(DATE2NUM(AP$201)-DATE2NUM($G$58))*($G$60-$G$59)/$G$61,$G$60))) -> 0.825 | AQ217: =IF(AQ$201<=$G$58, $G$59, MIN($G$60, IFERROR($G$59+4*(DATE2NUM(AQ$201)-DATE2NUM($G$58))*($G$60-$G$59)/$G$61,$G$60))) -> 0.8333333333 | AR217: =IF(AR$201<=$G$58, $G$59, MIN($G$60, IFERROR($G$59+4*(DATE2NUM(AR$201)-DATE2NUM($G$58))*($G$60-$G$59)/$G$61,$G$60))) -> 0.8416666667 | AS217: =IF(AS$201<=$G$58, $G$59, MIN($G$60, IFERROR($G$59+4*(DATE2NUM(AS$201)-DATE2NUM($G$58))*($G$60-$G$59)/$G$61,$G$60))) -> 0.85 | AT217: =IF(AT$201<=$G$58, $G$59, MIN($G$60, IFERROR($G$59+4*(DATE2NUM(AT$201)-DATE2NUM($G$58))*($G$60-$G$59)/$G$61,$G$60))) -> 0.8583333333 | AU217: =IF(AU$201<=$G$58, $G$59, MIN($G$60, IFERROR($G$59+4*(DATE2NUM(AU$201)-DATE2NUM($G$58))*($G$60-$G$59)/$G$61,$G$60))) -> 0.8666666667 | AV217: =IF(AV$201<=$G$58, $G$59, MIN($G$60, IFERROR($G$59+4*(DATE2NUM(AV$201)-DATE2NUM($G$58))*($G$60-$G$59)/$G$61,$G$60))) -> 0.875 | AW217: =IF(AW$201<=$G$58, $G$59, MIN($G$60, IFERROR($G$59+4*(DATE2NUM(AW$201)-DATE2NUM($G$58))*($G$60-$G$59)/$G$61,$G$60))) -> 0.8833333333 | AX217: =IF(AX$201<=$G$58, $G$59, MIN($G$60, IFERROR($G$59+4*(DATE2NUM(AX$201)-DATE2NUM($G$58))*($G$60-$G$59)/$G$61,$G$60))) -> 0.8916666667 | AY217: =IF(AY$201<=$G$58, $G$59, MIN($G$60, IFERROR($G$59+4*(DATE2NUM(AY$201)-DATE2NUM($G$58))*($G$60-$G$59)/$G$61,$G$60))) -> 0.9 | AZ217: =IF(AZ$201<=$G$58, $G$59, MIN($G$60, IFERROR($G$59+4*(DATE2NUM(AZ$201)-DATE2NUM($G$58))*($G$60-$G$59)/$G$61,$G$60))) -> 0.9 | BA217: =IF(BA$201<=$G$58, $G$59, MIN($G$60, IFERROR($G$59+4*(DATE2NUM(BA$201)-DATE2NUM($G$58))*($G$60-$G$59)/$G$61,$G$60))) -> 0.9 | BB217: =IF(BB$201<=$G$58, $G$59, MIN($G$60, IFERROR($G$59+4*(DATE2NUM(BB$201)-DATE2NUM($G$58))*($G$60-$G$59)/$G$61,$G$60))) -> 0.9 | BC217: =IF(BC$201<=$G$58, $G$59, MIN($G$60, IFERROR($G$59+4*(DATE2NUM(BC$201)-DATE2NUM($G$58))*($G$60-$G$59)/$G$61,$G$60))) -> 0.9 | BD217: =IF(BD$201<=$G$58, $G$59, MIN($G$60, IFERROR($G$59+4*(DATE2NUM(BD$201)-DATE2NUM($G$58))*($G$60-$G$59)/$G$61,$G$60))) -> 0.9 | BE217: =IF(BE$201<=$G$58, $G$59, MIN($G$60, IFERROR($G$59+4*(DATE2NUM(BE$201)-DATE2NUM($G$58))*($G$60-$G$59)/$G$61,$G$60))) -> 0.9 | BF217: =IF(BF$201<=$G$58, $G$59, MIN($G$60, IFERROR($G$59+4*(DATE2NUM(BF$201)-DATE2NUM($G$58))*($G$60-$G$59)/$G$61,$G$60))) -> 0.9 | BG217: =IF(BG$201<=$G$58, $G$59, MIN($G$60, IFERROR($G$59+4*(DATE2NUM(BG$201)-DATE2NUM($G$58))*($G$60-$G$59)/$G$61,$G$60))) -> 0.9 | BH217: =IF(BH$201<=$G$58, $G$59, MIN($G$60, IFERROR($G$59+4*(DATE2NUM(BH$201)-DATE2NUM($G$58))*($G$60-$G$59)/$G$61,$G$60))) -> 0.9 | BI217: =IF(BI$201<=$G$58, $G$59, MIN($G$60, IFERROR($G$59+4*(DATE2NUM(BI$201)-DATE2NUM($G$58))*($G$60-$G$59)/$G$61,$G$60))) -> 0.9 | BJ217: =IF(BJ$201<=$G$58, $G$59, MIN($G$60, IFERROR($G$59+4*(DATE2NUM(BJ$201)-DATE2NUM($G$58))*($G$60-$G$59)/$G$61,$G$60))) -> 0.9 | BK217: =IF(BK$201<=$G$58, $G$59, MIN($G$60, IFERROR($G$59+4*(DATE2NUM(BK$201)-DATE2NUM($G$58))*($G$60-$G$59)/$G$61,$G$60))) -> 0.9 | BL217: =IF(BL$201<=$G$58, $G$59, MIN($G$60, IFERROR($G$59+4*(DATE2NUM(BL$201)-DATE2NUM($G$58))*($G$60-$G$59)/$G$61,$G$60))) -> 0.9 | BM217: =IF(BM$201<=$G$58, $G$59, MIN($G$60, IFERROR($G$59+4*(DATE2NUM(BM$201)-DATE2NUM($G$58))*($G$60-$G$59)/$G$61,$G$60))) -> 0.9 | BN217: =IF(BN$201<=$G$58, $G$59, MIN($G$60, IFERROR($G$59+4*(DATE2NUM(BN$201)-DATE2NUM($G$58))*($G$60-$G$59)/$G$61,$G$60))) -> 0.9 | BO217: =IF(BO$201<=$G$58, $G$59, MIN($G$60, IFERROR($G$59+4*(DATE2NUM(BO$201)-DATE2NUM($G$58))*($G$60-$G$59)/$G$61,$G$60))) -> 0.9 | BP217: =IF(BP$201<=$G$58, $G$59, MIN($G$60, IFERROR($G$59+4*(DATE2NUM(BP$201)-DATE2NUM($G$58))*($G$60-$G$59)/$G$61,$G$60))) -> 0.9 | BQ217: =IF(BQ$201<=$G$58, $G$59, MIN($G$60, IFERROR($G$59+4*(DATE2NUM(BQ$201)-DATE2NUM($G$58))*($G$60-$G$59)/$G$61,$G$60))) -> 0.9 | BR217: =IF(BR$201<=$G$58, $G$59, MIN($G$60, IFERROR($G$59+4*(DATE2NUM(BR$201)-DATE2NUM($G$58))*($G$60-$G$59)/$G$61,$G$60))) -> 0.9 | BS217: =IF(BS$201<=$G$58, $G$59, MIN($G$60, IFERROR($G$59+4*(DATE2NUM(BS$201)-DATE2NUM($G$58))*($G$60-$G$59)/$G$61,$G$60))) -> 0.9 | BT217: =IF(BT$201<=$G$58, $G$59, MIN($G$60, IFERROR($G$59+4*(DATE2NUM(BT$201)-DATE2NUM($G$58))*($G$60-$G$59)/$G$61,$G$60))) -> 0.9 | BU217: =IF(BU$201<=$G$58, $G$59, MIN($G$60, IFERROR($G$59+4*(DATE2NUM(BU$201)-DATE2NUM($G$58))*($G$60-$G$59)/$G$61,$G$60))) -> 0.9 | BV217: =IF(BV$201<=$G$58, $G$59, MIN($G$60, IFERROR($G$59+4*(DATE2NUM(BV$201)-DATE2NUM($G$58))*($G$60-$G$59)/$G$61,$G$60))) -> 0.9 | BW217: =IF(BW$201<=$G$58, $G$59, MIN($G$60, IFERROR($G$59+4*(DATE2NUM(BW$201)-DATE2NUM($G$58))*($G$60-$G$59)/$G$61,$G$60))) -> 0.9 | BX217: =IF(BX$201<=$G$58, $G$59, MIN($G$60, IFERROR($G$59+4*(DATE2NUM(BX$201)-DATE2NUM($G$58))*($G$60-$G$59)/$G$61,$G$60))) -> 0.9 | BY217: =IF(BY$201<=$G$58, $G$59, MIN($G$60, IFERROR($G$59+4*(DATE2NUM(BY$201)-DATE2NUM($G$58))*($G$60-$G$59)/$G$61,$G$60))) -> 0.9 | BZ217: =IF(BZ$201<=$G$58, $G$59, MIN($G$60, IFERROR($G$59+4*(DATE2NUM(BZ$201)-DATE2NUM($G$58))*($G$60-$G$59)/$G$61,$G$60))) -> 0.9 | CA217: =IF(CA$201<=$G$58, $G$59, MIN($G$60, IFERROR($G$59+4*(DATE2NUM(CA$201)-DATE2NUM($G$58))*($G$60-$G$59)/$G$61,$G$60))) -> 0.9 | CB217: =IF(CB$201<=$G$58, $G$59, MIN($G$60, IFERROR($G$59+4*(DATE2NUM(CB$201)-DATE2NUM($G$58))*($G$60-$G$59)/$G$61,$G$60))) -> 0.9 | CC217: =IF(CC$201<=$G$58, $G$59, MIN($G$60, IFERROR($G$59+4*(DATE2NUM(CC$201)-DATE2NUM($G$58))*($G$60-$G$59)/$G$61,$G$60))) -> 0.9 | CD217: =IF(CD$201<=$G$58, $G$59, MIN($G$60, IFERROR($G$59+4*(DATE2NUM(CD$201)-DATE2NUM($G$58))*($G$60-$G$59)/$G$61,$G$60))) -> 0.9 | CE217: =IF(CE$201<=$G$58, $G$59, MIN($G$60, IFERROR($G$59+4*(DATE2NUM(CE$201)-DATE2NUM($G$58))*($G$60-$G$59)/$G$61,$G$60))) -> 0.9 | CF217: =IF(CF$201<=$G$58, $G$59, MIN($G$60, IFERROR($G$59+4*(DATE2NUM(CF$201)-DATE2NUM($G$58))*($G$60-$G$59)/$G$61,$G$60))) -> 0.9 | CG217: =IF(CG$201<=$G$58, $G$59, MIN($G$60, IFERROR($G$59+4*(DATE2NUM(CG$201)-DATE2NUM($G$58))*($G$60-$G$59)/$G$61,$G$60))) -> 0.9 | CH217: =IF(CH$201<=$G$58, $G$59, MIN($G$60, IFERROR($G$59+4*(DATE2NUM(CH$201)-DATE2NUM($G$58))*($G$60-$G$59)/$G$61,$G$60))) -> 0.9 | CI217: =IF(CI$201<=$G$58, $G$59, MIN($G$60, IFERROR($G$59+4*(DATE2NUM(CI$201)-DATE2NUM($G$58))*($G$60-$G$59)/$G$61,$G$60))) -> 0.9 | CJ217: =IF(CJ$201<=$G$58, $G$59, MIN($G$60, IFERROR($G$59+4*(DATE2NUM(CJ$201)-DATE2NUM($G$58))*($G$60-$G$59)/$G$61,$G$60))) -> 0.9 | CK217: =IF(CK$201<=$G$58, $G$59, MIN($G$60, IFERROR($G$59+4*(DATE2NUM(CK$201)-DATE2NUM($G$58))*($G$60-$G$59)/$G$61,$G$60))) -> 0.9 | CL217: =IF(CL$201<=$G$58, $G$59, MIN($G$60, IFERROR($G$59+4*(DATE2NUM(CL$201)-DATE2NUM($G$58))*($G$60-$G$59)/$G$61,$G$60))) -> 0.9 | CM217: =IF(CM$201<=$G$58, $G$59, MIN($G$60, IFERROR($G$59+4*(DATE2NUM(CM$201)-DATE2NUM($G$58))*($G$60-$G$59)/$G$61,$G$60))) -> 0.9 | CN217: =IF(CN$201<=$G$58, $G$59, MIN($G$60, IFERROR($G$59+4*(DATE2NUM(CN$201)-DATE2NUM($G$58))*($G$60-$G$59)/$G$61,$G$60))) -> 0.9 | CO217: =IF(CO$201<=$G$58, $G$59, MIN($G$60, IFERROR($G$59+4*(DATE2NUM(CO$201)-DATE2NUM($G$58))*($G$60-$G$59)/$G$61,$G$60))) -> 0.9 | CP217: =IF(CP$201<=$G$58, $G$59, MIN($G$60, IFERROR($G$59+4*(DATE2NUM(CP$201)-DATE2NUM($G$58))*($G$60-$G$59)/$G$61,$G$60))) -> 0.9 | CQ217: =IF(CQ$201<=$G$58, $G$59, MIN($G$60, IFERROR($G$59+4*(DATE2NUM(CQ$201)-DATE2NUM($G$58))*($G$60-$G$59)/$G$61,$G$60))) -> 0.9 | CR217: =IF(CR$201<=$G$58, $G$59, MIN($G$60, IFERROR($G$59+4*(DATE2NUM(CR$201)-DATE2NUM($G$58))*($G$60-$G$59)/$G$61,$G$60))) -> 0.9 | CS217: =IF(CS$201<=$G$58, $G$59, MIN($G$60, IFERROR($G$59+4*(DATE2NUM(CS$201)-DATE2NUM($G$58))*($G$60-$G$59)/$G$61,$G$60))) -> 0.9 | CT217: =IF(CT$201<=$G$58, $G$59, MIN($G$60, IFERROR($G$59+4*(DATE2NUM(CT$201)-DATE2NUM($G$58))*($G$60-$G$59)/$G$61,$G$60))) -> 0.9 | CU217: =IF(CU$201<=$G$58, $G$59, MIN($G$60, IFERROR($G$59+4*(DATE2NUM(CU$201)-DATE2NUM($G$58))*($G$60-$G$59)/$G$61,$G$60))) -> 0.9 | CV217: =IF(CV$201<=$G$58, $G$59, MIN($G$60, IFERROR($G$59+4*(DATE2NUM(CV$201)-DATE2NUM($G$58))*($G$60-$G$59)/$G$61,$G$60))) -> 0.9 | CW217: =IF(CW$201<=$G$58, $G$59, MIN($G$60, IFERROR($G$59+4*(DATE2NUM(CW$201)-DATE2NUM($G$58))*($G$60-$G$59)/$G$61,$G$60))) -> 0.9 | CX217: =IF(CX$201<=$G$58, $G$59, MIN($G$60, IFERROR($G$59+4*(DATE2NUM(CX$201)-DATE2NUM($G$58))*($G$60-$G$59)/$G$61,$G$60))) -> 0.9 | CY217: =IF(CY$201<=$G$58, $G$59, MIN($G$60, IFERROR($G$59+4*(DATE2NUM(CY$201)-DATE2NUM($G$58))*($G$60-$G$59)/$G$61,$G$60))) -> 0.9 | CZ217: =IF(CZ$201<=$G$58, $G$59, MIN($G$60, IFERROR($G$59+4*(DATE2NUM(CZ$201)-DATE2NUM($G$58))*($G$60-$G$59)/$G$61,$G$60))) -> 0.9 | DA217: =IF(DA$201<=$G$58, $G$59, MIN($G$60, IFERROR($G$59+4*(DATE2NUM(DA$201)-DATE2NUM($G$58))*($G$60-$G$59)/$G$61,$G$60))) -> 0.9 | DB217: =IF(DB$201<=$G$58, $G$59, MIN($G$60, IFERROR($G$59+4*(DATE2NUM(DB$201)-DATE2NUM($G$58))*($G$60-$G$59)/$G$61,$G$60))) -> 0.9 | DC217: =IF(DC$201<=$G$58, $G$59, MIN($G$60, IFERROR($G$59+4*(DATE2NUM(DC$201)-DATE2NUM($G$58))*($G$60-$G$59)/$G$61,$G$60))) -> 0.9 | DD217: =IF(DD$201<=$G$58, $G$59, MIN($G$60, IFERROR($G$59+4*(DATE2NUM(DD$201)-DATE2NUM($G$58))*($G$60-$G$59)/$G$61,$G$60))) -> 0.9 | DE217: =IF(DE$201<=$G$58, $G$59, MIN($G$60, IFERROR($G$59+4*(DATE2NUM(DE$201)-DATE2NUM($G$58))*($G$60-$G$59)/$G$61,$G$60))) -> 0.9 | DF217: =IF(DF$201<=$G$58, $G$59, MIN($G$60, IFERROR($G$59+4*(DATE2NUM(DF$201)-DATE2NUM($G$58))*($G$60-$G$59)/$G$61,$G$60))) -> 0.9 | DG217: =IF(DG$201<=$G$58, $G$59, MIN($G$60, IFERROR($G$59+4*(DATE2NUM(DG$201)-DATE2NUM($G$58))*($G$60-$G$59)/$G$61,$G$60))) -> 0.9 | DH217: =IF(DH$201<=$G$58, $G$59, MIN($G$60, IFERROR($G$59+4*(DATE2NUM(DH$201)-DATE2NUM($G$58))*($G$60-$G$59)/$G$61,$G$60))) -> 0.9 | DI217: =IF(DI$201<=$G$58, $G$59, MIN($G$60, IFERROR($G$59+4*(DATE2NUM(DI$201)-DATE2NUM($G$58))*($G$60-$G$59)/$G$61,$G$60))) -> 0.9 | DJ217: =IF(DJ$201<=$G$58, $G$59, MIN($G$60, IFERROR($G$59+4*(DATE2NUM(DJ$201)-DATE2NUM($G$58))*($G$60-$G$59)/$G$61,$G$60))) -> 0.9 | DK217: =IF(DK$201<=$G$58, $G$59, MIN($G$60, IFERROR($G$59+4*(DATE2NUM(DK$201)-DATE2NUM($G$58))*($G$60-$G$59)/$G$61,$G$60))) -> 0.9 | DL217: =IF(DL$201<=$G$58, $G$59, MIN($G$60, IFERROR($G$59+4*(DATE2NUM(DL$201)-DATE2NUM($G$58))*($G$60-$G$59)/$G$61,$G$60))) -> 0.9 | DM217: =IF(DM$201<=$G$58, $G$59, MIN($G$60, IFERROR($G$59+4*(DATE2NUM(DM$201)-DATE2NUM($G$58))*($G$60-$G$59)/$G$61,$G$60))) -> 0.9 | DN217: =IF(DN$201<=$G$58, $G$59, MIN($G$60, IFERROR($G$59+4*(DATE2NUM(DN$201)-DATE2NUM($G$58))*($G$60-$G$59)/$G$61,$G$60))) -> 0.9 | DO217: =IF(DO$201<=$G$58, $G$59, MIN($G$60, IFERROR($G$59+4*(DATE2NUM(DO$201)-DATE2NUM($G$58))*($G$60-$G$59)/$G$61,$G$60))) -> 0.9 | DP217: =IF(DP$201<=$G$58, $G$59, MIN($G$60, IFERROR($G$59+4*(DATE2NUM(DP$201)-DATE2NUM($G$58))*($G$60-$G$59)/$G$61,$G$60))) -> 0.9 | DQ217: =IF(DQ$201<=$G$58, $G$59, MIN($G$60, IFERROR($G$59+4*(DATE2NUM(DQ$201)-DATE2NUM($G$58))*($G$60-$G$59)/$G$61,$G$60))) -> 0.9 | DR217: =IF(DR$201<=$G$58, $G$59, MIN($G$60, IFERROR($G$59+4*(DATE2NUM(DR$201)-DATE2NUM($G$58))*($G$60-$G$59)/$G$61,$G$60))) -> 0.9 | DS217: =IF(DS$201<=$G$58, $G$59, MIN($G$60, IFERROR($G$59+4*(DATE2NUM(DS$201)-DATE2NUM($G$58))*($G$60-$G$59)/$G$61,$G$60))) -> 0.9 | DT217: =IF(DT$201<=$G$58, $G$59, MIN($G$60, IFERROR($G$59+4*(DATE2NUM(DT$201)-DATE2NUM($G$58))*($G$60-$G$59)/$G$61,$G$60))) -> 0.9 | DU217: =IF(DU$201<=$G$58, $G$59, MIN($G$60, IFERROR($G$59+4*(DATE2NUM(DU$201)-DATE2NUM($G$58))*($G$60-$G$59)/$G$61,$G$60))) -> 0.9 | DV217: =IF(DV$201<=$G$58, $G$59, MIN($G$60, IFERROR($G$59+4*(DATE2NUM(DV$201)-DATE2NUM($G$58))*($G$60-$G$59)/$G$61,$G$60))) -> 0.9
B218: % Treatable | G218: =$G$62 -> 0.35 | H218: 0.35 | I218: 0.35 | J218: 0.35 | K218: 0.35 | L218: 0.35 | M218: 0.35 | N218: 0.35 | O218: 0.35 | P218: 0.35 | Q218: 0.35 | R218: 0.35 | S218: 0.35 | T218: 0.35 | U218: 0.35 | V218: 0.35 | W218: 0.35 | X218: 0.35 | Y218: 0.35 | Z218: 0.35 | AA218: 0.35 | AB218: 0.35 | AC218: 0.35 | AD218: 0.35 | AE218: 0.35 | AF218: 0.35 | AG218: 0.35 | AH218: 0.35 | AI218: 0.35 | AJ218: 0.35 | AK218: 0.35 | AL218: 0.35 | AM218: =$G$62 -> 0.35 | AN218: 0.35 | AO218: 0.35 | AP218: 0.35 | AQ218: 0.35 | AR218: 0.35 | AS218: 0.35 | AT218: 0.35 | AU218: 0.35 | AV218: 0.35 | AW218: 0.35 | AX218: 0.35 | AY218: 0.35 | AZ218: 0.35 | BA218: 0.35 | BB218: 0.35 | BC218: 0.35 | BD218: 0.35 | BE218: 0.35 | BF218: 0.35 | BG218: 0.35 | BH218: 0.35 | BI218: 0.35 | BJ218: 0.35 | BK218: 0.35 | BL218: 0.35 | BM218: 0.35 | BN218: 0.35 | BO218: 0.35 | BP218: 0.35 | BQ218: 0.35 | BR218: 0.35 | BS218: =$G$62 -> 0.35 | BT218: 0.35 | BU218: 0.35 | BV218: 0.35 | BW218: 0.35 | BX218: 0.35 | BY218: 0.35 | BZ218: 0.35 | CA218: 0.35 | CB218: 0.35 | CC218: 0.35 | CD218: 0.35 | CE218: 0.35 | CF218: 0.35 | CG218: 0.35 | CH218: 0.35 | CI218: 0.35 | CJ218: 0.35 | CK218: 0.35 | CL218: 0.35 | CM218: 0.35 | CN218: 0.35 | CO218: 0.35 | CP218: 0.35 | CQ218: 0.35 | CR218: 0.35 | CS218: 0.35 | CT218: 0.35 | CU218: 0.35 | CV218: 0.35 | CW218: 0.35 | CX218: 0.35 | CY218: =$G$62 -> 0.35 | CZ218: 0.35 | DA218: 0.35 | DB218: 0.35 | DC218: 0.35 | DD218: 0.35 | DE218: 0.35 | DF218: 0.35 | DG218: 0.35 | DH218: 0.35 | DI218: 0.35 | DJ218: 0.35 | DK218: 0.35 | DL218: 0.35 | DM218: 0.35 | DN218: 0.35 | DO218: 0.35 | DP218: 0.35 | DQ218: 0.35 | DR218: 0.35 | DS218: 0.35 | DT218: 0.35 | DU218: 0.35 | DV218: 0.35
B219: Market Share | G219: =IF(G$201<$G$71, 0, IF(G$201>$G$72, F219*(1-$G$73)^(1/4), $G$67*INDEX($G$190:$DV$192,MATCH($F$64,$B$190:$B$192,0),MATCH(4*(DATE2NUM(G$201)-DATE2NUM($G$71)),$G$189:$DV$189, 0)))) -> 0 | H219: =IF(H$201<$G$71, 0, IF(H$201>$G$72, G219*(1-$G$73)^(1/4), $G$67*INDEX($G$190:$DV$192,MATCH($F$64,$B$190:$B$192,0),MATCH(4*(DATE2NUM(H$201)-DATE2NUM($G$71)),$G$189:$DV$189, 0)))) -> 0 | I219: =IF(I$201<$G$71, 0, IF(I$201>$G$72, H219*(1-$G$73)^(1/4), $G$67*INDEX($G$190:$DV$192,MATCH($F$64,$B$190:$B$192,0),MATCH(4*(DATE2NUM(I$201)-DATE2NUM($G$71)),$G$189:$DV$189, 0)))) -> 0 | J219: =IF(J$201<$G$71, 0, IF(J$201>$G$72, I219*(1-$G$73)^(1/4), $G$67*INDEX($G$190:$DV$192,MATCH($F$64,$B$190:$B$192,0),MATCH(4*(DATE2NUM(J$201)-DATE2NUM($G$71)),$G$189:$DV$189, 0)))) -> 0 | K219: =IF(K$201<$G$71, 0, IF(K$201>$G$72, J219*(1-$G$73)^(1/4), $G$67*INDEX($G$190:$DV$192,MATCH($F$64,$B$190:$B$192,0),MATCH(4*(DATE2NUM(K$201)-DATE2NUM($G$71)),$G$189:$DV$189, 0)))) -> 0 | L219: =IF(L$201<$G$71, 0, IF(L$201>$G$72, K219*(1-$G$73)^(1/4), $G$67*INDEX($G$190:$DV$192,MATCH($F$64,$B$190:$B$192,0),MATCH(4*(DATE2NUM(L$201)-DATE2NUM($G$71)),$G$189:$DV$189, 0)))) -> 0 | M219: =IF(M$201<$G$71, 0, IF(M$201>$G$72, L219*(1-$G$73)^(1/4), $G$67*INDEX($G$190:$DV$192,MATCH($F$64,$B$190:$B$192,0),MATCH(4*(DATE2NUM(M$201)-DATE2NUM($G$71)),$G$189:$DV$189, 0)))) -> 0 | N219: =IF(N$201<$G$71, 0, IF(N$201>$G$72, M219*(1-$G$73)^(1/4), $G$67*INDEX($G$190:$DV$192,MATCH($F$64,$B$190:$B$192,0),MATCH(4*(DATE2NUM(N$201)-DATE2NUM($G$71)),$G$189:$DV$189, 0)))) -> 0 | O219: =IF(O$201<$G$71, 0, IF(O$201>$G$72, N219*(1-$G$73)^(1/4), $G$67*INDEX($G$190:$DV$192,MATCH($F$64,$B$190:$B$192,0),MATCH(4*(DATE2NUM(O$201)-DATE2NUM($G$71)),$G$189:$DV$189, 0)))) -> 0 | P219: =IF(P$201<$G$71, 0, IF(P$201>$G$72, O219*(1-$G$73)^(1/4), $G$67*INDEX($G$190:$DV$192,MATCH($F$64,$B$190:$B$192,0),MATCH(4*(DATE2NUM(P$201)-DATE2NUM($G$71)),$G$189:$DV$189, 0)))) -> 0 | Q219: =IF(Q$201<$G$71, 0, IF(Q$201>$G$72, P219*(1-$G$73)^(1/4), $G$67*INDEX($G$190:$DV$192,MATCH($F$64,$B$190:$B$192,0),MATCH(4*(DATE2NUM(Q$201)-DATE2NUM($G$71)),$G$189:$DV$189, 0)))) -> 0 | R219: =IF(R$201<$G$71, 0, IF(R$201>$G$72, Q219*(1-$G$73)^(1/4), $G$67*INDEX($G$190:$DV$192,MATCH($F$64,$B$190:$B$192,0),MATCH(4*(DATE2NUM(R$201)-DATE2NUM($G$71)),$G$189:$DV$189, 0)))) -> 0 | S219: =IF(S$201<$G$71, 0, IF(S$201>$G$72, R219*(1-$G$73)^(1/4), $G$67*INDEX($G$190:$DV$192,MATCH($F$64,$B$190:$B$192,0),MATCH(4*(DATE2NUM(S$201)-DATE2NUM($G$71)),$G$189:$DV$189, 0)))) -> 0 | T219: =IF(T$201<$G$71, 0, IF(T$201>$G$72, S219*(1-$G$73)^(1/4), $G$67*INDEX($G$190:$DV$192,MATCH($F$64,$B$190:$B$192,0),MATCH(4*(DATE2NUM(T$201)-DATE2NUM($G$71)),$G$189:$DV$189, 0)))) -> 0 | U219: =IF(U$201<$G$71, 0, IF(U$201>$G$72, T219*(1-$G$73)^(1/4), $G$67*INDEX($G$190:$DV$192,MATCH($F$64,$B$190:$B$192,0),MATCH(4*(DATE2NUM(U$201)-DATE2NUM($G$71)),$G$189:$DV$189, 0)))) -> 0 | V219: =IF(V$201<$G$71, 0, IF(V$201>$G$72, U219*(1-$G$73)^(1/4), $G$67*INDEX($G$190:$DV$192,MATCH($F$64,$B$190:$B$192,0),MATCH(4*(DATE2NUM(V$201)-DATE2NUM($G$71)),$G$189:$DV$189, 0)))) -> 0 | W219: =IF(W$201<$G$71, 0, IF(W$201>$G$72, V219*(1-$G$73)^(1/4), $G$67*INDEX($G$190:$DV$192,MATCH($F$64,$B$190:$B$192,0),MATCH(4*(DATE2NUM(W$201)-DATE2NUM($G$71)),$G$189:$DV$189, 0)))) -> 0 | X219: =IF(X$201<$G$71, 0, IF(X$201>$G$72, W219*(1-$G$73)^(1/4), $G$67*INDEX($G$190:$DV$192,MATCH($F$64,$B$190:$B$192,0),MATCH(4*(DATE2NUM(X$201)-DATE2NUM($G$71)),$G$189:$DV$189, 0)))) -> 0 | Y219: =IF(Y$201<$G$71, 0, IF(Y$201>$G$72, X219*(1-$G$73)^(1/4), $G$67*INDEX($G$190:$DV$192,MATCH($F$64,$B$190:$B$192,0),MATCH(4*(DATE2NUM(Y$201)-DATE2NUM($G$71)),$G$189:$DV$189, 0)))) -> 0 | Z219: =IF(Z$201<$G$71, 0, IF(Z$201>$G$72, Y219*(1-$G$73)^(1/4), $G$67*INDEX($G$190:$DV$192,MATCH($F$64,$B$190:$B$192,0),MATCH(4*(DATE2NUM(Z$201)-DATE2NUM($G$71)),$G$189:$DV$189, 0)))) -> 0 | AA219: =IF(AA$201<$G$71, 0, IF(AA$201>$G$72, Z219*(1-$G$73)^(1/4), $G$67*INDEX($G$190:$DV$192,MATCH($F$64,$B$190:$B$192,0),MATCH(4*(DATE2NUM(AA$201)-DATE2NUM($G$71)),$G$189:$DV$189, 0)))) -> 0 | AB219: =IF(AB$201<$G$71, 0, IF(AB$201>$G$72, AA219*(1-$G$73)^(1/4), $G$67*INDEX($G$190:$DV$192,MATCH($F$64,$B$190:$B$192,0),MATCH(4*(DATE2NUM(AB$201)-DATE2NUM($G$71)),$G$189:$DV$189, 0)))) -> 0 | AC219: =IF(AC$201<$G$71, 0, IF(AC$201>$G$72, AB219*(1-$G$73)^(1/4), $G$67*INDEX($G$190:$DV$192,MATCH($F$64,$B$190:$B$192,0),MATCH(4*(DATE2NUM(AC$201)-DATE2NUM($G$71)),$G$189:$DV$189, 0)))) -> 0 | AD219: =IF(AD$201<$G$71, 0, IF(AD$201>$G$72, AC219*(1-$G$73)^(1/4), $G$67*INDEX($G$190:$DV$192,MATCH($F$64,$B$190:$B$192,0),MATCH(4*(DATE2NUM(AD$201)-DATE2NUM($G$71)),$G$189:$DV$189, 0)))) -> 0 | AE219: =IF(AE$201<$G$71, 0, IF(AE$201>$G$72, AD219*(1-$G$73)^(1/4), $G$67*INDEX($G$190:$DV$192,MATCH($F$64,$B$190:$B$192,0),MATCH(4*(DATE2NUM(AE$201)-DATE2NUM($G$71)),$G$189:$DV$189, 0)))) -> 0 | AF219: =IF(AF$201<$G$71, 0, IF(AF$201>$G$72, AE219*(1-$G$73)^(1/4), $G$67*INDEX($G$190:$DV$192,MATCH($F$64,$B$190:$B$192,0),MATCH(4*(DATE2NUM(AF$201)-DATE2NUM($G$71)),$G$189:$DV$189, 0)))) -> 0 | AG219: =IF(AG$201<$G$71, 0, IF(AG$201>$G$72, AF219*(1-$G$73)^(1/4), $G$67*INDEX($G$190:$DV$192,MATCH($F$64,$B$190:$B$192,0),MATCH(4*(DATE2NUM(AG$201)-DATE2NUM($G$71)),$G$189:$DV$189, 0)))) -> 0 | AH219: =IF(AH$201<$G$71, 0, IF(AH$201>$G$72, AG219*(1-$G$73)^(1/4), $G$67*INDEX($G$190:$DV$192,MATCH($F$64,$B$190:$B$192,0),MATCH(4*(DATE2NUM(AH$201)-DATE2NUM($G$71)),$G$189:$DV$189, 0)))) -> 0 | AI219: =IF(AI$201<$G$71, 0, IF(AI$201>$G$72, AH219*(1-$G$73)^(1/4), $G$67*INDEX($G$190:$DV$192,MATCH($F$64,$B$190:$B$192,0),MATCH(4*(DATE2NUM(AI$201)-DATE2NUM($G$71)),$G$189:$DV$189, 0)))) -> 0 | AJ219: =IF(AJ$201<$G$71, 0, IF(AJ$201>$G$72, AI219*(1-$G$73)^(1/4), $G$67*INDEX($G$190:$DV$192,MATCH($F$64,$B$190:$B$192,0),MATCH(4*(DATE2NUM(AJ$201)-DATE2NUM($G$71)),$G$189:$DV$189, 0)))) -> 0 | AK219: =IF(AK$201<$G$71, 0, IF(AK$201>$G$72, AJ219*(1-$G$73)^(1/4), $G$67*INDEX($G$190:$DV$192,MATCH($F$64,$B$190:$B$192,0),MATCH(4*(DATE2NUM(AK$201)-DATE2NUM($G$71)),$G$189:$DV$189, 0)))) -> 0 | AL219: =IF(AL$201<$G$71, 0, IF(AL$201>$G$72, AK219*(1-$G$73)^(1/4), $G$67*INDEX($G$190:$DV$192,MATCH($F$64,$B$190:$B$192,0),MATCH(4*(DATE2NUM(AL$201)-DATE2NUM($G$71)),$G$189:$DV$189, 0)))) -> 0 | AM219: =IF(AM$201<$G$71, 0, IF(AM$201>$G$72, AL219*(1-$G$73)^(1/4), $G$67*INDEX($G$190:$DV$192,MATCH($F$64,$B$190:$B$192,0),MATCH(4*(DATE2NUM(AM$201)-DATE2NUM($G$71)),$G$189:$DV$189, 0)))) -> 0 | AN219: =IF(AN$201<$G$71, 0, IF(AN$201>$G$72, AM219*(1-$G$73)^(1/4), $G$67*INDEX($G$190:$DV$192,MATCH($F$64,$B$190:$B$192,0),MATCH(4*(DATE2NUM(AN$201)-DATE2NUM($G$71)),$G$189:$DV$189, 0)))) -> 0 | AO219: =IF(AO$201<$G$71, 0, IF(AO$201>$G$72, AN219*(1-$G$73)^(1/4), $G$67*INDEX($G$190:$DV$192,MATCH($F$64,$B$190:$B$192,0),MATCH(4*(DATE2NUM(AO$201)-DATE2NUM($G$71)),$G$189:$DV$189, 0)))) -> 0 | AP219: =IF(AP$201<$G$71, 0, IF(AP$201>$G$72, AO219*(1-$G$73)^(1/4), $G$67*INDEX($G$190:$DV$192,MATCH($F$64,$B$190:$B$192,0),MATCH(4*(DATE2NUM(AP$201)-DATE2NUM($G$71)),$G$189:$DV$189, 0)))) -> 0 | AQ219: =IF(AQ$201<$G$71, 0, IF(AQ$201>$G$72, AP219*(1-$G$73)^(1/4), $G$67*INDEX($G$190:$DV$192,MATCH($F$64,$B$190:$B$192,0),MATCH(4*(DATE2NUM(AQ$201)-DATE2NUM($G$71)),$G$189:$DV$189, 0)))) -> 0 | AR219: =IF(AR$201<$G$71, 0, IF(AR$201>$G$72, AQ219*(1-$G$73)^(1/4), $G$67*INDEX($G$190:$DV$192,MATCH($F$64,$B$190:$B$192,0),MATCH(4*(DATE2NUM(AR$201)-DATE2NUM($G$71)),$G$189:$DV$189, 0)))) -> 0 | AS219: =IF(AS$201<$G$71, 0, IF(AS$201>$G$72, AR219*(1-$G$73)^(1/4), $G$67*INDEX($G$190:$DV$192,MATCH($F$64,$B$190:$B$192,0),MATCH(4*(DATE2NUM(AS$201)-DATE2NUM($G$71)),$G$189:$DV$189, 0)))) -> 0 | AT219: =IF(AT$201<$G$71, 0, IF(AT$201>$G$72, AS219*(1-$G$73)^(1/4), $G$67*INDEX($G$190:$DV$192,MATCH($F$64,$B$190:$B$192,0),MATCH(4*(DATE2NUM(AT$201)-DATE2NUM($G$71)),$G$189:$DV$189, 0)))) -> 0 | AU219: =IF(AU$201<$G$71, 0, IF(AU$201>$G$72, AT219*(1-$G$73)^(1/4), $G$67*INDEX($G$190:$DV$192,MATCH($F$64,$B$190:$B$192,0),MATCH(4*(DATE2NUM(AU$201)-DATE2NUM($G$71)),$G$189:$DV$189, 0)))) -> 0.02083333333 | AV219: =IF(AV$201<$G$71, 0, IF(AV$201>$G$72, AU219*(1-$G$73)^(1/4), $G$67*INDEX($G$190:$DV$192,MATCH($F$64,$B$190:$B$192,0),MATCH(4*(DATE2NUM(AV$201)-DATE2NUM($G$71)),$G$189:$DV$189, 0)))) -> 0.04166666667 | AW219: =IF(AW$201<$G$71, 0, IF(AW$201>$G$72, AV219*(1-$G$73)^(1/4), $G$67*INDEX($G$190:$DV$192,MATCH($F$64,$B$190:$B$192,0),MATCH(4*(DATE2NUM(AW$201)-DATE2NUM($G$71)),$G$189:$DV$189, 0)))) -> 0.0625 | AX219: =IF(AX$201<$G$71, 0, IF(AX$201>$G$72, AW219*(1-$G$73)^(1/4), $G$67*INDEX($G$190:$DV$192,MATCH($F$64,$B$190:$B$192,0),MATCH(4*(DATE2NUM(AX$201)-DATE2NUM($G$71)),$G$189:$DV$189, 0)))) -> 0.08333333333 | AY219: =IF(AY$201<$G$71, 0, IF(AY$201>$G$72, AX219*(1-$G$73)^(1/4), $G$67*INDEX($G$190:$DV$192,MATCH($F$64,$B$190:$B$192,0),MATCH(4*(DATE2NUM(AY$201)-DATE2NUM($G$71)),$G$189:$DV$189, 0)))) -> 0.1041666667 | AZ219: =IF(AZ$201<$G$71, 0, IF(AZ$201>$G$72, AY219*(1-$G$73)^(1/4), $G$67*INDEX($G$190:$DV$192,MATCH($F$64,$B$190:$B$192,0),MATCH(4*(DATE2NUM(AZ$201)-DATE2NUM($G$71)),$G$189:$DV$189, 0)))) -> 0.125 | BA219: =IF(BA$201<$G$71, 0, IF(BA$201>$G$72, AZ219*(1-$G$73)^(1/4), $G$67*INDEX($G$190:$DV$192,MATCH($F$64,$B$190:$B$192,0),MATCH(4*(DATE2NUM(BA$201)-DATE2NUM($G$71)),$G$189:$DV$189, 0)))) -> 0.1458333333 | BB219: =IF(BB$201<$G$71, 0, IF(BB$201>$G$72, BA219*(1-$G$73)^(1/4), $G$67*INDEX($G$190:$DV$192,MATCH($F$64,$B$190:$B$192,0),MATCH(4*(DATE2NUM(BB$201)-DATE2NUM($G$71)),$G$189:$DV$189, 0)))) -> 0.1666666667 | BC219: =IF(BC$201<$G$71, 0, IF(BC$201>$G$72, BB219*(1-$G$73)^(1/4), $G$67*INDEX($G$190:$DV$192,MATCH($F$64,$B$190:$B$192,0),MATCH(4*(DATE2NUM(BC$201)-DATE2NUM($G$71)),$G$189:$DV$189, 0)))) -> 0.1875 | BD219: =IF(BD$201<$G$71, 0, IF(BD$201>$G$72, BC219*(1-$G$73)^(1/4), $G$67*INDEX($G$190:$DV$192,MATCH($F$64,$B$190:$B$192,0),MATCH(4*(DATE2NUM(BD$201)-DATE2NUM($G$71)),$G$189:$DV$189, 0)))) -> 0.2083333333 | BE219: =IF(BE$201<$G$71, 0, IF(BE$201>$G$72, BD219*(1-$G$73)^(1/4), $G$67*INDEX($G$190:$DV$192,MATCH($F$64,$B$190:$B$192,0),MATCH(4*(DATE2NUM(BE$201)-DATE2NUM($G$71)),$G$189:$DV$189, 0)))) -> 0.2291666667 | BF219: =IF(BF$201<$G$71, 0, IF(BF$201>$G$72, BE219*(1-$G$73)^(1/4), $G$67*INDEX($G$190:$DV$192,MATCH($F$64,$B$190:$B$192,0),MATCH(4*(DATE2NUM(BF$201)-DATE2NUM($G$71)),$G$189:$DV$189, 0)))) -> 0.25 | BG219: =IF(BG$201<$G$71, 0, IF(BG$201>$G$72, BF219*(1-$G$73)^(1/4), $G$67*INDEX($G$190:$DV$192,MATCH($F$64,$B$190:$B$192,0),MATCH(4*(DATE2NUM(BG$201)-DATE2NUM($G$71)),$G$189:$DV$189, 0)))) -> 0.2708333333 | BH219: =IF(BH$201<$G$71, 0, IF(BH$201>$G$72, BG219*(1-$G$73)^(1/4), $G$67*INDEX($G$190:$DV$192,MATCH($F$64,$B$190:$B$192,0),MATCH(4*(DATE2NUM(BH$201)-DATE2NUM($G$71)),$G$189:$DV$189, 0)))) -> 0.2916666667 | BI219: =IF(BI$201<$G$71, 0, IF(BI$201>$G$72, BH219*(1-$G$73)^(1/4), $G$67*INDEX($G$190:$DV$192,MATCH($F$64,$B$190:$B$192,0),MATCH(4*(DATE2NUM(BI$201)-DATE2NUM($G$71)),$G$189:$DV$189, 0)))) -> 0.3125 | BJ219: =IF(BJ$201<$G$71, 0, IF(BJ$201>$G$72, BI219*(1-$G$73)^(1/4), $G$67*INDEX($G$190:$DV$192,MATCH($F$64,$B$190:$B$192,0),MATCH(4*(DATE2NUM(BJ$201)-DATE2NUM($G$71)),$G$189:$DV$189, 0)))) -> 0.3333333333 | BK219: =IF(BK$201<$G$71, 0, IF(BK$201>$G$72, BJ219*(1-$G$73)^(1/4), $G$67*INDEX($G$190:$DV$192,MATCH($F$64,$B$190:$B$192,0),MATCH(4*(DATE2NUM(BK$201)-DATE2NUM($G$71)),$G$189:$DV$189, 0)))) -> 0.3541666667 | BL219: =IF(BL$201<$G$71, 0, IF(BL$201>$G$72, BK219*(1-$G$73)^(1/4), $G$67*INDEX($G$190:$DV$192,MATCH($F$64,$B$190:$B$192,0),MATCH(4*(DATE2NUM(BL$201)-DATE2NUM($G$71)),$G$189:$DV$189, 0)))) -> 0.375 | BM219: =IF(BM$201<$G$71, 0, IF(BM$201>$G$72, BL219*(1-$G$73)^(1/4), $G$67*INDEX($G$190:$DV$192,MATCH($F$64,$B$190:$B$192,0),MATCH(4*(DATE2NUM(BM$201)-DATE2NUM($G$71)),$G$189:$DV$189, 0)))) -> 0.3958333333 | BN219: =IF(BN$201<$G$71, 0, IF(BN$201>$G$72, BM219*(1-$G$73)^(1/4), $G$67*INDEX($G$190:$DV$192,MATCH($F$64,$B$190:$B$192,0),MATCH(4*(DATE2NUM(BN$201)-DATE2NUM($G$71)),$G$189:$DV$189, 0)))) -> 0.4166666667 | BO219: =IF(BO$201<$G$71, 0, IF(BO$201>$G$72, BN219*(1-$G$73)^(1/4), $G$67*INDEX($G$190:$DV$192,MATCH($F$64,$B$190:$B$192,0),MATCH(4*(DATE2NUM(BO$201)-DATE2NUM($G$71)),$G$189:$DV$189, 0)))) -> 0.4375 | BP219: =IF(BP$201<$G$71, 0, IF(BP$201>$G$72, BO219*(1-$G$73)^(1/4), $G$67*INDEX($G$190:$DV$192,MATCH($F$64,$B$190:$B$192,0),MATCH(4*(DATE2NUM(BP$201)-DATE2NUM($G$71)),$G$189:$DV$189, 0)))) -> 0.4583333333 | BQ219: =IF(BQ$201<$G$71, 0, IF(BQ$201>$G$72, BP219*(1-$G$73)^(1/4), $G$67*INDEX($G$190:$DV$192,MATCH($F$64,$B$190:$B$192,0),MATCH(4*(DATE2NUM(BQ$201)-DATE2NUM($G$71)),$G$189:$DV$189, 0)))) -> 0.4791666667 | BR219: =IF(BR$201<$G$71, 0, IF(BR$201>$G$72, BQ219*(1-$G$73)^(1/4), $G$67*INDEX($G$190:$DV$192,MATCH($F$64,$B$190:$B$192,0),MATCH(4*(DATE2NUM(BR$201)-DATE2NUM($G$71)),$G$189:$DV$189, 0)))) -> 0.5 | BS219: =IF(BS$201<$G$71, 0, IF(BS$201>$G$72, BR219*(1-$G$73)^(1/4), $G$67*INDEX($G$190:$DV$192,MATCH($F$64,$B$190:$B$192,0),MATCH(4*(DATE2NUM(BS$201)-DATE2NUM($G$71)),$G$189:$DV$189, 0)))) -> 0.5 | BT219: =IF(BT$201<$G$71, 0, IF(BT$201>$G$72, BS219*(1-$G$73)^(1/4), $G$67*INDEX($G$190:$DV$192,MATCH($F$64,$B$190:$B$192,0),MATCH(4*(DATE2NUM(BT$201)-DATE2NUM($G$71)),$G$189:$DV$189, 0)))) -> 0.5 | BU219: =IF(BU$201<$G$71, 0, IF(BU$201>$G$72, BT219*(1-$G$73)^(1/4), $G$67*INDEX($G$190:$DV$192,MATCH($F$64,$B$190:$B$192,0),MATCH(4*(DATE2NUM(BU$201)-DATE2NUM($G$71)),$G$189:$DV$189, 0)))) -> 0.5 | BV219: =IF(BV$201<$G$71, 0, IF(BV$201>$G$72, BU219*(1-$G$73)^(1/4), $G$67*INDEX($G$190:$DV$192,MATCH($F$64,$B$190:$B$192,0),MATCH(4*(DATE2NUM(BV$201)-DATE2NUM($G$71)),$G$189:$DV$189, 0)))) -> 0.5 | BW219: =IF(BW$201<$G$71, 0, IF(BW$201>$G$72, BV219*(1-$G$73)^(1/4), $G$67*INDEX($G$190:$DV$192,MATCH($F$64,$B$190:$B$192,0),MATCH(4*(DATE2NUM(BW$201)-DATE2NUM($G$71)),$G$189:$DV$189, 0)))) -> 0.5 | BX219: =IF(BX$201<$G$71, 0, IF(BX$201>$G$72, BW219*(1-$G$73)^(1/4), $G$67*INDEX($G$190:$DV$192,MATCH($F$64,$B$190:$B$192,0),MATCH(4*(DATE2NUM(BX$201)-DATE2NUM($G$71)),$G$189:$DV$189, 0)))) -> 0.5 | BY219: =IF(BY$201<$G$71, 0, IF(BY$201>$G$72, BX219*(1-$G$73)^(1/4), $G$67*INDEX($G$190:$DV$192,MATCH($F$64,$B$190:$B$192,0),MATCH(4*(DATE2NUM(BY$201)-DATE2NUM($G$71)),$G$189:$DV$189, 0)))) -> 0.5 | BZ219: =IF(BZ$201<$G$71, 0, IF(BZ$201>$G$72, BY219*(1-$G$73)^(1/4), $G$67*INDEX($G$190:$DV$192,MATCH($F$64,$B$190:$B$192,0),MATCH(4*(DATE2NUM(BZ$201)-DATE2NUM($G$71)),$G$189:$DV$189, 0)))) -> 0.5 | CA219: =IF(CA$201<$G$71, 0, IF(CA$201>$G$72, BZ219*(1-$G$73)^(1/4), $G$67*INDEX($G$190:$DV$192,MATCH($F$64,$B$190:$B$192,0),MATCH(4*(DATE2NUM(CA$201)-DATE2NUM($G$71)),$G$189:$DV$189, 0)))) -> 0.5 | CB219: =IF(CB$201<$G$71, 0, IF(CB$201>$G$72, CA219*(1-$G$73)^(1/4), $G$67*INDEX($G$190:$DV$192,MATCH($F$64,$B$190:$B$192,0),MATCH(4*(DATE2NUM(CB$201)-DATE2NUM($G$71)),$G$189:$DV$189, 0)))) -> 0.5 | CC219: =IF(CC$201<$G$71, 0, IF(CC$201>$G$72, CB219*(1-$G$73)^(1/4), $G$67*INDEX($G$190:$DV$192,MATCH($F$64,$B$190:$B$192,0),MATCH(4*(DATE2NUM(CC$201)-DATE2NUM($G$71)),$G$189:$DV$189, 0)))) -> 0.5 | CD219: =IF(CD$201<$G$71, 0, IF(CD$201>$G$72, CC219*(1-$G$73)^(1/4), $G$67*INDEX($G$190:$DV$192,MATCH($F$64,$B$190:$B$192,0),MATCH(4*(DATE2NUM(CD$201)-DATE2NUM($G$71)),$G$189:$DV$189, 0)))) -> 0.5 | CE219: =IF(CE$201<$G$71, 0, IF(CE$201>$G$72, CD219*(1-$G$73)^(1/4), $G$67*INDEX($G$190:$DV$192,MATCH($F$64,$B$190:$B$192,0),MATCH(4*(DATE2NUM(CE$201)-DATE2NUM($G$71)),$G$189:$DV$189, 0)))) -> 0.5 | CF219: =IF(CF$201<$G$71, 0, IF(CF$201>$G$72, CE219*(1-$G$73)^(1/4), $G$67*INDEX($G$190:$DV$192,MATCH($F$64,$B$190:$B$192,0),MATCH(4*(DATE2NUM(CF$201)-DATE2NUM($G$71)),$G$189:$DV$189, 0)))) -> 0.5 | CG219: =IF(CG$201<$G$71, 0, IF(CG$201>$G$72, CF219*(1-$G$73)^(1/4), $G$67*INDEX($G$190:$DV$192,MATCH($F$64,$B$190:$B$192,0),MATCH(4*(DATE2NUM(CG$201)-DATE2NUM($G$71)),$G$189:$DV$189, 0)))) -> 0.5 | CH219: =IF(CH$201<$G$71, 0, IF(CH$201>$G$72, CG219*(1-$G$73)^(1/4), $G$67*INDEX($G$190:$DV$192,MATCH($F$64,$B$190:$B$192,0),MATCH(4*(DATE2NUM(CH$201)-DATE2NUM($G$71)),$G$189:$DV$189, 0)))) -> 0.5 | CI219: =IF(CI$201<$G$71, 0, IF(CI$201>$G$72, CH219*(1-$G$73)^(1/4), $G$67*INDEX($G$190:$DV$192,MATCH($F$64,$B$190:$B$192,0),MATCH(4*(DATE2NUM(CI$201)-DATE2NUM($G$71)),$G$189:$DV$189, 0)))) -> 0.4204482076 | CJ219: =IF(CJ$201<$G$71, 0, IF(CJ$201>$G$72, CI219*(1-$G$73)^(1/4), $G$67*INDEX($G$190:$DV$192,MATCH($F$64,$B$190:$B$192,0),MATCH(4*(DATE2NUM(CJ$201)-DATE2NUM($G$71)),$G$189:$DV$189, 0)))) -> 0.3535533906 | CK219: =IF(CK$201<$G$71, 0, IF(CK$201>$G$72, CJ219*(1-$G$73)^(1/4), $G$67*INDEX($G$190:$DV$192,MATCH($F$64,$B$190:$B$192,0),MATCH(4*(DATE2NUM(CK$201)-DATE2NUM($G$71)),$G$189:$DV$189, 0)))) -> 0.2973017788 | CL219: =IF(CL$201<$G$71, 0, IF(CL$201>$G$72, CK219*(1-$G$73)^(1/4), $G$67*INDEX($G$190:$DV$192,MATCH($F$64,$B$190:$B$192,0),MATCH(4*(DATE2NUM(CL$201)-DATE2NUM($G$71)),$G$189:$DV$189, 0)))) -> 0.25 | CM219: =IF(CM$201<$G$71, 0, IF(CM$201>$G$72, CL219*(1-$G$73)^(1/4), $G$67*INDEX($G$190:$DV$192,MATCH($F$64,$B$190:$B$192,0),MATCH(4*(DATE2NUM(CM$201)-DATE2NUM($G$71)),$G$189:$DV$189, 0)))) -> 0.2102241038 | CN219: =IF(CN$201<$G$71, 0, IF(CN$201>$G$72, CM219*(1-$G$73)^(1/4), $G$67*INDEX($G$190:$DV$192,MATCH($F$64,$B$190:$B$192,0),MATCH(4*(DATE2NUM(CN$201)-DATE2NUM($G$71)),$G$189:$DV$189, 0)))) -> 0.1767766953 | CO219: =IF(CO$201<$G$71, 0, IF(CO$201>$G$72, CN219*(1-$G$73)^(1/4), $G$67*INDEX($G$190:$DV$192,MATCH($F$64,$B$190:$B$192,0),MATCH(4*(DATE2NUM(CO$201)-DATE2NUM($G$71)),$G$189:$DV$189, 0)))) -> 0.1486508894 | CP219: =IF(CP$201<$G$71, 0, IF(CP$201>$G$72, CO219*(1-$G$73)^(1/4), $G$67*INDEX($G$190:$DV$192,MATCH($F$64,$B$190:$B$192,0),MATCH(4*(DATE2NUM(CP$201)-DATE2NUM($G$71)),$G$189:$DV$189, 0)))) -> 0.125 | CQ219: =IF(CQ$201<$G$71, 0, IF(CQ$201>$G$72, CP219*(1-$G$73)^(1/4), $G$67*INDEX($G$190:$DV$192,MATCH($F$64,$B$190:$B$192,0),MATCH(4*(DATE2NUM(CQ$201)-DATE2NUM($G$71)),$G$189:$DV$189, 0)))) -> 0.1051120519 | CR219: =IF(CR$201<$G$71, 0, IF(CR$201>$G$72, CQ219*(1-$G$73)^(1/4), $G$67*INDEX($G$190:$DV$192,MATCH($F$64,$B$190:$B$192,0),MATCH(4*(DATE2NUM(CR$201)-DATE2NUM($G$71)),$G$189:$DV$189, 0)))) -> 0.08838834765 | CS219: =IF(CS$201<$G$71, 0, IF(CS$201>$G$72, CR219*(1-$G$73)^(1/4), $G$67*INDEX($G$190:$DV$192,MATCH($F$64,$B$190:$B$192,0),MATCH(4*(DATE2NUM(CS$201)-DATE2NUM($G$71)),$G$189:$DV$189, 0)))) -> 0.07432544469 | CT219: =IF(CT$201<$G$71, 0, IF(CT$201>$G$72, CS219*(1-$G$73)^(1/4), $G$67*INDEX($G$190:$DV$192,MATCH($F$64,$B$190:$B$192,0),MATCH(4*(DATE2NUM(CT$201)-DATE2NUM($G$71)),$G$189:$DV$189, 0)))) -> 0.0625 | CU219: =IF(CU$201<$G$71, 0, IF(CU$201>$G$72, CT219*(1-$G$73)^(1/4), $G$67*INDEX($G$190:$DV$192,MATCH($F$64,$B$190:$B$192,0),MATCH(4*(DATE2NUM(CU$201)-DATE2NUM($G$71)),$G$189:$DV$189, 0)))) -> 0.05255602595 | CV219: =IF(CV$201<$G$71, 0, IF(CV$201>$G$72, CU219*(1-$G$73)^(1/4), $G$67*INDEX($G$190:$DV$192,MATCH($F$64,$B$190:$B$192,0),MATCH(4*(DATE2NUM(CV$201)-DATE2NUM($G$71)),$G$189:$DV$189, 0)))) -> 0.04419417382 | CW219: =IF(CW$201<$G$71, 0, IF(CW$201>$G$72, CV219*(1-$G$73)^(1/4), $G$67*INDEX($G$190:$DV$192,MATCH($F$64,$B$190:$B$192,0),MATCH(4*(DATE2NUM(CW$201)-DATE2NUM($G$71)),$G$189:$DV$189, 0)))) -> 0.03716272234 | CX219: =IF(CX$201<$G$71, 0, IF(CX$201>$G$72, CW219*(1-$G$73)^(1/4), $G$67*INDEX($G$190:$DV$192,MATCH($F$64,$B$190:$B$192,0),MATCH(4*(DATE2NUM(CX$201)-DATE2NUM($G$71)),$G$189:$DV$189, 0)))) -> 0.03125 | CY219: =IF(CY$201<$G$71, 0, IF(CY$201>$G$72, CX219*(1-$G$73)^(1/4), $G$67*INDEX($G$190:$DV$192,MATCH($F$64,$B$190:$B$192,0),MATCH(4*(DATE2NUM(CY$201)-DATE2NUM($G$71)),$G$189:$DV$189, 0)))) -> 0.02627801298 | CZ219: =IF(CZ$201<$G$71, 0, IF(CZ$201>$G$72, CY219*(1-$G$73)^(1/4), $G$67*INDEX($G$190:$DV$192,MATCH($F$64,$B$190:$B$192,0),MATCH(4*(DATE2NUM(CZ$201)-DATE2NUM($G$71)),$G$189:$DV$189, 0)))) -> 0.02209708691 | DA219: =IF(DA$201<$G$71, 0, IF(DA$201>$G$72, CZ219*(1-$G$73)^(1/4), $G$67*INDEX($G$190:$DV$192,MATCH($F$64,$B$190:$B$192,0),MATCH(4*(DATE2NUM(DA$201)-DATE2NUM($G$71)),$G$189:$DV$189, 0)))) -> 0.01858136117 | DB219: =IF(DB$201<$G$71, 0, IF(DB$201>$G$72, DA219*(1-$G$73)^(1/4), $G$67*INDEX($G$190:$DV$192,MATCH($F$64,$B$190:$B$192,0),MATCH(4*(DATE2NUM(DB$201)-DATE2NUM($G$71)),$G$189:$DV$189, 0)))) -> 0.015625 | DC219: =IF(DC$201<$G$71, 0, IF(DC$201>$G$72, DB219*(1-$G$73)^(1/4), $G$67*INDEX($G$190:$DV$192,MATCH($F$64,$B$190:$B$192,0),MATCH(4*(DATE2NUM(DC$201)-DATE2NUM($G$71)),$G$189:$DV$189, 0)))) -> 0.01313900649 | DD219: =IF(DD$201<$G$71, 0, IF(DD$201>$G$72, DC219*(1-$G$73)^(1/4), $G$67*INDEX($G$190:$DV$192,MATCH($F$64,$B$190:$B$192,0),MATCH(4*(DATE2NUM(DD$201)-DATE2NUM($G$71)),$G$189:$DV$189, 0)))) -> 0.01104854346 | DE219: =IF(DE$201<$G$71, 0, IF(DE$201>$G$72, DD219*(1-$G$73)^(1/4), $G$67*INDEX($G$190:$DV$192,MATCH($F$64,$B$190:$B$192,0),MATCH(4*(DATE2NUM(DE$201)-DATE2NUM($G$71)),$G$189:$DV$189, 0)))) -> 0.009290680586 | DF219: =IF(DF$201<$G$71, 0, IF(DF$201>$G$72, DE219*(1-$G$73)^(1/4), $G$67*INDEX($G$190:$DV$192,MATCH($F$64,$B$190:$B$192,0),MATCH(4*(DATE2NUM(DF$201)-DATE2NUM($G$71)),$G$189:$DV$189, 0)))) -> 0.0078125 | DG219: =IF(DG$201<$G$71, 0, IF(DG$201>$G$72, DF219*(1-$G$73)^(1/4), $G$67*INDEX($G$190:$DV$192,MATCH($F$64,$B$190:$B$192,0),MATCH(4*(DATE2NUM(DG$201)-DATE2NUM($G$71)),$G$189:$DV$189, 0)))) -> 0.006569503244 | DH219: =IF(DH$201<$G$71, 0, IF(DH$201>$G$72, DG219*(1-$G$73)^(1/4), $G$67*INDEX($G$190:$DV$192,MATCH($F$64,$B$190:$B$192,0),MATCH(4*(DATE2NUM(DH$201)-DATE2NUM($G$71)),$G$189:$DV$189, 0)))) -> 0.005524271728 | DI219: =IF(DI$201<$G$71, 0, IF(DI$201>$G$72, DH219*(1-$G$73)^(1/4), $G$67*INDEX($G$190:$DV$192,MATCH($F$64,$B$190:$B$192,0),MATCH(4*(DATE2NUM(DI$201)-DATE2NUM($G$71)),$G$189:$DV$189, 0)))) -> 0.004645340293 | DJ219: =IF(DJ$201<$G$71, 0, IF(DJ$201>$G$72, DI219*(1-$G$73)^(1/4), $G$67*INDEX($G$190:$DV$192,MATCH($F$64,$B$190:$B$192,0),MATCH(4*(DATE2NUM(DJ$201)-DATE2NUM($G$71)),$G$189:$DV$189, 0)))) -> 0.00390625 | DK219: =IF(DK$201<$G$71, 0, IF(DK$201>$G$72, DJ219*(1-$G$73)^(1/4), $G$67*INDEX($G$190:$DV$192,MATCH($F$64,$B$190:$B$192,0),MATCH(4*(DATE2NUM(DK$201)-DATE2NUM($G$71)),$G$189:$DV$189, 0)))) -> 0.003284751622 | DL219: =IF(DL$201<$G$71, 0, IF(DL$201>$G$72, DK219*(1-$G$73)^(1/4), $G$67*INDEX($G$190:$DV$192,MATCH($F$64,$B$190:$B$192,0),MATCH(4*(DATE2NUM(DL$201)-DATE2NUM($G$71)),$G$189:$DV$189, 0)))) -> 0.002762135864 | DM219: =IF(DM$201<$G$71, 0, IF(DM$201>$G$72, DL219*(1-$G$73)^(1/4), $G$67*INDEX($G$190:$DV$192,MATCH($F$64,$B$190:$B$192,0),MATCH(4*(DATE2NUM(DM$201)-DATE2NUM($G$71)),$G$189:$DV$189, 0)))) -> 0.002322670146 | DN219: =IF(DN$201<$G$71, 0, IF(DN$201>$G$72, DM219*(1-$G$73)^(1/4), $G$67*INDEX($G$190:$DV$192,MATCH($F$64,$B$190:$B$192,0),MATCH(4*(DATE2NUM(DN$201)-DATE2NUM($G$71)),$G$189:$DV$189, 0)))) -> 0.001953125 | DO219: =IF(DO$201<$G$71, 0, IF(DO$201>$G$72, DN219*(1-$G$73)^(1/4), $G$67*INDEX($G$190:$DV$192,MATCH($F$64,$B$190:$B$192,0),MATCH(4*(DATE2NUM(DO$201)-DATE2NUM($G$71)),$G$189:$DV$189, 0)))) -> 0.001642375811 | DP219: =IF(DP$201<$G$71, 0, IF(DP$201>$G$72, DO219*(1-$G$73)^(1/4), $G$67*INDEX($G$190:$DV$192,MATCH($F$64,$B$190:$B$192,0),MATCH(4*(DATE2NUM(DP$201)-DATE2NUM($G$71)),$G$189:$DV$189, 0)))) -> 0.001381067932 | DQ219: =IF(DQ$201<$G$71, 0, IF(DQ$201>$G$72, DP219*(1-$G$73)^(1/4), $G$67*INDEX($G$190:$DV$192,MATCH($F$64,$B$190:$B$192,0),MATCH(4*(DATE2NUM(DQ$201)-DATE2NUM($G$71)),$G$189:$DV$189, 0)))) -> 0.001161335073 | DR219: =IF(DR$201<$G$71, 0, IF(DR$201>$G$72, DQ219*(1-$G$73)^(1/4), $G$67*INDEX($G$190:$DV$192,MATCH($F$64,$B$190:$B$192,0),MATCH(4*(DATE2NUM(DR$201)-DATE2NUM($G$71)),$G$189:$DV$189, 0)))) -> 0.0009765625 | DS219: =IF(DS$201<$G$71, 0, IF(DS$201>$G$72, DR219*(1-$G$73)^(1/4), $G$67*INDEX($G$190:$DV$192,MATCH($F$64,$B$190:$B$192,0),MATCH(4*(DATE2NUM(DS$201)-DATE2NUM($G$71)),$G$189:$DV$189, 0)))) -> 0.0008211879055 | DT219: =IF(DT$201<$G$71, 0, IF(DT$201>$G$72, DS219*(1-$G$73)^(1/4), $G$67*INDEX($G$190:$DV$192,MATCH($F$64,$B$190:$B$192,0),MATCH(4*(DATE2NUM(DT$201)-DATE2NUM($G$71)),$G$189:$DV$189, 0)))) -> 0.000690533966 | DU219: =IF(DU$201<$G$71, 0, IF(DU$201>$G$72, DT219*(1-$G$73)^(1/4), $G$67*INDEX($G$190:$DV$192,MATCH($F$64,$B$190:$B$192,0),MATCH(4*(DATE2NUM(DU$201)-DATE2NUM($G$71)),$G$189:$DV$189, 0)))) -> 0.0005806675366 | DV219: =IF(DV$201<$G$71, 0, IF(DV$201>$G$72, DU219*(1-$G$73)^(1/4), $G$67*INDEX($G$190:$DV$192,MATCH($F$64,$B$190:$B$192,0),MATCH(4*(DATE2NUM(DV$201)-DATE2NUM($G$71)),$G$189:$DV$189, 0)))) -> 0.00048828125
B220: Treated Patients | G220: =G216*G217*G218*G219 -> 0 | H220: =H216*H217*H218*H219 -> 0 | I220: 0 | J220: 0 | K220: 0 | L220: 0 | M220: 0 | N220: 0 | O220: 0 | P220: 0 | Q220: 0 | R220: 0 | S220: 0 | T220: 0 | U220: 0 | V220: 0 | W220: 0 | X220: 0 | Y220: 0 | Z220: 0 | AA220: 0 | AB220: 0 | AC220: 0 | AD220: 0 | AE220: 0 | AF220: 0 | AG220: 0 | AH220: 0 | AI220: 0 | AJ220: 0 | AK220: 0 | AL220: 0 | AM220: 0 | AN220: 0 | AO220: 0 | AP220: 0 | AQ220: 0 | AR220: 0 | AS220: 0 | AT220: 0 | AU220: 126.3888889 | AV220: 255.2083333 | AW220: 386.4583333 | AX220: 520.1388889 | AY220: 656.25 | AZ220: 787.5 | BA220: 918.75 | BB220: 1050 | BC220: 1181.25 | BD220: 1312.5 | BE220: 1443.75 | BF220: 1575 | BG220: 1706.25 | BH220: 1837.5 | BI220: 1968.75 | BJ220: 2100 | BK220: 2231.25 | BL220: 2362.5 | BM220: 2493.75 | BN220: 2625 | BO220: 2756.25 | BP220: 2887.5 | BQ220: 3018.75 | BR220: 3150 | BS220: 3150 | BT220: =BT216*BT217*BT218*BT219 -> 3150 | BU220: 3150 | BV220: 3150 | BW220: 3150 | BX220: 3150 | BY220: 3150 | BZ220: 3150 | CA220: 3150 | CB220: 3150 | CC220: 3150 | CD220: 3150 | CE220: 3150 | CF220: 3150 | CG220: 3150 | CH220: 3150 | CI220: 2648.823708 | CJ220: 2227.386361 | CK220: 1873.001206 | CL220: 1575 | CM220: 1324.411854 | CN220: 1113.69318 | CO220: 936.5006031 | CP220: 787.5 | CQ220: 662.205927 | CR220: 556.8465902 | CS220: 468.2503015 | CT220: 393.75 | CU220: 331.1029635 | CV220: 278.4232951 | CW220: 234.1251508 | CX220: 196.875 | CY220: 165.5514818 | CZ220: 139.2116475 | DA220: 117.0625754 | DB220: 98.4375 | DC220: 82.77574088 | DD220: 69.60582377 | DE220: 58.53128769 | DF220: 49.21875 | DG220: 41.38787044 | DH220: 34.80291189 | DI220: 29.26564385 | DJ220: 24.609375 | DK220: 20.69393522 | DL220: 17.40145594 | DM220: 14.63282192 | DN220: 12.3046875 | DO220: 10.34696761 | DP220: 8.700727972 | DQ220: 7.316410961 | DR220: 6.15234375 | DS220: 5.173483805 | DT220: 4.350363986 | DU220: 3.658205481 | DV220: 3.076171875
B221: Treatment Duration (Months) | G221: =IF(G$201<$G$71, 0, MIN($G$76, IFERROR($G$75+4*(DATE2NUM(G$201)-DATE2NUM($G$71))*($G$76-$G$75)/$G$77,$G$76))) -> 0 | H221: =IF(H$201<$G$71, 0, MIN($G$76, IFERROR($G$75+4*(DATE2NUM(H$201)-DATE2NUM($G$71))*($G$76-$G$75)/$G$77,$G$76))) -> 0 | I221: =IF(I$201<$G$71, 0, MIN($G$76, IFERROR($G$75+4*(DATE2NUM(I$201)-DATE2NUM($G$71))*($G$76-$G$75)/$G$77,$G$76))) -> 0 | J221: =IF(J$201<$G$71, 0, MIN($G$76, IFERROR($G$75+4*(DATE2NUM(J$201)-DATE2NUM($G$71))*($G$76-$G$75)/$G$77,$G$76))) -> 0 | K221: =IF(K$201<$G$71, 0, MIN($G$76, IFERROR($G$75+4*(DATE2NUM(K$201)-DATE2NUM($G$71))*($G$76-$G$75)/$G$77,$G$76))) -> 0 | L221: =IF(L$201<$G$71, 0, MIN($G$76, IFERROR($G$75+4*(DATE2NUM(L$201)-DATE2NUM($G$71))*($G$76-$G$75)/$G$77,$G$76))) -> 0 | M221: =IF(M$201<$G$71, 0, MIN($G$76, IFERROR($G$75+4*(DATE2NUM(M$201)-DATE2NUM($G$71))*($G$76-$G$75)/$G$77,$G$76))) -> 0 | N221: =IF(N$201<$G$71, 0, MIN($G$76, IFERROR($G$75+4*(DATE2NUM(N$201)-DATE2NUM($G$71))*($G$76-$G$75)/$G$77,$G$76))) -> 0 | O221: =IF(O$201<$G$71, 0, MIN($G$76, IFERROR($G$75+4*(DATE2NUM(O$201)-DATE2NUM($G$71))*($G$76-$G$75)/$G$77,$G$76))) -> 0 | P221: =IF(P$201<$G$71, 0, MIN($G$76, IFERROR($G$75+4*(DATE2NUM(P$201)-DATE2NUM($G$71))*($G$76-$G$75)/$G$77,$G$76))) -> 0 | Q221: =IF(Q$201<$G$71, 0, MIN($G$76, IFERROR($G$75+4*(DATE2NUM(Q$201)-DATE2NUM($G$71))*($G$76-$G$75)/$G$77,$G$76))) -> 0 | R221: =IF(R$201<$G$71, 0, MIN($G$76, IFERROR($G$75+4*(DATE2NUM(R$201)-DATE2NUM($G$71))*($G$76-$G$75)/$G$77,$G$76))) -> 0 | S221: =IF(S$201<$G$71, 0, MIN($G$76, IFERROR($G$75+4*(DATE2NUM(S$201)-DATE2NUM($G$71))*($G$76-$G$75)/$G$77,$G$76))) -> 0 | T221: =IF(T$201<$G$71, 0, MIN($G$76, IFERROR($G$75+4*(DATE2NUM(T$201)-DATE2NUM($G$71))*($G$76-$G$75)/$G$77,$G$76))) -> 0 | U221: =IF(U$201<$G$71, 0, MIN($G$76, IFERROR($G$75+4*(DATE2NUM(U$201)-DATE2NUM($G$71))*($G$76-$G$75)/$G$77,$G$76))) -> 0 | V221: =IF(V$201<$G$71, 0, MIN($G$76, IFERROR($G$75+4*(DATE2NUM(V$201)-DATE2NUM($G$71))*($G$76-$G$75)/$G$77,$G$76))) -> 0 | W221: =IF(W$201<$G$71, 0, MIN($G$76, IFERROR($G$75+4*(DATE2NUM(W$201)-DATE2NUM($G$71))*($G$76-$G$75)/$G$77,$G$76))) -> 0 | X221: =IF(X$201<$G$71, 0, MIN($G$76, IFERROR($G$75+4*(DATE2NUM(X$201)-DATE2NUM($G$71))*($G$76-$G$75)/$G$77,$G$76))) -> 0 | Y221: =IF(Y$201<$G$71, 0, MIN($G$76, IFERROR($G$75+4*(DATE2NUM(Y$201)-DATE2NUM($G$71))*($G$76-$G$75)/$G$77,$G$76))) -> 0 | Z221: =IF(Z$201<$G$71, 0, MIN($G$76, IFERROR($G$75+4*(DATE2NUM(Z$201)-DATE2NUM($G$71))*($G$76-$G$75)/$G$77,$G$76))) -> 0 | AA221: =IF(AA$201<$G$71, 0, MIN($G$76, IFERROR($G$75+4*(DATE2NUM(AA$201)-DATE2NUM($G$71))*($G$76-$G$75)/$G$77,$G$76))) -> 0 | AB221: =IF(AB$201<$G$71, 0, MIN($G$76, IFERROR($G$75+4*(DATE2NUM(AB$201)-DATE2NUM($G$71))*($G$76-$G$75)/$G$77,$G$76))) -> 0 | AC221: =IF(AC$201<$G$71, 0, MIN($G$76, IFERROR($G$75+4*(DATE2NUM(AC$201)-DATE2NUM($G$71))*($G$76-$G$75)/$G$77,$G$76))) -> 0 | AD221: =IF(AD$201<$G$71, 0, MIN($G$76, IFERROR($G$75+4*(DATE2NUM(AD$201)-DATE2NUM($G$71))*($G$76-$G$75)/$G$77,$G$76))) -> 0 | AE221: =IF(AE$201<$G$71, 0, MIN($G$76, IFERROR($G$75+4*(DATE2NUM(AE$201)-DATE2NUM($G$71))*($G$76-$G$75)/$G$77,$G$76))) -> 0 | AF221: =IF(AF$201<$G$71, 0, MIN($G$76, IFERROR($G$75+4*(DATE2NUM(AF$201)-DATE2NUM($G$71))*($G$76-$G$75)/$G$77,$G$76))) -> 0 | AG221: =IF(AG$201<$G$71, 0, MIN($G$76, IFERROR($G$75+4*(DATE2NUM(AG$201)-DATE2NUM($G$71))*($G$76-$G$75)/$G$77,$G$76))) -> 0 | AH221: =IF(AH$201<$G$71, 0, MIN($G$76, IFERROR($G$75+4*(DATE2NUM(AH$201)-DATE2NUM($G$71))*($G$76-$G$75)/$G$77,$G$76))) -> 0 | AI221: =IF(AI$201<$G$71, 0, MIN($G$76, IFERROR($G$75+4*(DATE2NUM(AI$201)-DATE2NUM($G$71))*($G$76-$G$75)/$G$77,$G$76))) -> 0 | AJ221: =IF(AJ$201<$G$71, 0, MIN($G$76, IFERROR($G$75+4*(DATE2NUM(AJ$201)-DATE2NUM($G$71))*($G$76-$G$75)/$G$77,$G$76))) -> 0 | AK221: =IF(AK$201<$G$71, 0, MIN($G$76, IFERROR($G$75+4*(DATE2NUM(AK$201)-DATE2NUM($G$71))*($G$76-$G$75)/$G$77,$G$76))) -> 0 | AL221: =IF(AL$201<$G$71, 0, MIN($G$76, IFERROR($G$75+4*(DATE2NUM(AL$201)-DATE2NUM($G$71))*($G$76-$G$75)/$G$77,$G$76))) -> 0 | AM221: =IF(AM$201<$G$71, 0, MIN($G$76, IFERROR($G$75+4*(DATE2NUM(AM$201)-DATE2NUM($G$71))*($G$76-$G$75)/$G$77,$G$76))) -> 0 | AN221: =IF(AN$201<$G$71, 0, MIN($G$76, IFERROR($G$75+4*(DATE2NUM(AN$201)-DATE2NUM($G$71))*($G$76-$G$75)/$G$77,$G$76))) -> 0 | AO221: =IF(AO$201<$G$71, 0, MIN($G$76, IFERROR($G$75+4*(DATE2NUM(AO$201)-DATE2NUM($G$71))*($G$76-$G$75)/$G$77,$G$76))) -> 0 | AP221: =IF(AP$201<$G$71, 0, MIN($G$76, IFERROR($G$75+4*(DATE2NUM(AP$201)-DATE2NUM($G$71))*($G$76-$G$75)/$G$77,$G$76))) -> 0 | AQ221: =IF(AQ$201<$G$71, 0, MIN($G$76, IFERROR($G$75+4*(DATE2NUM(AQ$201)-DATE2NUM($G$71))*($G$76-$G$75)/$G$77,$G$76))) -> 0 | AR221: =IF(AR$201<$G$71, 0, MIN($G$76, IFERROR($G$75+4*(DATE2NUM(AR$201)-DATE2NUM($G$71))*($G$76-$G$75)/$G$77,$G$76))) -> 0 | AS221: =IF(AS$201<$G$71, 0, MIN($G$76, IFERROR($G$75+4*(DATE2NUM(AS$201)-DATE2NUM($G$71))*($G$76-$G$75)/$G$77,$G$76))) -> 0 | AT221: =IF(AT$201<$G$71, 0, MIN($G$76, IFERROR($G$75+4*(DATE2NUM(AT$201)-DATE2NUM($G$71))*($G$76-$G$75)/$G$77,$G$76))) -> 0 | AU221: =IF(AU$201<$G$71, 0, MIN($G$76, IFERROR($G$75+4*(DATE2NUM(AU$201)-DATE2NUM($G$71))*($G$76-$G$75)/$G$77,$G$76))) -> 6 | AV221: =IF(AV$201<$G$71, 0, MIN($G$76, IFERROR($G$75+4*(DATE2NUM(AV$201)-DATE2NUM($G$71))*($G$76-$G$75)/$G$77,$G$76))) -> 6.25 | AW221: =IF(AW$201<$G$71, 0, MIN($G$76, IFERROR($G$75+4*(DATE2NUM(AW$201)-DATE2NUM($G$71))*($G$76-$G$75)/$G$77,$G$76))) -> 6.5 | AX221: =IF(AX$201<$G$71, 0, MIN($G$76, IFERROR($G$75+4*(DATE2NUM(AX$201)-DATE2NUM($G$71))*($G$76-$G$75)/$G$77,$G$76))) -> 6.75 | AY221: =IF(AY$201<$G$71, 0, MIN($G$76, IFERROR($G$75+4*(DATE2NUM(AY$201)-DATE2NUM($G$71))*($G$76-$G$75)/$G$77,$G$76))) -> 7 | AZ221: =IF(AZ$201<$G$71, 0, MIN($G$76, IFERROR($G$75+4*(DATE2NUM(AZ$201)-DATE2NUM($G$71))*($G$76-$G$75)/$G$77,$G$76))) -> 7.25 | BA221: =IF(BA$201<$G$71, 0, MIN($G$76, IFERROR($G$75+4*(DATE2NUM(BA$201)-DATE2NUM($G$71))*($G$76-$G$75)/$G$77,$G$76))) -> 7.5 | BB221: =IF(BB$201<$G$71, 0, MIN($G$76, IFERROR($G$75+4*(DATE2NUM(BB$201)-DATE2NUM($G$71))*($G$76-$G$75)/$G$77,$G$76))) -> 7.75 | BC221: =IF(BC$201<$G$71, 0, MIN($G$76, IFERROR($G$75+4*(DATE2NUM(BC$201)-DATE2NUM($G$71))*($G$76-$G$75)/$G$77,$G$76))) -> 8 | BD221: =IF(BD$201<$G$71, 0, MIN($G$76, IFERROR($G$75+4*(DATE2NUM(BD$201)-DATE2NUM($G$71))*($G$76-$G$75)/$G$77,$G$76))) -> 8.25 | BE221: =IF(BE$201<$G$71, 0, MIN($G$76, IFERROR($G$75+4*(DATE2NUM(BE$201)-DATE2NUM($G$71))*($G$76-$G$75)/$G$77,$G$76))) -> 8.5 | BF221: =IF(BF$201<$G$71, 0, MIN($G$76, IFERROR($G$75+4*(DATE2NUM(BF$201)-DATE2NUM($G$71))*($G$76-$G$75)/$G$77,$G$76))) -> 8.75 | BG221: =IF(BG$201<$G$71, 0, MIN($G$76, IFERROR($G$75+4*(DATE2NUM(BG$201)-DATE2NUM($G$71))*($G$76-$G$75)/$G$77,$G$76))) -> 9 | BH221: =IF(BH$201<$G$71, 0, MIN($G$76, IFERROR($G$75+4*(DATE2NUM(BH$201)-DATE2NUM($G$71))*($G$76-$G$75)/$G$77,$G$76))) -> 9.25 | BI221: =IF(BI$201<$G$71, 0, MIN($G$76, IFERROR($G$75+4*(DATE2NUM(BI$201)-DATE2NUM($G$71))*($G$76-$G$75)/$G$77,$G$76))) -> 9.5 | BJ221: =IF(BJ$201<$G$71, 0, MIN($G$76, IFERROR($G$75+4*(DATE2NUM(BJ$201)-DATE2NUM($G$71))*($G$76-$G$75)/$G$77,$G$76))) -> 9.75 | BK221: =IF(BK$201<$G$71, 0, MIN($G$76, IFERROR($G$75+4*(DATE2NUM(BK$201)-DATE2NUM($G$71))*($G$76-$G$75)/$G$77,$G$76))) -> 10 | BL221: =IF(BL$201<$G$71, 0, MIN($G$76, IFERROR($G$75+4*(DATE2NUM(BL$201)-DATE2NUM($G$71))*($G$76-$G$75)/$G$77,$G$76))) -> 10.25 | BM221: =IF(BM$201<$G$71, 0, MIN($G$76, IFERROR($G$75+4*(DATE2NUM(BM$201)-DATE2NUM($G$71))*($G$76-$G$75)/$G$77,$G$76))) -> 10.5 | BN221: =IF(BN$201<$G$71, 0, MIN($G$76, IFERROR($G$75+4*(DATE2NUM(BN$201)-DATE2NUM($G$71))*($G$76-$G$75)/$G$77,$G$76))) -> 10.75 | BO221: =IF(BO$201<$G$71, 0, MIN($G$76, IFERROR($G$75+4*(DATE2NUM(BO$201)-DATE2NUM($G$71))*($G$76-$G$75)/$G$77,$G$76))) -> 11 | BP221: =IF(BP$201<$G$71, 0, MIN($G$76, IFERROR($G$75+4*(DATE2NUM(BP$201)-DATE2NUM($G$71))*($G$76-$G$75)/$G$77,$G$76))) -> 11.25 | BQ221: =IF(BQ$201<$G$71, 0, MIN($G$76, IFERROR($G$75+4*(DATE2NUM(BQ$201)-DATE2NUM($G$71))*($G$76-$G$75)/$G$77,$G$76))) -> 11.5 | BR221: =IF(BR$201<$G$71, 0, MIN($G$76, IFERROR($G$75+4*(DATE2NUM(BR$201)-DATE2NUM($G$71))*($G$76-$G$75)/$G$77,$G$76))) -> 11.75 | BS221: =IF(BS$201<$G$71, 0, MIN($G$76, IFERROR($G$75+4*(DATE2NUM(BS$201)-DATE2NUM($G$71))*($G$76-$G$75)/$G$77,$G$76))) -> 12 | BT221: =IF(BT$201<$G$71, 0, MIN($G$76, IFERROR($G$75+4*(DATE2NUM(BT$201)-DATE2NUM($G$71))*($G$76-$G$75)/$G$77,$G$76))) -> 12 | BU221: =IF(BU$201<$G$71, 0, MIN($G$76, IFERROR($G$75+4*(DATE2NUM(BU$201)-DATE2NUM($G$71))*($G$76-$G$75)/$G$77,$G$76))) -> 12 | BV221: =IF(BV$201<$G$71, 0, MIN($G$76, IFERROR($G$75+4*(DATE2NUM(BV$201)-DATE2NUM($G$71))*($G$76-$G$75)/$G$77,$G$76))) -> 12 | BW221: =IF(BW$201<$G$71, 0, MIN($G$76, IFERROR($G$75+4*(DATE2NUM(BW$201)-DATE2NUM($G$71))*($G$76-$G$75)/$G$77,$G$76))) -> 12 | BX221: =IF(BX$201<$G$71, 0, MIN($G$76, IFERROR($G$75+4*(DATE2NUM(BX$201)-DATE2NUM($G$71))*($G$76-$G$75)/$G$77,$G$76))) -> 12 | BY221: =IF(BY$201<$G$71, 0, MIN($G$76, IFERROR($G$75+4*(DATE2NUM(BY$201)-DATE2NUM($G$71))*($G$76-$G$75)/$G$77,$G$76))) -> 12 | BZ221: =IF(BZ$201<$G$71, 0, MIN($G$76, IFERROR($G$75+4*(DATE2NUM(BZ$201)-DATE2NUM($G$71))*($G$76-$G$75)/$G$77,$G$76))) -> 12 | CA221: =IF(CA$201<$G$71, 0, MIN($G$76, IFERROR($G$75+4*(DATE2NUM(CA$201)-DATE2NUM($G$71))*($G$76-$G$75)/$G$77,$G$76))) -> 12 | CB221: =IF(CB$201<$G$71, 0, MIN($G$76, IFERROR($G$75+4*(DATE2NUM(CB$201)-DATE2NUM($G$71))*($G$76-$G$75)/$G$77,$G$76))) -> 12 | CC221: =IF(CC$201<$G$71, 0, MIN($G$76, IFERROR($G$75+4*(DATE2NUM(CC$201)-DATE2NUM($G$71))*($G$76-$G$75)/$G$77,$G$76))) -> 12 | CD221: =IF(CD$201<$G$71, 0, MIN($G$76, IFERROR($G$75+4*(DATE2NUM(CD$201)-DATE2NUM($G$71))*($G$76-$G$75)/$G$77,$G$76))) -> 12 | CE221: =IF(CE$201<$G$71, 0, MIN($G$76, IFERROR($G$75+4*(DATE2NUM(CE$201)-DATE2NUM($G$71))*($G$76-$G$75)/$G$77,$G$76))) -> 12 | CF221: =IF(CF$201<$G$71, 0, MIN($G$76, IFERROR($G$75+4*(DATE2NUM(CF$201)-DATE2NUM($G$71))*($G$76-$G$75)/$G$77,$G$76))) -> 12 | CG221: =IF(CG$201<$G$71, 0, MIN($G$76, IFERROR($G$75+4*(DATE2NUM(CG$201)-DATE2NUM($G$71))*($G$76-$G$75)/$G$77,$G$76))) -> 12 | CH221: =IF(CH$201<$G$71, 0, MIN($G$76, IFERROR($G$75+4*(DATE2NUM(CH$201)-DATE2NUM($G$71))*($G$76-$G$75)/$G$77,$G$76))) -> 12 | CI221: =IF(CI$201<$G$71, 0, MIN($G$76, IFERROR($G$75+4*(DATE2NUM(CI$201)-DATE2NUM($G$71))*($G$76-$G$75)/$G$77,$G$76))) -> 12 | CJ221: =IF(CJ$201<$G$71, 0, MIN($G$76, IFERROR($G$75+4*(DATE2NUM(CJ$201)-DATE2NUM($G$71))*($G$76-$G$75)/$G$77,$G$76))) -> 12 | CK221: =IF(CK$201<$G$71, 0, MIN($G$76, IFERROR($G$75+4*(DATE2NUM(CK$201)-DATE2NUM($G$71))*($G$76-$G$75)/$G$77,$G$76))) -> 12 | CL221: =IF(CL$201<$G$71, 0, MIN($G$76, IFERROR($G$75+4*(DATE2NUM(CL$201)-DATE2NUM($G$71))*($G$76-$G$75)/$G$77,$G$76))) -> 12 | CM221: =IF(CM$201<$G$71, 0, MIN($G$76, IFERROR($G$75+4*(DATE2NUM(CM$201)-DATE2NUM($G$71))*($G$76-$G$75)/$G$77,$G$76))) -> 12 | CN221: =IF(CN$201<$G$71, 0, MIN($G$76, IFERROR($G$75+4*(DATE2NUM(CN$201)-DATE2NUM($G$71))*($G$76-$G$75)/$G$77,$G$76))) -> 12 | CO221: =IF(CO$201<$G$71, 0, MIN($G$76, IFERROR($G$75+4*(DATE2NUM(CO$201)-DATE2NUM($G$71))*($G$76-$G$75)/$G$77,$G$76))) -> 12 | CP221: =IF(CP$201<$G$71, 0, MIN($G$76, IFERROR($G$75+4*(DATE2NUM(CP$201)-DATE2NUM($G$71))*($G$76-$G$75)/$G$77,$G$76))) -> 12 | CQ221: =IF(CQ$201<$G$71, 0, MIN($G$76, IFERROR($G$75+4*(DATE2NUM(CQ$201)-DATE2NUM($G$71))*($G$76-$G$75)/$G$77,$G$76))) -> 12 | CR221: =IF(CR$201<$G$71, 0, MIN($G$76, IFERROR($G$75+4*(DATE2NUM(CR$201)-DATE2NUM($G$71))*($G$76-$G$75)/$G$77,$G$76))) -> 12 | CS221: =IF(CS$201<$G$71, 0, MIN($G$76, IFERROR($G$75+4*(DATE2NUM(CS$201)-DATE2NUM($G$71))*($G$76-$G$75)/$G$77,$G$76))) -> 12 | CT221: =IF(CT$201<$G$71, 0, MIN($G$76, IFERROR($G$75+4*(DATE2NUM(CT$201)-DATE2NUM($G$71))*($G$76-$G$75)/$G$77,$G$76))) -> 12 | CU221: =IF(CU$201<$G$71, 0, MIN($G$76, IFERROR($G$75+4*(DATE2NUM(CU$201)-DATE2NUM($G$71))*($G$76-$G$75)/$G$77,$G$76))) -> 12 | CV221: =IF(CV$201<$G$71, 0, MIN($G$76, IFERROR($G$75+4*(DATE2NUM(CV$201)-DATE2NUM($G$71))*($G$76-$G$75)/$G$77,$G$76))) -> 12 | CW221: =IF(CW$201<$G$71, 0, MIN($G$76, IFERROR($G$75+4*(DATE2NUM(CW$201)-DATE2NUM($G$71))*($G$76-$G$75)/$G$77,$G$76))) -> 12 | CX221: =IF(CX$201<$G$71, 0, MIN($G$76, IFERROR($G$75+4*(DATE2NUM(CX$201)-DATE2NUM($G$71))*($G$76-$G$75)/$G$77,$G$76))) -> 12 | CY221: =IF(CY$201<$G$71, 0, MIN($G$76, IFERROR($G$75+4*(DATE2NUM(CY$201)-DATE2NUM($G$71))*($G$76-$G$75)/$G$77,$G$76))) -> 12 | CZ221: =IF(CZ$201<$G$71, 0, MIN($G$76, IFERROR($G$75+4*(DATE2NUM(CZ$201)-DATE2NUM($G$71))*($G$76-$G$75)/$G$77,$G$76))) -> 12 | DA221: =IF(DA$201<$G$71, 0, MIN($G$76, IFERROR($G$75+4*(DATE2NUM(DA$201)-DATE2NUM($G$71))*($G$76-$G$75)/$G$77,$G$76))) -> 12 | DB221: =IF(DB$201<$G$71, 0, MIN($G$76, IFERROR($G$75+4*(DATE2NUM(DB$201)-DATE2NUM($G$71))*($G$76-$G$75)/$G$77,$G$76))) -> 12 | DC221: =IF(DC$201<$G$71, 0, MIN($G$76, IFERROR($G$75+4*(DATE2NUM(DC$201)-DATE2NUM($G$71))*($G$76-$G$75)/$G$77,$G$76))) -> 12 | DD221: =IF(DD$201<$G$71, 0, MIN($G$76, IFERROR($G$75+4*(DATE2NUM(DD$201)-DATE2NUM($G$71))*($G$76-$G$75)/$G$77,$G$76))) -> 12 | DE221: =IF(DE$201<$G$71, 0, MIN($G$76, IFERROR($G$75+4*(DATE2NUM(DE$201)-DATE2NUM($G$71))*($G$76-$G$75)/$G$77,$G$76))) -> 12 | DF221: =IF(DF$201<$G$71, 0, MIN($G$76, IFERROR($G$75+4*(DATE2NUM(DF$201)-DATE2NUM($G$71))*($G$76-$G$75)/$G$77,$G$76))) -> 12 | DG221: =IF(DG$201<$G$71, 0, MIN($G$76, IFERROR($G$75+4*(DATE2NUM(DG$201)-DATE2NUM($G$71))*($G$76-$G$75)/$G$77,$G$76))) -> 12 | DH221: =IF(DH$201<$G$71, 0, MIN($G$76, IFERROR($G$75+4*(DATE2NUM(DH$201)-DATE2NUM($G$71))*($G$76-$G$75)/$G$77,$G$76))) -> 12 | DI221: =IF(DI$201<$G$71, 0, MIN($G$76, IFERROR($G$75+4*(DATE2NUM(DI$201)-DATE2NUM($G$71))*($G$76-$G$75)/$G$77,$G$76))) -> 12 | DJ221: =IF(DJ$201<$G$71, 0, MIN($G$76, IFERROR($G$75+4*(DATE2NUM(DJ$201)-DATE2NUM($G$71))*($G$76-$G$75)/$G$77,$G$76))) -> 12 | DK221: =IF(DK$201<$G$71, 0, MIN($G$76, IFERROR($G$75+4*(DATE2NUM(DK$201)-DATE2NUM($G$71))*($G$76-$G$75)/$G$77,$G$76))) -> 12 | DL221: =IF(DL$201<$G$71, 0, MIN($G$76, IFERROR($G$75+4*(DATE2NUM(DL$201)-DATE2NUM($G$71))*($G$76-$G$75)/$G$77,$G$76))) -> 12 | DM221: =IF(DM$201<$G$71, 0, MIN($G$76, IFERROR($G$75+4*(DATE2NUM(DM$201)-DATE2NUM($G$71))*($G$76-$G$75)/$G$77,$G$76))) -> 12 | DN221: =IF(DN$201<$G$71, 0, MIN($G$76, IFERROR($G$75+4*(DATE2NUM(DN$201)-DATE2NUM($G$71))*($G$76-$G$75)/$G$77,$G$76))) -> 12 | DO221: =IF(DO$201<$G$71, 0, MIN($G$76, IFERROR($G$75+4*(DATE2NUM(DO$201)-DATE2NUM($G$71))*($G$76-$G$75)/$G$77,$G$76))) -> 12 | DP221: =IF(DP$201<$G$71, 0, MIN($G$76, IFERROR($G$75+4*(DATE2NUM(DP$201)-DATE2NUM($G$71))*($G$76-$G$75)/$G$77,$G$76))) -> 12 | DQ221: =IF(DQ$201<$G$71, 0, MIN($G$76, IFERROR($G$75+4*(DATE2NUM(DQ$201)-DATE2NUM($G$71))*($G$76-$G$75)/$G$77,$G$76))) -> 12 | DR221: =IF(DR$201<$G$71, 0, MIN($G$76, IFERROR($G$75+4*(DATE2NUM(DR$201)-DATE2NUM($G$71))*($G$76-$G$75)/$G$77,$G$76))) -> 12 | DS221: =IF(DS$201<$G$71, 0, MIN($G$76, IFERROR($G$75+4*(DATE2NUM(DS$201)-DATE2NUM($G$71))*($G$76-$G$75)/$G$77,$G$76))) -> 12 | DT221: =IF(DT$201<$G$71, 0, MIN($G$76, IFERROR($G$75+4*(DATE2NUM(DT$201)-DATE2NUM($G$71))*($G$76-$G$75)/$G$77,$G$76))) -> 12 | DU221: =IF(DU$201<$G$71, 0, MIN($G$76, IFERROR($G$75+4*(DATE2NUM(DU$201)-DATE2NUM($G$71))*($G$76-$G$75)/$G$77,$G$76))) -> 12 | DV221: =IF(DV$201<$G$71, 0, MIN($G$76, IFERROR($G$75+4*(DATE2NUM(DV$201)-DATE2NUM($G$71))*($G$76-$G$75)/$G$77,$G$76))) -> 12
B222: Net Revenue Rate per Pt ($ thousands) | G222: =IF(G$201<$G$71, 0, $G$74*$G$79*$G$80*(1+$G$78)^(DATE2NUM(G$201)-DATE2NUM($G$71))) -> 0 | H222: =IF(H$201<$G$71, 0, $G$74*$G$79*$G$80*(1+$G$78)^(DATE2NUM(H$201)-DATE2NUM($G$71))) -> 0 | I222: =IF(I$201<$G$71, 0, $G$74*$G$79*$G$80*(1+$G$78)^(DATE2NUM(I$201)-DATE2NUM($G$71))) -> 0 | J222: =IF(J$201<$G$71, 0, $G$74*$G$79*$G$80*(1+$G$78)^(DATE2NUM(J$201)-DATE2NUM($G$71))) -> 0 | K222: =IF(K$201<$G$71, 0, $G$74*$G$79*$G$80*(1+$G$78)^(DATE2NUM(K$201)-DATE2NUM($G$71))) -> 0 | L222: =IF(L$201<$G$71, 0, $G$74*$G$79*$G$80*(1+$G$78)^(DATE2NUM(L$201)-DATE2NUM($G$71))) -> 0 | M222: =IF(M$201<$G$71, 0, $G$74*$G$79*$G$80*(1+$G$78)^(DATE2NUM(M$201)-DATE2NUM($G$71))) -> 0 | N222: =IF(N$201<$G$71, 0, $G$74*$G$79*$G$80*(1+$G$78)^(DATE2NUM(N$201)-DATE2NUM($G$71))) -> 0 | O222: =IF(O$201<$G$71, 0, $G$74*$G$79*$G$80*(1+$G$78)^(DATE2NUM(O$201)-DATE2NUM($G$71))) -> 0 | P222: =IF(P$201<$G$71, 0, $G$74*$G$79*$G$80*(1+$G$78)^(DATE2NUM(P$201)-DATE2NUM($G$71))) -> 0 | Q222: =IF(Q$201<$G$71, 0, $G$74*$G$79*$G$80*(1+$G$78)^(DATE2NUM(Q$201)-DATE2NUM($G$71))) -> 0 | R222: =IF(R$201<$G$71, 0, $G$74*$G$79*$G$80*(1+$G$78)^(DATE2NUM(R$201)-DATE2NUM($G$71))) -> 0 | S222: =IF(S$201<$G$71, 0, $G$74*$G$79*$G$80*(1+$G$78)^(DATE2NUM(S$201)-DATE2NUM($G$71))) -> 0 | T222: =IF(T$201<$G$71, 0, $G$74*$G$79*$G$80*(1+$G$78)^(DATE2NUM(T$201)-DATE2NUM($G$71))) -> 0 | U222: =IF(U$201<$G$71, 0, $G$74*$G$79*$G$80*(1+$G$78)^(DATE2NUM(U$201)-DATE2NUM($G$71))) -> 0 | V222: =IF(V$201<$G$71, 0, $G$74*$G$79*$G$80*(1+$G$78)^(DATE2NUM(V$201)-DATE2NUM($G$71))) -> 0 | W222: =IF(W$201<$G$71, 0, $G$74*$G$79*$G$80*(1+$G$78)^(DATE2NUM(W$201)-DATE2NUM($G$71))) -> 0 | X222: =IF(X$201<$G$71, 0, $G$74*$G$79*$G$80*(1+$G$78)^(DATE2NUM(X$201)-DATE2NUM($G$71))) -> 0 | Y222: =IF(Y$201<$G$71, 0, $G$74*$G$79*$G$80*(1+$G$78)^(DATE2NUM(Y$201)-DATE2NUM($G$71))) -> 0 | Z222: =IF(Z$201<$G$71, 0, $G$74*$G$79*$G$80*(1+$G$78)^(DATE2NUM(Z$201)-DATE2NUM($G$71))) -> 0 | AA222: =IF(AA$201<$G$71, 0, $G$74*$G$79*$G$80*(1+$G$78)^(DATE2NUM(AA$201)-DATE2NUM($G$71))) -> 0 | AB222: =IF(AB$201<$G$71, 0, $G$74*$G$79*$G$80*(1+$G$78)^(DATE2NUM(AB$201)-DATE2NUM($G$71))) -> 0 | AC222: =IF(AC$201<$G$71, 0, $G$74*$G$79*$G$80*(1+$G$78)^(DATE2NUM(AC$201)-DATE2NUM($G$71))) -> 0 | AD222: =IF(AD$201<$G$71, 0, $G$74*$G$79*$G$80*(1+$G$78)^(DATE2NUM(AD$201)-DATE2NUM($G$71))) -> 0 | AE222: =IF(AE$201<$G$71, 0, $G$74*$G$79*$G$80*(1+$G$78)^(DATE2NUM(AE$201)-DATE2NUM($G$71))) -> 0 | AF222: =IF(AF$201<$G$71, 0, $G$74*$G$79*$G$80*(1+$G$78)^(DATE2NUM(AF$201)-DATE2NUM($G$71))) -> 0 | AG222: =IF(AG$201<$G$71, 0, $G$74*$G$79*$G$80*(1+$G$78)^(DATE2NUM(AG$201)-DATE2NUM($G$71))) -> 0 | AH222: =IF(AH$201<$G$71, 0, $G$74*$G$79*$G$80*(1+$G$78)^(DATE2NUM(AH$201)-DATE2NUM($G$71))) -> 0 | AI222: =IF(AI$201<$G$71, 0, $G$74*$G$79*$G$80*(1+$G$78)^(DATE2NUM(AI$201)-DATE2NUM($G$71))) -> 0 | AJ222: =IF(AJ$201<$G$71, 0, $G$74*$G$79*$G$80*(1+$G$78)^(DATE2NUM(AJ$201)-DATE2NUM($G$71))) -> 0 | AK222: =IF(AK$201<$G$71, 0, $G$74*$G$79*$G$80*(1+$G$78)^(DATE2NUM(AK$201)-DATE2NUM($G$71))) -> 0 | AL222: =IF(AL$201<$G$71, 0, $G$74*$G$79*$G$80*(1+$G$78)^(DATE2NUM(AL$201)-DATE2NUM($G$71))) -> 0 | AM222: =IF(AM$201<$G$71, 0, $G$74*$G$79*$G$80*(1+$G$78)^(DATE2NUM(AM$201)-DATE2NUM($G$71))) -> 0 | AN222: =IF(AN$201<$G$71, 0, $G$74*$G$79*$G$80*(1+$G$78)^(DATE2NUM(AN$201)-DATE2NUM($G$71))) -> 0 | AO222: =IF(AO$201<$G$71, 0, $G$74*$G$79*$G$80*(1+$G$78)^(DATE2NUM(AO$201)-DATE2NUM($G$71))) -> 0 | AP222: =IF(AP$201<$G$71, 0, $G$74*$G$79*$G$80*(1+$G$78)^(DATE2NUM(AP$201)-DATE2NUM($G$71))) -> 0 | AQ222: =IF(AQ$201<$G$71, 0, $G$74*$G$79*$G$80*(1+$G$78)^(DATE2NUM(AQ$201)-DATE2NUM($G$71))) -> 0 | AR222: =IF(AR$201<$G$71, 0, $G$74*$G$79*$G$80*(1+$G$78)^(DATE2NUM(AR$201)-DATE2NUM($G$71))) -> 0 | AS222: =IF(AS$201<$G$71, 0, $G$74*$G$79*$G$80*(1+$G$78)^(DATE2NUM(AS$201)-DATE2NUM($G$71))) -> 0 | AT222: =IF(AT$201<$G$71, 0, $G$74*$G$79*$G$80*(1+$G$78)^(DATE2NUM(AT$201)-DATE2NUM($G$71))) -> 0 | AU222: =IF(AU$201<$G$71, 0, $G$74*$G$79*$G$80*(1+$G$78)^(DATE2NUM(AU$201)-DATE2NUM($G$71))) -> 9 | AV222: =IF(AV$201<$G$71, 0, $G$74*$G$79*$G$80*(1+$G$78)^(DATE2NUM(AV$201)-DATE2NUM($G$71))) -> 9 | AW222: =IF(AW$201<$G$71, 0, $G$74*$G$79*$G$80*(1+$G$78)^(DATE2NUM(AW$201)-DATE2NUM($G$71))) -> 9 | AX222: =IF(AX$201<$G$71, 0, $G$74*$G$79*$G$80*(1+$G$78)^(DATE2NUM(AX$201)-DATE2NUM($G$71))) -> 9 | AY222: =IF(AY$201<$G$71, 0, $G$74*$G$79*$G$80*(1+$G$78)^(DATE2NUM(AY$201)-DATE2NUM($G$71))) -> 9 | AZ222: =IF(AZ$201<$G$71, 0, $G$74*$G$79*$G$80*(1+$G$78)^(DATE2NUM(AZ$201)-DATE2NUM($G$71))) -> 9 | BA222: =IF(BA$201<$G$71, 0, $G$74*$G$79*$G$80*(1+$G$78)^(DATE2NUM(BA$201)-DATE2NUM($G$71))) -> 9 | BB222: =IF(BB$201<$G$71, 0, $G$74*$G$79*$G$80*(1+$G$78)^(DATE2NUM(BB$201)-DATE2NUM($G$71))) -> 9 | BC222: =IF(BC$201<$G$71, 0, $G$74*$G$79*$G$80*(1+$G$78)^(DATE2NUM(BC$201)-DATE2NUM($G$71))) -> 9 | BD222: =IF(BD$201<$G$71, 0, $G$74*$G$79*$G$80*(1+$G$78)^(DATE2NUM(BD$201)-DATE2NUM($G$71))) -> 9 | BE222: =IF(BE$201<$G$71, 0, $G$74*$G$79*$G$80*(1+$G$78)^(DATE2NUM(BE$201)-DATE2NUM($G$71))) -> 9 | BF222: =IF(BF$201<$G$71, 0, $G$74*$G$79*$G$80*(1+$G$78)^(DATE2NUM(BF$201)-DATE2NUM($G$71))) -> 9 | BG222: =IF(BG$201<$G$71, 0, $G$74*$G$79*$G$80*(1+$G$78)^(DATE2NUM(BG$201)-DATE2NUM($G$71))) -> 9 | BH222: =IF(BH$201<$G$71, 0, $G$74*$G$79*$G$80*(1+$G$78)^(DATE2NUM(BH$201)-DATE2NUM($G$71))) -> 9 | BI222: =IF(BI$201<$G$71, 0, $G$74*$G$79*$G$80*(1+$G$78)^(DATE2NUM(BI$201)-DATE2NUM($G$71))) -> 9 | BJ222: =IF(BJ$201<$G$71, 0, $G$74*$G$79*$G$80*(1+$G$78)^(DATE2NUM(BJ$201)-DATE2NUM($G$71))) -> 9 | BK222: =IF(BK$201<$G$71, 0, $G$74*$G$79*$G$80*(1+$G$78)^(DATE2NUM(BK$201)-DATE2NUM($G$71))) -> 9 | BL222: =IF(BL$201<$G$71, 0, $G$74*$G$79*$G$80*(1+$G$78)^(DATE2NUM(BL$201)-DATE2NUM($G$71))) -> 9 | BM222: =IF(BM$201<$G$71, 0, $G$74*$G$79*$G$80*(1+$G$78)^(DATE2NUM(BM$201)-DATE2NUM($G$71))) -> 9 | BN222: =IF(BN$201<$G$71, 0, $G$74*$G$79*$G$80*(1+$G$78)^(DATE2NUM(BN$201)-DATE2NUM($G$71))) -> 9 | BO222: =IF(BO$201<$G$71, 0, $G$74*$G$79*$G$80*(1+$G$78)^(DATE2NUM(BO$201)-DATE2NUM($G$71))) -> 9 | BP222: =IF(BP$201<$G$71, 0, $G$74*$G$79*$G$80*(1+$G$78)^(DATE2NUM(BP$201)-DATE2NUM($G$71))) -> 9 | BQ222: =IF(BQ$201<$G$71, 0, $G$74*$G$79*$G$80*(1+$G$78)^(DATE2NUM(BQ$201)-DATE2NUM($G$71))) -> 9 | BR222: =IF(BR$201<$G$71, 0, $G$74*$G$79*$G$80*(1+$G$78)^(DATE2NUM(BR$201)-DATE2NUM($G$71))) -> 9 | BS222: =IF(BS$201<$G$71, 0, $G$74*$G$79*$G$80*(1+$G$78)^(DATE2NUM(BS$201)-DATE2NUM($G$71))) -> 9 | BT222: =IF(BT$201<$G$71, 0, $G$74*$G$79*$G$80*(1+$G$78)^(DATE2NUM(BT$201)-DATE2NUM($G$71))) -> 9 | BU222: =IF(BU$201<$G$71, 0, $G$74*$G$79*$G$80*(1+$G$78)^(DATE2NUM(BU$201)-DATE2NUM($G$71))) -> 9 | BV222: =IF(BV$201<$G$71, 0, $G$74*$G$79*$G$80*(1+$G$78)^(DATE2NUM(BV$201)-DATE2NUM($G$71))) -> 9 | BW222: =IF(BW$201<$G$71, 0, $G$74*$G$79*$G$80*(1+$G$78)^(DATE2NUM(BW$201)-DATE2NUM($G$71))) -> 9 | BX222: =IF(BX$201<$G$71, 0, $G$74*$G$79*$G$80*(1+$G$78)^(DATE2NUM(BX$201)-DATE2NUM($G$71))) -> 9 | BY222: =IF(BY$201<$G$71, 0, $G$74*$G$79*$G$80*(1+$G$78)^(DATE2NUM(BY$201)-DATE2NUM($G$71))) -> 9 | BZ222: =IF(BZ$201<$G$71, 0, $G$74*$G$79*$G$80*(1+$G$78)^(DATE2NUM(BZ$201)-DATE2NUM($G$71))) -> 9 | CA222: =IF(CA$201<$G$71, 0, $G$74*$G$79*$G$80*(1+$G$78)^(DATE2NUM(CA$201)-DATE2NUM($G$71))) -> 9 | CB222: =IF(CB$201<$G$71, 0, $G$74*$G$79*$G$80*(1+$G$78)^(DATE2NUM(CB$201)-DATE2NUM($G$71))) -> 9 | CC222: =IF(CC$201<$G$71, 0, $G$74*$G$79*$G$80*(1+$G$78)^(DATE2NUM(CC$201)-DATE2NUM($G$71))) -> 9 | CD222: =IF(CD$201<$G$71, 0, $G$74*$G$79*$G$80*(1+$G$78)^(DATE2NUM(CD$201)-DATE2NUM($G$71))) -> 9 | CE222: =IF(CE$201<$G$71, 0, $G$74*$G$79*$G$80*(1+$G$78)^(DATE2NUM(CE$201)-DATE2NUM($G$71))) -> 9 | CF222: =IF(CF$201<$G$71, 0, $G$74*$G$79*$G$80*(1+$G$78)^(DATE2NUM(CF$201)-DATE2NUM($G$71))) -> 9 | CG222: =IF(CG$201<$G$71, 0, $G$74*$G$79*$G$80*(1+$G$78)^(DATE2NUM(CG$201)-DATE2NUM($G$71))) -> 9 | CH222: =IF(CH$201<$G$71, 0, $G$74*$G$79*$G$80*(1+$G$78)^(DATE2NUM(CH$201)-DATE2NUM($G$71))) -> 9 | CI222: =IF(CI$201<$G$71, 0, $G$74*$G$79*$G$80*(1+$G$78)^(DATE2NUM(CI$201)-DATE2NUM($G$71))) -> 9 | CJ222: =IF(CJ$201<$G$71, 0, $G$74*$G$79*$G$80*(1+$G$78)^(DATE2NUM(CJ$201)-DATE2NUM($G$71))) -> 9 | CK222: =IF(CK$201<$G$71, 0, $G$74*$G$79*$G$80*(1+$G$78)^(DATE2NUM(CK$201)-DATE2NUM($G$71))) -> 9 | CL222: =IF(CL$201<$G$71, 0, $G$74*$G$79*$G$80*(1+$G$78)^(DATE2NUM(CL$201)-DATE2NUM($G$71))) -> 9 | CM222: =IF(CM$201<$G$71, 0, $G$74*$G$79*$G$80*(1+$G$78)^(DATE2NUM(CM$201)-DATE2NUM($G$71))) -> 9 | CN222: =IF(CN$201<$G$71, 0, $G$74*$G$79*$G$80*(1+$G$78)^(DATE2NUM(CN$201)-DATE2NUM($G$71))) -> 9 | CO222: =IF(CO$201<$G$71, 0, $G$74*$G$79*$G$80*(1+$G$78)^(DATE2NUM(CO$201)-DATE2NUM($G$71))) -> 9 | CP222: =IF(CP$201<$G$71, 0, $G$74*$G$79*$G$80*(1+$G$78)^(DATE2NUM(CP$201)-DATE2NUM($G$71))) -> 9 | CQ222: =IF(CQ$201<$G$71, 0, $G$74*$G$79*$G$80*(1+$G$78)^(DATE2NUM(CQ$201)-DATE2NUM($G$71))) -> 9 | CR222: =IF(CR$201<$G$71, 0, $G$74*$G$79*$G$80*(1+$G$78)^(DATE2NUM(CR$201)-DATE2NUM($G$71))) -> 9 | CS222: =IF(CS$201<$G$71, 0, $G$74*$G$79*$G$80*(1+$G$78)^(DATE2NUM(CS$201)-DATE2NUM($G$71))) -> 9 | CT222: =IF(CT$201<$G$71, 0, $G$74*$G$79*$G$80*(1+$G$78)^(DATE2NUM(CT$201)-DATE2NUM($G$71))) -> 9 | CU222: =IF(CU$201<$G$71, 0, $G$74*$G$79*$G$80*(1+$G$78)^(DATE2NUM(CU$201)-DATE2NUM($G$71))) -> 9 | CV222: =IF(CV$201<$G$71, 0, $G$74*$G$79*$G$80*(1+$G$78)^(DATE2NUM(CV$201)-DATE2NUM($G$71))) -> 9 | CW222: =IF(CW$201<$G$71, 0, $G$74*$G$79*$G$80*(1+$G$78)^(DATE2NUM(CW$201)-DATE2NUM($G$71))) -> 9 | CX222: =IF(CX$201<$G$71, 0, $G$74*$G$79*$G$80*(1+$G$78)^(DATE2NUM(CX$201)-DATE2NUM($G$71))) -> 9 | CY222: =IF(CY$201<$G$71, 0, $G$74*$G$79*$G$80*(1+$G$78)^(DATE2NUM(CY$201)-DATE2NUM($G$71))) -> 9 | CZ222: =IF(CZ$201<$G$71, 0, $G$74*$G$79*$G$80*(1+$G$78)^(DATE2NUM(CZ$201)-DATE2NUM($G$71))) -> 9 | DA222: =IF(DA$201<$G$71, 0, $G$74*$G$79*$G$80*(1+$G$78)^(DATE2NUM(DA$201)-DATE2NUM($G$71))) -> 9 | DB222: =IF(DB$201<$G$71, 0, $G$74*$G$79*$G$80*(1+$G$78)^(DATE2NUM(DB$201)-DATE2NUM($G$71))) -> 9 | DC222: =IF(DC$201<$G$71, 0, $G$74*$G$79*$G$80*(1+$G$78)^(DATE2NUM(DC$201)-DATE2NUM($G$71))) -> 9 | DD222: =IF(DD$201<$G$71, 0, $G$74*$G$79*$G$80*(1+$G$78)^(DATE2NUM(DD$201)-DATE2NUM($G$71))) -> 9 | DE222: =IF(DE$201<$G$71, 0, $G$74*$G$79*$G$80*(1+$G$78)^(DATE2NUM(DE$201)-DATE2NUM($G$71))) -> 9 | DF222: =IF(DF$201<$G$71, 0, $G$74*$G$79*$G$80*(1+$G$78)^(DATE2NUM(DF$201)-DATE2NUM($G$71))) -> 9 | DG222: =IF(DG$201<$G$71, 0, $G$74*$G$79*$G$80*(1+$G$78)^(DATE2NUM(DG$201)-DATE2NUM($G$71))) -> 9 | DH222: =IF(DH$201<$G$71, 0, $G$74*$G$79*$G$80*(1+$G$78)^(DATE2NUM(DH$201)-DATE2NUM($G$71))) -> 9 | DI222: =IF(DI$201<$G$71, 0, $G$74*$G$79*$G$80*(1+$G$78)^(DATE2NUM(DI$201)-DATE2NUM($G$71))) -> 9 | DJ222: =IF(DJ$201<$G$71, 0, $G$74*$G$79*$G$80*(1+$G$78)^(DATE2NUM(DJ$201)-DATE2NUM($G$71))) -> 9 | DK222: =IF(DK$201<$G$71, 0, $G$74*$G$79*$G$80*(1+$G$78)^(DATE2NUM(DK$201)-DATE2NUM($G$71))) -> 9 | DL222: =IF(DL$201<$G$71, 0, $G$74*$G$79*$G$80*(1+$G$78)^(DATE2NUM(DL$201)-DATE2NUM($G$71))) -> 9 | DM222: =IF(DM$201<$G$71, 0, $G$74*$G$79*$G$80*(1+$G$78)^(DATE2NUM(DM$201)-DATE2NUM($G$71))) -> 9 | DN222: =IF(DN$201<$G$71, 0, $G$74*$G$79*$G$80*(1+$G$78)^(DATE2NUM(DN$201)-DATE2NUM($G$71))) -> 9 | DO222: =IF(DO$201<$G$71, 0, $G$74*$G$79*$G$80*(1+$G$78)^(DATE2NUM(DO$201)-DATE2NUM($G$71))) -> 9 | DP222: =IF(DP$201<$G$71, 0, $G$74*$G$79*$G$80*(1+$G$78)^(DATE2NUM(DP$201)-DATE2NUM($G$71))) -> 9 | DQ222: =IF(DQ$201<$G$71, 0, $G$74*$G$79*$G$80*(1+$G$78)^(DATE2NUM(DQ$201)-DATE2NUM($G$71))) -> 9 | DR222: =IF(DR$201<$G$71, 0, $G$74*$G$79*$G$80*(1+$G$78)^(DATE2NUM(DR$201)-DATE2NUM($G$71))) -> 9 | DS222: =IF(DS$201<$G$71, 0, $G$74*$G$79*$G$80*(1+$G$78)^(DATE2NUM(DS$201)-DATE2NUM($G$71))) -> 9 | DT222: =IF(DT$201<$G$71, 0, $G$74*$G$79*$G$80*(1+$G$78)^(DATE2NUM(DT$201)-DATE2NUM($G$71))) -> 9 | DU222: =IF(DU$201<$G$71, 0, $G$74*$G$79*$G$80*(1+$G$78)^(DATE2NUM(DU$201)-DATE2NUM($G$71))) -> 9 | DV222: =IF(DV$201<$G$71, 0, $G$74*$G$79*$G$80*(1+$G$78)^(DATE2NUM(DV$201)-DATE2NUM($G$71))) -> 9
B223: Net Sales | G223: =G221*G220*G222/1000 -> 0 | H223: =H221*H220*H222/1000 -> 0 | I223: 0 | J223: 0 | K223: 0 | L223: 0 | M223: 0 | N223: 0 | O223: 0 | P223: 0 | Q223: 0 | R223: 0 | S223: 0 | T223: 0 | U223: 0 | V223: 0 | W223: 0 | X223: 0 | Y223: 0 | Z223: 0 | AA223: 0 | AB223: 0 | AC223: 0 | AD223: 0 | AE223: 0 | AF223: 0 | AG223: 0 | AH223: 0 | AI223: 0 | AJ223: 0 | AK223: 0 | AL223: 0 | AM223: 0 | AN223: 0 | AO223: 0 | AP223: 0 | AQ223: 0 | AR223: 0 | AS223: 0 | AT223: 0 | AU223: 6.825 | AV223: 14.35546875 | AW223: 22.6078125 | AX223: 31.5984375 | AY223: 41.34375 | AZ223: 51.384375 | BA223: 62.015625 | BB223: 73.2375 | BC223: 85.05 | BD223: 97.453125 | BE223: 110.446875 | BF223: 124.03125 | BG223: 138.20625 | BH223: 152.971875 | BI223: 168.328125 | BJ223: 184.275 | BK223: 200.8125 | BL223: 217.940625 | BM223: 235.659375 | BN223: 253.96875 | BO223: 272.86875 | BP223: 292.359375 | BQ223: 312.440625 | BR223: 333.1125 | BS223: 340.2 | BT223: =BT221*BT220*BT222/1000 -> 340.2 | BU223: 340.2 | BV223: 340.2 | BW223: 340.2 | BX223: 340.2 | BY223: 340.2 | BZ223: 340.2 | CA223: 340.2 | CB223: 340.2 | CC223: 340.2 | CD223: 340.2 | CE223: 340.2 | CF223: 340.2 | CG223: 340.2 | CH223: 340.2 | CI223: 286.0729605 | CJ223: 240.557727 | CK223: 202.2841303 | CL223: 170.1 | CM223: 143.0364802 | CN223: 120.2788635 | CO223: 101.1420651 | CP223: 85.05 | CQ223: 71.51824012 | CR223: 60.13943174 | CS223: 50.57103257 | CT223: 42.525 | CU223: 35.75912006 | CV223: 30.06971587 | CW223: 25.28551628 | CX223: 21.2625 | CY223: 17.87956003 | CZ223: 15.03485793 | DA223: 12.64275814 | DB223: 10.63125 | DC223: 8.939780015 | DD223: 7.517428967 | DE223: 6.321379071 | DF223: 5.315625 | DG223: 4.469890007 | DH223: 3.758714484 | DI223: 3.160689535 | DJ223: 2.6578125 | DK223: 2.234945004 | DL223: 1.879357242 | DM223: 1.580344768 | DN223: 1.32890625 | DO223: 1.117472502 | DP223: 0.9396786209 | DQ223: 0.7901723838 | DR223: 0.664453125 | DS223: 0.5587362509 | DT223: 0.4698393105 | DU223: 0.3950861919 | DV223: 0.3322265625
B225: % Net Sales Ownership | G225: =$G$81 -> 1 | H225: 1 | I225: 1 | J225: 1 | K225: 1 | L225: 1 | M225: 1 | N225: 1 | O225: 1 | P225: 1 | Q225: 1 | R225: 1 | S225: 1 | T225: 1 | U225: 1 | V225: 1 | W225: 1 | X225: 1 | Y225: 1 | Z225: 1 | AA225: 1 | AB225: 1 | AC225: 1 | AD225: 1 | AE225: 1 | AF225: 1 | AG225: 1 | AH225: 1 | AI225: 1 | AJ225: 1 | AK225: 1 | AL225: 1 | AM225: =$G$81 -> 1 | AN225: 1 | AO225: 1 | AP225: 1 | AQ225: 1 | AR225: 1 | AS225: 1 | AT225: 1 | AU225: 1 | AV225: 1 | AW225: 1 | AX225: 1 | AY225: 1 | AZ225: 1 | BA225: 1 | BB225: 1 | BC225: 1 | BD225: 1 | BE225: 1 | BF225: 1 | BG225: 1 | BH225: 1 | BI225: 1 | BJ225: 1 | BK225: 1 | BL225: 1 | BM225: 1 | BN225: 1 | BO225: 1 | BP225: 1 | BQ225: 1 | BR225: 1 | BS225: =$G$81 -> 1 | BT225: 1 | BU225: 1 | BV225: 1 | BW225: 1 | BX225: 1 | BY225: 1 | BZ225: 1 | CA225: 1 | CB225: 1 | CC225: 1 | CD225: 1 | CE225: 1 | CF225: 1 | CG225: 1 | CH225: 1 | CI225: 1 | CJ225: 1 | CK225: 1 | CL225: 1 | CM225: 1 | CN225: 1 | CO225: 1 | CP225: 1 | CQ225: 1 | CR225: 1 | CS225: 1 | CT225: 1 | CU225: 1 | CV225: 1 | CW225: 1 | CX225: 1 | CY225: =$G$81 -> 1 | CZ225: 1 | DA225: 1 | DB225: 1 | DC225: 1 | DD225: 1 | DE225: 1 | DF225: 1 | DG225: 1 | DH225: 1 | DI225: 1 | DJ225: 1 | DK225: 1 | DL225: 1 | DM225: 1 | DN225: 1 | DO225: 1 | DP225: 1 | DQ225: 1 | DR225: 1 | DS225: 1 | DT225: 1 | DU225: 1 | DV225: 1
B226: Net Revenues | G226: =G223*G225 -> 0 | H226: =H223*H225 -> 0 | I226: 0 | J226: 0 | K226: 0 | L226: 0 | M226: 0 | N226: 0 | O226: 0 | P226: 0 | Q226: 0 | R226: 0 | S226: 0 | T226: 0 | U226: 0 | V226: 0 | W226: 0 | X226: 0 | Y226: 0 | Z226: 0 | AA226: 0 | AB226: 0 | AC226: 0 | AD226: 0 | AE226: 0 | AF226: 0 | AG226: 0 | AH226: 0 | AI226: 0 | AJ226: 0 | AK226: 0 | AL226: 0 | AM226: 0 | AN226: 0 | AO226: 0 | AP226: 0 | AQ226: 0 | AR226: 0 | AS226: 0 | AT226: 0 | AU226: 6.825 | AV226: 14.35546875 | AW226: 22.6078125 | AX226: 31.5984375 | AY226: 41.34375 | AZ226: 51.384375 | BA226: 62.015625 | BB226: 73.2375 | BC226: 85.05 | BD226: 97.453125 | BE226: 110.446875 | BF226: 124.03125 | BG226: 138.20625 | BH226: 152.971875 | BI226: 168.328125 | BJ226: 184.275 | BK226: 200.8125 | BL226: 217.940625 | BM226: 235.659375 | BN226: 253.96875 | BO226: 272.86875 | BP226: 292.359375 | BQ226: 312.440625 | BR226: 333.1125 | BS226: 340.2 | BT226: =BT223*BT225 -> 340.2 | BU226: 340.2 | BV226: 340.2 | BW226: 340.2 | BX226: 340.2 | BY226: 340.2 | BZ226: 340.2 | CA226: 340.2 | CB226: 340.2 | CC226: 340.2 | CD226: 340.2 | CE226: 340.2 | CF226: 340.2 | CG226: 340.2 | CH226: 340.2 | CI226: 286.0729605 | CJ226: 240.557727 | CK226: 202.2841303 | CL226: 170.1 | CM226: 143.0364802 | CN226: 120.2788635 | CO226: 101.1420651 | CP226: 85.05 | CQ226: 71.51824012 | CR226: 60.13943174 | CS226: 50.57103257 | CT226: 42.525 | CU226: 35.75912006 | CV226: 30.06971587 | CW226: 25.28551628 | CX226: 21.2625 | CY226: 17.87956003 | CZ226: 15.03485793 | DA226: 12.64275814 | DB226: 10.63125 | DC226: 8.939780015 | DD226: 7.517428967 | DE226: 6.321379071 | DF226: 5.315625 | DG226: 4.469890007 | DH226: 3.758714484 | DI226: 3.160689535 | DJ226: 2.6578125 | DK226: 2.234945004 | DL226: 1.879357242 | DM226: 1.580344768 | DN226: 1.32890625 | DO226: 1.117472502 | DP226: 0.9396786209 | DQ226: 0.7901723838 | DR226: 0.664453125 | DS226: 0.5587362509 | DT226: 0.4698393105 | DU226: 0.3950861919 | DV226: 0.3322265625
B228: JP
B229: Patients | G229: =$H$55/4 -> 6250 | H229: =IFERROR(MIN($H$57, G229*(1+$H$56)^(1/4)), G229*(1+$H$56)^(1/4)) -> 6250 | I229: 6250 | J229: 6250 | K229: 6250 | L229: 6250 | M229: 6250 | N229: 6250 | O229: 6250 | P229: 6250 | Q229: 6250 | R229: 6250 | S229: 6250 | T229: 6250 | U229: 6250 | V229: 6250 | W229: 6250 | X229: 6250 | Y229: 6250 | Z229: 6250 | AA229: 6250 | AB229: 6250 | AC229: 6250 | AD229: 6250 | AE229: 6250 | AF229: 6250 | AG229: 6250 | AH229: 6250 | AI229: 6250 | AJ229: 6250 | AK229: 6250 | AL229: 6250 | AM229: 6250 | AN229: =IFERROR(MIN($H$57, AM229*(1+$H$56)^(1/4)), AM229*(1+$H$56)^(1/4)) -> 6250 | AO229: 6250 | AP229: 6250 | AQ229: 6250 | AR229: 6250 | AS229: 6250 | AT229: 6250 | AU229: 6250 | AV229: 6250 | AW229: 6250 | AX229: 6250 | AY229: 6250 | AZ229: 6250 | BA229: 6250 | BB229: 6250 | BC229: 6250 | BD229: 6250 | BE229: 6250 | BF229: 6250 | BG229: 6250 | BH229: 6250 | BI229: 6250 | BJ229: 6250 | BK229: 6250 | BL229: 6250 | BM229: 6250 | BN229: 6250 | BO229: 6250 | BP229: 6250 | BQ229: 6250 | BR229: 6250 | BS229: 6250 | BT229: =IFERROR(MIN($H$57, BS229*(1+$H$56)^(1/4)), BS229*(1+$H$56)^(1/4)) -> 6250 | BU229: 6250 | BV229: 6250 | BW229: 6250 | BX229: 6250 | BY229: 6250 | BZ229: 6250 | CA229: 6250 | CB229: 6250 | CC229: 6250 | CD229: 6250 | CE229: 6250 | CF229: 6250 | CG229: 6250 | CH229: 6250 | CI229: 6250 | CJ229: 6250 | CK229: 6250 | CL229: 6250 | CM229: 6250 | CN229: 6250 | CO229: 6250 | CP229: 6250 | CQ229: 6250 | CR229: 6250 | CS229: 6250 | CT229: 6250 | CU229: 6250 | CV229: 6250 | CW229: 6250 | CX229: 6250 | CY229: 6250 | CZ229: =IFERROR(MIN($H$57, CY229*(1+$H$56)^(1/4)), CY229*(1+$H$56)^(1/4)) -> 6250 | DA229: 6250 | DB229: 6250 | DC229: 6250 | DD229: 6250 | DE229: 6250 | DF229: 6250 | DG229: 6250 | DH229: 6250 | DI229: 6250 | DJ229: 6250 | DK229: 6250 | DL229: 6250 | DM229: 6250 | DN229: 6250 | DO229: 6250 | DP229: 6250 | DQ229: 6250 | DR229: 6250 | DS229: 6250 | DT229: 6250 | DU229: 6250 | DV229: 6250
B230: % Diagnosed | G230: =IF(G$201<=$H$58, $H$59, MIN($H$60, IFERROR($H$59+4*(DATE2NUM(G$201)-DATE2NUM($H$58))*($H$60-$H$59)/$H$61,$H$60))) -> 0.8 | H230: =IF(H$201<=$H$58, $H$59, MIN($H$60, IFERROR($H$59+4*(DATE2NUM(H$201)-DATE2NUM($H$58))*($H$60-$H$59)/$H$61,$H$60))) -> 0.8 | I230: =IF(I$201<=$H$58, $H$59, MIN($H$60, IFERROR($H$59+4*(DATE2NUM(I$201)-DATE2NUM($H$58))*($H$60-$H$59)/$H$61,$H$60))) -> 0.8 | J230: =IF(J$201<=$H$58, $H$59, MIN($H$60, IFERROR($H$59+4*(DATE2NUM(J$201)-DATE2NUM($H$58))*($H$60-$H$59)/$H$61,$H$60))) -> 0.8 | K230: =IF(K$201<=$H$58, $H$59, MIN($H$60, IFERROR($H$59+4*(DATE2NUM(K$201)-DATE2NUM($H$58))*($H$60-$H$59)/$H$61,$H$60))) -> 0.8 | L230: =IF(L$201<=$H$58, $H$59, MIN($H$60, IFERROR($H$59+4*(DATE2NUM(L$201)-DATE2NUM($H$58))*($H$60-$H$59)/$H$61,$H$60))) -> 0.8 | M230: =IF(M$201<=$H$58, $H$59, MIN($H$60, IFERROR($H$59+4*(DATE2NUM(M$201)-DATE2NUM($H$58))*($H$60-$H$59)/$H$61,$H$60))) -> 0.8 | N230: =IF(N$201<=$H$58, $H$59, MIN($H$60, IFERROR($H$59+4*(DATE2NUM(N$201)-DATE2NUM($H$58))*($H$60-$H$59)/$H$61,$H$60))) -> 0.8 | O230: =IF(O$201<=$H$58, $H$59, MIN($H$60, IFERROR($H$59+4*(DATE2NUM(O$201)-DATE2NUM($H$58))*($H$60-$H$59)/$H$61,$H$60))) -> 0.8 | P230: =IF(P$201<=$H$58, $H$59, MIN($H$60, IFERROR($H$59+4*(DATE2NUM(P$201)-DATE2NUM($H$58))*($H$60-$H$59)/$H$61,$H$60))) -> 0.8 | Q230: =IF(Q$201<=$H$58, $H$59, MIN($H$60, IFERROR($H$59+4*(DATE2NUM(Q$201)-DATE2NUM($H$58))*($H$60-$H$59)/$H$61,$H$60))) -> 0.8 | R230: =IF(R$201<=$H$58, $H$59, MIN($H$60, IFERROR($H$59+4*(DATE2NUM(R$201)-DATE2NUM($H$58))*($H$60-$H$59)/$H$61,$H$60))) -> 0.8 | S230: =IF(S$201<=$H$58, $H$59, MIN($H$60, IFERROR($H$59+4*(DATE2NUM(S$201)-DATE2NUM($H$58))*($H$60-$H$59)/$H$61,$H$60))) -> 0.8 | T230: =IF(T$201<=$H$58, $H$59, MIN($H$60, IFERROR($H$59+4*(DATE2NUM(T$201)-DATE2NUM($H$58))*($H$60-$H$59)/$H$61,$H$60))) -> 0.8 | U230: =IF(U$201<=$H$58, $H$59, MIN($H$60, IFERROR($H$59+4*(DATE2NUM(U$201)-DATE2NUM($H$58))*($H$60-$H$59)/$H$61,$H$60))) -> 0.8 | V230: =IF(V$201<=$H$58, $H$59, MIN($H$60, IFERROR($H$59+4*(DATE2NUM(V$201)-DATE2NUM($H$58))*($H$60-$H$59)/$H$61,$H$60))) -> 0.8 | W230: =IF(W$201<=$H$58, $H$59, MIN($H$60, IFERROR($H$59+4*(DATE2NUM(W$201)-DATE2NUM($H$58))*($H$60-$H$59)/$H$61,$H$60))) -> 0.8 | X230: =IF(X$201<=$H$58, $H$59, MIN($H$60, IFERROR($H$59+4*(DATE2NUM(X$201)-DATE2NUM($H$58))*($H$60-$H$59)/$H$61,$H$60))) -> 0.8 | Y230: =IF(Y$201<=$H$58, $H$59, MIN($H$60, IFERROR($H$59+4*(DATE2NUM(Y$201)-DATE2NUM($H$58))*($H$60-$H$59)/$H$61,$H$60))) -> 0.8 | Z230: =IF(Z$201<=$H$58, $H$59, MIN($H$60, IFERROR($H$59+4*(DATE2NUM(Z$201)-DATE2NUM($H$58))*($H$60-$H$59)/$H$61,$H$60))) -> 0.8 | AA230: =IF(AA$201<=$H$58, $H$59, MIN($H$60, IFERROR($H$59+4*(DATE2NUM(AA$201)-DATE2NUM($H$58))*($H$60-$H$59)/$H$61,$H$60))) -> 0.8 | AB230: =IF(AB$201<=$H$58, $H$59, MIN($H$60, IFERROR($H$59+4*(DATE2NUM(AB$201)-DATE2NUM($H$58))*($H$60-$H$59)/$H$61,$H$60))) -> 0.8 | AC230: =IF(AC$201<=$H$58, $H$59, MIN($H$60, IFERROR($H$59+4*(DATE2NUM(AC$201)-DATE2NUM($H$58))*($H$60-$H$59)/$H$61,$H$60))) -> 0.8 | AD230: =IF(AD$201<=$H$58, $H$59, MIN($H$60, IFERROR($H$59+4*(DATE2NUM(AD$201)-DATE2NUM($H$58))*($H$60-$H$59)/$H$61,$H$60))) -> 0.8 | AE230: =IF(AE$201<=$H$58, $H$59, MIN($H$60, IFERROR($H$59+4*(DATE2NUM(AE$201)-DATE2NUM($H$58))*($H$60-$H$59)/$H$61,$H$60))) -> 0.8 | AF230: =IF(AF$201<=$H$58, $H$59, MIN($H$60, IFERROR($H$59+4*(DATE2NUM(AF$201)-DATE2NUM($H$58))*($H$60-$H$59)/$H$61,$H$60))) -> 0.8 | AG230: =IF(AG$201<=$H$58, $H$59, MIN($H$60, IFERROR($H$59+4*(DATE2NUM(AG$201)-DATE2NUM($H$58))*($H$60-$H$59)/$H$61,$H$60))) -> 0.8 | AH230: =IF(AH$201<=$H$58, $H$59, MIN($H$60, IFERROR($H$59+4*(DATE2NUM(AH$201)-DATE2NUM($H$58))*($H$60-$H$59)/$H$61,$H$60))) -> 0.8 | AI230: =IF(AI$201<=$H$58, $H$59, MIN($H$60, IFERROR($H$59+4*(DATE2NUM(AI$201)-DATE2NUM($H$58))*($H$60-$H$59)/$H$61,$H$60))) -> 0.8 | AJ230: =IF(AJ$201<=$H$58, $H$59, MIN($H$60, IFERROR($H$59+4*(DATE2NUM(AJ$201)-DATE2NUM($H$58))*($H$60-$H$59)/$H$61,$H$60))) -> 0.8 | AK230: =IF(AK$201<=$H$58, $H$59, MIN($H$60, IFERROR($H$59+4*(DATE2NUM(AK$201)-DATE2NUM($H$58))*($H$60-$H$59)/$H$61,$H$60))) -> 0.8 | AL230: =IF(AL$201<=$H$58, $H$59, MIN($H$60, IFERROR($H$59+4*(DATE2NUM(AL$201)-DATE2NUM($H$58))*($H$60-$H$59)/$H$61,$H$60))) -> 0.8 | AM230: =IF(AM$201<=$H$58, $H$59, MIN($H$60, IFERROR($H$59+4*(DATE2NUM(AM$201)-DATE2NUM($H$58))*($H$60-$H$59)/$H$61,$H$60))) -> 0.8 | AN230: =IF(AN$201<=$H$58, $H$59, MIN($H$60, IFERROR($H$59+4*(DATE2NUM(AN$201)-DATE2NUM($H$58))*($H$60-$H$59)/$H$61,$H$60))) -> 0.8 | AO230: =IF(AO$201<=$H$58, $H$59, MIN($H$60, IFERROR($H$59+4*(DATE2NUM(AO$201)-DATE2NUM($H$58))*($H$60-$H$59)/$H$61,$H$60))) -> 0.8 | AP230: =IF(AP$201<=$H$58, $H$59, MIN($H$60, IFERROR($H$59+4*(DATE2NUM(AP$201)-DATE2NUM($H$58))*($H$60-$H$59)/$H$61,$H$60))) -> 0.8 | AQ230: =IF(AQ$201<=$H$58, $H$59, MIN($H$60, IFERROR($H$59+4*(DATE2NUM(AQ$201)-DATE2NUM($H$58))*($H$60-$H$59)/$H$61,$H$60))) -> 0.8 | AR230: =IF(AR$201<=$H$58, $H$59, MIN($H$60, IFERROR($H$59+4*(DATE2NUM(AR$201)-DATE2NUM($H$58))*($H$60-$H$59)/$H$61,$H$60))) -> 0.8083333333 | AS230: =IF(AS$201<=$H$58, $H$59, MIN($H$60, IFERROR($H$59+4*(DATE2NUM(AS$201)-DATE2NUM($H$58))*($H$60-$H$59)/$H$61,$H$60))) -> 0.8166666667 | AT230: =IF(AT$201<=$H$58, $H$59, MIN($H$60, IFERROR($H$59+4*(DATE2NUM(AT$201)-DATE2NUM($H$58))*($H$60-$H$59)/$H$61,$H$60))) -> 0.825 | AU230: =IF(AU$201<=$H$58, $H$59, MIN($H$60, IFERROR($H$59+4*(DATE2NUM(AU$201)-DATE2NUM($H$58))*($H$60-$H$59)/$H$61,$H$60))) -> 0.8333333333 | AV230: =IF(AV$201<=$H$58, $H$59, MIN($H$60, IFERROR($H$59+4*(DATE2NUM(AV$201)-DATE2NUM($H$58))*($H$60-$H$59)/$H$61,$H$60))) -> 0.8416666667 | AW230: =IF(AW$201<=$H$58, $H$59, MIN($H$60, IFERROR($H$59+4*(DATE2NUM(AW$201)-DATE2NUM($H$58))*($H$60-$H$59)/$H$61,$H$60))) -> 0.85 | AX230: =IF(AX$201<=$H$58, $H$59, MIN($H$60, IFERROR($H$59+4*(DATE2NUM(AX$201)-DATE2NUM($H$58))*($H$60-$H$59)/$H$61,$H$60))) -> 0.8583333333 | AY230: =IF(AY$201<=$H$58, $H$59, MIN($H$60, IFERROR($H$59+4*(DATE2NUM(AY$201)-DATE2NUM($H$58))*($H$60-$H$59)/$H$61,$H$60))) -> 0.8666666667 | AZ230: =IF(AZ$201<=$H$58, $H$59, MIN($H$60, IFERROR($H$59+4*(DATE2NUM(AZ$201)-DATE2NUM($H$58))*($H$60-$H$59)/$H$61,$H$60))) -> 0.875 | BA230: =IF(BA$201<=$H$58, $H$59, MIN($H$60, IFERROR($H$59+4*(DATE2NUM(BA$201)-DATE2NUM($H$58))*($H$60-$H$59)/$H$61,$H$60))) -> 0.8833333333 | BB230: =IF(BB$201<=$H$58, $H$59, MIN($H$60, IFERROR($H$59+4*(DATE2NUM(BB$201)-DATE2NUM($H$58))*($H$60-$H$59)/$H$61,$H$60))) -> 0.8916666667 | BC230: =IF(BC$201<=$H$58, $H$59, MIN($H$60, IFERROR($H$59+4*(DATE2NUM(BC$201)-DATE2NUM($H$58))*($H$60-$H$59)/$H$61,$H$60))) -> 0.9 | BD230: =IF(BD$201<=$H$58, $H$59, MIN($H$60, IFERROR($H$59+4*(DATE2NUM(BD$201)-DATE2NUM($H$58))*($H$60-$H$59)/$H$61,$H$60))) -> 0.9 | BE230: =IF(BE$201<=$H$58, $H$59, MIN($H$60, IFERROR($H$59+4*(DATE2NUM(BE$201)-DATE2NUM($H$58))*($H$60-$H$59)/$H$61,$H$60))) -> 0.9 | BF230: =IF(BF$201<=$H$58, $H$59, MIN($H$60, IFERROR($H$59+4*(DATE2NUM(BF$201)-DATE2NUM($H$58))*($H$60-$H$59)/$H$61,$H$60))) -> 0.9 | BG230: =IF(BG$201<=$H$58, $H$59, MIN($H$60, IFERROR($H$59+4*(DATE2NUM(BG$201)-DATE2NUM($H$58))*($H$60-$H$59)/$H$61,$H$60))) -> 0.9 | BH230: =IF(BH$201<=$H$58, $H$59, MIN($H$60, IFERROR($H$59+4*(DATE2NUM(BH$201)-DATE2NUM($H$58))*($H$60-$H$59)/$H$61,$H$60))) -> 0.9 | BI230: =IF(BI$201<=$H$58, $H$59, MIN($H$60, IFERROR($H$59+4*(DATE2NUM(BI$201)-DATE2NUM($H$58))*($H$60-$H$59)/$H$61,$H$60))) -> 0.9 | BJ230: =IF(BJ$201<=$H$58, $H$59, MIN($H$60, IFERROR($H$59+4*(DATE2NUM(BJ$201)-DATE2NUM($H$58))*($H$60-$H$59)/$H$61,$H$60))) -> 0.9 | BK230: =IF(BK$201<=$H$58, $H$59, MIN($H$60, IFERROR($H$59+4*(DATE2NUM(BK$201)-DATE2NUM($H$58))*($H$60-$H$59)/$H$61,$H$60))) -> 0.9 | BL230: =IF(BL$201<=$H$58, $H$59, MIN($H$60, IFERROR($H$59+4*(DATE2NUM(BL$201)-DATE2NUM($H$58))*($H$60-$H$59)/$H$61,$H$60))) -> 0.9 | BM230: =IF(BM$201<=$H$58, $H$59, MIN($H$60, IFERROR($H$59+4*(DATE2NUM(BM$201)-DATE2NUM($H$58))*($H$60-$H$59)/$H$61,$H$60))) -> 0.9 | BN230: =IF(BN$201<=$H$58, $H$59, MIN($H$60, IFERROR($H$59+4*(DATE2NUM(BN$201)-DATE2NUM($H$58))*($H$60-$H$59)/$H$61,$H$60))) -> 0.9 | BO230: =IF(BO$201<=$H$58, $H$59, MIN($H$60, IFERROR($H$59+4*(DATE2NUM(BO$201)-DATE2NUM($H$58))*($H$60-$H$59)/$H$61,$H$60))) -> 0.9 | BP230: =IF(BP$201<=$H$58, $H$59, MIN($H$60, IFERROR($H$59+4*(DATE2NUM(BP$201)-DATE2NUM($H$58))*($H$60-$H$59)/$H$61,$H$60))) -> 0.9 | BQ230: =IF(BQ$201<=$H$58, $H$59, MIN($H$60, IFERROR($H$59+4*(DATE2NUM(BQ$201)-DATE2NUM($H$58))*($H$60-$H$59)/$H$61,$H$60))) -> 0.9 | BR230: =IF(BR$201<=$H$58, $H$59, MIN($H$60, IFERROR($H$59+4*(DATE2NUM(BR$201)-DATE2NUM($H$58))*($H$60-$H$59)/$H$61,$H$60))) -> 0.9 | BS230: =IF(BS$201<=$H$58, $H$59, MIN($H$60, IFERROR($H$59+4*(DATE2NUM(BS$201)-DATE2NUM($H$58))*($H$60-$H$59)/$H$61,$H$60))) -> 0.9 | BT230: =IF(BT$201<=$H$58, $H$59, MIN($H$60, IFERROR($H$59+4*(DATE2NUM(BT$201)-DATE2NUM($H$58))*($H$60-$H$59)/$H$61,$H$60))) -> 0.9 | BU230: =IF(BU$201<=$H$58, $H$59, MIN($H$60, IFERROR($H$59+4*(DATE2NUM(BU$201)-DATE2NUM($H$58))*($H$60-$H$59)/$H$61,$H$60))) -> 0.9 | BV230: =IF(BV$201<=$H$58, $H$59, MIN($H$60, IFERROR($H$59+4*(DATE2NUM(BV$201)-DATE2NUM($H$58))*($H$60-$H$59)/$H$61,$H$60))) -> 0.9 | BW230: =IF(BW$201<=$H$58, $H$59, MIN($H$60, IFERROR($H$59+4*(DATE2NUM(BW$201)-DATE2NUM($H$58))*($H$60-$H$59)/$H$61,$H$60))) -> 0.9 | BX230: =IF(BX$201<=$H$58, $H$59, MIN($H$60, IFERROR($H$59+4*(DATE2NUM(BX$201)-DATE2NUM($H$58))*($H$60-$H$59)/$H$61,$H$60))) -> 0.9 | BY230: =IF(BY$201<=$H$58, $H$59, MIN($H$60, IFERROR($H$59+4*(DATE2NUM(BY$201)-DATE2NUM($H$58))*($H$60-$H$59)/$H$61,$H$60))) -> 0.9 | BZ230: =IF(BZ$201<=$H$58, $H$59, MIN($H$60, IFERROR($H$59+4*(DATE2NUM(BZ$201)-DATE2NUM($H$58))*($H$60-$H$59)/$H$61,$H$60))) -> 0.9 | CA230: =IF(CA$201<=$H$58, $H$59, MIN($H$60, IFERROR($H$59+4*(DATE2NUM(CA$201)-DATE2NUM($H$58))*($H$60-$H$59)/$H$61,$H$60))) -> 0.9 | CB230: =IF(CB$201<=$H$58, $H$59, MIN($H$60, IFERROR($H$59+4*(DATE2NUM(CB$201)-DATE2NUM($H$58))*($H$60-$H$59)/$H$61,$H$60))) -> 0.9 | CC230: =IF(CC$201<=$H$58, $H$59, MIN($H$60, IFERROR($H$59+4*(DATE2NUM(CC$201)-DATE2NUM($H$58))*($H$60-$H$59)/$H$61,$H$60))) -> 0.9 | CD230: =IF(CD$201<=$H$58, $H$59, MIN($H$60, IFERROR($H$59+4*(DATE2NUM(CD$201)-DATE2NUM($H$58))*($H$60-$H$59)/$H$61,$H$60))) -> 0.9 | CE230: =IF(CE$201<=$H$58, $H$59, MIN($H$60, IFERROR($H$59+4*(DATE2NUM(CE$201)-DATE2NUM($H$58))*($H$60-$H$59)/$H$61,$H$60))) -> 0.9 | CF230: =IF(CF$201<=$H$58, $H$59, MIN($H$60, IFERROR($H$59+4*(DATE2NUM(CF$201)-DATE2NUM($H$58))*($H$60-$H$59)/$H$61,$H$60))) -> 0.9 | CG230: =IF(CG$201<=$H$58, $H$59, MIN($H$60, IFERROR($H$59+4*(DATE2NUM(CG$201)-DATE2NUM($H$58))*($H$60-$H$59)/$H$61,$H$60))) -> 0.9 | CH230: =IF(CH$201<=$H$58, $H$59, MIN($H$60, IFERROR($H$59+4*(DATE2NUM(CH$201)-DATE2NUM($H$58))*($H$60-$H$59)/$H$61,$H$60))) -> 0.9 | CI230: =IF(CI$201<=$H$58, $H$59, MIN($H$60, IFERROR($H$59+4*(DATE2NUM(CI$201)-DATE2NUM($H$58))*($H$60-$H$59)/$H$61,$H$60))) -> 0.9 | CJ230: =IF(CJ$201<=$H$58, $H$59, MIN($H$60, IFERROR($H$59+4*(DATE2NUM(CJ$201)-DATE2NUM($H$58))*($H$60-$H$59)/$H$61,$H$60))) -> 0.9 | CK230: =IF(CK$201<=$H$58, $H$59, MIN($H$60, IFERROR($H$59+4*(DATE2NUM(CK$201)-DATE2NUM($H$58))*($H$60-$H$59)/$H$61,$H$60))) -> 0.9 | CL230: =IF(CL$201<=$H$58, $H$59, MIN($H$60, IFERROR($H$59+4*(DATE2NUM(CL$201)-DATE2NUM($H$58))*($H$60-$H$59)/$H$61,$H$60))) -> 0.9 | CM230: =IF(CM$201<=$H$58, $H$59, MIN($H$60, IFERROR($H$59+4*(DATE2NUM(CM$201)-DATE2NUM($H$58))*($H$60-$H$59)/$H$61,$H$60))) -> 0.9 | CN230: =IF(CN$201<=$H$58, $H$59, MIN($H$60, IFERROR($H$59+4*(DATE2NUM(CN$201)-DATE2NUM($H$58))*($H$60-$H$59)/$H$61,$H$60))) -> 0.9 | CO230: =IF(CO$201<=$H$58, $H$59, MIN($H$60, IFERROR($H$59+4*(DATE2NUM(CO$201)-DATE2NUM($H$58))*($H$60-$H$59)/$H$61,$H$60))) -> 0.9 | CP230: =IF(CP$201<=$H$58, $H$59, MIN($H$60, IFERROR($H$59+4*(DATE2NUM(CP$201)-DATE2NUM($H$58))*($H$60-$H$59)/$H$61,$H$60))) -> 0.9 | CQ230: =IF(CQ$201<=$H$58, $H$59, MIN($H$60, IFERROR($H$59+4*(DATE2NUM(CQ$201)-DATE2NUM($H$58))*($H$60-$H$59)/$H$61,$H$60))) -> 0.9 | CR230: =IF(CR$201<=$H$58, $H$59, MIN($H$60, IFERROR($H$59+4*(DATE2NUM(CR$201)-DATE2NUM($H$58))*($H$60-$H$59)/$H$61,$H$60))) -> 0.9 | CS230: =IF(CS$201<=$H$58, $H$59, MIN($H$60, IFERROR($H$59+4*(DATE2NUM(CS$201)-DATE2NUM($H$58))*($H$60-$H$59)/$H$61,$H$60))) -> 0.9 | CT230: =IF(CT$201<=$H$58, $H$59, MIN($H$60, IFERROR($H$59+4*(DATE2NUM(CT$201)-DATE2NUM($H$58))*($H$60-$H$59)/$H$61,$H$60))) -> 0.9 | CU230: =IF(CU$201<=$H$58, $H$59, MIN($H$60, IFERROR($H$59+4*(DATE2NUM(CU$201)-DATE2NUM($H$58))*($H$60-$H$59)/$H$61,$H$60))) -> 0.9 | CV230: =IF(CV$201<=$H$58, $H$59, MIN($H$60, IFERROR($H$59+4*(DATE2NUM(CV$201)-DATE2NUM($H$58))*($H$60-$H$59)/$H$61,$H$60))) -> 0.9 | CW230: =IF(CW$201<=$H$58, $H$59, MIN($H$60, IFERROR($H$59+4*(DATE2NUM(CW$201)-DATE2NUM($H$58))*($H$60-$H$59)/$H$61,$H$60))) -> 0.9 | CX230: =IF(CX$201<=$H$58, $H$59, MIN($H$60, IFERROR($H$59+4*(DATE2NUM(CX$201)-DATE2NUM($H$58))*($H$60-$H$59)/$H$61,$H$60))) -> 0.9 | CY230: =IF(CY$201<=$H$58, $H$59, MIN($H$60, IFERROR($H$59+4*(DATE2NUM(CY$201)-DATE2NUM($H$58))*($H$60-$H$59)/$H$61,$H$60))) -> 0.9 | CZ230: =IF(CZ$201<=$H$58, $H$59, MIN($H$60, IFERROR($H$59+4*(DATE2NUM(CZ$201)-DATE2NUM($H$58))*($H$60-$H$59)/$H$61,$H$60))) -> 0.9 | DA230: =IF(DA$201<=$H$58, $H$59, MIN($H$60, IFERROR($H$59+4*(DATE2NUM(DA$201)-DATE2NUM($H$58))*($H$60-$H$59)/$H$61,$H$60))) -> 0.9 | DB230: =IF(DB$201<=$H$58, $H$59, MIN($H$60, IFERROR($H$59+4*(DATE2NUM(DB$201)-DATE2NUM($H$58))*($H$60-$H$59)/$H$61,$H$60))) -> 0.9 | DC230: =IF(DC$201<=$H$58, $H$59, MIN($H$60, IFERROR($H$59+4*(DATE2NUM(DC$201)-DATE2NUM($H$58))*($H$60-$H$59)/$H$61,$H$60))) -> 0.9 | DD230: =IF(DD$201<=$H$58, $H$59, MIN($H$60, IFERROR($H$59+4*(DATE2NUM(DD$201)-DATE2NUM($H$58))*($H$60-$H$59)/$H$61,$H$60))) -> 0.9 | DE230: =IF(DE$201<=$H$58, $H$59, MIN($H$60, IFERROR($H$59+4*(DATE2NUM(DE$201)-DATE2NUM($H$58))*($H$60-$H$59)/$H$61,$H$60))) -> 0.9 | DF230: =IF(DF$201<=$H$58, $H$59, MIN($H$60, IFERROR($H$59+4*(DATE2NUM(DF$201)-DATE2NUM($H$58))*($H$60-$H$59)/$H$61,$H$60))) -> 0.9 | DG230: =IF(DG$201<=$H$58, $H$59, MIN($H$60, IFERROR($H$59+4*(DATE2NUM(DG$201)-DATE2NUM($H$58))*($H$60-$H$59)/$H$61,$H$60))) -> 0.9 | DH230: =IF(DH$201<=$H$58, $H$59, MIN($H$60, IFERROR($H$59+4*(DATE2NUM(DH$201)-DATE2NUM($H$58))*($H$60-$H$59)/$H$61,$H$60))) -> 0.9 | DI230: =IF(DI$201<=$H$58, $H$59, MIN($H$60, IFERROR($H$59+4*(DATE2NUM(DI$201)-DATE2NUM($H$58))*($H$60-$H$59)/$H$61,$H$60))) -> 0.9 | DJ230: =IF(DJ$201<=$H$58, $H$59, MIN($H$60, IFERROR($H$59+4*(DATE2NUM(DJ$201)-DATE2NUM($H$58))*($H$60-$H$59)/$H$61,$H$60))) -> 0.9 | DK230: =IF(DK$201<=$H$58, $H$59, MIN($H$60, IFERROR($H$59+4*(DATE2NUM(DK$201)-DATE2NUM($H$58))*($H$60-$H$59)/$H$61,$H$60))) -> 0.9 | DL230: =IF(DL$201<=$H$58, $H$59, MIN($H$60, IFERROR($H$59+4*(DATE2NUM(DL$201)-DATE2NUM($H$58))*($H$60-$H$59)/$H$61,$H$60))) -> 0.9 | DM230: =IF(DM$201<=$H$58, $H$59, MIN($H$60, IFERROR($H$59+4*(DATE2NUM(DM$201)-DATE2NUM($H$58))*($H$60-$H$59)/$H$61,$H$60))) -> 0.9 | DN230: =IF(DN$201<=$H$58, $H$59, MIN($H$60, IFERROR($H$59+4*(DATE2NUM(DN$201)-DATE2NUM($H$58))*($H$60-$H$59)/$H$61,$H$60))) -> 0.9 | DO230: =IF(DO$201<=$H$58, $H$59, MIN($H$60, IFERROR($H$59+4*(DATE2NUM(DO$201)-DATE2NUM($H$58))*($H$60-$H$59)/$H$61,$H$60))) -> 0.9 | DP230: =IF(DP$201<=$H$58, $H$59, MIN($H$60, IFERROR($H$59+4*(DATE2NUM(DP$201)-DATE2NUM($H$58))*($H$60-$H$59)/$H$61,$H$60))) -> 0.9 | DQ230: =IF(DQ$201<=$H$58, $H$59, MIN($H$60, IFERROR($H$59+4*(DATE2NUM(DQ$201)-DATE2NUM($H$58))*($H$60-$H$59)/$H$61,$H$60))) -> 0.9 | DR230: =IF(DR$201<=$H$58, $H$59, MIN($H$60, IFERROR($H$59+4*(DATE2NUM(DR$201)-DATE2NUM($H$58))*($H$60-$H$59)/$H$61,$H$60))) -> 0.9 | DS230: =IF(DS$201<=$H$58, $H$59, MIN($H$60, IFERROR($H$59+4*(DATE2NUM(DS$201)-DATE2NUM($H$58))*($H$60-$H$59)/$H$61,$H$60))) -> 0.9 | DT230: =IF(DT$201<=$H$58, $H$59, MIN($H$60, IFERROR($H$59+4*(DATE2NUM(DT$201)-DATE2NUM($H$58))*($H$60-$H$59)/$H$61,$H$60))) -> 0.9 | DU230: =IF(DU$201<=$H$58, $H$59, MIN($H$60, IFERROR($H$59+4*(DATE2NUM(DU$201)-DATE2NUM($H$58))*($H$60-$H$59)/$H$61,$H$60))) -> 0.9 | DV230: =IF(DV$201<=$H$58, $H$59, MIN($H$60, IFERROR($H$59+4*(DATE2NUM(DV$201)-DATE2NUM($H$58))*($H$60-$H$59)/$H$61,$H$60))) -> 0.9
B231: % Treatable | G231: =$H$62 -> 0.35 | H231: 0.35 | I231: 0.35 | J231: 0.35 | K231: 0.35 | L231: 0.35 | M231: 0.35 | N231: 0.35 | O231: 0.35 | P231: 0.35 | Q231: 0.35 | R231: 0.35 | S231: 0.35 | T231: 0.35 | U231: 0.35 | V231: 0.35 | W231: 0.35 | X231: 0.35 | Y231: 0.35 | Z231: 0.35 | AA231: 0.35 | AB231: 0.35 | AC231: 0.35 | AD231: 0.35 | AE231: 0.35 | AF231: 0.35 | AG231: 0.35 | AH231: 0.35 | AI231: 0.35 | AJ231: 0.35 | AK231: 0.35 | AL231: 0.35 | AM231: =$H$62 -> 0.35 | AN231: 0.35 | AO231: 0.35 | AP231: 0.35 | AQ231: 0.35 | AR231: 0.35 | AS231: 0.35 | AT231: 0.35 | AU231: 0.35 | AV231: 0.35 | AW231: 0.35 | AX231: 0.35 | AY231: 0.35 | AZ231: 0.35 | BA231: 0.35 | BB231: 0.35 | BC231: 0.35 | BD231: 0.35 | BE231: 0.35 | BF231: 0.35 | BG231: 0.35 | BH231: 0.35 | BI231: 0.35 | BJ231: 0.35 | BK231: 0.35 | BL231: 0.35 | BM231: 0.35 | BN231: 0.35 | BO231: 0.35 | BP231: 0.35 | BQ231: 0.35 | BR231: 0.35 | BS231: =$H$62 -> 0.35 | BT231: 0.35 | BU231: 0.35 | BV231: 0.35 | BW231: 0.35 | BX231: 0.35 | BY231: 0.35 | BZ231: 0.35 | CA231: 0.35 | CB231: 0.35 | CC231: 0.35 | CD231: 0.35 | CE231: 0.35 | CF231: 0.35 | CG231: 0.35 | CH231: 0.35 | CI231: 0.35 | CJ231: 0.35 | CK231: 0.35 | CL231: 0.35 | CM231: 0.35 | CN231: 0.35 | CO231: 0.35 | CP231: 0.35 | CQ231: 0.35 | CR231: 0.35 | CS231: 0.35 | CT231: 0.35 | CU231: 0.35 | CV231: 0.35 | CW231: 0.35 | CX231: 0.35 | CY231: =$H$62 -> 0.35 | CZ231: 0.35 | DA231: 0.35 | DB231: 0.35 | DC231: 0.35 | DD231: 0.35 | DE231: 0.35 | DF231: 0.35 | DG231: 0.35 | DH231: 0.35 | DI231: 0.35 | DJ231: 0.35 | DK231: 0.35 | DL231: 0.35 | DM231: 0.35 | DN231: 0.35 | DO231: 0.35 | DP231: 0.35 | DQ231: 0.35 | DR231: 0.35 | DS231: 0.35 | DT231: 0.35 | DU231: 0.35 | DV231: 0.35
B232: Market Share | G232: =IF(G$201<$H$71, 0, IF(G$201>$H$72, F232*(1-$H$73)^(1/4), $H$67*INDEX($G$195:$DV$197,MATCH($F$64,$B$195:$B$197,0),MATCH(4*(DATE2NUM(G$201)-DATE2NUM($H$71)),$G$194:$DV$194, 0)))) -> 0 | H232: =IF(H$201<$H$71, 0, IF(H$201>$H$72, G232*(1-$H$73)^(1/4), $H$67*INDEX($G$195:$DV$197,MATCH($F$64,$B$195:$B$197,0),MATCH(4*(DATE2NUM(H$201)-DATE2NUM($H$71)),$G$194:$DV$194, 0)))) -> 0 | I232: =IF(I$201<$H$71, 0, IF(I$201>$H$72, H232*(1-$H$73)^(1/4), $H$67*INDEX($G$195:$DV$197,MATCH($F$64,$B$195:$B$197,0),MATCH(4*(DATE2NUM(I$201)-DATE2NUM($H$71)),$G$194:$DV$194, 0)))) -> 0 | J232: =IF(J$201<$H$71, 0, IF(J$201>$H$72, I232*(1-$H$73)^(1/4), $H$67*INDEX($G$195:$DV$197,MATCH($F$64,$B$195:$B$197,0),MATCH(4*(DATE2NUM(J$201)-DATE2NUM($H$71)),$G$194:$DV$194, 0)))) -> 0 | K232: =IF(K$201<$H$71, 0, IF(K$201>$H$72, J232*(1-$H$73)^(1/4), $H$67*INDEX($G$195:$DV$197,MATCH($F$64,$B$195:$B$197,0),MATCH(4*(DATE2NUM(K$201)-DATE2NUM($H$71)),$G$194:$DV$194, 0)))) -> 0 | L232: =IF(L$201<$H$71, 0, IF(L$201>$H$72, K232*(1-$H$73)^(1/4), $H$67*INDEX($G$195:$DV$197,MATCH($F$64,$B$195:$B$197,0),MATCH(4*(DATE2NUM(L$201)-DATE2NUM($H$71)),$G$194:$DV$194, 0)))) -> 0 | M232: =IF(M$201<$H$71, 0, IF(M$201>$H$72, L232*(1-$H$73)^(1/4), $H$67*INDEX($G$195:$DV$197,MATCH($F$64,$B$195:$B$197,0),MATCH(4*(DATE2NUM(M$201)-DATE2NUM($H$71)),$G$194:$DV$194, 0)))) -> 0 | N232: =IF(N$201<$H$71, 0, IF(N$201>$H$72, M232*(1-$H$73)^(1/4), $H$67*INDEX($G$195:$DV$197,MATCH($F$64,$B$195:$B$197,0),MATCH(4*(DATE2NUM(N$201)-DATE2NUM($H$71)),$G$194:$DV$194, 0)))) -> 0 | O232: =IF(O$201<$H$71, 0, IF(O$201>$H$72, N232*(1-$H$73)^(1/4), $H$67*INDEX($G$195:$DV$197,MATCH($F$64,$B$195:$B$197,0),MATCH(4*(DATE2NUM(O$201)-DATE2NUM($H$71)),$G$194:$DV$194, 0)))) -> 0 | P232: =IF(P$201<$H$71, 0, IF(P$201>$H$72, O232*(1-$H$73)^(1/4), $H$67*INDEX($G$195:$DV$197,MATCH($F$64,$B$195:$B$197,0),MATCH(4*(DATE2NUM(P$201)-DATE2NUM($H$71)),$G$194:$DV$194, 0)))) -> 0 | Q232: =IF(Q$201<$H$71, 0, IF(Q$201>$H$72, P232*(1-$H$73)^(1/4), $H$67*INDEX($G$195:$DV$197,MATCH($F$64,$B$195:$B$197,0),MATCH(4*(DATE2NUM(Q$201)-DATE2NUM($H$71)),$G$194:$DV$194, 0)))) -> 0 | R232: =IF(R$201<$H$71, 0, IF(R$201>$H$72, Q232*(1-$H$73)^(1/4), $H$67*INDEX($G$195:$DV$197,MATCH($F$64,$B$195:$B$197,0),MATCH(4*(DATE2NUM(R$201)-DATE2NUM($H$71)),$G$194:$DV$194, 0)))) -> 0 | S232: =IF(S$201<$H$71, 0, IF(S$201>$H$72, R232*(1-$H$73)^(1/4), $H$67*INDEX($G$195:$DV$197,MATCH($F$64,$B$195:$B$197,0),MATCH(4*(DATE2NUM(S$201)-DATE2NUM($H$71)),$G$194:$DV$194, 0)))) -> 0 | T232: =IF(T$201<$H$71, 0, IF(T$201>$H$72, S232*(1-$H$73)^(1/4), $H$67*INDEX($G$195:$DV$197,MATCH($F$64,$B$195:$B$197,0),MATCH(4*(DATE2NUM(T$201)-DATE2NUM($H$71)),$G$194:$DV$194, 0)))) -> 0 | U232: =IF(U$201<$H$71, 0, IF(U$201>$H$72, T232*(1-$H$73)^(1/4), $H$67*INDEX($G$195:$DV$197,MATCH($F$64,$B$195:$B$197,0),MATCH(4*(DATE2NUM(U$201)-DATE2NUM($H$71)),$G$194:$DV$194, 0)))) -> 0 | V232: =IF(V$201<$H$71, 0, IF(V$201>$H$72, U232*(1-$H$73)^(1/4), $H$67*INDEX($G$195:$DV$197,MATCH($F$64,$B$195:$B$197,0),MATCH(4*(DATE2NUM(V$201)-DATE2NUM($H$71)),$G$194:$DV$194, 0)))) -> 0 | W232: =IF(W$201<$H$71, 0, IF(W$201>$H$72, V232*(1-$H$73)^(1/4), $H$67*INDEX($G$195:$DV$197,MATCH($F$64,$B$195:$B$197,0),MATCH(4*(DATE2NUM(W$201)-DATE2NUM($H$71)),$G$194:$DV$194, 0)))) -> 0 | X232: =IF(X$201<$H$71, 0, IF(X$201>$H$72, W232*(1-$H$73)^(1/4), $H$67*INDEX($G$195:$DV$197,MATCH($F$64,$B$195:$B$197,0),MATCH(4*(DATE2NUM(X$201)-DATE2NUM($H$71)),$G$194:$DV$194, 0)))) -> 0 | Y232: =IF(Y$201<$H$71, 0, IF(Y$201>$H$72, X232*(1-$H$73)^(1/4), $H$67*INDEX($G$195:$DV$197,MATCH($F$64,$B$195:$B$197,0),MATCH(4*(DATE2NUM(Y$201)-DATE2NUM($H$71)),$G$194:$DV$194, 0)))) -> 0 | Z232: =IF(Z$201<$H$71, 0, IF(Z$201>$H$72, Y232*(1-$H$73)^(1/4), $H$67*INDEX($G$195:$DV$197,MATCH($F$64,$B$195:$B$197,0),MATCH(4*(DATE2NUM(Z$201)-DATE2NUM($H$71)),$G$194:$DV$194, 0)))) -> 0 | AA232: =IF(AA$201<$H$71, 0, IF(AA$201>$H$72, Z232*(1-$H$73)^(1/4), $H$67*INDEX($G$195:$DV$197,MATCH($F$64,$B$195:$B$197,0),MATCH(4*(DATE2NUM(AA$201)-DATE2NUM($H$71)),$G$194:$DV$194, 0)))) -> 0 | AB232: =IF(AB$201<$H$71, 0, IF(AB$201>$H$72, AA232*(1-$H$73)^(1/4), $H$67*INDEX($G$195:$DV$197,MATCH($F$64,$B$195:$B$197,0),MATCH(4*(DATE2NUM(AB$201)-DATE2NUM($H$71)),$G$194:$DV$194, 0)))) -> 0 | AC232: =IF(AC$201<$H$71, 0, IF(AC$201>$H$72, AB232*(1-$H$73)^(1/4), $H$67*INDEX($G$195:$DV$197,MATCH($F$64,$B$195:$B$197,0),MATCH(4*(DATE2NUM(AC$201)-DATE2NUM($H$71)),$G$194:$DV$194, 0)))) -> 0 | AD232: =IF(AD$201<$H$71, 0, IF(AD$201>$H$72, AC232*(1-$H$73)^(1/4), $H$67*INDEX($G$195:$DV$197,MATCH($F$64,$B$195:$B$197,0),MATCH(4*(DATE2NUM(AD$201)-DATE2NUM($H$71)),$G$194:$DV$194, 0)))) -> 0 | AE232: =IF(AE$201<$H$71, 0, IF(AE$201>$H$72, AD232*(1-$H$73)^(1/4), $H$67*INDEX($G$195:$DV$197,MATCH($F$64,$B$195:$B$197,0),MATCH(4*(DATE2NUM(AE$201)-DATE2NUM($H$71)),$G$194:$DV$194, 0)))) -> 0 | AF232: =IF(AF$201<$H$71, 0, IF(AF$201>$H$72, AE232*(1-$H$73)^(1/4), $H$67*INDEX($G$195:$DV$197,MATCH($F$64,$B$195:$B$197,0),MATCH(4*(DATE2NUM(AF$201)-DATE2NUM($H$71)),$G$194:$DV$194, 0)))) -> 0 | AG232: =IF(AG$201<$H$71, 0, IF(AG$201>$H$72, AF232*(1-$H$73)^(1/4), $H$67*INDEX($G$195:$DV$197,MATCH($F$64,$B$195:$B$197,0),MATCH(4*(DATE2NUM(AG$201)-DATE2NUM($H$71)),$G$194:$DV$194, 0)))) -> 0 | AH232: =IF(AH$201<$H$71, 0, IF(AH$201>$H$72, AG232*(1-$H$73)^(1/4), $H$67*INDEX($G$195:$DV$197,MATCH($F$64,$B$195:$B$197,0),MATCH(4*(DATE2NUM(AH$201)-DATE2NUM($H$71)),$G$194:$DV$194, 0)))) -> 0 | AI232: =IF(AI$201<$H$71, 0, IF(AI$201>$H$72, AH232*(1-$H$73)^(1/4), $H$67*INDEX($G$195:$DV$197,MATCH($F$64,$B$195:$B$197,0),MATCH(4*(DATE2NUM(AI$201)-DATE2NUM($H$71)),$G$194:$DV$194, 0)))) -> 0 | AJ232: =IF(AJ$201<$H$71, 0, IF(AJ$201>$H$72, AI232*(1-$H$73)^(1/4), $H$67*INDEX($G$195:$DV$197,MATCH($F$64,$B$195:$B$197,0),MATCH(4*(DATE2NUM(AJ$201)-DATE2NUM($H$71)),$G$194:$DV$194, 0)))) -> 0 | AK232: =IF(AK$201<$H$71, 0, IF(AK$201>$H$72, AJ232*(1-$H$73)^(1/4), $H$67*INDEX($G$195:$DV$197,MATCH($F$64,$B$195:$B$197,0),MATCH(4*(DATE2NUM(AK$201)-DATE2NUM($H$71)),$G$194:$DV$194, 0)))) -> 0 | AL232: =IF(AL$201<$H$71, 0, IF(AL$201>$H$72, AK232*(1-$H$73)^(1/4), $H$67*INDEX($G$195:$DV$197,MATCH($F$64,$B$195:$B$197,0),MATCH(4*(DATE2NUM(AL$201)-DATE2NUM($H$71)),$G$194:$DV$194, 0)))) -> 0 | AM232: =IF(AM$201<$H$71, 0, IF(AM$201>$H$72, AL232*(1-$H$73)^(1/4), $H$67*INDEX($G$195:$DV$197,MATCH($F$64,$B$195:$B$197,0),MATCH(4*(DATE2NUM(AM$201)-DATE2NUM($H$71)),$G$194:$DV$194, 0)))) -> 0 | AN232: =IF(AN$201<$H$71, 0, IF(AN$201>$H$72, AM232*(1-$H$73)^(1/4), $H$67*INDEX($G$195:$DV$197,MATCH($F$64,$B$195:$B$197,0),MATCH(4*(DATE2NUM(AN$201)-DATE2NUM($H$71)),$G$194:$DV$194, 0)))) -> 0 | AO232: =IF(AO$201<$H$71, 0, IF(AO$201>$H$72, AN232*(1-$H$73)^(1/4), $H$67*INDEX($G$195:$DV$197,MATCH($F$64,$B$195:$B$197,0),MATCH(4*(DATE2NUM(AO$201)-DATE2NUM($H$71)),$G$194:$DV$194, 0)))) -> 0 | AP232: =IF(AP$201<$H$71, 0, IF(AP$201>$H$72, AO232*(1-$H$73)^(1/4), $H$67*INDEX($G$195:$DV$197,MATCH($F$64,$B$195:$B$197,0),MATCH(4*(DATE2NUM(AP$201)-DATE2NUM($H$71)),$G$194:$DV$194, 0)))) -> 0 | AQ232: =IF(AQ$201<$H$71, 0, IF(AQ$201>$H$72, AP232*(1-$H$73)^(1/4), $H$67*INDEX($G$195:$DV$197,MATCH($F$64,$B$195:$B$197,0),MATCH(4*(DATE2NUM(AQ$201)-DATE2NUM($H$71)),$G$194:$DV$194, 0)))) -> 0 | AR232: =IF(AR$201<$H$71, 0, IF(AR$201>$H$72, AQ232*(1-$H$73)^(1/4), $H$67*INDEX($G$195:$DV$197,MATCH($F$64,$B$195:$B$197,0),MATCH(4*(DATE2NUM(AR$201)-DATE2NUM($H$71)),$G$194:$DV$194, 0)))) -> 0 | AS232: =IF(AS$201<$H$71, 0, IF(AS$201>$H$72, AR232*(1-$H$73)^(1/4), $H$67*INDEX($G$195:$DV$197,MATCH($F$64,$B$195:$B$197,0),MATCH(4*(DATE2NUM(AS$201)-DATE2NUM($H$71)),$G$194:$DV$194, 0)))) -> 0 | AT232: =IF(AT$201<$H$71, 0, IF(AT$201>$H$72, AS232*(1-$H$73)^(1/4), $H$67*INDEX($G$195:$DV$197,MATCH($F$64,$B$195:$B$197,0),MATCH(4*(DATE2NUM(AT$201)-DATE2NUM($H$71)),$G$194:$DV$194, 0)))) -> 0 | AU232: =IF(AU$201<$H$71, 0, IF(AU$201>$H$72, AT232*(1-$H$73)^(1/4), $H$67*INDEX($G$195:$DV$197,MATCH($F$64,$B$195:$B$197,0),MATCH(4*(DATE2NUM(AU$201)-DATE2NUM($H$71)),$G$194:$DV$194, 0)))) -> 0 | AV232: =IF(AV$201<$H$71, 0, IF(AV$201>$H$72, AU232*(1-$H$73)^(1/4), $H$67*INDEX($G$195:$DV$197,MATCH($F$64,$B$195:$B$197,0),MATCH(4*(DATE2NUM(AV$201)-DATE2NUM($H$71)),$G$194:$DV$194, 0)))) -> 0 | AW232: =IF(AW$201<$H$71, 0, IF(AW$201>$H$72, AV232*(1-$H$73)^(1/4), $H$67*INDEX($G$195:$DV$197,MATCH($F$64,$B$195:$B$197,0),MATCH(4*(DATE2NUM(AW$201)-DATE2NUM($H$71)),$G$194:$DV$194, 0)))) -> 0 | AX232: =IF(AX$201<$H$71, 0, IF(AX$201>$H$72, AW232*(1-$H$73)^(1/4), $H$67*INDEX($G$195:$DV$197,MATCH($F$64,$B$195:$B$197,0),MATCH(4*(DATE2NUM(AX$201)-DATE2NUM($H$71)),$G$194:$DV$194, 0)))) -> 0 | AY232: =IF(AY$201<$H$71, 0, IF(AY$201>$H$72, AX232*(1-$H$73)^(1/4), $H$67*INDEX($G$195:$DV$197,MATCH($F$64,$B$195:$B$197,0),MATCH(4*(DATE2NUM(AY$201)-DATE2NUM($H$71)),$G$194:$DV$194, 0)))) -> 0.02083333333 | AZ232: =IF(AZ$201<$H$71, 0, IF(AZ$201>$H$72, AY232*(1-$H$73)^(1/4), $H$67*INDEX($G$195:$DV$197,MATCH($F$64,$B$195:$B$197,0),MATCH(4*(DATE2NUM(AZ$201)-DATE2NUM($H$71)),$G$194:$DV$194, 0)))) -> 0.04166666667 | BA232: =IF(BA$201<$H$71, 0, IF(BA$201>$H$72, AZ232*(1-$H$73)^(1/4), $H$67*INDEX($G$195:$DV$197,MATCH($F$64,$B$195:$B$197,0),MATCH(4*(DATE2NUM(BA$201)-DATE2NUM($H$71)),$G$194:$DV$194, 0)))) -> 0.0625 | BB232: =IF(BB$201<$H$71, 0, IF(BB$201>$H$72, BA232*(1-$H$73)^(1/4), $H$67*INDEX($G$195:$DV$197,MATCH($F$64,$B$195:$B$197,0),MATCH(4*(DATE2NUM(BB$201)-DATE2NUM($H$71)),$G$194:$DV$194, 0)))) -> 0.08333333333 | BC232: =IF(BC$201<$H$71, 0, IF(BC$201>$H$72, BB232*(1-$H$73)^(1/4), $H$67*INDEX($G$195:$DV$197,MATCH($F$64,$B$195:$B$197,0),MATCH(4*(DATE2NUM(BC$201)-DATE2NUM($H$71)),$G$194:$DV$194, 0)))) -> 0.1041666667 | BD232: =IF(BD$201<$H$71, 0, IF(BD$201>$H$72, BC232*(1-$H$73)^(1/4), $H$67*INDEX($G$195:$DV$197,MATCH($F$64,$B$195:$B$197,0),MATCH(4*(DATE2NUM(BD$201)-DATE2NUM($H$71)),$G$194:$DV$194, 0)))) -> 0.125 | BE232: =IF(BE$201<$H$71, 0, IF(BE$201>$H$72, BD232*(1-$H$73)^(1/4), $H$67*INDEX($G$195:$DV$197,MATCH($F$64,$B$195:$B$197,0),MATCH(4*(DATE2NUM(BE$201)-DATE2NUM($H$71)),$G$194:$DV$194, 0)))) -> 0.1458333333 | BF232: =IF(BF$201<$H$71, 0, IF(BF$201>$H$72, BE232*(1-$H$73)^(1/4), $H$67*INDEX($G$195:$DV$197,MATCH($F$64,$B$195:$B$197,0),MATCH(4*(DATE2NUM(BF$201)-DATE2NUM($H$71)),$G$194:$DV$194, 0)))) -> 0.1666666667 | BG232: =IF(BG$201<$H$71, 0, IF(BG$201>$H$72, BF232*(1-$H$73)^(1/4), $H$67*INDEX($G$195:$DV$197,MATCH($F$64,$B$195:$B$197,0),MATCH(4*(DATE2NUM(BG$201)-DATE2NUM($H$71)),$G$194:$DV$194, 0)))) -> 0.1875 | BH232: =IF(BH$201<$H$71, 0, IF(BH$201>$H$72, BG232*(1-$H$73)^(1/4), $H$67*INDEX($G$195:$DV$197,MATCH($F$64,$B$195:$B$197,0),MATCH(4*(DATE2NUM(BH$201)-DATE2NUM($H$71)),$G$194:$DV$194, 0)))) -> 0.2083333333 | BI232: =IF(BI$201<$H$71, 0, IF(BI$201>$H$72, BH232*(1-$H$73)^(1/4), $H$67*INDEX($G$195:$DV$197,MATCH($F$64,$B$195:$B$197,0),MATCH(4*(DATE2NUM(BI$201)-DATE2NUM($H$71)),$G$194:$DV$194, 0)))) -> 0.2291666667 | BJ232: =IF(BJ$201<$H$71, 0, IF(BJ$201>$H$72, BI232*(1-$H$73)^(1/4), $H$67*INDEX($G$195:$DV$197,MATCH($F$64,$B$195:$B$197,0),MATCH(4*(DATE2NUM(BJ$201)-DATE2NUM($H$71)),$G$194:$DV$194, 0)))) -> 0.25 | BK232: =IF(BK$201<$H$71, 0, IF(BK$201>$H$72, BJ232*(1-$H$73)^(1/4), $H$67*INDEX($G$195:$DV$197,MATCH($F$64,$B$195:$B$197,0),MATCH(4*(DATE2NUM(BK$201)-DATE2NUM($H$71)),$G$194:$DV$194, 0)))) -> 0.2708333333 | BL232: =IF(BL$201<$H$71, 0, IF(BL$201>$H$72, BK232*(1-$H$73)^(1/4), $H$67*INDEX($G$195:$DV$197,MATCH($F$64,$B$195:$B$197,0),MATCH(4*(DATE2NUM(BL$201)-DATE2NUM($H$71)),$G$194:$DV$194, 0)))) -> 0.2916666667 | BM232: =IF(BM$201<$H$71, 0, IF(BM$201>$H$72, BL232*(1-$H$73)^(1/4), $H$67*INDEX($G$195:$DV$197,MATCH($F$64,$B$195:$B$197,0),MATCH(4*(DATE2NUM(BM$201)-DATE2NUM($H$71)),$G$194:$DV$194, 0)))) -> 0.3125 | BN232: =IF(BN$201<$H$71, 0, IF(BN$201>$H$72, BM232*(1-$H$73)^(1/4), $H$67*INDEX($G$195:$DV$197,MATCH($F$64,$B$195:$B$197,0),MATCH(4*(DATE2NUM(BN$201)-DATE2NUM($H$71)),$G$194:$DV$194, 0)))) -> 0.3333333333 | BO232: =IF(BO$201<$H$71, 0, IF(BO$201>$H$72, BN232*(1-$H$73)^(1/4), $H$67*INDEX($G$195:$DV$197,MATCH($F$64,$B$195:$B$197,0),MATCH(4*(DATE2NUM(BO$201)-DATE2NUM($H$71)),$G$194:$DV$194, 0)))) -> 0.3541666667 | BP232: =IF(BP$201<$H$71, 0, IF(BP$201>$H$72, BO232*(1-$H$73)^(1/4), $H$67*INDEX($G$195:$DV$197,MATCH($F$64,$B$195:$B$197,0),MATCH(4*(DATE2NUM(BP$201)-DATE2NUM($H$71)),$G$194:$DV$194, 0)))) -> 0.375 | BQ232: =IF(BQ$201<$H$71, 0, IF(BQ$201>$H$72, BP232*(1-$H$73)^(1/4), $H$67*INDEX($G$195:$DV$197,MATCH($F$64,$B$195:$B$197,0),MATCH(4*(DATE2NUM(BQ$201)-DATE2NUM($H$71)),$G$194:$DV$194, 0)))) -> 0.3958333333 | BR232: =IF(BR$201<$H$71, 0, IF(BR$201>$H$72, BQ232*(1-$H$73)^(1/4), $H$67*INDEX($G$195:$DV$197,MATCH($F$64,$B$195:$B$197,0),MATCH(4*(DATE2NUM(BR$201)-DATE2NUM($H$71)),$G$194:$DV$194, 0)))) -> 0.4166666667 | BS232: =IF(BS$201<$H$71, 0, IF(BS$201>$H$72, BR232*(1-$H$73)^(1/4), $H$67*INDEX($G$195:$DV$197,MATCH($F$64,$B$195:$B$197,0),MATCH(4*(DATE2NUM(BS$201)-DATE2NUM($H$71)),$G$194:$DV$194, 0)))) -> 0.4375 | BT232: =IF(BT$201<$H$71, 0, IF(BT$201>$H$72, BS232*(1-$H$73)^(1/4), $H$67*INDEX($G$195:$DV$197,MATCH($F$64,$B$195:$B$197,0),MATCH(4*(DATE2NUM(BT$201)-DATE2NUM($H$71)),$G$194:$DV$194, 0)))) -> 0.4583333333 | BU232: =IF(BU$201<$H$71, 0, IF(BU$201>$H$72, BT232*(1-$H$73)^(1/4), $H$67*INDEX($G$195:$DV$197,MATCH($F$64,$B$195:$B$197,0),MATCH(4*(DATE2NUM(BU$201)-DATE2NUM($H$71)),$G$194:$DV$194, 0)))) -> 0.4791666667 | BV232: =IF(BV$201<$H$71, 0, IF(BV$201>$H$72, BU232*(1-$H$73)^(1/4), $H$67*INDEX($G$195:$DV$197,MATCH($F$64,$B$195:$B$197,0),MATCH(4*(DATE2NUM(BV$201)-DATE2NUM($H$71)),$G$194:$DV$194, 0)))) -> 0.5 | BW232: =IF(BW$201<$H$71, 0, IF(BW$201>$H$72, BV232*(1-$H$73)^(1/4), $H$67*INDEX($G$195:$DV$197,MATCH($F$64,$B$195:$B$197,0),MATCH(4*(DATE2NUM(BW$201)-DATE2NUM($H$71)),$G$194:$DV$194, 0)))) -> 0.5 | BX232: =IF(BX$201<$H$71, 0, IF(BX$201>$H$72, BW232*(1-$H$73)^(1/4), $H$67*INDEX($G$195:$DV$197,MATCH($F$64,$B$195:$B$197,0),MATCH(4*(DATE2NUM(BX$201)-DATE2NUM($H$71)),$G$194:$DV$194, 0)))) -> 0.5 | BY232: =IF(BY$201<$H$71, 0, IF(BY$201>$H$72, BX232*(1-$H$73)^(1/4), $H$67*INDEX($G$195:$DV$197,MATCH($F$64,$B$195:$B$197,0),MATCH(4*(DATE2NUM(BY$201)-DATE2NUM($H$71)),$G$194:$DV$194, 0)))) -> 0.5 | BZ232: =IF(BZ$201<$H$71, 0, IF(BZ$201>$H$72, BY232*(1-$H$73)^(1/4), $H$67*INDEX($G$195:$DV$197,MATCH($F$64,$B$195:$B$197,0),MATCH(4*(DATE2NUM(BZ$201)-DATE2NUM($H$71)),$G$194:$DV$194, 0)))) -> 0.5 | CA232: =IF(CA$201<$H$71, 0, IF(CA$201>$H$72, BZ232*(1-$H$73)^(1/4), $H$67*INDEX($G$195:$DV$197,MATCH($F$64,$B$195:$B$197,0),MATCH(4*(DATE2NUM(CA$201)-DATE2NUM($H$71)),$G$194:$DV$194, 0)))) -> 0.5 | CB232: =IF(CB$201<$H$71, 0, IF(CB$201>$H$72, CA232*(1-$H$73)^(1/4), $H$67*INDEX($G$195:$DV$197,MATCH($F$64,$B$195:$B$197,0),MATCH(4*(DATE2NUM(CB$201)-DATE2NUM($H$71)),$G$194:$DV$194, 0)))) -> 0.5 | CC232: =IF(CC$201<$H$71, 0, IF(CC$201>$H$72, CB232*(1-$H$73)^(1/4), $H$67*INDEX($G$195:$DV$197,MATCH($F$64,$B$195:$B$197,0),MATCH(4*(DATE2NUM(CC$201)-DATE2NUM($H$71)),$G$194:$DV$194, 0)))) -> 0.5 | CD232: =IF(CD$201<$H$71, 0, IF(CD$201>$H$72, CC232*(1-$H$73)^(1/4), $H$67*INDEX($G$195:$DV$197,MATCH($F$64,$B$195:$B$197,0),MATCH(4*(DATE2NUM(CD$201)-DATE2NUM($H$71)),$G$194:$DV$194, 0)))) -> 0.5 | CE232: =IF(CE$201<$H$71, 0, IF(CE$201>$H$72, CD232*(1-$H$73)^(1/4), $H$67*INDEX($G$195:$DV$197,MATCH($F$64,$B$195:$B$197,0),MATCH(4*(DATE2NUM(CE$201)-DATE2NUM($H$71)),$G$194:$DV$194, 0)))) -> 0.5 | CF232: =IF(CF$201<$H$71, 0, IF(CF$201>$H$72, CE232*(1-$H$73)^(1/4), $H$67*INDEX($G$195:$DV$197,MATCH($F$64,$B$195:$B$197,0),MATCH(4*(DATE2NUM(CF$201)-DATE2NUM($H$71)),$G$194:$DV$194, 0)))) -> 0.5 | CG232: =IF(CG$201<$H$71, 0, IF(CG$201>$H$72, CF232*(1-$H$73)^(1/4), $H$67*INDEX($G$195:$DV$197,MATCH($F$64,$B$195:$B$197,0),MATCH(4*(DATE2NUM(CG$201)-DATE2NUM($H$71)),$G$194:$DV$194, 0)))) -> 0.5 | CH232: =IF(CH$201<$H$71, 0, IF(CH$201>$H$72, CG232*(1-$H$73)^(1/4), $H$67*INDEX($G$195:$DV$197,MATCH($F$64,$B$195:$B$197,0),MATCH(4*(DATE2NUM(CH$201)-DATE2NUM($H$71)),$G$194:$DV$194, 0)))) -> 0.5 | CI232: =IF(CI$201<$H$71, 0, IF(CI$201>$H$72, CH232*(1-$H$73)^(1/4), $H$67*INDEX($G$195:$DV$197,MATCH($F$64,$B$195:$B$197,0),MATCH(4*(DATE2NUM(CI$201)-DATE2NUM($H$71)),$G$194:$DV$194, 0)))) -> 0.4204482076 | CJ232: =IF(CJ$201<$H$71, 0, IF(CJ$201>$H$72, CI232*(1-$H$73)^(1/4), $H$67*INDEX($G$195:$DV$197,MATCH($F$64,$B$195:$B$197,0),MATCH(4*(DATE2NUM(CJ$201)-DATE2NUM($H$71)),$G$194:$DV$194, 0)))) -> 0.3535533906 | CK232: =IF(CK$201<$H$71, 0, IF(CK$201>$H$72, CJ232*(1-$H$73)^(1/4), $H$67*INDEX($G$195:$DV$197,MATCH($F$64,$B$195:$B$197,0),MATCH(4*(DATE2NUM(CK$201)-DATE2NUM($H$71)),$G$194:$DV$194, 0)))) -> 0.2973017788 | CL232: =IF(CL$201<$H$71, 0, IF(CL$201>$H$72, CK232*(1-$H$73)^(1/4), $H$67*INDEX($G$195:$DV$197,MATCH($F$64,$B$195:$B$197,0),MATCH(4*(DATE2NUM(CL$201)-DATE2NUM($H$71)),$G$194:$DV$194, 0)))) -> 0.25 | CM232: =IF(CM$201<$H$71, 0, IF(CM$201>$H$72, CL232*(1-$H$73)^(1/4), $H$67*INDEX($G$195:$DV$197,MATCH($F$64,$B$195:$B$197,0),MATCH(4*(DATE2NUM(CM$201)-DATE2NUM($H$71)),$G$194:$DV$194, 0)))) -> 0.2102241038 | CN232: =IF(CN$201<$H$71, 0, IF(CN$201>$H$72, CM232*(1-$H$73)^(1/4), $H$67*INDEX($G$195:$DV$197,MATCH($F$64,$B$195:$B$197,0),MATCH(4*(DATE2NUM(CN$201)-DATE2NUM($H$71)),$G$194:$DV$194, 0)))) -> 0.1767766953 | CO232: =IF(CO$201<$H$71, 0, IF(CO$201>$H$72, CN232*(1-$H$73)^(1/4), $H$67*INDEX($G$195:$DV$197,MATCH($F$64,$B$195:$B$197,0),MATCH(4*(DATE2NUM(CO$201)-DATE2NUM($H$71)),$G$194:$DV$194, 0)))) -> 0.1486508894 | CP232: =IF(CP$201<$H$71, 0, IF(CP$201>$H$72, CO232*(1-$H$73)^(1/4), $H$67*INDEX($G$195:$DV$197,MATCH($F$64,$B$195:$B$197,0),MATCH(4*(DATE2NUM(CP$201)-DATE2NUM($H$71)),$G$194:$DV$194, 0)))) -> 0.125 | CQ232: =IF(CQ$201<$H$71, 0, IF(CQ$201>$H$72, CP232*(1-$H$73)^(1/4), $H$67*INDEX($G$195:$DV$197,MATCH($F$64,$B$195:$B$197,0),MATCH(4*(DATE2NUM(CQ$201)-DATE2NUM($H$71)),$G$194:$DV$194, 0)))) -> 0.1051120519 | CR232: =IF(CR$201<$H$71, 0, IF(CR$201>$H$72, CQ232*(1-$H$73)^(1/4), $H$67*INDEX($G$195:$DV$197,MATCH($F$64,$B$195:$B$197,0),MATCH(4*(DATE2NUM(CR$201)-DATE2NUM($H$71)),$G$194:$DV$194, 0)))) -> 0.08838834765 | CS232: =IF(CS$201<$H$71, 0, IF(CS$201>$H$72, CR232*(1-$H$73)^(1/4), $H$67*INDEX($G$195:$DV$197,MATCH($F$64,$B$195:$B$197,0),MATCH(4*(DATE2NUM(CS$201)-DATE2NUM($H$71)),$G$194:$DV$194, 0)))) -> 0.07432544469 | CT232: =IF(CT$201<$H$71, 0, IF(CT$201>$H$72, CS232*(1-$H$73)^(1/4), $H$67*INDEX($G$195:$DV$197,MATCH($F$64,$B$195:$B$197,0),MATCH(4*(DATE2NUM(CT$201)-DATE2NUM($H$71)),$G$194:$DV$194, 0)))) -> 0.0625 | CU232: =IF(CU$201<$H$71, 0, IF(CU$201>$H$72, CT232*(1-$H$73)^(1/4), $H$67*INDEX($G$195:$DV$197,MATCH($F$64,$B$195:$B$197,0),MATCH(4*(DATE2NUM(CU$201)-DATE2NUM($H$71)),$G$194:$DV$194, 0)))) -> 0.05255602595 | CV232: =IF(CV$201<$H$71, 0, IF(CV$201>$H$72, CU232*(1-$H$73)^(1/4), $H$67*INDEX($G$195:$DV$197,MATCH($F$64,$B$195:$B$197,0),MATCH(4*(DATE2NUM(CV$201)-DATE2NUM($H$71)),$G$194:$DV$194, 0)))) -> 0.04419417382 | CW232: =IF(CW$201<$H$71, 0, IF(CW$201>$H$72, CV232*(1-$H$73)^(1/4), $H$67*INDEX($G$195:$DV$197,MATCH($F$64,$B$195:$B$197,0),MATCH(4*(DATE2NUM(CW$201)-DATE2NUM($H$71)),$G$194:$DV$194, 0)))) -> 0.03716272234 | CX232: =IF(CX$201<$H$71, 0, IF(CX$201>$H$72, CW232*(1-$H$73)^(1/4), $H$67*INDEX($G$195:$DV$197,MATCH($F$64,$B$195:$B$197,0),MATCH(4*(DATE2NUM(CX$201)-DATE2NUM($H$71)),$G$194:$DV$194, 0)))) -> 0.03125 | CY232: =IF(CY$201<$H$71, 0, IF(CY$201>$H$72, CX232*(1-$H$73)^(1/4), $H$67*INDEX($G$195:$DV$197,MATCH($F$64,$B$195:$B$197,0),MATCH(4*(DATE2NUM(CY$201)-DATE2NUM($H$71)),$G$194:$DV$194, 0)))) -> 0.02627801298 | CZ232: =IF(CZ$201<$H$71, 0, IF(CZ$201>$H$72, CY232*(1-$H$73)^(1/4), $H$67*INDEX($G$195:$DV$197,MATCH($F$64,$B$195:$B$197,0),MATCH(4*(DATE2NUM(CZ$201)-DATE2NUM($H$71)),$G$194:$DV$194, 0)))) -> 0.02209708691 | DA232: =IF(DA$201<$H$71, 0, IF(DA$201>$H$72, CZ232*(1-$H$73)^(1/4), $H$67*INDEX($G$195:$DV$197,MATCH($F$64,$B$195:$B$197,0),MATCH(4*(DATE2NUM(DA$201)-DATE2NUM($H$71)),$G$194:$DV$194, 0)))) -> 0.01858136117 | DB232: =IF(DB$201<$H$71, 0, IF(DB$201>$H$72, DA232*(1-$H$73)^(1/4), $H$67*INDEX($G$195:$DV$197,MATCH($F$64,$B$195:$B$197,0),MATCH(4*(DATE2NUM(DB$201)-DATE2NUM($H$71)),$G$194:$DV$194, 0)))) -> 0.015625 | DC232: =IF(DC$201<$H$71, 0, IF(DC$201>$H$72, DB232*(1-$H$73)^(1/4), $H$67*INDEX($G$195:$DV$197,MATCH($F$64,$B$195:$B$197,0),MATCH(4*(DATE2NUM(DC$201)-DATE2NUM($H$71)),$G$194:$DV$194, 0)))) -> 0.01313900649 | DD232: =IF(DD$201<$H$71, 0, IF(DD$201>$H$72, DC232*(1-$H$73)^(1/4), $H$67*INDEX($G$195:$DV$197,MATCH($F$64,$B$195:$B$197,0),MATCH(4*(DATE2NUM(DD$201)-DATE2NUM($H$71)),$G$194:$DV$194, 0)))) -> 0.01104854346 | DE232: =IF(DE$201<$H$71, 0, IF(DE$201>$H$72, DD232*(1-$H$73)^(1/4), $H$67*INDEX($G$195:$DV$197,MATCH($F$64,$B$195:$B$197,0),MATCH(4*(DATE2NUM(DE$201)-DATE2NUM($H$71)),$G$194:$DV$194, 0)))) -> 0.009290680586 | DF232: =IF(DF$201<$H$71, 0, IF(DF$201>$H$72, DE232*(1-$H$73)^(1/4), $H$67*INDEX($G$195:$DV$197,MATCH($F$64,$B$195:$B$197,0),MATCH(4*(DATE2NUM(DF$201)-DATE2NUM($H$71)),$G$194:$DV$194, 0)))) -> 0.0078125 | DG232: =IF(DG$201<$H$71, 0, IF(DG$201>$H$72, DF232*(1-$H$73)^(1/4), $H$67*INDEX($G$195:$DV$197,MATCH($F$64,$B$195:$B$197,0),MATCH(4*(DATE2NUM(DG$201)-DATE2NUM($H$71)),$G$194:$DV$194, 0)))) -> 0.006569503244 | DH232: =IF(DH$201<$H$71, 0, IF(DH$201>$H$72, DG232*(1-$H$73)^(1/4), $H$67*INDEX($G$195:$DV$197,MATCH($F$64,$B$195:$B$197,0),MATCH(4*(DATE2NUM(DH$201)-DATE2NUM($H$71)),$G$194:$DV$194, 0)))) -> 0.005524271728 | DI232: =IF(DI$201<$H$71, 0, IF(DI$201>$H$72, DH232*(1-$H$73)^(1/4), $H$67*INDEX($G$195:$DV$197,MATCH($F$64,$B$195:$B$197,0),MATCH(4*(DATE2NUM(DI$201)-DATE2NUM($H$71)),$G$194:$DV$194, 0)))) -> 0.004645340293 | DJ232: =IF(DJ$201<$H$71, 0, IF(DJ$201>$H$72, DI232*(1-$H$73)^(1/4), $H$67*INDEX($G$195:$DV$197,MATCH($F$64,$B$195:$B$197,0),MATCH(4*(DATE2NUM(DJ$201)-DATE2NUM($H$71)),$G$194:$DV$194, 0)))) -> 0.00390625 | DK232: =IF(DK$201<$H$71, 0, IF(DK$201>$H$72, DJ232*(1-$H$73)^(1/4), $H$67*INDEX($G$195:$DV$197,MATCH($F$64,$B$195:$B$197,0),MATCH(4*(DATE2NUM(DK$201)-DATE2NUM($H$71)),$G$194:$DV$194, 0)))) -> 0.003284751622 | DL232: =IF(DL$201<$H$71, 0, IF(DL$201>$H$72, DK232*(1-$H$73)^(1/4), $H$67*INDEX($G$195:$DV$197,MATCH($F$64,$B$195:$B$197,0),MATCH(4*(DATE2NUM(DL$201)-DATE2NUM($H$71)),$G$194:$DV$194, 0)))) -> 0.002762135864 | DM232: =IF(DM$201<$H$71, 0, IF(DM$201>$H$72, DL232*(1-$H$73)^(1/4), $H$67*INDEX($G$195:$DV$197,MATCH($F$64,$B$195:$B$197,0),MATCH(4*(DATE2NUM(DM$201)-DATE2NUM($H$71)),$G$194:$DV$194, 0)))) -> 0.002322670146 | DN232: =IF(DN$201<$H$71, 0, IF(DN$201>$H$72, DM232*(1-$H$73)^(1/4), $H$67*INDEX($G$195:$DV$197,MATCH($F$64,$B$195:$B$197,0),MATCH(4*(DATE2NUM(DN$201)-DATE2NUM($H$71)),$G$194:$DV$194, 0)))) -> 0.001953125 | DO232: =IF(DO$201<$H$71, 0, IF(DO$201>$H$72, DN232*(1-$H$73)^(1/4), $H$67*INDEX($G$195:$DV$197,MATCH($F$64,$B$195:$B$197,0),MATCH(4*(DATE2NUM(DO$201)-DATE2NUM($H$71)),$G$194:$DV$194, 0)))) -> 0.001642375811 | DP232: =IF(DP$201<$H$71, 0, IF(DP$201>$H$72, DO232*(1-$H$73)^(1/4), $H$67*INDEX($G$195:$DV$197,MATCH($F$64,$B$195:$B$197,0),MATCH(4*(DATE2NUM(DP$201)-DATE2NUM($H$71)),$G$194:$DV$194, 0)))) -> 0.001381067932 | DQ232: =IF(DQ$201<$H$71, 0, IF(DQ$201>$H$72, DP232*(1-$H$73)^(1/4), $H$67*INDEX($G$195:$DV$197,MATCH($F$64,$B$195:$B$197,0),MATCH(4*(DATE2NUM(DQ$201)-DATE2NUM($H$71)),$G$194:$DV$194, 0)))) -> 0.001161335073 | DR232: =IF(DR$201<$H$71, 0, IF(DR$201>$H$72, DQ232*(1-$H$73)^(1/4), $H$67*INDEX($G$195:$DV$197,MATCH($F$64,$B$195:$B$197,0),MATCH(4*(DATE2NUM(DR$201)-DATE2NUM($H$71)),$G$194:$DV$194, 0)))) -> 0.0009765625 | DS232: =IF(DS$201<$H$71, 0, IF(DS$201>$H$72, DR232*(1-$H$73)^(1/4), $H$67*INDEX($G$195:$DV$197,MATCH($F$64,$B$195:$B$197,0),MATCH(4*(DATE2NUM(DS$201)-DATE2NUM($H$71)),$G$194:$DV$194, 0)))) -> 0.0008211879055 | DT232: =IF(DT$201<$H$71, 0, IF(DT$201>$H$72, DS232*(1-$H$73)^(1/4), $H$67*INDEX($G$195:$DV$197,MATCH($F$64,$B$195:$B$197,0),MATCH(4*(DATE2NUM(DT$201)-DATE2NUM($H$71)),$G$194:$DV$194, 0)))) -> 0.000690533966 | DU232: =IF(DU$201<$H$71, 0, IF(DU$201>$H$72, DT232*(1-$H$73)^(1/4), $H$67*INDEX($G$195:$DV$197,MATCH($F$64,$B$195:$B$197,0),MATCH(4*(DATE2NUM(DU$201)-DATE2NUM($H$71)),$G$194:$DV$194, 0)))) -> 0.0005806675366 | DV232: =IF(DV$201<$H$71, 0, IF(DV$201>$H$72, DU232*(1-$H$73)^(1/4), $H$67*INDEX($G$195:$DV$197,MATCH($F$64,$B$195:$B$197,0),MATCH(4*(DATE2NUM(DV$201)-DATE2NUM($H$71)),$G$194:$DV$194, 0)))) -> 0.00048828125
B233: Treated Patients | G233: =G229*G230*G231*G232 -> 0 | H233: =H229*H230*H231*H232 -> 0 | I233: 0 | J233: 0 | K233: 0 | L233: 0 | M233: 0 | N233: 0 | O233: 0 | P233: 0 | Q233: 0 | R233: 0 | S233: 0 | T233: 0 | U233: 0 | V233: 0 | W233: 0 | X233: 0 | Y233: 0 | Z233: 0 | AA233: 0 | AB233: 0 | AC233: 0 | AD233: 0 | AE233: 0 | AF233: 0 | AG233: 0 | AH233: 0 | AI233: 0 | AJ233: 0 | AK233: 0 | AL233: 0 | AM233: 0 | AN233: 0 | AO233: 0 | AP233: 0 | AQ233: 0 | AR233: 0 | AS233: 0 | AT233: 0 | AU233: 0 | AV233: 0 | AW233: 0 | AX233: 0 | AY233: 39.49652778 | AZ233: 79.75260417 | BA233: 120.7682292 | BB233: 162.5434028 | BC233: 205.078125 | BD233: 246.09375 | BE233: 287.109375 | BF233: 328.125 | BG233: 369.140625 | BH233: 410.15625 | BI233: 451.171875 | BJ233: 492.1875 | BK233: 533.203125 | BL233: 574.21875 | BM233: 615.234375 | BN233: 656.25 | BO233: 697.265625 | BP233: 738.28125 | BQ233: 779.296875 | BR233: 820.3125 | BS233: 861.328125 | BT233: =BT229*BT230*BT231*BT232 -> 902.34375 | BU233: 943.359375 | BV233: 984.375 | BW233: 984.375 | BX233: 984.375 | BY233: 984.375 | BZ233: 984.375 | CA233: 984.375 | CB233: 984.375 | CC233: 984.375 | CD233: 984.375 | CE233: 984.375 | CF233: 984.375 | CG233: 984.375 | CH233: 984.375 | CI233: 827.7574088 | CJ233: 696.0582377 | CK233: 585.3128769 | CL233: 492.1875 | CM233: 413.8787044 | CN233: 348.0291189 | CO233: 292.6564385 | CP233: 246.09375 | CQ233: 206.9393522 | CR233: 174.0145594 | CS233: 146.3282192 | CT233: 123.046875 | CU233: 103.4696761 | CV233: 87.00727972 | CW233: 73.16410961 | CX233: 61.5234375 | CY233: 51.73483805 | CZ233: 43.50363986 | DA233: 36.58205481 | DB233: 30.76171875 | DC233: 25.86741902 | DD233: 21.75181993 | DE233: 18.2910274 | DF233: 15.38085937 | DG233: 12.93370951 | DH233: 10.87590996 | DI233: 9.145513702 | DJ233: 7.690429687 | DK233: 6.466854756 | DL233: 5.437954982 | DM233: 4.572756851 | DN233: 3.845214844 | DO233: 3.233427378 | DP233: 2.718977491 | DQ233: 2.286378425 | DR233: 1.922607422 | DS233: 1.616713689 | DT233: 1.359488746 | DU233: 1.143189213 | DV233: 0.9613037109
B234: Treatment Duration (Months) | G234: =IF(G$201<$H$71, 0, MIN($H$76, IFERROR($H$75+4*(DATE2NUM(G$201)-DATE2NUM($H$71))*($H$76-$H$75)/$H$77,$H$76))) -> 0 | H234: =IF(H$201<$H$71, 0, MIN($H$76, IFERROR($H$75+4*(DATE2NUM(H$201)-DATE2NUM($H$71))*($H$76-$H$75)/$H$77,$H$76))) -> 0 | I234: =IF(I$201<$H$71, 0, MIN($H$76, IFERROR($H$75+4*(DATE2NUM(I$201)-DATE2NUM($H$71))*($H$76-$H$75)/$H$77,$H$76))) -> 0 | J234: =IF(J$201<$H$71, 0, MIN($H$76, IFERROR($H$75+4*(DATE2NUM(J$201)-DATE2NUM($H$71))*($H$76-$H$75)/$H$77,$H$76))) -> 0 | K234: =IF(K$201<$H$71, 0, MIN($H$76, IFERROR($H$75+4*(DATE2NUM(K$201)-DATE2NUM($H$71))*($H$76-$H$75)/$H$77,$H$76))) -> 0 | L234: =IF(L$201<$H$71, 0, MIN($H$76, IFERROR($H$75+4*(DATE2NUM(L$201)-DATE2NUM($H$71))*($H$76-$H$75)/$H$77,$H$76))) -> 0 | M234: =IF(M$201<$H$71, 0, MIN($H$76, IFERROR($H$75+4*(DATE2NUM(M$201)-DATE2NUM($H$71))*($H$76-$H$75)/$H$77,$H$76))) -> 0 | N234: =IF(N$201<$H$71, 0, MIN($H$76, IFERROR($H$75+4*(DATE2NUM(N$201)-DATE2NUM($H$71))*($H$76-$H$75)/$H$77,$H$76))) -> 0 | O234: =IF(O$201<$H$71, 0, MIN($H$76, IFERROR($H$75+4*(DATE2NUM(O$201)-DATE2NUM($H$71))*($H$76-$H$75)/$H$77,$H$76))) -> 0 | P234: =IF(P$201<$H$71, 0, MIN($H$76, IFERROR($H$75+4*(DATE2NUM(P$201)-DATE2NUM($H$71))*($H$76-$H$75)/$H$77,$H$76))) -> 0 | Q234: =IF(Q$201<$H$71, 0, MIN($H$76, IFERROR($H$75+4*(DATE2NUM(Q$201)-DATE2NUM($H$71))*($H$76-$H$75)/$H$77,$H$76))) -> 0 | R234: =IF(R$201<$H$71, 0, MIN($H$76, IFERROR($H$75+4*(DATE2NUM(R$201)-DATE2NUM($H$71))*($H$76-$H$75)/$H$77,$H$76))) -> 0 | S234: =IF(S$201<$H$71, 0, MIN($H$76, IFERROR($H$75+4*(DATE2NUM(S$201)-DATE2NUM($H$71))*($H$76-$H$75)/$H$77,$H$76))) -> 0 | T234: =IF(T$201<$H$71, 0, MIN($H$76, IFERROR($H$75+4*(DATE2NUM(T$201)-DATE2NUM($H$71))*($H$76-$H$75)/$H$77,$H$76))) -> 0 | U234: =IF(U$201<$H$71, 0, MIN($H$76, IFERROR($H$75+4*(DATE2NUM(U$201)-DATE2NUM($H$71))*($H$76-$H$75)/$H$77,$H$76))) -> 0 | V234: =IF(V$201<$H$71, 0, MIN($H$76, IFERROR($H$75+4*(DATE2NUM(V$201)-DATE2NUM($H$71))*($H$76-$H$75)/$H$77,$H$76))) -> 0 | W234: =IF(W$201<$H$71, 0, MIN($H$76, IFERROR($H$75+4*(DATE2NUM(W$201)-DATE2NUM($H$71))*($H$76-$H$75)/$H$77,$H$76))) -> 0 | X234: =IF(X$201<$H$71, 0, MIN($H$76, IFERROR($H$75+4*(DATE2NUM(X$201)-DATE2NUM($H$71))*($H$76-$H$75)/$H$77,$H$76))) -> 0 | Y234: =IF(Y$201<$H$71, 0, MIN($H$76, IFERROR($H$75+4*(DATE2NUM(Y$201)-DATE2NUM($H$71))*($H$76-$H$75)/$H$77,$H$76))) -> 0 | Z234: =IF(Z$201<$H$71, 0, MIN($H$76, IFERROR($H$75+4*(DATE2NUM(Z$201)-DATE2NUM($H$71))*($H$76-$H$75)/$H$77,$H$76))) -> 0 | AA234: =IF(AA$201<$H$71, 0, MIN($H$76, IFERROR($H$75+4*(DATE2NUM(AA$201)-DATE2NUM($H$71))*($H$76-$H$75)/$H$77,$H$76))) -> 0 | AB234: =IF(AB$201<$H$71, 0, MIN($H$76, IFERROR($H$75+4*(DATE2NUM(AB$201)-DATE2NUM($H$71))*($H$76-$H$75)/$H$77,$H$76))) -> 0 | AC234: =IF(AC$201<$H$71, 0, MIN($H$76, IFERROR($H$75+4*(DATE2NUM(AC$201)-DATE2NUM($H$71))*($H$76-$H$75)/$H$77,$H$76))) -> 0 | AD234: =IF(AD$201<$H$71, 0, MIN($H$76, IFERROR($H$75+4*(DATE2NUM(AD$201)-DATE2NUM($H$71))*($H$76-$H$75)/$H$77,$H$76))) -> 0 | AE234: =IF(AE$201<$H$71, 0, MIN($H$76, IFERROR($H$75+4*(DATE2NUM(AE$201)-DATE2NUM($H$71))*($H$76-$H$75)/$H$77,$H$76))) -> 0 | AF234: =IF(AF$201<$H$71, 0, MIN($H$76, IFERROR($H$75+4*(DATE2NUM(AF$201)-DATE2NUM($H$71))*($H$76-$H$75)/$H$77,$H$76))) -> 0 | AG234: =IF(AG$201<$H$71, 0, MIN($H$76, IFERROR($H$75+4*(DATE2NUM(AG$201)-DATE2NUM($H$71))*($H$76-$H$75)/$H$77,$H$76))) -> 0 | AH234: =IF(AH$201<$H$71, 0, MIN($H$76, IFERROR($H$75+4*(DATE2NUM(AH$201)-DATE2NUM($H$71))*($H$76-$H$75)/$H$77,$H$76))) -> 0 | AI234: =IF(AI$201<$H$71, 0, MIN($H$76, IFERROR($H$75+4*(DATE2NUM(AI$201)-DATE2NUM($H$71))*($H$76-$H$75)/$H$77,$H$76))) -> 0 | AJ234: =IF(AJ$201<$H$71, 0, MIN($H$76, IFERROR($H$75+4*(DATE2NUM(AJ$201)-DATE2NUM($H$71))*($H$76-$H$75)/$H$77,$H$76))) -> 0 | AK234: =IF(AK$201<$H$71, 0, MIN($H$76, IFERROR($H$75+4*(DATE2NUM(AK$201)-DATE2NUM($H$71))*($H$76-$H$75)/$H$77,$H$76))) -> 0 | AL234: =IF(AL$201<$H$71, 0, MIN($H$76, IFERROR($H$75+4*(DATE2NUM(AL$201)-DATE2NUM($H$71))*($H$76-$H$75)/$H$77,$H$76))) -> 0 | AM234: =IF(AM$201<$H$71, 0, MIN($H$76, IFERROR($H$75+4*(DATE2NUM(AM$201)-DATE2NUM($H$71))*($H$76-$H$75)/$H$77,$H$76))) -> 0 | AN234: =IF(AN$201<$H$71, 0, MIN($H$76, IFERROR($H$75+4*(DATE2NUM(AN$201)-DATE2NUM($H$71))*($H$76-$H$75)/$H$77,$H$76))) -> 0 | AO234: =IF(AO$201<$H$71, 0, MIN($H$76, IFERROR($H$75+4*(DATE2NUM(AO$201)-DATE2NUM($H$71))*($H$76-$H$75)/$H$77,$H$76))) -> 0 | AP234: =IF(AP$201<$H$71, 0, MIN($H$76, IFERROR($H$75+4*(DATE2NUM(AP$201)-DATE2NUM($H$71))*($H$76-$H$75)/$H$77,$H$76))) -> 0 | AQ234: =IF(AQ$201<$H$71, 0, MIN($H$76, IFERROR($H$75+4*(DATE2NUM(AQ$201)-DATE2NUM($H$71))*($H$76-$H$75)/$H$77,$H$76))) -> 0 | AR234: =IF(AR$201<$H$71, 0, MIN($H$76, IFERROR($H$75+4*(DATE2NUM(AR$201)-DATE2NUM($H$71))*($H$76-$H$75)/$H$77,$H$76))) -> 0 | AS234: =IF(AS$201<$H$71, 0, MIN($H$76, IFERROR($H$75+4*(DATE2NUM(AS$201)-DATE2NUM($H$71))*($H$76-$H$75)/$H$77,$H$76))) -> 0 | AT234: =IF(AT$201<$H$71, 0, MIN($H$76, IFERROR($H$75+4*(DATE2NUM(AT$201)-DATE2NUM($H$71))*($H$76-$H$75)/$H$77,$H$76))) -> 0 | AU234: =IF(AU$201<$H$71, 0, MIN($H$76, IFERROR($H$75+4*(DATE2NUM(AU$201)-DATE2NUM($H$71))*($H$76-$H$75)/$H$77,$H$76))) -> 0 | AV234: =IF(AV$201<$H$71, 0, MIN($H$76, IFERROR($H$75+4*(DATE2NUM(AV$201)-DATE2NUM($H$71))*($H$76-$H$75)/$H$77,$H$76))) -> 0 | AW234: =IF(AW$201<$H$71, 0, MIN($H$76, IFERROR($H$75+4*(DATE2NUM(AW$201)-DATE2NUM($H$71))*($H$76-$H$75)/$H$77,$H$76))) -> 0 | AX234: =IF(AX$201<$H$71, 0, MIN($H$76, IFERROR($H$75+4*(DATE2NUM(AX$201)-DATE2NUM($H$71))*($H$76-$H$75)/$H$77,$H$76))) -> 0 | AY234: =IF(AY$201<$H$71, 0, MIN($H$76, IFERROR($H$75+4*(DATE2NUM(AY$201)-DATE2NUM($H$71))*($H$76-$H$75)/$H$77,$H$76))) -> 6 | AZ234: =IF(AZ$201<$H$71, 0, MIN($H$76, IFERROR($H$75+4*(DATE2NUM(AZ$201)-DATE2NUM($H$71))*($H$76-$H$75)/$H$77,$H$76))) -> 6.25 | BA234: =IF(BA$201<$H$71, 0, MIN($H$76, IFERROR($H$75+4*(DATE2NUM(BA$201)-DATE2NUM($H$71))*($H$76-$H$75)/$H$77,$H$76))) -> 6.5 | BB234: =IF(BB$201<$H$71, 0, MIN($H$76, IFERROR($H$75+4*(DATE2NUM(BB$201)-DATE2NUM($H$71))*($H$76-$H$75)/$H$77,$H$76))) -> 6.75 | BC234: =IF(BC$201<$H$71, 0, MIN($H$76, IFERROR($H$75+4*(DATE2NUM(BC$201)-DATE2NUM($H$71))*($H$76-$H$75)/$H$77,$H$76))) -> 7 | BD234: =IF(BD$201<$H$71, 0, MIN($H$76, IFERROR($H$75+4*(DATE2NUM(BD$201)-DATE2NUM($H$71))*($H$76-$H$75)/$H$77,$H$76))) -> 7.25 | BE234: =IF(BE$201<$H$71, 0, MIN($H$76, IFERROR($H$75+4*(DATE2NUM(BE$201)-DATE2NUM($H$71))*($H$76-$H$75)/$H$77,$H$76))) -> 7.5 | BF234: =IF(BF$201<$H$71, 0, MIN($H$76, IFERROR($H$75+4*(DATE2NUM(BF$201)-DATE2NUM($H$71))*($H$76-$H$75)/$H$77,$H$76))) -> 7.75 | BG234: =IF(BG$201<$H$71, 0, MIN($H$76, IFERROR($H$75+4*(DATE2NUM(BG$201)-DATE2NUM($H$71))*($H$76-$H$75)/$H$77,$H$76))) -> 8 | BH234: =IF(BH$201<$H$71, 0, MIN($H$76, IFERROR($H$75+4*(DATE2NUM(BH$201)-DATE2NUM($H$71))*($H$76-$H$75)/$H$77,$H$76))) -> 8.25 | BI234: =IF(BI$201<$H$71, 0, MIN($H$76, IFERROR($H$75+4*(DATE2NUM(BI$201)-DATE2NUM($H$71))*($H$76-$H$75)/$H$77,$H$76))) -> 8.5 | BJ234: =IF(BJ$201<$H$71, 0, MIN($H$76, IFERROR($H$75+4*(DATE2NUM(BJ$201)-DATE2NUM($H$71))*($H$76-$H$75)/$H$77,$H$76))) -> 8.75 | BK234: =IF(BK$201<$H$71, 0, MIN($H$76, IFERROR($H$75+4*(DATE2NUM(BK$201)-DATE2NUM($H$71))*($H$76-$H$75)/$H$77,$H$76))) -> 9 | BL234: =IF(BL$201<$H$71, 0, MIN($H$76, IFERROR($H$75+4*(DATE2NUM(BL$201)-DATE2NUM($H$71))*($H$76-$H$75)/$H$77,$H$76))) -> 9.25 | BM234: =IF(BM$201<$H$71, 0, MIN($H$76, IFERROR($H$75+4*(DATE2NUM(BM$201)-DATE2NUM($H$71))*($H$76-$H$75)/$H$77,$H$76))) -> 9.5 | BN234: =IF(BN$201<$H$71, 0, MIN($H$76, IFERROR($H$75+4*(DATE2NUM(BN$201)-DATE2NUM($H$71))*($H$76-$H$75)/$H$77,$H$76))) -> 9.75 | BO234: =IF(BO$201<$H$71, 0, MIN($H$76, IFERROR($H$75+4*(DATE2NUM(BO$201)-DATE2NUM($H$71))*($H$76-$H$75)/$H$77,$H$76))) -> 10 | BP234: =IF(BP$201<$H$71, 0, MIN($H$76, IFERROR($H$75+4*(DATE2NUM(BP$201)-DATE2NUM($H$71))*($H$76-$H$75)/$H$77,$H$76))) -> 10.25 | BQ234: =IF(BQ$201<$H$71, 0, MIN($H$76, IFERROR($H$75+4*(DATE2NUM(BQ$201)-DATE2NUM($H$71))*($H$76-$H$75)/$H$77,$H$76))) -> 10.5 | BR234: =IF(BR$201<$H$71, 0, MIN($H$76, IFERROR($H$75+4*(DATE2NUM(BR$201)-DATE2NUM($H$71))*($H$76-$H$75)/$H$77,$H$76))) -> 10.75 | BS234: =IF(BS$201<$H$71, 0, MIN($H$76, IFERROR($H$75+4*(DATE2NUM(BS$201)-DATE2NUM($H$71))*($H$76-$H$75)/$H$77,$H$76))) -> 11 | BT234: =IF(BT$201<$H$71, 0, MIN($H$76, IFERROR($H$75+4*(DATE2NUM(BT$201)-DATE2NUM($H$71))*($H$76-$H$75)/$H$77,$H$76))) -> 11.25 | BU234: =IF(BU$201<$H$71, 0, MIN($H$76, IFERROR($H$75+4*(DATE2NUM(BU$201)-DATE2NUM($H$71))*($H$76-$H$75)/$H$77,$H$76))) -> 11.5 | BV234: =IF(BV$201<$H$71, 0, MIN($H$76, IFERROR($H$75+4*(DATE2NUM(BV$201)-DATE2NUM($H$71))*($H$76-$H$75)/$H$77,$H$76))) -> 11.75 | BW234: =IF(BW$201<$H$71, 0, MIN($H$76, IFERROR($H$75+4*(DATE2NUM(BW$201)-DATE2NUM($H$71))*($H$76-$H$75)/$H$77,$H$76))) -> 12 | BX234: =IF(BX$201<$H$71, 0, MIN($H$76, IFERROR($H$75+4*(DATE2NUM(BX$201)-DATE2NUM($H$71))*($H$76-$H$75)/$H$77,$H$76))) -> 12 | BY234: =IF(BY$201<$H$71, 0, MIN($H$76, IFERROR($H$75+4*(DATE2NUM(BY$201)-DATE2NUM($H$71))*($H$76-$H$75)/$H$77,$H$76))) -> 12 | BZ234: =IF(BZ$201<$H$71, 0, MIN($H$76, IFERROR($H$75+4*(DATE2NUM(BZ$201)-DATE2NUM($H$71))*($H$76-$H$75)/$H$77,$H$76))) -> 12 | CA234: =IF(CA$201<$H$71, 0, MIN($H$76, IFERROR($H$75+4*(DATE2NUM(CA$201)-DATE2NUM($H$71))*($H$76-$H$75)/$H$77,$H$76))) -> 12 | CB234: =IF(CB$201<$H$71, 0, MIN($H$76, IFERROR($H$75+4*(DATE2NUM(CB$201)-DATE2NUM($H$71))*($H$76-$H$75)/$H$77,$H$76))) -> 12 | CC234: =IF(CC$201<$H$71, 0, MIN($H$76, IFERROR($H$75+4*(DATE2NUM(CC$201)-DATE2NUM($H$71))*($H$76-$H$75)/$H$77,$H$76))) -> 12 | CD234: =IF(CD$201<$H$71, 0, MIN($H$76, IFERROR($H$75+4*(DATE2NUM(CD$201)-DATE2NUM($H$71))*($H$76-$H$75)/$H$77,$H$76))) -> 12 | CE234: =IF(CE$201<$H$71, 0, MIN($H$76, IFERROR($H$75+4*(DATE2NUM(CE$201)-DATE2NUM($H$71))*($H$76-$H$75)/$H$77,$H$76))) -> 12 | CF234: =IF(CF$201<$H$71, 0, MIN($H$76, IFERROR($H$75+4*(DATE2NUM(CF$201)-DATE2NUM($H$71))*($H$76-$H$75)/$H$77,$H$76))) -> 12 | CG234: =IF(CG$201<$H$71, 0, MIN($H$76, IFERROR($H$75+4*(DATE2NUM(CG$201)-DATE2NUM($H$71))*($H$76-$H$75)/$H$77,$H$76))) -> 12 | CH234: =IF(CH$201<$H$71, 0, MIN($H$76, IFERROR($H$75+4*(DATE2NUM(CH$201)-DATE2NUM($H$71))*($H$76-$H$75)/$H$77,$H$76))) -> 12 | CI234: =IF(CI$201<$H$71, 0, MIN($H$76, IFERROR($H$75+4*(DATE2NUM(CI$201)-DATE2NUM($H$71))*($H$76-$H$75)/$H$77,$H$76))) -> 12 | CJ234: =IF(CJ$201<$H$71, 0, MIN($H$76, IFERROR($H$75+4*(DATE2NUM(CJ$201)-DATE2NUM($H$71))*($H$76-$H$75)/$H$77,$H$76))) -> 12 | CK234: =IF(CK$201<$H$71, 0, MIN($H$76, IFERROR($H$75+4*(DATE2NUM(CK$201)-DATE2NUM($H$71))*($H$76-$H$75)/$H$77,$H$76))) -> 12 | CL234: =IF(CL$201<$H$71, 0, MIN($H$76, IFERROR($H$75+4*(DATE2NUM(CL$201)-DATE2NUM($H$71))*($H$76-$H$75)/$H$77,$H$76))) -> 12 | CM234: =IF(CM$201<$H$71, 0, MIN($H$76, IFERROR($H$75+4*(DATE2NUM(CM$201)-DATE2NUM($H$71))*($H$76-$H$75)/$H$77,$H$76))) -> 12 | CN234: =IF(CN$201<$H$71, 0, MIN($H$76, IFERROR($H$75+4*(DATE2NUM(CN$201)-DATE2NUM($H$71))*($H$76-$H$75)/$H$77,$H$76))) -> 12 | CO234: =IF(CO$201<$H$71, 0, MIN($H$76, IFERROR($H$75+4*(DATE2NUM(CO$201)-DATE2NUM($H$71))*($H$76-$H$75)/$H$77,$H$76))) -> 12 | CP234: =IF(CP$201<$H$71, 0, MIN($H$76, IFERROR($H$75+4*(DATE2NUM(CP$201)-DATE2NUM($H$71))*($H$76-$H$75)/$H$77,$H$76))) -> 12 | CQ234: =IF(CQ$201<$H$71, 0, MIN($H$76, IFERROR($H$75+4*(DATE2NUM(CQ$201)-DATE2NUM($H$71))*($H$76-$H$75)/$H$77,$H$76))) -> 12 | CR234: =IF(CR$201<$H$71, 0, MIN($H$76, IFERROR($H$75+4*(DATE2NUM(CR$201)-DATE2NUM($H$71))*($H$76-$H$75)/$H$77,$H$76))) -> 12 | CS234: =IF(CS$201<$H$71, 0, MIN($H$76, IFERROR($H$75+4*(DATE2NUM(CS$201)-DATE2NUM($H$71))*($H$76-$H$75)/$H$77,$H$76))) -> 12 | CT234: =IF(CT$201<$H$71, 0, MIN($H$76, IFERROR($H$75+4*(DATE2NUM(CT$201)-DATE2NUM($H$71))*($H$76-$H$75)/$H$77,$H$76))) -> 12 | CU234: =IF(CU$201<$H$71, 0, MIN($H$76, IFERROR($H$75+4*(DATE2NUM(CU$201)-DATE2NUM($H$71))*($H$76-$H$75)/$H$77,$H$76))) -> 12 | CV234: =IF(CV$201<$H$71, 0, MIN($H$76, IFERROR($H$75+4*(DATE2NUM(CV$201)-DATE2NUM($H$71))*($H$76-$H$75)/$H$77,$H$76))) -> 12 | CW234: =IF(CW$201<$H$71, 0, MIN($H$76, IFERROR($H$75+4*(DATE2NUM(CW$201)-DATE2NUM($H$71))*($H$76-$H$75)/$H$77,$H$76))) -> 12 | CX234: =IF(CX$201<$H$71, 0, MIN($H$76, IFERROR($H$75+4*(DATE2NUM(CX$201)-DATE2NUM($H$71))*($H$76-$H$75)/$H$77,$H$76))) -> 12 | CY234: =IF(CY$201<$H$71, 0, MIN($H$76, IFERROR($H$75+4*(DATE2NUM(CY$201)-DATE2NUM($H$71))*($H$76-$H$75)/$H$77,$H$76))) -> 12 | CZ234: =IF(CZ$201<$H$71, 0, MIN($H$76, IFERROR($H$75+4*(DATE2NUM(CZ$201)-DATE2NUM($H$71))*($H$76-$H$75)/$H$77,$H$76))) -> 12 | DA234: =IF(DA$201<$H$71, 0, MIN($H$76, IFERROR($H$75+4*(DATE2NUM(DA$201)-DATE2NUM($H$71))*($H$76-$H$75)/$H$77,$H$76))) -> 12 | DB234: =IF(DB$201<$H$71, 0, MIN($H$76, IFERROR($H$75+4*(DATE2NUM(DB$201)-DATE2NUM($H$71))*($H$76-$H$75)/$H$77,$H$76))) -> 12 | DC234: =IF(DC$201<$H$71, 0, MIN($H$76, IFERROR($H$75+4*(DATE2NUM(DC$201)-DATE2NUM($H$71))*($H$76-$H$75)/$H$77,$H$76))) -> 12 | DD234: =IF(DD$201<$H$71, 0, MIN($H$76, IFERROR($H$75+4*(DATE2NUM(DD$201)-DATE2NUM($H$71))*($H$76-$H$75)/$H$77,$H$76))) -> 12 | DE234: =IF(DE$201<$H$71, 0, MIN($H$76, IFERROR($H$75+4*(DATE2NUM(DE$201)-DATE2NUM($H$71))*($H$76-$H$75)/$H$77,$H$76))) -> 12 | DF234: =IF(DF$201<$H$71, 0, MIN($H$76, IFERROR($H$75+4*(DATE2NUM(DF$201)-DATE2NUM($H$71))*($H$76-$H$75)/$H$77,$H$76))) -> 12 | DG234: =IF(DG$201<$H$71, 0, MIN($H$76, IFERROR($H$75+4*(DATE2NUM(DG$201)-DATE2NUM($H$71))*($H$76-$H$75)/$H$77,$H$76))) -> 12 | DH234: =IF(DH$201<$H$71, 0, MIN($H$76, IFERROR($H$75+4*(DATE2NUM(DH$201)-DATE2NUM($H$71))*($H$76-$H$75)/$H$77,$H$76))) -> 12 | DI234: =IF(DI$201<$H$71, 0, MIN($H$76, IFERROR($H$75+4*(DATE2NUM(DI$201)-DATE2NUM($H$71))*($H$76-$H$75)/$H$77,$H$76))) -> 12 | DJ234: =IF(DJ$201<$H$71, 0, MIN($H$76, IFERROR($H$75+4*(DATE2NUM(DJ$201)-DATE2NUM($H$71))*($H$76-$H$75)/$H$77,$H$76))) -> 12 | DK234: =IF(DK$201<$H$71, 0, MIN($H$76, IFERROR($H$75+4*(DATE2NUM(DK$201)-DATE2NUM($H$71))*($H$76-$H$75)/$H$77,$H$76))) -> 12 | DL234: =IF(DL$201<$H$71, 0, MIN($H$76, IFERROR($H$75+4*(DATE2NUM(DL$201)-DATE2NUM($H$71))*($H$76-$H$75)/$H$77,$H$76))) -> 12 | DM234: =IF(DM$201<$H$71, 0, MIN($H$76, IFERROR($H$75+4*(DATE2NUM(DM$201)-DATE2NUM($H$71))*($H$76-$H$75)/$H$77,$H$76))) -> 12 | DN234: =IF(DN$201<$H$71, 0, MIN($H$76, IFERROR($H$75+4*(DATE2NUM(DN$201)-DATE2NUM($H$71))*($H$76-$H$75)/$H$77,$H$76))) -> 12 | DO234: =IF(DO$201<$H$71, 0, MIN($H$76, IFERROR($H$75+4*(DATE2NUM(DO$201)-DATE2NUM($H$71))*($H$76-$H$75)/$H$77,$H$76))) -> 12 | DP234: =IF(DP$201<$H$71, 0, MIN($H$76, IFERROR($H$75+4*(DATE2NUM(DP$201)-DATE2NUM($H$71))*($H$76-$H$75)/$H$77,$H$76))) -> 12 | DQ234: =IF(DQ$201<$H$71, 0, MIN($H$76, IFERROR($H$75+4*(DATE2NUM(DQ$201)-DATE2NUM($H$71))*($H$76-$H$75)/$H$77,$H$76))) -> 12 | DR234: =IF(DR$201<$H$71, 0, MIN($H$76, IFERROR($H$75+4*(DATE2NUM(DR$201)-DATE2NUM($H$71))*($H$76-$H$75)/$H$77,$H$76))) -> 12 | DS234: =IF(DS$201<$H$71, 0, MIN($H$76, IFERROR($H$75+4*(DATE2NUM(DS$201)-DATE2NUM($H$71))*($H$76-$H$75)/$H$77,$H$76))) -> 12 | DT234: =IF(DT$201<$H$71, 0, MIN($H$76, IFERROR($H$75+4*(DATE2NUM(DT$201)-DATE2NUM($H$71))*($H$76-$H$75)/$H$77,$H$76))) -> 12 | DU234: =IF(DU$201<$H$71, 0, MIN($H$76, IFERROR($H$75+4*(DATE2NUM(DU$201)-DATE2NUM($H$71))*($H$76-$H$75)/$H$77,$H$76))) -> 12 | DV234: =IF(DV$201<$H$71, 0, MIN($H$76, IFERROR($H$75+4*(DATE2NUM(DV$201)-DATE2NUM($H$71))*($H$76-$H$75)/$H$77,$H$76))) -> 12
